Workbook

Sheet START
A1: =muni -> Choose name from list

Sheet Instructions
D2: 2020
X4: Yes
X5: No
W7: Type of Entities Range: | X7: Parent Municipality
X8: Consolidated Information
W10: Date linked | X10: 13
W11: Date | X11: =VLOOKUP(X10,W39:X55,2) -> Q1 First Quarter | Y11: 2013-08-01
W19: MTREF Range: | X19: 2014
X20: 2015
X21: 2016
X22: 2017
X23: 2018
X24: 2019
X25: 2020
X26: 2021
X27: 2022
X28: 2023
X29: 2024
X30: 2025
X31: 2026
X32: 2027
X33: 2028
W34: MTREF Linked:
W35: MTREF: | X35: 11
X36: =INDEX(X19:X32,X35,1) -> 2024
W37: Fin Year:
X38: =MTREF&"/"&RIGHT(MTREF,2)+1 -> 2024/25
V39: Date/type of report | W39: 1 | X39: M01 July
W40: 2 | X40: M02 August
W41: 3 | X41: M03 September
W42: 4 | X42: M04 October
W43: 5 | X43: M05 November
W44: 6 | X44: M06 December
W45: 7 | X45: M07 January
W46: 8 | X46: M08 February
W47: 9 | X47: M09 March
W48: 10 | X48: M10 April
W49: 11 | X49: M11 May
W50: 12 | X50: M12 June
W51: 13 | X51: Q1 First Quarter
W52: 14 | X52: Q2 Second Quarter
W53: 15 | X53: Q3 Third Quarter
W54: 16 | X54: Q4 Fourth Quarter
W55: 17 | X55: Mid-Year Assessment

Sheet Template names (hidden)
A1: Common sheet headings
A2: Head1 | B2: =HLOOKUP(MTREF,Headings,2) -> 2023/24 | C2: Prior year -1
A3: Head2 | B3: =HLOOKUP(MTREF,Headings,5) -> Budget Year 2024/25 | C3: Year of approved budget
A4: Head2A | B4: =HLOOKUP(MTREF,Headings,4) -> 2024/25 | C4: Approved budget year
A5: Head3 | B5: =HLOOKUP(MTREF,Headings,3) -> 2024/25 Medium Term Revenue & Expenditure Framework | C5: MTREF header name
A6: Head5 | B6: Audited Outcome
A7: Head5A | B7: Outcome
A8: Head5B | B8: Pre-audit outcome
A9: Head6 | B9: Original Budget
A10: Head7 | B10: Adjusted Budget
A11: Head8 | B11: Full Year Forecast
A12: Head9 | B12: =HLOOKUP(MTREF,Headings,5) -> Budget Year 2024/25 | C12: 1st year of MTREF | D12: Year1
A13: Head10 | B13: =HLOOKUP(MTREF,Headings,6) -> Budget Year +1 2025/26 | C13: 2nd year of MTREF | D13: Year2
A14: Head11 | B14: =HLOOKUP(MTREF,Headings,7) -> Budget Year +2 2026/27 | C14: 3rd year of MTREF | D14: Year3
A15: Head12 | B15: Forecast 2010/11 | D15: Year4
A16: Head13 | B16: Forecast 2011/12 | D16: Year5
A17: Head14 | B17: Forecast 2012/13 | D17: Year6
A18: Head15 | B18: Forecast 2013/14 | D18: Year7
A19: Head16 | B19: Forecast 2014/15 | D19: Year8
A20: Head17 | B20: Forecast 2015/16 | D20: Year9
A21: Head18 | B21: Forecast 2016/17 | D21: Year10
A22: Head19 | B22: Forecast 2017/18 | D22: Year11
A23: Head20 | B23: Forecast 2018/19 | D23: Year12
A24: Head21 | B24: Forecast 2019/20 | D24: Year13
A25: Head22 | B25: Forecast 2020/21 | D25: Year14
A26: Head23 | B26: Forecast 2021/22 | D26: Year15
A27: Head24 | B27: Description | D27: Desc
A28: Head25 | B28: Schedule of funding diligence | D28: fdil
A29: Head26 | B29: Vote Description | D29: VDesc
A30: Head27 | B30: Ref
A31: Head27a | B31: References
A32: Head28 | B32: Surplus/ (Deficit) for the year | D32: Result
A33: Head29 | B33: Annual target 2007/08
A34: Head30 | B34: Revised target 2007/08
A35: Head31 | B35: Quarter ended 30 September
A36: Head32 | B36: Quarter ended 31 December
A37: Head33 | B37: Quarter ended 31 March
A38: Head34 | B38: Quarter ended 30 June
A39: Head35 | B39: Variance explanation
A40: Head36 | B40: YTD Actual 31 Dec
A41: Head37 | B41: YTD Budget 31 Dec
A42: Head38 | B42: Monthly actual
A43: Head39 | B43: YearTD actual
A44: Head40 | B44: YearTD budget
A45: Head41 | B45: YTD variance
A46: Head42 | B46: Surplus/ (Deficit) for the yr/period
A47: Head43 | B47: =Head3&" Summary" -> 2024/25 Medium Term Revenue & Expenditure Framework Summary
A48: Head44 | B48: 1996 Census
A49: Head45 | B49: 2001 Census
A50: Head46 | B50: - Adjustments Budget - Month YYYY
A51: Head47 | B51: Previous target year to complete
A52: Head48 | B52: Present value
A53: Head49 | B53: Virement
A54: Head50 | B54: Other Adjusts.
A55: Head51 | B55: Accum. Funds
A56: Head52 | B56: Multi-year capital
A57: Head53 | B57: Unfore. Unavoid.
A58: Head54 | B58: Prior Adjusted
A59: Head55 | B59: Nat. or Prov. Govt
A60: Head56 | B60: Total Adjusts.
A61: Head57 | B61: =date -> Q1 First Quarter
A62: Head58 | B62: Parent muni.
A63: Head59 | B63: Downward adjusts
A64: Head60 | B64: Month | C64: Report header part name | D64: =date -> Q1 First Quarter
A65: SFPerf1 | B65: Budgeted Financial Performance
A66: SFPerf2 | B66: Forecast Financial Performance
A67: SFPos1 | B67: Budgeted Financial Position
A68: SFPos2 | B68: Forecast Financial Position
A69: Cash1 | B69: Budget Cash Flow
A70: Cash2 | B70: Forecast Cash Flow
A71: RandM | B71: Expenditure includes repairs & maintenance of R'000
A72: Standard nomenclature
A73: Muni | B73: ='Lookup and lists'!B27 -> KZN225 Msunduzi
A74: Municipal Entities | B74: 1 | C74: Type of report: | D74: 1
A75: =IF((MuniEntities=1)*(MuniType=2),"YES","NO") -> NO | B75: Does this municipality have entities (consolidated budget and entity budgets required)? YES/NO
A76: s71 (Monthly Mayor report) schedules and charts
A77: S71sum | B77: =IF(Consolques="YES",E77,F77) -> Table C1 Monthly Budget Statement Summary | D77: Table C1 | E77: =D77&"Consolidated Monthly Budget Statement Summary" -> Table C1 Consolidated Monthly Budget Statement Summary | F77: =D77&"Monthly Budget Statement Summary" -> Table C1 Monthly Budget Statement Summary
A78: S71C | B78: Table C3 Monthly Budget Statement - Financial Performance (revenue and expenditure by municipal vote) | D78: Table C3 | E78: =D78&"Consolidated Monthly Budget Statement - Financial Performance (revenue and expenditure by municipal vote) " -> Table C3 Consolidated Monthly Budget Statement - Financial Performance (revenue and expenditure by municipal vote) | F78: =D78&"Monthly Budget Statement - Financial Performance (revenue and expenditure by municipal vote)" -> Table C3 Monthly Budget Statement - Financial Performance (revenue and expenditure by municipal vote)
A79: S71A | B79: =IF(Consolques="YES",E79,F79) -> Table C2 Monthly Budget Statement - Financial Performance (functional classification) | D79: Table C2 | E79: =D79&"Consolidated Monthly Budget Statement - Financial Performance (functional classification) " -> Table C2 Consolidated Monthly Budget Statement - Financial Performance (functional classification) | F79: =D79&"Monthly Budget Statement - Financial Performance (functional classification)" -> Table C2 Monthly Budget Statement - Financial Performance (functional classification)
A80: S71B | B80: =IF(Consolques="YES",E80,F80) -> Table C4 Monthly Budget Statement - Financial Performance (revenue and expenditure) | D80: Table C4 | E80: =D80&"Consolidated Monthly Budget Statement - Financial Performance (revenue and expenditure) " -> Table C4 Consolidated Monthly Budget Statement - Financial Performance (revenue and expenditure) | F80: =D80&"Monthly Budget Statement - Financial Performance (revenue and expenditure)" -> Table C4 Monthly Budget Statement - Financial Performance (revenue and expenditure)
A81: S71D | B81: =IF(Consolques="YES",E81,F81) -> Table C5 Monthly Budget Statement - Capital Expenditure (municipal vote, functional classification and funding) | D81: Table C5 | E81: =D81&"Consolidated Monthly Budget Statement - Capital Expenditure (municipal vote, functional classification and funding " -> Table C5 Consolidated Monthly Budget Statement - Capital Expenditure (municipal vote, functional classification and funding | F81: =D81&"Monthly Budget Statement - Capital Expenditure (municipal vote, functional classification and funding)" -> Table C5 Monthly Budget Statement - Capital Expenditure (municipal vote, functional classification and funding)
A82: S71E | B82: Table C6 Monthly Budget Statement - Financial Position | D82: Table C6 | E82: =D82&"Consolidated Monthly Budget Statement - Financial Position " -> Table C6 Consolidated Monthly Budget Statement - Financial Position | F82: =D82&"Monthly Budget Statement - Financial Position" -> Table C6 Monthly Budget Statement - Financial Position
A83: S71F | B83: Table C7 Monthly Budget Statement - Cash Flow | D83: Table C7 | E83: =D83&"Consolidated Monthly Budget Statement - Cash Flow " -> Table C7 Consolidated Monthly Budget Statement - Cash Flow | F83: =D83&"Monthly Budget Statement - Cash Flow " -> Table C7 Monthly Budget Statement - Cash Flow
A84: S71G | B84: =D84&"Material variance explanations " -> Supporting Table SC1 Material variance explanations | D84: Supporting Table SC1
A85: S71H | B85: =D85&"Monthly Budget Statement - performance indicators " -> Supporting Table SC2 Monthly Budget Statement - performance indicators | D85: Supporting Table SC2
A86: S71I | B86: =D86&"Monthly Budget Statement - aged debtors" -> Supporting Table SC3 Monthly Budget Statement - aged debtors | D86: Supporting Table SC3
A87: S71J | B87: =D87&"Monthly Budget Statement - aged creditors " -> Supporting Table SC4 Monthly Budget Statement - aged creditors | D87: Supporting Table SC4
A88: S71K | B88: =D88&"Monthly Budget Statement - investment portfolio " -> Supporting Table SC5 Monthly Budget Statement - investment portfolio | D88: Supporting Table SC5
A89: S71L | B89: =D89&"Monthly Budget Statement - transfers and grant receipts " -> Supporting Table SC6 Monthly Budget Statement - transfers and grant receipts | D89: Supporting Table SC6
A90: S71M | B90: =D90&" Monthly Budget Statement - transfers and grant expenditure " -> Supporting Table SC7(1) Monthly Budget Statement - transfers and grant expenditure | D90: Supporting Table SC7(1)
A91: S71N | B91: =D91&"Monthly Budget Statement - councillor and staff benefits " -> Supporting Table SC8 Monthly Budget Statement - councillor and staff benefits | D91: Supporting Table SC8
A92: S71O | B92: =D92&"Monthly Budget Statement - actuals and revised targets for cash receipts" -> Supporting Table SC9 Monthly Budget Statement - actuals and revised targets for cash receipts | D92: Supporting Table SC9
A93: S71P | B93: =IF(Consolques="YES",E93,F93) -> NOT REQUIRED - municipality does not have entities or this is the parent municipality's budget | D93: Supporting Table SC10 | E93: =D93&"Monthly Budget Statement - Parent Municipality Financial Performance (revenue and expenditure) " -> Supporting Table SC10 Monthly Budget Statement - Parent Municipality Financial Performance (revenue and expenditure) | F93: NOT REQUIRED - municipality does not have entities or this is the parent municipality's budget
A94: S71Q | B94: NOT REQUIRED - municipality does not have entities or this is the parent municipality's budget | D94: Supporting Table SC11 | E94: =D94&"Monthly Budget Statement - summary of municipal entities" -> Supporting Table SC11 Monthly Budget Statement - summary of municipal entities | F94: NOT REQUIRED - municipality does not have entities or this is the parent municipality's budget
A95: S71R | B95: Supporting Table SC12 Monthly Budget Statement - capital expenditure trend | D95: Supporting Table SC12 | E95: =D95&"Consolidated Monthly Budget Statement - capital expenditure trend " -> Supporting Table SC12 Consolidated Monthly Budget Statement - capital expenditure trend | F95: =D95&"Monthly Budget Statement - capital expenditure trend" -> Supporting Table SC12 Monthly Budget Statement - capital expenditure trend
A96: S71Sa | B96: Supporting Table SC13a Monthly Budget Statement - capital expenditure on new assets by asset class | D96: Supporting Table SC13a | E96: =D96&"Consolidated Monthly Budget Statement - capital expenditure on new assets by asset class" -> Supporting Table SC13a Consolidated Monthly Budget Statement - capital expenditure on new assets by asset class | F96: =D96&"Monthly Budget Statement - capital expenditure on new assets by asset class" -> Supporting Table SC13a Monthly Budget Statement - capital expenditure on new assets by asset class
A97: S71Sb | B97: Supporting Table SC13b Monthly Budget Statement - capital expenditure on renewal of existing assets by asset class | D97: Supporting Table SC13b | E97: =D97&"Consolidated Monthly Budget Statement - capital expenditure on renewal of existing assets by asset class" -> Supporting Table SC13b Consolidated Monthly Budget Statement - capital expenditure on renewal of existing assets by asset class | F97: =D97&"Monthly Budget Statement - capital expenditure on renewal of existing assets by asset class" -> Supporting Table SC13b Monthly Budget Statement - capital expenditure on renewal of existing assets by asset class
A98: S71Sc | B98: Supporting Table SC13c Monthly Budget Statement - expenditure on repairs and maintenance by asset class | D98: Supporting Table SC13c | E98: =D98&"Consolidated Monthly Budget Statement - expenditure on repairs and maintenance by asset class" -> Supporting Table SC13c Consolidated Monthly Budget Statement - expenditure on repairs and maintenance by asset class | F98: =D98&"Monthly Budget Statement - expenditure on repairs and maintenance by asset class" -> Supporting Table SC13c Monthly Budget Statement - expenditure on repairs and maintenance by asset class
A99: S71Sd | B99: Supporting Table SC13d Monthly Budget Statement - depreciation by asset class | D99: Supporting Table SC13d | E99: =D99&"Consolidated Monthly Budget Statement - depreciation by asset class" -> Supporting Table SC13d Consolidated Monthly Budget Statement - depreciation by asset class | F99: =D99&"Monthly Budget Statement - depreciation by asset class" -> Supporting Table SC13d Monthly Budget Statement - depreciation by asset class
A100: S71Se | B100: =IF(Consolques="YES",E100,F100) -> Supporting Table SC13e Monthly Budget Statement - capital expenditure on upgrading of existing assets by asset class | D100: Supporting Table SC13e | E100: =D100&"Consolidated Monthly Budget Statement - capital expenditure on upgrading of existing assets by asset class" -> Supporting Table SC13e Consolidated Monthly Budget Statement - capital expenditure on upgrading of existing assets by asset class | F100: =D100&"Monthly Budget Statement - capital expenditure on upgrading of existing assets by asset class" -> Supporting Table SC13e Monthly Budget Statement - capital expenditure on upgrading of existing assets by asset class
B101: s71 charts listing
B102: =D102&Head2A&" Capital Expenditure Monthly Trend: actual v target" -> Chart C1 2024/25 Capital Expenditure Monthly Trend: actual v target | D102: Chart C1
B103: =D103&Head2A&" Capital Expenditure: YTD actual v YTD target" -> Chart C2 2024/25 Capital Expenditure: YTD actual v YTD target | D103: Chart C2
B104: =D104&"Aged Consumer Debtors Analysis" -> Chart C3 Aged Consumer Debtors Analysis | D104: Chart C3
B105: =D105&"Consumer Debtors (total by Debtor Customer Category)" -> Chart C4 Consumer Debtors (total by Debtor Customer Category) | D105: Chart C4
B106: =D106&"Aged Creditors Analysis" -> Chart C5 Aged Creditors Analysis | D106: Chart C5
A107: S71T | B107: =D107&" Monthly Budget Statement - Expenditure against approved rollovers" -> Supporting Table SC7(2) Monthly Budget Statement - Expenditure against approved rollovers | D107: Supporting Table SC7(2)

Sheet Lookup and lists (hidden)
A1: Description | B1: 2013 | C1: 2014 | D1: 2015 | E1: 2016 | F1: 2017 | G1: 2018 | H1: 2019 | I1: 2020 | J1: 2021 | K1: 2022 | L1: 2023 | M1: 2024 | N1: 2025 | O1: 2026 | Q1: Grants: | R1: National - opex | S1: Provincial - opex | T1: National - capex | U1: Provincial - capex | V1: YESNO
A2: ='Template names'!C2 -> Prior year -1 | B2: =B1-1&"/"&RIGHT(B1,2)-0 -> 2012/13 | C2: =C1-1&"/"&RIGHT(C1,2)-0 -> 2013/14 | D2: =D1-1&"/"&RIGHT(D1,2)-0 -> 2014/15 | E2: =E1-1&"/"&RIGHT(E1,2)-0 -> 2015/16 | F2: =F1-1&"/"&RIGHT(F1,2)-0 -> 2016/17 | G2: 2017/18 | H2: 2018/19 | I2: 2019/20 | J2: 2020/21 | K2: 2021/22 | L2: 2022/23 | M2: 2023/24 | N2: 2024/25 | O2: 2025/26 | R2: Local Government Equitable Share | S2: Health subsidy | T2: Municipal Infrastructure Grant (MIG) | U2: Agriculture | V2: Yes
A3: ='Template names'!C5 -> MTREF header name | B3: =B1&"/"&RIGHT(B1,2)+1&" Medium Term Revenue & Expenditure Framework" -> 2013/14 Medium Term Revenue & Expenditure Framework | C3: =C1&"/"&RIGHT(C1,2)+1&" Medium Term Revenue & Expenditure Framework" -> 2014/15 Medium Term Revenue & Expenditure Framework | D3: =D1&"/"&RIGHT(D1,2)+1&" Medium Term Revenue & Expenditure Framework" -> 2015/16 Medium Term Revenue & Expenditure Framework | E3: =E1&"/"&RIGHT(E1,2)+1&" Medium Term Revenue & Expenditure Framework" -> 2016/17 Medium Term Revenue & Expenditure Framework | F3: =F1&"/"&RIGHT(F1,2)+1&" Medium Term Revenue & Expenditure Framework" -> 2017/18 Medium Term Revenue & Expenditure Framework | G3: 2018/19 Medium Term Revenue & Expenditure Framework | H3: 2019/20 Medium Term Revenue & Expenditure Framework | I3: 2020/21 Medium Term Revenue & Expenditure Framework | J3: 2021/22 Medium Term Revenue & Expenditure Framework | K3: 2022/23 Medium Term Revenue & Expenditure Framework | L3: 2023/24 Medium Term Revenue & Expenditure Framework | M3: 2024/25 Medium Term Revenue & Expenditure Framework | N3: 2025/26 Medium Term Revenue & Expenditure Framework | O3: 2026/27 Medium Term Revenue & Expenditure Framework | R3: RSC Levy Replacement | S3: Ambulance subsidy | T3: Public Transport and Systems | U3: Education | V3: No
A4: ='Template names'!C4 -> Approved budget year | B4: =B1&"/"&RIGHT(B1,2)+1 -> 2013/14 | C4: =C1&"/"&RIGHT(C1,2)+1 -> 2014/15 | D4: =D1&"/"&RIGHT(D1,2)+1 -> 2015/16 | E4: =E1&"/"&RIGHT(E1,2)+1 -> 2016/17 | F4: =F1&"/"&RIGHT(F1,2)+1 -> 2017/18 | G4: 2018/19 | H4: 2019/20 | I4: 2020/21 | J4: 2021/22 | K4: 2022/23 | L4: 2023/24 | M4: 2024/25 | N4: 2025/26 | O4: 2026/27 | R4: Finance Management | S4: Housing | T4: Rural Transport Services and Infrastructure | U4: Health
A5: ='Template names'!C12 -> 1st year of MTREF | B5: ="Budget Year "&B1&"/"&RIGHT(B1,2)+1 -> Budget Year 2013/14 | C5: ="Budget Year "&C1&"/"&RIGHT(C1,2)+1 -> Budget Year 2014/15 | D5: ="Budget Year "&D1&"/"&RIGHT(D1,2)+1 -> Budget Year 2015/16 | E5: ="Budget Year "&E1&"/"&RIGHT(E1,2)+1 -> Budget Year 2016/17 | F5: ="Budget Year "&F1&"/"&RIGHT(F1,2)+1 -> Budget Year 2017/18 | G5: Budget Year 2018/19 | H5: Budget Year 2019/20 | I5: Budget Year 2020/21 | J5: Budget Year 2021/22 | K5: Budget Year 2022/23 | L5: Budget Year 2023/24 | M5: Budget Year 2024/25 | N5: Budget Year 2025/26 | O5: Budget Year 2026/27 | R5: Municipal Systems Improvement | S5: Sport and Recreation | T5: Regional Bulk Infrastructure | U5: Housing and Local Government
A6: ='Template names'!C13 -> 2nd year of MTREF | B6: ="Budget Year +1 "&B1+1&"/"&RIGHT(B1,2)+2 -> Budget Year +1 2014/15 | C6: ="Budget Year +1 "&C1+1&"/"&RIGHT(C1,2)+2 -> Budget Year +1 2015/16 | D6: ="Budget Year +1 "&D1+1&"/"&RIGHT(D1,2)+2 -> Budget Year +1 2016/17 | E6: ="Budget Year +1 "&E1+1&"/"&RIGHT(E1,2)+2 -> Budget Year +1 2017/18 | F6: ="Budget Year +1 "&F1+1&"/"&RIGHT(F1,2)+2 -> Budget Year +1 2018/19 | G6: Budget Year +1 2019/20 | H6: Budget Year +1 2020/21 | I6: Budget Year +1 2021/22 | J6: Budget Year +1 2022/23 | K6: Budget Year +1 2023/24 | L6: Budget Year +1 2024/25 | M6: Budget Year +1 2025/26 | N6: Budget Year +1 2026/27 | O6: Budget Year +1 2027/28 | R6: Water Services Operating Subsidy | T6: Rural Households Infrastructure | U6: Other Departments
A7: ='Template names'!C14 -> 3rd year of MTREF | B7: ="Budget Year +2 "&B1+2&"/"&RIGHT(B1,2)+3 -> Budget Year +2 2015/16 | C7: ="Budget Year +2 "&C1+2&"/"&RIGHT(C1,2)+3 -> Budget Year +2 2016/17 | D7: ="Budget Year +2 "&D1+2&"/"&RIGHT(D1,2)+3 -> Budget Year +2 2017/18 | E7: ="Budget Year +2 "&E1+2&"/"&RIGHT(E1,2)+3 -> Budget Year +2 2018/19 | F7: ="Budget Year +2 "&F1+2&"/"&RIGHT(F1,2)+3 -> Budget Year +2 2019/20 | G7: Budget Year +2 2020/21 | H7: Budget Year +2 2021/22 | I7: Budget Year +2 2022/23 | J7: Budget Year +2 2023/24 | K7: Budget Year +2 2024/25 | L7: Budget Year +2 2025/26 | M7: Budget Year +2 2026/27 | N7: Budget Year +2 2027/28 | O7: Budget Year +2 2028/29 | R7: Energy Efficiency and Demand Management | T7: Neighbourhood Development Partnership | U7: Public Works, Roads, Transport
A8: NOTE: This sheet should not be directly amended - select headings from sheet 'S' | R8: Integrated National Electrification Programme | T8: 2010 FIFA World Cup Stadiums Development | U8: Sport and Recreation
R9: Municipal Drought Relief
R10: 2010 FIFA World Cup Operating
R11: Electricity Demand Side Management
R12: EPWP Incentive
A26: Name link | B26: 85
A27: Name of Muni | B27: =INDEX(B28:B311,B26,1) -> KZN225 Msunduzi
B28: Choose name from list | C28: Set name on 'Instructions' sheet
B29: BUF Buffalo City | C29: EC EASTERN CAPE
B30: NMA Nelson Mandela Bay | C30: EC EASTERN CAPE
B31: EC101 Dr Beyers Naude | C31: EC EASTERN CAPE
B32: EC102 Blue Crane Route | C32: EC EASTERN CAPE
B33: EC104 Makana | C33: EC EASTERN CAPE
B34: EC105 Ndlambe | C34: EC EASTERN CAPE
B35: EC106 Sundays River Valley | C35: EC EASTERN CAPE
B36: EC108 Kouga | C36: EC EASTERN CAPE
B37: EC109 Kou-Kamma | C37: EC EASTERN CAPE
B38: DC10 Sarah Baartman | C38: EC EASTERN CAPE
B39: EC121 Mbhashe | C39: EC EASTERN CAPE
B40: EC122 Mnquma | C40: EC EASTERN CAPE
B41: EC123 Great Kei | C41: EC EASTERN CAPE
B42: EC124 Amahlathi | C42: EC EASTERN CAPE
B43: EC126 Ngqushwa | C43: EC EASTERN CAPE
B44: EC129 Raymond Mhlaba | C44: EC EASTERN CAPE
B45: DC12 Amathole | C45: EC EASTERN CAPE
B46: EC131 Inxuba Yethemba | C46: EC EASTERN CAPE
B47: EC135 Intsika Yethu | C47: EC EASTERN CAPE
B48: EC136 Emalahleni (Ec) | C48: EC EASTERN CAPE
B49: EC137 Engcobo | C49: EC EASTERN CAPE
B50: EC138 Sakhisizwe | C50: EC EASTERN CAPE
B51: EC139 Enoch Mgijima | C51: EC EASTERN CAPE
B52: DC13 Chris Hani | C52: EC EASTERN CAPE
B53: EC141 Elundini | C53: EC EASTERN CAPE
B54: EC142 Senqu | C54: EC EASTERN CAPE
B55: EC145 Walter Sisulu | C55: EC EASTERN CAPE
B56: DC14 Joe Gqabi | C56: EC EASTERN CAPE
B57: EC153 Ngquza Hills | C57: EC EASTERN CAPE
B58: EC154 Port St Johns | C58: EC EASTERN CAPE
B59: EC155 Nyandeni | C59: EC EASTERN CAPE
B60: EC156 Mhlontlo | C60: EC EASTERN CAPE
B61: EC157 King Sabata Dalindyebo | C61: EC EASTERN CAPE
B62: DC15 O .R. Tambo | C62: EC EASTERN CAPE
B63: EC441 Matatiele | C63: EC EASTERN CAPE
B64: EC442 Umzimvubu | C64: EC EASTERN CAPE
B65: EC443 Winnie Madikizela Mandela | C65: EC EASTERN CAPE
B66: EC444 Ntabankulu | C66: EC EASTERN CAPE
B67: DC44 Alfred Nzo | C67: EC EASTERN CAPE
B68: MAN Mangaung | C68: FS FREE STATE
B69: FS161 Letsemeng | C69: FS FREE STATE
B70: FS162 Kopanong | C70: FS FREE STATE
B71: FS163 Mohokare | C71: FS FREE STATE
B72: DC16 Xhariep | C72: FS FREE STATE
B73: FS181 Masilonyana | C73: FS FREE STATE
B74: FS182 Tokologo | C74: FS FREE STATE
B75: FS183 Tswelopele | C75: FS FREE STATE
B76: FS184 Matjhabeng | C76: FS FREE STATE
B77: FS185 Nala | C77: FS FREE STATE
B78: DC18 Lejweleputswa | C78: FS FREE STATE
B79: FS191 Setsoto | C79: FS FREE STATE
B80: FS192 Dihlabeng | C80: FS FREE STATE
B81: FS193 Nketoana | C81: FS FREE STATE
B82: FS194 Maluti-a-Phofung | C82: FS FREE STATE
B83: FS195 Phumelela | C83: FS FREE STATE
B84: FS196 Mantsopa | C84: FS FREE STATE
B85: DC19 Thabo Mofutsanyana | C85: FS FREE STATE
B86: FS201 Moqhaka | C86: FS FREE STATE
B87: FS203 Ngwathe | C87: FS FREE STATE
B88: FS204 Metsimaholo | C88: FS FREE STATE
B89: FS205 Mafube | C89: FS FREE STATE
B90: DC20 Fezile Dabi | C90: FS FREE STATE
B91: EKU City of Ekurhuleni | C91: GT GAUTENG
B92: JHB City Of Johannesburg | C92: GT GAUTENG
B93: TSH City Of Tshwane | C93: GT GAUTENG
B94: GT421 Emfuleni | C94: GT GAUTENG
B95: GT422 Midvaal | C95: GT GAUTENG
B96: GT423 Lesedi | C96: GT GAUTENG
B97: DC42 Sedibeng | C97: GT GAUTENG
B98: GT481 Mogale City | C98: GT GAUTENG
B99: GT484 Merafong City | C99: GT GAUTENG
B100: GT485 Rand West City | C100: GT GAUTENG
B101: DC48 West Rand | C101: GT GAUTENG
B102: ETH eThekwini | C102: KZN KWAZULU-NATAL
B103: KZN212 Umdoni | C103: KZN KWAZULU-NATAL
B104: KZN213 Umzumbe | C104: KZN KWAZULU-NATAL
B105: KZN214 uMuziwabantu | C105: KZN KWAZULU-NATAL
B106: KZN216 Ray Nkonyeni | C106: KZN KWAZULU-NATAL
B107: DC21 Ugu | C107: KZN KWAZULU-NATAL
B108: KZN221 uMshwathi | C108: KZN KWAZULU-NATAL
B109: KZN222 uMngeni | C109: KZN KWAZULU-NATAL
B110: KZN223 Mpofana | C110: KZN KWAZULU-NATAL
B111: KZN224 Impendle | C111: KZN KWAZULU-NATAL
B112: KZN225 Msunduzi | C112: KZN KWAZULU-NATAL
B113: KZN226 Mkhambathini | C113: KZN KWAZULU-NATAL
B114: KZN227 Richmond | C114: KZN KWAZULU-NATAL
B115: DC22 uMgungundlovu | C115: KZN KWAZULU-NATAL
B116: KZN235 Okhahlamba | C116: KZN KWAZULU-NATAL
B117: KZN237 Inkosi Langalibalele | C117: KZN KWAZULU-NATAL
B118: KZN238 Alfred Duma | C118: KZN KWAZULU-NATAL
B119: DC23 Uthukela | C119: KZN KWAZULU-NATAL
B120: KZN241 Endumeni | C120: KZN KWAZULU-NATAL
B121: KZN242 Nquthu | C121: KZN KWAZULU-NATAL
B122: KZN244 Msinga | C122: KZN KWAZULU-NATAL
B123: KZN245 Umvoti | C123: KZN KWAZULU-NATAL
B124: DC24 Umzinyathi | C124: KZN KWAZULU-NATAL
B125: KZN252 Newcastle | C125: KZN KWAZULU-NATAL
B126: KZN253 Emadlangeni | C126: KZN KWAZULU-NATAL
B127: KZN254 Dannhauser | C127: KZN KWAZULU-NATAL
B128: DC25 Amajuba | C128: KZN KWAZULU-NATAL
B129: KZN261 eDumbe | C129: KZN KWAZULU-NATAL
B130: KZN262 uPhongolo | C130: KZN KWAZULU-NATAL
B131: KZN263 Abaqulusi | C131: KZN KWAZULU-NATAL
B132: KZN265 Nongoma | C132: KZN KWAZULU-NATAL
B133: KZN266 Ulundi | C133: KZN KWAZULU-NATAL
B134: DC26 Zululand | C134: KZN KWAZULU-NATAL
B135: KZN271 Umhlabuyalingana | C135: KZN KWAZULU-NATAL
B136: KZN272 Jozini | C136: KZN KWAZULU-NATAL
B137: KZN275 Mtubatuba | C137: KZN KWAZULU-NATAL
B138: KZN276 Hlabisa Big Five | C138: KZN KWAZULU-NATAL
B139: DC27 Umkhanyakude | C139: KZN KWAZULU-NATAL
B140: KZN281 Mfolozi | C140: KZN KWAZULU-NATAL
B141: KZN282 uMhlathuze | C141: KZN KWAZULU-NATAL
B142: KZN284 uMlalazi | C142: KZN KWAZULU-NATAL
B143: KZN285 Mthonjaneni | C143: KZN KWAZULU-NATAL
B144: KZN286 Nkandla | C144: KZN KWAZULU-NATAL
B145: DC28 King Cetshwayo | C145: KZN KWAZULU-NATAL
B146: KZN291 Mandeni | C146: KZN KWAZULU-NATAL
B147: KZN292 KwaDukuza | C147: KZN KWAZULU-NATAL
B148: KZN293 Ndwedwe | C148: KZN KWAZULU-NATAL
B149: KZN294 Maphumulo | C149: KZN KWAZULU-NATAL
B150: DC29 iLembe | C150: KZN KWAZULU-NATAL
B151: KZN433 Greater Kokstad | C151: KZN KWAZULU-NATAL
B152: KZN434 Ubuhlebezwe | C152: KZN KWAZULU-NATAL
B153: KZN435 Umzimkhulu | C153: KZN KWAZULU-NATAL
B154: KZN436 Dr Nkosazana Dlamini Zuma | C154: KZN KWAZULU-NATAL
B155: DC43 Harry Gwala | C155: KZN KWAZULU-NATAL
B156: LIM331 Greater Giyani | C156: LIM LIMPOPO
B157: LIM332 Greater Letaba | C157: LIM LIMPOPO
B158: LIM333 Greater Tzaneen | C158: LIM LIMPOPO
B159: LIM334 Ba-Phalaborwa | C159: LIM LIMPOPO
B160: LIM335 Maruleng | C160: LIM LIMPOPO
B161: DC33 Mopani | C161: LIM LIMPOPO
B162: LIM341 Musina | C162: LIM LIMPOPO
B163: LIM343 Thulamela | C163: LIM LIMPOPO
B164: LIM344 Makhado | C164: LIM LIMPOPO
B165: LIM345 Collins Chabane | C165: LIM LIMPOPO
B166: DC34 Vhembe | C166: LIM LIMPOPO
B167: LIM351 Blouberg | C167: LIM LIMPOPO
B168: LIM353 Molemole | C168: LIM LIMPOPO
B169: LIM354 Polokwane | C169: LIM LIMPOPO
B170: LIM355 Lepelle-Nkumpi | C170: LIM LIMPOPO
B171: DC35 Capricorn | C171: LIM LIMPOPO
B172: LIM361 Thabazimbi | C172: LIM LIMPOPO
B173: LIM362 Lephalale | C173: LIM LIMPOPO
B174: LIM366 Bela Bela | C174: LIM LIMPOPO
B175: LIM367 Mogalakwena | C175: LIM LIMPOPO
B176: LIM368 Modimolle-Mookgopong | C176: LIM LIMPOPO
B177: DC36 Waterberg | C177: LIM LIMPOPO
B178: LIM471 Ephraim Mogale | C178: LIM LIMPOPO
B179: LIM472 Elias Motsoaledi | C179: LIM LIMPOPO
B180: LIM473 Makhuduthamaga | C180: LIM LIMPOPO
B181: LIM476 Tubatse Fetakgomo | C181: LIM LIMPOPO
B182: DC47 Sekhukhune | C182: LIM LIMPOPO
B183: MP301 Albert Luthuli | C183: MP MPUMALANGA
B184: MP302 Msukaligwa | C184: MP MPUMALANGA
B185: MP303 Mkhondo | C185: MP MPUMALANGA
B186: MP304 Pixley Ka Seme (MP) | C186: MP MPUMALANGA
B187: MP305 Lekwa | C187: MP MPUMALANGA
B188: MP306 Dipaleseng | C188: MP MPUMALANGA
B189: MP307 Govan Mbeki | C189: MP MPUMALANGA
B190: DC30 Gert Sibande | C190: MP MPUMALANGA
B191: MP311 Victor Khanye | C191: MP MPUMALANGA
B192: MP312 Emalahleni (Mp) | C192: MP MPUMALANGA
B193: MP313 Steve Tshwete | C193: MP MPUMALANGA
B194: MP314 Emakhazeni | C194: MP MPUMALANGA
B195: MP315 Thembisile Hani | C195: MP MPUMALANGA
B196: MP316 Dr J.S. Moroka | C196: MP MPUMALANGA
B197: DC31 Nkangala | C197: MP MPUMALANGA
B198: MP321 Thaba Chweu | C198: MP MPUMALANGA
B199: MP324 Nkomazi | C199: MP MPUMALANGA
B200: MP325 Bushbuckridge | C200: MP MPUMALANGA
B201: MP326 City of Mbombela | C201: MP MPUMALANGA
B202: DC32 Ehlanzeni | C202: MP MPUMALANGA
B203: NC451 Joe Morolong | C203: NC NORTHERN CAPE
B204: NC452 Ga-Segonyana | C204: NC NORTHERN CAPE
B205: NC453 Gamagara | C205: NC NORTHERN CAPE
B206: DC45 John Taolo Gaetsewe | C206: NC NORTHERN CAPE
B207: NC061 Richtersveld | C207: NC NORTHERN CAPE
B208: NC062 Nama Khoi | C208: NC NORTHERN CAPE
B209: NC064 Kamiesberg | C209: NC NORTHERN CAPE
B210: NC065 Hantam | C210: NC NORTHERN CAPE
B211: NC066 Karoo Hoogland | C211: NC NORTHERN CAPE
B212: NC067 Khai-Ma | C212: NC NORTHERN CAPE
B213: DC6 Namakwa | C213: NC NORTHERN CAPE
... 73 more rows

Sheet Org structure
A1: Organisational Structure Votes | C1: Organisational Structure Sub-Votes | E1: Display Sub-Votes
A2: =B2&" - "&C2 -> Vote 1 - City Manager | B2: Vote 1 | C2: City Manager
A3: =B13&" - "& C13 -> Vote 2 - City Finance | B3: 1.1 | C3: Internal Audit and Compliance | D3: 1,1 - Internal Audit and Compliance | E3: 1.1 - Internal Audit and Compliance
A4: =B24&" - "&C24 -> Vote 3 - Corporate Services | B4: 1.2 | C4: Office of the City Manager | D4: 1,2 - Office of the City Manager | E4: 1.2 - Office of the City Manager
A5: =B35&" - "&C35 -> Vote 4 - Community Services and Social Equity | B5: 1.3 | C5: Political Support | D5: 1,3 - Political Support | E5: 1.3 - Political Support
A6: =B46&" - "&C46 -> Vote 5 - Infrastructure Services | B6: 1.4 | C6: Strategic Planning | D6: 1,4 - Strategic Planning | E6: 1.4 - Strategic Planning
A7: =B57&" - "&C57 -> Vote 6 - Sustainable Development and City Enterprises | B7: 1.5 | C7: [Name of sub-vote] | D7: =CONCATENATE(B7, " - ", C7) -> 1.5 - [Name of sub-vote]
A8: =B68&" - "&C68 -> Vote 7 - Electricity | B8: 1.6 | C8: [Name of sub-vote] | D8: 1.6 - [Name of sub-vote]
A9: =B79&" - "&C79 -> Vote 8 - [NAME OF VOTE 8] | B9: 1.7 | C9: [Name of sub-vote] | D9: 1.7 - [Name of sub-vote]
A10: =B90&" - "&C90 -> Vote 9 - [NAME OF VOTE 9] | B10: 1.8 | C10: [Name of sub-vote] | D10: 1.8 - [Name of sub-vote]
A11: =B101&" - "&C101 -> Vote 10 - [NAME OF VOTE 10] | B11: 1.9 | C11: [Name of sub-vote] | D11: 1.9 - [Name of sub-vote]
A12: =B112&" - "&C112 -> Vote 11 - [NAME OF VOTE 11] | B12: 1.10 | C12: [Name of sub-vote] | D12: 1.10 - [Name of sub-vote]
A13: =B123&" - "&C123 -> Vote 12 - [NAME OF VOTE 12] | B13: Vote 2 | C13: City Finance
A14: =B134&" - "&C134 -> Vote 13 - [NAME OF VOTE 13] | B14: 2.1 | C14: Asset Management | D14: 2,1 - Asset Management | E14: 2.1 - Asset Management
A15: =B145&" - "&C145 -> Vote 14 - [NAME OF VOTE 14] | B15: 2.2 | C15: Budget and Treasury Management | D15: 2,2 - Budget and Treasury Management | E15: 2.2 - Budget and Treasury Management
A16: =B156&" - "&C156 -> Vote 15 - [NAME OF VOTE 15] | B16: 2.3 | C16: Expenditure Management | D16: 2,3 - Expenditure Management | E16: 2.3 - Expenditure Management
B17: 2.4 | C17: Revenue Management | D17: 2,4 - Revenue Management | E17: 2.4 - Revenue Management
B18: 2.5 | C18: Supply Chain Management | D18: 2,5 - Supply Chain Management | E18: 2.5 - Supply Chain Management
B19: 2.6 | C19: [Name of sub-vote] | D19: =CONCATENATE(B19, " - ", C19) -> 2.6 - [Name of sub-vote]
B20: 2.7 | C20: [Name of sub-vote] | D20: =CONCATENATE(B20, " - ", C20) -> 2.7 - [Name of sub-vote]
B21: 2.8 | C21: [Name of sub-vote] | D21: =CONCATENATE(B21, " - ", C21) -> 2.8 - [Name of sub-vote]
B22: 2.9 | C22: [Name of sub-vote] | D22: =CONCATENATE(B22, " - ", C22) -> 2.9 - [Name of sub-vote]
B23: 2.10 | C23: [Name of sub-vote] | D23: =CONCATENATE(B23, " - ", C23) -> 2.10 - [Name of sub-vote]
B24: Vote 3 | C24: Corporate Services
B25: 3.1 | C25: Human Resources Management | D25: 3,1 - Human Resources Management | E25: 3.1 - Human Resources Management
B26: 3.2 | C26: Information Technology | D26: 3,2 - Information Technology | E26: 3.2 - Information Technology
B27: 3.3 | C27: Legal Services | D27: 3,3 - Legal Services | E27: 3.3 - Legal Services
B28: 3.4 | C28: Secretariat and Auxiliary Services | D28: 3,4 - Secretariat and Auxiliary Services | E28: 3.4 - Secretariat and Auxiliary Services
B29: 3.5 | C29: General Manager: Corporate Service | D29: 3,5 - General Manager: Corporate Service | E29: 3.5 - General Manager: Corporate Service
B30: 3.6 | C30: [Name of sub-vote] | D30: =CONCATENATE(B30, " - ", C30) -> 3.6 - [Name of sub-vote]
B31: 3.7 | C31: [Name of sub-vote] | D31: =CONCATENATE(B31, " - ", C31) -> 3.7 - [Name of sub-vote]
B32: 3.8 | C32: [Name of sub-vote] | D32: =CONCATENATE(B32, " - ", C32) -> 3.8 - [Name of sub-vote]
B33: 3.9 | C33: [Name of sub-vote] | D33: =CONCATENATE(B33, " - ", C33) -> 3.9 - [Name of sub-vote]
B34: 3.10 | C34: [Name of sub-vote] | D34: =CONCATENATE(B34, " - ", C34) -> 3.10 - [Name of sub-vote]
B35: Vote 4 | C35: Community Services and Social Equity
B36: 4.1 | C36: Area Based Management | D36: 4,1 - Area Based Management | E36: 4.1 - Area Based Management
B37: 4.2 | C37: Public Safety, Emergency Services and Enforcement | D37: 4,2 - Public Safety, Emergency Services and Enforcement | E37: 4.2 - Public Safety, Emergency Services and Enforcement
B38: 4.3 | C38: Recreation and Facilities | D38: 4,3 - Recreation and Facilities | E38: 4.3 - Recreation and Facilities
B39: 4.4 | C39: Waste Management | D39: 4,4 - Waste Management | E39: 4.4 - Waste Management
B40: 4.5 | C40: General Manager: Community Services | D40: =CONCATENATE(B40, " - ", C40) -> 4,5 - General Manager: Community Services | E40: 4.5 - General Manager: Community Services
B41: 4.6 | C41: [Name of sub-vote] | D41: 4.6 - [Name of sub-vote]
B42: 4.7 | C42: [Name of sub-vote] | D42: 4.7 - [Name of sub-vote]
B43: 4.8 | C43: [Name of sub-vote] | D43: 4.8 - [Name of sub-vote]
B44: 4.9 | C44: [Name of sub-vote] | D44: 4.9 - [Name of sub-vote]
B45: 4.10 | C45: [Name of sub-vote] | D45: 4.10 - [Name of sub-vote]
B46: Vote 5 | C46: Infrastructure Services
B47: 5.1 | C47: Project Management Office | D47: 5,1 - Project Management Office | E47: 5.1 - Project Management Office
B48: 5.2 | C48: Roads and Transportation | D48: 5,2 - Roads and Transportation | E48: 5.2 - Roads and Transportation
B49: 5.3 | C49: Water and Sanitation | D49: 5,3 - Water and Sanitation | E49: 5.3 - Water and Sanitation
B50: 5.4 | C50: General Manager: Infrastructure | D50: 5,4 - General Manager: Infrastructure | E50: 5.4 - General Manager: Infrastructure
B51: 5.5 | C51: [Name of sub-vote] | D51: =CONCATENATE(B51, " - ", C51) -> 5.5 - [Name of sub-vote]
B52: 5.6 | C52: [Name of sub-vote] | D52: 5.6 - [Name of sub-vote]
B53: 5.7 | C53: [Name of sub-vote] | D53: 5.7 - [Name of sub-vote]
B54: 5.8 | C54: [Name of sub-vote] | D54: 5.8 - [Name of sub-vote]
B55: 5.9 | C55: [Name of sub-vote] | D55: 5.9 - [Name of sub-vote]
B56: 5.10 | C56: [Name of sub-vote] | D56: 5.10 - [Name of sub-vote]
B57: Vote 6 | C57: Sustainable Development and City Enterprises
B58: 6.1 | C58: City Entities | D58: 6,1 - City Entities | E58: 6.1 - City Entities
B59: 6.2 | C59: Development Services | D59: 6,2 - Development Services | E59: 6.2 - Development Services
B60: 6.3 | C60: Human Settlement Development | D60: 6,3 - Human Settlement Development | E60: 6.3 - Human Settlement Development
B61: 6.4 | C61: Town Planning | D61: 6,4 - Town Planning | E61: 6.4 - Town Planning
B62: 6.5 | C62: General Manager: Sustainable Development and City Enterprises | D62: 6,5 - General Manager: Sustainable Development and City Enterprises | E62: 6.5 - General Manager: Sustainable Development and City Enterprises
B63: 6.6 | C63: [Name of sub-vote] | D63: =CONCATENATE(B63, " - ", C63) -> 6.6 - [Name of sub-vote]
B64: 6.7 | C64: [Name of sub-vote] | D64: =CONCATENATE(B64, " - ", C64) -> 6.7 - [Name of sub-vote]
B65: 6.8 | C65: [Name of sub-vote] | D65: =CONCATENATE(B65, " - ", C65) -> 6.8 - [Name of sub-vote]
B66: 6.9 | C66: [Name of sub-vote] | D66: =CONCATENATE(B66, " - ", C66) -> 6.9 - [Name of sub-vote]
B67: 6.10 | C67: [Name of sub-vote] | D67: =CONCATENATE(B67, " - ", C67) -> 6.10 - [Name of sub-vote]
B68: Vote 7 | C68: Electricity
B69: 7.1 | C69: Electricity planning | D69: 7,1 - Electricity planning | E69: 7.1 Electricity planning
B70: 7.2 | C70: Methods and Standards | D70: 7,2 - Methods and Standards | E70: 7.2 Methods and Standards
B71: 7.3 | C71: Operations and Maintenance | D71: 7,3 - Operations and Maintenance | E71: 7.3 Operations and Maintenance
B72: 7.4 | C72: Revenue Management | D72: 7,4 - Revenue Management | E72: 7.4 Revenue Management
B73: 7.5 | C73: General Manager Electricity | D73: 7,5 - General Manager Electricity | E73: 7.5 General Manager Electricity
B74: 7.6 | C74: [Name of sub-vote] | D74: =CONCATENATE(B74, " - ", C74) -> 7.6 - [Name of sub-vote]
B75: 7.7 | C75: [Name of sub-vote] | D75: =CONCATENATE(B75, " - ", C75) -> 7.7 - [Name of sub-vote]
B76: 7.8 | C76: [Name of sub-vote] | D76: =CONCATENATE(B76, " - ", C76) -> 7.8 - [Name of sub-vote]
B77: 7.9 | C77: [Name of sub-vote] | D77: =CONCATENATE(B77, " - ", C77) -> 7.9 - [Name of sub-vote]
B78: 7.10 | C78: [Name of sub-vote] | D78: =CONCATENATE(B78, " - ", C78) -> 7.10 - [Name of sub-vote]
B79: Vote 8 | C79: [NAME OF VOTE 8]
B80: 8.1 | C80: [Name of sub-vote] | D80: =CONCATENATE(B80, " - ", C80) -> 8.1 - [Name of sub-vote] | E80: 8.1 - [Name of sub-vote]
B81: 8.2 | C81: [Name of sub-vote] | D81: 8.2 - [Name of sub-vote]
B82: 8.3 | C82: [Name of sub-vote] | D82: 8.3 - [Name of sub-vote]
B83: 8.4 | C83: [Name of sub-vote] | D83: 8.4 - [Name of sub-vote]
B84: 8.5 | C84: [Name of sub-vote] | D84: 8.5 - [Name of sub-vote]
B85: 8.6 | C85: [Name of sub-vote] | D85: 8.6 - [Name of sub-vote]
B86: 8.7 | C86: [Name of sub-vote] | D86: 8.7 - [Name of sub-vote]
B87: 8.8 | C87: [Name of sub-vote] | D87: 8.8 - [Name of sub-vote]
B88: 8.9 | C88: [Name of sub-vote] | D88: 8.9 - [Name of sub-vote]
B89: 8.10 | C89: [Name of sub-vote] | D89: 8.10 - [Name of sub-vote]
B90: Vote 9 | C90: [NAME OF VOTE 9]
B91: 9.1 | C91: [Name of sub-vote] | D91: =CONCATENATE(B91, " - ", C91) -> 9.1 - [Name of sub-vote] | E91: 9.1 - [Name of sub-vote]
B92: 9.2 | C92: [Name of sub-vote] | D92: 9.2 - [Name of sub-vote]
B93: 9.3 | C93: [Name of sub-vote] | D93: 9.3 - [Name of sub-vote]
B94: 9.4 | C94: [Name of sub-vote] | D94: 9.4 - [Name of sub-vote]
B95: 9.5 | C95: [Name of sub-vote] | D95: 9.5 - [Name of sub-vote]
B96: 9.6 | C96: [Name of sub-vote] | D96: 9.6 - [Name of sub-vote]
B97: 9.7 | C97: [Name of sub-vote] | D97: 9.7 - [Name of sub-vote]
B98: 9.8 | C98: [Name of sub-vote] | D98: 9.8 - [Name of sub-vote]
B99: 9.9 | C99: [Name of sub-vote] | D99: 9.9 - [Name of sub-vote]
B100: 9.10 | C100: [Name of sub-vote] | D100: 9.10 - [Name of sub-vote]
B101: Vote 10 | C101: [NAME OF VOTE 10]
B102: 10.1 | C102: [Name of sub-vote] | D102: =CONCATENATE(B102, " - ", C102) -> 10.1 - [Name of sub-vote] | E102: 10.1 - [Name of sub-vote]
B103: 10.2 | C103: [Name of sub-vote] | D103: 10.2 - [Name of sub-vote]
B104: 10.3 | C104: [Name of sub-vote] | D104: 10.3 - [Name of sub-vote]
B105: 10.4 | C105: [Name of sub-vote] | D105: 10.4 - [Name of sub-vote]
B106: 10.5 | C106: [Name of sub-vote] | D106: 10.5 - [Name of sub-vote]
B107: 10.6 | C107: [Name of sub-vote] | D107: 10.6 - [Name of sub-vote]
B108: 10.7 | C108: [Name of sub-vote] | D108: 10.7 - [Name of sub-vote]
B109: 10.8 | C109: [Name of sub-vote] | D109: 10.8 - [Name of sub-vote]
B110: 10.9 | C110: [Name of sub-vote] | D110: 10.9 - [Name of sub-vote]
B111: 10.10 | C111: [Name of sub-vote] | D111: 10.10 - [Name of sub-vote]
B112: Vote 11 | C112: [NAME OF VOTE 11]
B113: 11.1 | C113: [Name of sub-vote] | D113: =CONCATENATE(B113, " - ", C113) -> 11.1 - [Name of sub-vote] | E113: 11.1 - [Name of sub-vote]
B114: 11.2 | C114: [Name of sub-vote] | D114: 11.2 - [Name of sub-vote]
B115: 11.3 | C115: [Name of sub-vote] | D115: 11.3 - [Name of sub-vote]
B116: 11.4 | C116: [Name of sub-vote] | D116: 11.4 - [Name of sub-vote]
B117: 11.5 | C117: [Name of sub-vote] | D117: 11.5 - [Name of sub-vote]
B118: 11.6 | C118: [Name of sub-vote] | D118: 11.6 - [Name of sub-vote]
B119: 11.7 | C119: [Name of sub-vote] | D119: 11.7 - [Name of sub-vote]
B120: 11.8 | C120: [Name of sub-vote] | D120: 11.8 - [Name of sub-vote]
B121: 11.9 | C121: [Name of sub-vote] | D121: 11.9 - [Name of sub-vote]
B122: 11.10 | C122: [Name of sub-vote] | D122: 11.10 - [Name of sub-vote]
B123: Vote 12 | C123: [NAME OF VOTE 12]
B124: 12.1 | C124: [Name of sub-vote] | D124: =CONCATENATE(B124, " - ", C124) -> 12.1 - [Name of sub-vote] | E124: 12.1 - [Name of sub-vote]
B125: 12.2 | C125: [Name of sub-vote] | D125: 12.2 - [Name of sub-vote]
B126: 12.3 | C126: [Name of sub-vote] | D126: 12.3 - [Name of sub-vote]
B127: 12.4 | C127: [Name of sub-vote] | D127: 12.4 - [Name of sub-vote]
B128: 12.5 | C128: [Name of sub-vote] | D128: 12.5 - [Name of sub-vote]
B129: 12.6 | C129: [Name of sub-vote] | D129: 12.6 - [Name of sub-vote]
B130: 12.7 | C130: [Name of sub-vote] | D130: 12.7 - [Name of sub-vote]
B131: 12.8 | C131: [Name of sub-vote] | D131: 12.8 - [Name of sub-vote]
B132: 12.9 | C132: [Name of sub-vote] | D132: 12.9 - [Name of sub-vote]
B133: 12.10 | C133: [Name of sub-vote] | D133: 12.10 - [Name of sub-vote]
B134: Vote 13 | C134: [NAME OF VOTE 13]
B135: 13.1 | C135: [Name of sub-vote] | D135: =CONCATENATE(B135, " - ", C135) -> 13.1 - [Name of sub-vote] | E135: 13.1 - [Name of sub-vote]
B136: 13.2 | C136: [Name of sub-vote] | D136: 13.2 - [Name of sub-vote]
B137: 13.3 | C137: [Name of sub-vote] | D137: 13.3 - [Name of sub-vote]
B138: 13.4 | C138: [Name of sub-vote] | D138: 13.4 - [Name of sub-vote]
B139: 13.5 | C139: [Name of sub-vote] | D139: 13.5 - [Name of sub-vote]
B140: 13.6 | C140: [Name of sub-vote] | D140: 13.6 - [Name of sub-vote]
B141: 13.7 | C141: [Name of sub-vote] | D141: 13.7 - [Name of sub-vote]
B142: 13.8 | C142: [Name of sub-vote] | D142: 13.8 - [Name of sub-vote]
B143: 13.9 | C143: [Name of sub-vote] | D143: 13.9 - [Name of sub-vote]
B144: 13.10 | C144: [Name of sub-vote] | D144: 13.10 - [Name of sub-vote]
B145: Vote 14 | C145: [NAME OF VOTE 14]
B146: 14.1 | C146: [Name of sub-vote] | D146: =CONCATENATE(B146, " - ", C146) -> 14.1 - [Name of sub-vote] | E146: 14.1 - [Name of sub-vote]
B147: 14.2 | C147: [Name of sub-vote] | D147: 14.2 - [Name of sub-vote]
B148: 14.3 | C148: [Name of sub-vote] | D148: 14.3 - [Name of sub-vote]
B149: 14.4 | C149: [Name of sub-vote] | D149: 14.4 - [Name of sub-vote]
B150: 14.5 | C150: [Name of sub-vote] | D150: 14.5 - [Name of sub-vote]
B151: 14.6 | C151: [Name of sub-vote] | D151: 14.6 - [Name of sub-vote]
B152: 14.7 | C152: [Name of sub-vote] | D152: 14.7 - [Name of sub-vote]
B153: 14.8 | C153: [Name of sub-vote] | D153: 14.8 - [Name of sub-vote]
B154: 14.9 | C154: [Name of sub-vote] | D154: 14.9 - [Name of sub-vote]
B155: 14.10 | C155: [Name of sub-vote] | D155: 14.10 - [Name of sub-vote]
B156: Vote 15 | C156: [NAME OF VOTE 15]
B157: 15.1 | C157: [Name of sub-vote] | D157: =CONCATENATE(B157, " - ", C157) -> 15.1 - [Name of sub-vote] | E157: 15.1 - [Name of sub-vote]
B158: 15.2 | C158: [Name of sub-vote] | D158: 15.2 - [Name of sub-vote]
B159: 15.3 | C159: [Name of sub-vote] | D159: 15.3 - [Name of sub-vote]
B160: 15.4 | C160: [Name of sub-vote] | D160: 15.4 - [Name of sub-vote]
B161: 15.5 | C161: [Name of sub-vote] | D161: 15.5 - [Name of sub-vote]
B162: 15.6 | C162: [Name of sub-vote] | D162: 15.6 - [Name of sub-vote]
B163: 15.7 | C163: [Name of sub-vote] | D163: 15.7 - [Name of sub-vote]
B164: 15.8 | C164: [Name of sub-vote] | D164: 15.8 - [Name of sub-vote]
B165: 15.9 | C165: [Name of sub-vote] | D165: 15.9 - [Name of sub-vote]
B166: 15.10 | C166: [Name of sub-vote] | D166: 15.10 - [Name of sub-vote]

Sheet Contacts
A1: =muni&" - "&" Contact Information" -> KZN225 Msunduzi - Contact Information
A3: A. GENERAL INFORMATION
A4: Municipality | B4: =muni -> KZN225 Msunduzi | C4: Set name on 'Instructions' sheet
A6: Grade | C6: 1 Grade in terms of the Remuneration of Public Office Bearers Act.
A8: Province | B8: =IF(B4>" ",VLOOKUP(B4,'Lookup and lists'!B28:C311,2, FALSE)," ") -> KZN KWAZULU-NATAL
A10: Web Address
A12: e-mail Address
A14: B. CONTACT INFORMATION
A15: Postal address:
A16: P.O. Box
A17: City / Town
A18: Postal Code
A20: Street address
A21: Building
A22: Street No. & Name
A23: City / Town
A24: Postal Code
A26: General Contacts
A27: Telephone number
A28: Fax number
A30: C. POLITICAL LEADERSHIP
A31: Speaker: | C31: Secretary/PA to the Speaker:
A32: ID Number | C32: ID Number
A33: Title | C33: Title
A34: Name | C34: Name
A35: Telephone number | C35: Telephone number
A36: Cell number | C36: Cell number
A37: Fax number | C37: Fax number
A38: E-mail address | C38: E-mail address
A40: Mayor/Executive Mayor: | C40: Secretary/PA to the Mayor/Executive Mayor:
A41: ID Number | C41: ID Number
A42: Title | C42: Title
A43: Name | C43: Name
A44: Telephone number | C44: Telephone number
A45: Cell number | C45: Cell number
A46: Fax number | C46: Fax number
A47: E-mail address | C47: E-mail address
A49: Deputy Mayor/Executive Mayor: | C49: Secretary/PA to the Deputy Mayor/Executive Mayor:
A50: ID Number | C50: ID Number
A51: Title | C51: Title
A52: Name | C52: Name
A53: Telephone number | C53: Telephone number
A54: Cell number | C54: Cell number
A55: Fax number | C55: Fax number
A56: E-mail address | C56: E-mail address
A58: D. MANAGEMENT LEADERSHIP
A59: Municipal Manager: | C59: Secretary/PA to the Municipal Manager:
A60: ID Number | C60: ID Number
A61: Title | C61: Title
A62: Name | C62: Name
A63: Telephone number | C63: Telephone number
A64: Cell number | C64: Cell number
A65: Fax number | C65: Fax number
A66: E-mail address | C66: E-mail address
A68: Chief Financial Officer | C68: Secretary/PA to the Chief Financial Officer
A69: ID Number | C69: ID Number
A70: Title | C70: Title
A71: Name | B71: Nelisiwe Ngcobo | C71: Name
A72: Telephone number | C72: Telephone number
A73: Cell number | C73: Cell number
A74: Fax number | C74: Fax number
A75: E-mail address | C75: E-mail address
A77: Official responsible for submitting financial information | C77: Official responsible for submitting financial information
A78: ID Number | C78: ID Number
A79: Title | C79: Title
A80: Name | C80: Name
A81: Telephone number | C81: Telephone number
A82: Cell number | C82: Cell number
A83: Fax number | C83: Fax number
A84: E-mail address | C84: E-mail address
A85: Official responsible for submitting financial information | C85: Official responsible for submitting financial information
A86: ID Number | C86: ID Number
A87: Title | C87: Title
A88: Name | C88: Name
A89: Telephone number | C89: Telephone number
A90: Cell number | C90: Cell number
A91: Fax number | C91: Fax number
A92: E-mail address | C92: E-mail address
A93: Official responsible for submitting financial information | C93: Official responsible for submitting financial information
A94: ID Number | C94: ID Number
A95: Title | C95: Title
A96: Name | C96: Name
A97: Telephone number | C97: Telephone number
A98: Cell number | C98: Cell number
A99: Fax number | C99: Fax number
A100: E-mail address | C100: E-mail address
A101: Official responsible for submitting financial information | C101: Official responsible for submitting financial information
A102: ID Number | C102: ID Number
A103: Title | C103: Title
A104: Name | C104: Name
A105: Telephone number | C105: Telephone number
A106: Cell number | C106: Cell number
A107: Fax number | C107: Fax number
A108: E-mail address | C108: E-mail address
A109: Official responsible for submitting financial information | C109: Official responsible for submitting financial information
A110: ID Number | C110: ID Number
A111: Title | C111: Title
A112: Name | C112: Name
A113: Telephone number | C113: Telephone number
A114: Cell number | C114: Cell number
A115: Fax number | C115: Fax number
A116: E-mail address | C116: E-mail address
A117: Official responsible for submitting financial information | C117: Official responsible for submitting financial information
A118: ID Number | C118: ID Number
A119: Title | C119: Title
A120: Name | C120: Name
A121: Telephone number | C121: Telephone number
A122: Cell number | C122: Cell number
A123: Fax number | C123: Fax number
A124: E-mail address | C124: E-mail address
A125: Official responsible for submitting financial information | C125: Official responsible for submitting financial information
A126: ID Number | C126: ID Number
A127: Title | C127: Title
A128: Name | C128: Name
A129: Telephone number | C129: Telephone number
A130: Cell number | C130: Cell number
A131: Fax number | C131: Fax number
A132: E-mail address | C132: E-mail address
A133: Official responsible for submitting financial information
A134: ID Number
A135: Title
A136: Name
A137: Telephone number
A138: Cell number
A139: Fax number
A140: E-mail address

Sheet C1-Sum
A1: =muni& " - "&s71sum& " - "&date -> KZN225 Msunduzi - Table C1 Monthly Budget Statement Summary - Q1 First Quarter
A2: =desc -> Description | B2: =Head1 -> 2023/24 | C2: =Head2 -> Budget Year 2024/25
B3: =Head5 -> Audited Outcome | C3: =Head6 -> Original Budget | D3: =Head7 -> Adjusted Budget | E3: =Head38 -> Monthly actual | F3: =Head39 -> YearTD actual | G3: =Head40 -> YearTD budget | H3: =Head41 -> YTD variance | I3: =Head41 -> YTD variance | J3: =Head8 -> Full Year Forecast
A4: R thousands | I4: %
A5: Financial Performance
A6: Property rates | B6: =SUM('C4-FinPerf RE'!C22) -> 1359086727 | C6: =SUM('C4-FinPerf RE'!D22) -> 1649352521 | D6: =SUM('C4-FinPerf RE'!E22) -> 0 | E6: =SUM('C4-FinPerf RE'!F22) -> 148736968 | F6: =SUM('C4-FinPerf RE'!G22) -> 448767870.7 | G6: =SUM('C4-FinPerf RE'!H22) -> 412338130.2 | H6: =F6-G6 -> 36429740.53 | I6: =IF(H6=0,"",H6/G6) -> 0.08834919176 | J6: =SUM('C4-FinPerf RE'!K22) -> 1649352521
A7: Service charges | B7: =SUM('C4-FinPerf RE'!C7:C10) -> 3696100456 | C7: =SUM('C4-FinPerf RE'!D7:D10) -> 5683700785 | D7: =SUM('C4-FinPerf RE'!E7:E10) -> 0 | E7: =SUM('C4-FinPerf RE'!F7:F10) -> 412343692.5 | F7: =SUM('C4-FinPerf RE'!G7:G10) -> 1345657085 | G7: =SUM('C4-FinPerf RE'!H7:H10) -> 1420925196 | H7: =F7-G7 -> -75268110.69 | I7: =IF(H7=0,"",H7/G7) -> -0.05297119855 | J7: =SUM('C4-FinPerf RE'!K7:K10) -> 5683700785
A8: Investment revenue | B8: ='C4-FinPerf RE'!C15 -> 106873226 | C8: ='C4-FinPerf RE'!D15 -> 59562303 | D8: ='C4-FinPerf RE'!E15 -> 0 | E8: ='C4-FinPerf RE'!F15 -> 0 | F8: ='C4-FinPerf RE'!G15 -> 0 | G8: ='C4-FinPerf RE'!H15 -> 14890575.75 | H8: =F8-G8 -> -14890575.75 | I8: =IF(H8=0,"",H8/G8) -> -1 | J8: ='C4-FinPerf RE'!K15 -> 59562303
A9: Transfers and subsidies - Operational | B9: ='C4-FinPerf RE'!C26 -> 824535909 | C9: ='C4-FinPerf RE'!D26 -> 946343150 | D9: ='C4-FinPerf RE'!E26 -> 0 | E9: ='C4-FinPerf RE'!F26 -> 3672702.96 | F9: ='C4-FinPerf RE'!G26 -> 350420663.8 | G9: ='C4-FinPerf RE'!H26 -> 236585787.5 | H9: =F9-G9 -> 113834876.3 | I9: =IF(H9=0,"",H9/G9) -> 0.481156867 | J9: ='C4-FinPerf RE'!K26 -> 946343150
A10: Other own revenue | B10: =+B11-SUM(B6:B9) -> 579738413.3 | C10: 624944465 | D10: 0 | E10: 66859875.96 | F10: 142529520.8 | G10: 156236116.3 | H10: =F10-G10 -> -13706595.5 | I10: =IF(H10=0,"",H10/G10) -> -0.08773000652 | J10: 0
A11: Total Revenue (excluding capital transfers and contributions) | B11: =+'C4-FinPerf RE'!C33 -> 6566334731 | C11: =+'C4-FinPerf RE'!D33 -> 8963903223 | D11: =+'C4-FinPerf RE'!E33 -> 0 | E11: =+'C4-FinPerf RE'!F33 -> 631613239.4 | F11: =+'C4-FinPerf RE'!G33 -> 2287375141 | G11: =+'C4-FinPerf RE'!H33 -> 2240975806 | H11: =F11-G11 -> 46399334.88 | I11: =IF(H11=0,"",H11/G11) -> 0.02070496913 | J11: =+'C4-FinPerf RE'!K33 -> 8963903223
A12: Employee costs | B12: ='C4-FinPerf RE'!C35 -> 1612918315 | C12: ='C4-FinPerf RE'!D35 -> 1847015838 | D12: ='C4-FinPerf RE'!E35 -> 0 | E12: ='C4-FinPerf RE'!F35 -> 134281261 | F12: ='C4-FinPerf RE'!G35 -> 383823929 | G12: ='C4-FinPerf RE'!H35 -> 461753959.4 | H12: -77930030.41 | I12: -0.1687695987 | J12: ='C4-FinPerf RE'!K35 -> 1847015838
A13: Remuneration of Councillors | B13: ='C4-FinPerf RE'!C36 -> 63542011.59 | C13: ='C4-FinPerf RE'!D36 -> 66461931.11 | D13: ='C4-FinPerf RE'!E36 -> 0 | E13: ='C4-FinPerf RE'!F36 -> 4745184.95 | F13: ='C4-FinPerf RE'!G36 -> 14263115.17 | G13: ='C4-FinPerf RE'!H36 -> 16615482.78 | H13: -2352367.608 | I13: -0.1415768437 | J13: ='C4-FinPerf RE'!K36 -> 66461931.11
A14: Depreciation and amortisation | B14: ='C4-FinPerf RE'!C40 -> 361847777 | C14: ='C4-FinPerf RE'!D40 -> 362178747.5 | D14: ='C4-FinPerf RE'!E40 -> 0 | E14: ='C4-FinPerf RE'!F40 -> 31913804.13 | F14: ='C4-FinPerf RE'!G40 -> 97824108.19 | G14: ='C4-FinPerf RE'!H40 -> 90544686.87 | H14: 7279421.325 | I14: 0.08039589707 | J14: ='C4-FinPerf RE'!K40 -> 362178747.5
A15: Interest | B15: ='C4-FinPerf RE'!C41 -> 84787241 | C15: ='C4-FinPerf RE'!D41 -> 42824930.71 | D15: ='C4-FinPerf RE'!E41 -> 0 | E15: ='C4-FinPerf RE'!F41 -> 1661779.84 | F15: ='C4-FinPerf RE'!G41 -> 5183948.36 | G15: ='C4-FinPerf RE'!H41 -> 10706232.68 | H15: -5522284.318 | I15: -0.5158008876 | J15: ='C4-FinPerf RE'!K41 -> 42824930.71
A16: Inventory consumed and bulk purchases | B16: =SUM('C4-FinPerf RE'!C37+'C4-FinPerf RE'!C38) -> 3592058448 | C16: =SUM('C4-FinPerf RE'!D37+'C4-FinPerf RE'!D38) -> 4138528114 | D16: =SUM('C4-FinPerf RE'!E37+'C4-FinPerf RE'!E38) -> 0 | E16: =SUM('C4-FinPerf RE'!F37+'C4-FinPerf RE'!F38) -> 518211701.2 | F16: =SUM('C4-FinPerf RE'!G37+'C4-FinPerf RE'!G38) -> 1413361042 | G16: =SUM('C4-FinPerf RE'!H37+'C4-FinPerf RE'!H38) -> 1034632029 | H16: 378729013.3 | I16: 0.3660518937 | J16: =SUM('C4-FinPerf RE'!K37+'C4-FinPerf RE'!K38) -> 4138528114
A17: Transfers and subsidies | B17: ='C4-FinPerf RE'!C43 -> 28449502.91 | C17: ='C4-FinPerf RE'!D43 -> 69670130.46 | D17: ='C4-FinPerf RE'!E43 -> 0 | E17: ='C4-FinPerf RE'!F43 -> 3011425.23 | F17: ='C4-FinPerf RE'!G43 -> 13000150.15 | G17: ='C4-FinPerf RE'!H43 -> 17417532.61 | H17: -4417382.464 | I17: -0.2536170055 | J17: ='C4-FinPerf RE'!K43 -> 69670130.46
A18: Other expenditure | B18: ='C4-FinPerf RE'!C48-SUM('C1-Sum'!B12:B17) -> 2357170138 | C18: ='C4-FinPerf RE'!D48-SUM('C1-Sum'!C12:C17) -> 1853590211 | D18: ='C4-FinPerf RE'!E48-SUM('C1-Sum'!D12:D17) -> 0 | E18: ='C4-FinPerf RE'!F48-SUM('C1-Sum'!E12:E17) -> 76779985.8 | F18: ='C4-FinPerf RE'!G48-SUM('C1-Sum'!F12:F17) -> 155845980.4 | G18: ='C4-FinPerf RE'!H48-SUM('C1-Sum'!G12:G17) -> 463397552.7 | H18: -307551572.3 | I18: -0.6636883827 | J18: ='C4-FinPerf RE'!K48-SUM('C1-Sum'!J12:J17) -> 1853590211
A19: Total Expenditure | B19: =SUM(B12:B18) -> 8100773433 | C19: 8380269902 | D19: 0 | E19: 770605142.2 | F19: 2083302273 | G19: 2095067476 | H19: -11765202.43 | I19: -0.005615667548 | J19: =SUM(J12:J18) -> 8380269902
A20: Surplus/(Deficit) | B20: =B11-B19 -> -1534438702 | C20: 583633320.9 | D20: 0 | E20: -138991902.7 | F20: 204072867.5 | G20: 145908330.2 | H20: 58164537.31 | I20: 0.3986375365 | J20: =J11-J19 -> 583633320.9
A21: Transfers and subsidies - capital (monetary allocations) | B21: ='C4-FinPerf RE'!C50 -> 428104994 | C21: ='C4-FinPerf RE'!D50 -> 456974891 | D21: ='C4-FinPerf RE'!E50 -> 0 | E21: ='C4-FinPerf RE'!F50 -> -1744790.23 | F21: ='C4-FinPerf RE'!G50 -> 46637507.02 | G21: ='C4-FinPerf RE'!H50 -> 114243722.8 | H21: -67606215.73 | I21: -0.59177182 | J21: ='C4-FinPerf RE'!K50 -> 456974891
A22: Transfers and subsidies - capital (in-kind) | B22: ='C4-FinPerf RE'!C51 -> 0 | C22: ='C4-FinPerf RE'!D51 -> 0 | D22: ='C4-FinPerf RE'!E51 -> 0 | E22: ='C4-FinPerf RE'!F51 -> 0 | F22: ='C4-FinPerf RE'!G51 -> 0 | G22: ='C4-FinPerf RE'!H51 -> 0 | H22: 0 | J22: ='C4-FinPerf RE'!K51 -> 0
A23: Surplus/(Deficit) after capital transfers & contributions | B23: =B20+B21+B22 -> -1106333708 | C23: 1040608212 | D23: 0 | E23: -140736693 | F23: 250710374.6 | G23: 260152053 | H23: -9441678.419 | I23: -0.03629292297 | J23: =J20+J21+J22 -> 1040608212
A24: Share of surplus/ (deficit) of associate | B24: ='C4-FinPerf RE'!C59 -> 0 | C24: ='C4-FinPerf RE'!D59 -> 0 | D24: ='C4-FinPerf RE'!E59 -> 0 | E24: ='C4-FinPerf RE'!F59 -> 0 | F24: ='C4-FinPerf RE'!G59 -> 0 | G24: ='C4-FinPerf RE'!H59 -> 0 | H24: 0 | J24: ='C4-FinPerf RE'!K59 -> 0
A25: Surplus/ (Deficit) for the year | B25: =B23+B24 -> -1106333708 | C25: 1040608212 | D25: 0 | E25: -140736693 | F25: 250710374.6 | G25: 260152053 | H25: -9441678.419 | I25: -0.03629292297 | J25: =J23+J24 -> 1040608212
A27: Capital expenditure & funds sources
A28: Capital expenditure | B28: ='C5-Capex'!C40 -> 726309725.8 | C28: ='C5-Capex'!D40 -> 824010890.4 | D28: ='C5-Capex'!E40 -> 0 | E28: ='C5-Capex'!F40 -> 35533561.71 | F28: ='C5-Capex'!G40 -> 92441681.54 | G28: ='C5-Capex'!H40 -> 206002722.6 | H28: =F28-G28 -> -113561041.1 | I28: =IF(H28=0,"",H28/G28) -> -0.5512599039 | J28: ='C5-Capex'!K40 -> 824010890.4
A29: Capital transfers recognised | B29: ='C5-Capex'!C70 -> 395582260.5 | C29: ='C5-Capex'!D70 -> 456974890.5 | D29: ='C5-Capex'!E70 -> 0 | E29: ='C5-Capex'!F70 -> -2030602.89 | F29: ='C5-Capex'!G70 -> 42695384.73 | G29: ='C5-Capex'!H70 -> 114243722.6 | H29: -71548337.9 | I29: -0.6262780681 | J29: ='C5-Capex'!K70 -> 456974890.5
A31: Borrowing | B31: ='C5-Capex'!C72 -> 72309925.81 | C31: ='C5-Capex'!D72 -> 234315856 | D31: ='C5-Capex'!E72 -> 0 | E31: ='C5-Capex'!F72 -> 13995725.56 | F31: ='C5-Capex'!G72 -> 14172352.93 | G31: ='C5-Capex'!H72 -> 58578964 | H31: -44406611.07 | I31: -0.7580641247 | J31: ='C5-Capex'!K72 -> 234315856
A32: Internally generated funds | B32: ='C5-Capex'!C73 -> 258417539.5 | C32: ='C5-Capex'!D73 -> 132720143.9 | D32: ='C5-Capex'!E73 -> 0 | E32: ='C5-Capex'!F73 -> 23568439.04 | F32: ='C5-Capex'!G73 -> 35573943.88 | G32: ='C5-Capex'!H73 -> 33180035.98 | H32: 2393907.902 | I32: 0.07214904481 | J32: ='C5-Capex'!K73 -> 132720143.9
A33: Total sources of capital funds | B33: =+B29+B31+B32 -> 726309725.8 | C33: 824010890.4 | D33: 0 | E33: 35533561.71 | F33: 92441681.54 | G33: 206002722.6 | H33: -113561041.1 | I33: -0.5512599039 | J33: =+J29+J31+J32 -> 824010890.4
A35: Financial position
A36: Total current assets | B36: ='C6-FinPos'!C14 -> 2040911374 | C36: ='C6-FinPos'!D14 -> 4114508456 | D36: ='C6-FinPos'!E14 -> 0 | F36: ='C6-FinPos'!F14 -> 2228910695 | J36: ='C6-FinPos'!G14 -> 4114508456
A37: Total non current assets | B37: ='C6-FinPos'!C26 -> 8604430265 | C37: ='C6-FinPos'!D26 -> 10127019737 | D37: ='C6-FinPos'!E26 -> 0 | F37: ='C6-FinPos'!F26 -> 8518233570 | J37: ='C6-FinPos'!G26 -> 10127019737
A38: Total current liabilities | B38: ='C6-FinPos'!C38 -> 3853354226 | C38: ='C6-FinPos'!D38 -> 2372666556 | D38: ='C6-FinPos'!E38 -> 0 | F38: ='C6-FinPos'!F38 -> 3848027977 | J38: ='C6-FinPos'!G38 -> 2372666556
A39: Total non current liabilities | B39: ='C6-FinPos'!C44 -> 733130043 | C39: ='C6-FinPos'!D44 -> 1223486025 | D39: ='C6-FinPos'!E44 -> 0 | F39: ='C6-FinPos'!F44 -> 669751142.2 | J39: ='C6-FinPos'!G44 -> 1223486025
A40: Community wealth/Equity | B40: ='C6-FinPos'!C51 -> 6058857370 | C40: ='C6-FinPos'!D51 -> 1.064537561e+10 | D40: ='C6-FinPos'!E51 -> 0 | F40: ='C6-FinPos'!F51 -> 6229365145 | J40: ='C6-FinPos'!G51 -> 1.064537561e+10
A42: Cash flows
A43: Net cash from (used) operating | B43: ='C7-CFlow'!C18 -> 611952031 | C43: ='C7-CFlow'!D18 -> 595509921.2 | D43: ='C7-CFlow'!E18 -> 0 | E43: ='C7-CFlow'!F18 -> 0 | F43: ='C7-CFlow'!G18 -> 0 | G43: ='C7-CFlow'!H18 -> 148877480.3 | H43: =G43-F43 -> 148877480.3 | I43: =IF(H43=0,"",H43/G43) -> 1 | J43: ='C7-CFlow'!K18 -> 595509921.2
A44: Net cash from (used) investing | B44: ='C7-CFlow'!C28 -> -674403941 | C44: ='C7-CFlow'!D28 -> -824010890.4 | D44: ='C7-CFlow'!E28 -> 0 | E44: ='C7-CFlow'!F28 -> 0 | F44: ='C7-CFlow'!G28 -> 0 | G44: ='C7-CFlow'!H28 -> -206002722.6 | H44: =G44-F44 -> -206002722.6 | I44: =IF(H44=0,"",H44/G44) -> 1 | J44: ='C7-CFlow'!K28 -> -824010890.4
A45: Net cash from (used) financing | B45: ='C7-CFlow'!C37 -> 42004700 | C45: ='C7-CFlow'!D37 -> 144315856 | D45: ='C7-CFlow'!E37 -> 0 | E45: ='C7-CFlow'!F37 -> 0 | F45: ='C7-CFlow'!G37 -> 0 | G45: ='C7-CFlow'!H37 -> 36078964 | H45: =G45-F45 -> 36078964 | I45: =IF(H45=0,"",H45/G45) -> 1 | J45: ='C7-CFlow'!K37 -> 144315856
A46: Cash/cash equivalents at the month/year end | B46: ='C7-CFlow'!C41 -> 490954799 | C46: ='C7-CFlow'!D41 -> 459342886.7 | D46: ='C7-CFlow'!E41 -> 0 | E46: ='C7-CFlow'!F41 -> 0 | F46: ='C7-CFlow'!G41 -> 0 | G46: ='C7-CFlow'!H41 -> 522481721.7 | H46: =G46-F46 -> 522481721.7 | I46: =IF(H46=0,"",H46/G46) -> 1 | J46: ='C7-CFlow'!K41 -> 459342886.7
A48: Debtors & creditors analysis | B48: ='SC3'!C3 -> 0-30 Days | C48: ='SC3'!D3 -> 31-60 Days | D48: ='SC3'!E3 -> 61-90 Days | E48: ='SC3'!F3 -> 91-120 Days | F48: ='SC3'!G3 -> 121-150 Dys | G48: ='SC3'!H3 -> 151-180 Dys | H48: ='SC3'!I3 -> 181 Dys-1 Yr | I48: ='SC3'!J3 -> Over 1Yr | J48: Total
A49: =LEFT('SC3'!A4,20) -> Debtors Age Analysis
A50: ='SC3'!A14 -> Total By Income Source | B50: ='SC3'!C14 -> 1067382384 | C50: ='SC3'!D14 -> 12268940.64 | D50: ='SC3'!E14 -> 163272200 | E50: ='SC3'!F14 -> 129805076.3 | F50: ='SC3'!G14 -> 125555495 | G50: ='SC3'!H14 -> 119662409.8 | H50: ='SC3'!I14 -> 737072313.8 | I50: ='SC3'!J14 -> 5347501785 | J50: ='SC3'!K14 -> 7702520604
A51: =LEFT('SC4'!A5,22) -> Creditors Age Analysis
A52: Total Creditors | B52: ='SC4'!C16 -> 1109186246 | C52: ='SC4'!D16 -> 201382928.4 | D52: ='SC4'!E16 -> 40056091.56 | E52: ='SC4'!F16 -> 103134579.9 | F52: ='SC4'!G16 -> 1200482770 | G52: ='SC4'!H16 -> 0 | H52: ='SC4'!I16 -> 0 | I52: ='SC4'!J16 -> 0 | J52: ='SC4'!K16 -> 2654242616

Sheet C2-FinPerf SC
A1: =muni& " - "&S71A& " - "&date -> KZN225 Msunduzi - Table C2 Monthly Budget Statement - Financial Performance (functional classification) - Q1 First Quarter
A2: =desc -> Description | B2: =head27 -> Ref | C2: =Head1 -> 2023/24 | D2: =Head2 -> Budget Year 2024/25
C3: =Head5 -> Audited Outcome | D3: =Head6 -> Original Budget | E3: =Head7 -> Adjusted Budget | F3: =Head38 -> Monthly actual | G3: =Head39 -> YearTD actual | H3: =Head40 -> YearTD budget | I3: =Head41 -> YTD variance | J3: =Head41 -> YTD variance | K3: =Head8 -> Full Year Forecast
A4: R thousands | B4: 1 | J4: %
A5: Revenue - Functional
A6: Governance and administration | C6: =SUM(C7:C9) -> 2042707568 | D6: 2688150807 | E6: 0 | F6: 176683356.7 | G6: 695336547.6 | H6: 672037701.8 | I6: =G6-H6 -> 23298845.88 | J6: =IF(I6=0,"",I6/H6) -> 0.03466895655 | K6: =SUM(K7:K9) -> 2688150807
A7: Executive and council | C7: ='C2C'!C7 -> 4700996.67 | D7: ='C2C'!D7 -> 0 | E7: ='C2C'!E7 -> 0 | F7: ='C2C'!F7 -> 509569.4 | G7: ='C2C'!G7 -> 521466.97 | H7: ='C2C'!H7 -> 0 | I7: 521466.97 | J7: =IF(I7=0,"",I7/H7) ->  | K7: ='C2C'!K7 -> 0
A8: Finance and administration | C8: ='C2C'!C10 -> 2038006572 | D8: ='C2C'!D10 -> 2688150807 | E8: ='C2C'!E10 -> 0 | F8: ='C2C'!F10 -> 176173787.3 | G8: ='C2C'!G10 -> 694815080.7 | H8: ='C2C'!H10 -> 672037701.8 | I8: 22777378.91 | J8: 0.03389300757 | K8: ='C2C'!K10 -> 2688150807
A9: Internal audit | C9: ='C2C'!C24 -> 0 | D9: ='C2C'!D24 -> 0 | E9: ='C2C'!E24 -> 0 | F9: ='C2C'!F24 -> 0 | G9: ='C2C'!G24 -> 0 | H9: ='C2C'!H24 -> 0 | I9: 0 | K9: ='C2C'!K24 -> 0
A10: Community and public safety | C10: =SUM(C11:C15) -> 225251514.1 | D10: 525429105.8 | E10: 0 | F10: 1607635.76 | G10: 22437621.36 | H10: 131357276.5 | I10: -108919655.1 | J10: -0.829186308 | K10: =SUM(K11:K15) -> 525429105.8
A11: Community and social services | C11: ='C2C'!C27 -> 63388777.86 | D11: ='C2C'!D27 -> 307323184.7 | E11: ='C2C'!E27 -> 0 | F11: ='C2C'!F27 -> -6474512.75 | G11: ='C2C'!G27 -> 3407369.63 | H11: ='C2C'!H27 -> 76830796.18 | I11: -73423426.55 | J11: -0.9556509915 | K11: ='C2C'!K27 -> 307323184.7
A12: Sport and recreation | C12: ='C2C'!C49 -> 4912299.59 | D12: ='C2C'!D49 -> 23526793.18 | E12: ='C2C'!E49 -> 0 | F12: ='C2C'!F49 -> 189794.59 | G12: ='C2C'!G49 -> 2713047.91 | H12: ='C2C'!H49 -> 5881698.296 | I12: -3168650.386 | J12: -0.5387305208 | K12: ='C2C'!K49 -> 23526793.18
A13: Public safety | C13: ='C2C'!C55 -> 25017311.62 | D13: ='C2C'!D55 -> 9172795.913 | E13: ='C2C'!E55 -> 0 | F13: ='C2C'!F55 -> 1395500.44 | G13: ='C2C'!G55 -> 938291.79 | H13: ='C2C'!H55 -> 2293198.978 | I13: -1354907.188 | J13: -0.5908371673 | K13: ='C2C'!K55 -> 9172795.913
A14: Housing | C14: ='C2C'!C64 -> 131933125 | D14: ='C2C'!D64 -> 185406332 | E14: ='C2C'!E64 -> 0 | F14: ='C2C'!F64 -> 6496853.48 | G14: ='C2C'!G64 -> 15378912.03 | H14: ='C2C'!H64 -> 46351583 | I14: -30972670.97 | J14: -0.6682117193 | K14: ='C2C'!K64 -> 185406332
A15: Health | C15: ='C2C'!C67 -> 0 | D15: ='C2C'!D67 -> 0 | E15: ='C2C'!E67 -> 0 | F15: ='C2C'!F67 -> 0 | G15: ='C2C'!G67 -> 0 | H15: ='C2C'!H67 -> 0 | I15: 0 | K15: ='C2C'!K67 -> 0
A16: Economic and environmental services | C16: =SUM(C17:C19) -> 167411962.7 | D16: 86691641.99 | E16: 0 | F16: 2175578.32 | G16: 14975081.93 | H16: 21672910.5 | I16: -6697828.568 | J16: -0.3090414907 | K16: =SUM(K17:K19) -> 86691641.99
A17: Planning and development | C17: ='C2C'!C76 -> 118230028 | D17: ='C2C'!D76 -> 31697207.13 | E17: ='C2C'!E76 -> 0 | F17: ='C2C'!F76 -> 1257043.74 | G17: ='C2C'!G76 -> 5462111.44 | H17: ='C2C'!H76 -> 7924301.783 | I17: -2462190.343 | J17: -0.3107138534 | K17: ='C2C'!K76 -> 31697207.13
A18: Road transport | C18: ='C2C'!C87 -> 48423465.64 | D18: ='C2C'!D87 -> 50000000 | E18: ='C2C'!E87 -> 0 | F18: ='C2C'!F87 -> 900450 | G18: ='C2C'!G87 -> 9426075.3 | H18: ='C2C'!H87 -> 12500000 | I18: -3073924.7 | J18: -0.245913976 | K18: ='C2C'!K87 -> 50000000
A19: Environmental protection | C19: ='C2C'!C92 -> 758469.01 | D19: ='C2C'!D92 -> 4994434.861 | E19: ='C2C'!E92 -> 0 | F19: ='C2C'!F92 -> 18084.58 | G19: ='C2C'!G92 -> 86895.19 | H19: ='C2C'!H92 -> 1248608.715 | I19: -1161713.525 | J19: -0.9304063884 | K19: ='C2C'!K92 -> 4994434.861
A20: Trading services | C20: =SUM(C21:C24) -> 4506712075 | D20: =SUM(D21:D24) -> 5997733918 | E20: 0 | F20: 445801534.8 | G20: 1590234538 | H20: 1499433479 | I20: 90801058.21 | J20: 0.06055690997 | K20: =SUM(K21:K24) -> 5997733918
A21: Energy sources | C21: ='C2C'!C100 -> 2671690063 | D21: ='C2C'!D100 -> 4347604455 | E21: ='C2C'!E100 -> 0 | F21: ='C2C'!F100 -> 282277256.2 | G21: ='C2C'!G100 -> 950002350.8 | H21: ='C2C'!H100 -> 1086901114 | I21: =G21-H21 -> -136898762.9 | J21: -0.1259532824 | K21: ='C2C'!K100 -> 4347604455
A22: Water management | C22: ='C2C'!C104 -> 1308245353 | D22: ='C2C'!D104 -> 1219122118 | E22: ='C2C'!E104 -> 0 | F22: ='C2C'!F104 -> 120475879.2 | G22: ='C2C'!G104 -> 484088776.9 | H22: ='C2C'!H104 -> 304780529.5 | I22: =G22-H22 -> 179308247.5 | J22: 0.5883192335 | K22: ='C2C'!K104 -> 1219122118
A23: Waste water management | C23: ='C2C'!C108 -> 332249573 | D23: ='C2C'!D108 -> 262027256.3 | E23: ='C2C'!E108 -> 0 | F23: ='C2C'!F108 -> 29606775.37 | G23: ='C2C'!G108 -> 105628118.9 | H23: ='C2C'!H108 -> 65506814.07 | I23: =G23-H23 -> 40121304.83 | J23: 0.6124752881 | K23: ='C2C'!K108 -> 262027256.3
A24: Waste management | C24: ='C2C'!C113 -> 194527085.9 | D24: ='C2C'!D113 -> 168980088.6 | E24: ='C2C'!E113 -> 0 | F24: ='C2C'!F113 -> 13441624.05 | G24: ='C2C'!G113 -> 50515290.98 | H24: ='C2C'!H113 -> 42245022.14 | I24: =G24-H24 -> 8270268.836 | J24: 0.1957690733 | K24: ='C2C'!K113 -> 168980088.6
A25: Other | B25: 4 | C25: ='C2C'!C118 -> 52356604.63 | D25: ='C2C'!D118 -> 122872641.8 | E25: ='C2C'!E118 -> 0 | F25: ='C2C'!F118 -> 3600343.62 | G25: ='C2C'!G118 -> 11028859.16 | H25: ='C2C'!H118 -> 30718160.44 | I25: =G25-H25 -> -19689301.28 | J25: -0.6409661581 | K25: ='C2C'!K118 -> 122872641.8
A26: Total Revenue - Functional | B26: 2 | C26: =C6+C10+C16+C20+C25 -> 6994439725 | D26: =D6+D10+D16+D20+D25 -> 9420878114 | E26: 0 | F26: 629868449.2 | G26: 2334012648 | H26: 2355219529 | I26: -21206880.85 | J26: -0.009004205594 | K26: =K6+K10+K16+K20+K25 -> 9420878114
A28: Expenditure - Functional
A29: Governance and administration | C29: =SUM(C30:C32) -> 1394784170 | D29: 1659708472 | E29: 0 | F29: 91624261.26 | G29: 226092026.7 | H29: 414927118 | I29: =G29-H29 -> -188835091.3 | J29: =IF(I29=0,"",I29/H29) -> -0.4551042415 | K29: =SUM(K30:K32) -> 1659708472
A30: Executive and council | C30: ='C2C'!C129 -> 154335868.4 | D30: ='C2C'!D129 -> 165980670 | E30: ='C2C'!E129 -> 0 | F30: ='C2C'!F129 -> 11819677.31 | G30: ='C2C'!G129 -> 32429212.31 | H30: ='C2C'!H129 -> 41495167.5 | I30: -9065955.19 | J30: =IF(I30=0,"",I30/H30) -> -0.2184821929 | K30: ='C2C'!K129 -> 165980670
A31: Finance and administration | C31: ='C2C'!C132 -> 1215285473 | D31: ='C2C'!D132 -> 1465568308 | E31: ='C2C'!E132 -> 0 | F31: ='C2C'!F132 -> 75830987.93 | G31: ='C2C'!G132 -> 186448377.2 | H31: ='C2C'!H132 -> 366392077 | I31: -179943699.8 | J31: -0.4911233377 | K31: ='C2C'!K132 -> 1465568308
A32: Internal audit | C32: ='C2C'!C146 -> 25162828.92 | D32: ='C2C'!D146 -> 28159494 | E32: ='C2C'!E146 -> 0 | F32: ='C2C'!F146 -> 3973596.02 | G32: ='C2C'!G146 -> 7214437.14 | H32: ='C2C'!H146 -> 7039873.5 | I32: 174563.64 | J32: 0.02479641715 | K32: ='C2C'!K146 -> 28159494
A33: Community and public safety | C33: =SUM(C34:C38) -> 639572810.1 | D33: 706899390.8 | E33: 0 | F33: 46376708.9 | G33: 139011761.6 | H33: 176724847.7 | I33: -37713086.12 | J33: -0.2134000205 | K33: =SUM(K34:K38) -> 706899390.8
A34: Community and social services | C34: ='C2C'!C149 -> 154233095.9 | D34: ='C2C'!D149 -> 250699021 | E34: ='C2C'!E149 -> 0 | F34: ='C2C'!F149 -> 14281822.06 | G34: ='C2C'!G149 -> 37136676.25 | H34: ='C2C'!H149 -> 62674755.25 | I34: -25538079 | J34: -0.4074699438 | K34: ='C2C'!K149 -> 250699021
A35: Sport and recreation | C35: ='C2C'!C171 -> 152619425.4 | D35: ='C2C'!D171 -> 121147022.5 | E35: ='C2C'!E171 -> 0 | F35: ='C2C'!F171 -> 10421211.08 | G35: ='C2C'!G171 -> 28945076.63 | H35: ='C2C'!H171 -> 30286755.62 | I35: -1341678.991 | J35: -0.04429919822 | K35: ='C2C'!K171 -> 121147022.5
A36: Public safety | C36: ='C2C'!C177 -> 221231115.3 | D36: ='C2C'!D177 -> 244183097.4 | E36: ='C2C'!E177 -> 0 | F36: ='C2C'!F177 -> 15733488.61 | G36: ='C2C'!G177 -> 54758833.65 | H36: ='C2C'!H177 -> 61045774.34 | I36: -6286940.691 | J36: -0.1029873199 | K36: ='C2C'!K177 -> 244183097.4
A37: Housing | C37: ='C2C'!C186 -> 101531000 | D37: ='C2C'!D186 -> 81136670.54 | E37: ='C2C'!E186 -> 0 | F37: ='C2C'!F186 -> 5268332.16 | G37: ='C2C'!G186 -> 16060222.62 | H37: ='C2C'!H186 -> 20284167.63 | I37: -4223945.015 | J37: -0.2082385184 | K37: ='C2C'!K186 -> 81136670.54
A38: Health | C38: ='C2C'!C189 -> 9958173.58 | D38: ='C2C'!D189 -> 9733579.461 | E38: ='C2C'!E189 -> 0 | F38: ='C2C'!F189 -> 671854.99 | G38: ='C2C'!G189 -> 2110952.44 | H38: ='C2C'!H189 -> 2433394.865 | I38: -322442.4253 | J38: -0.132507235 | K38: ='C2C'!K189 -> 9733579.461
A39: Economic and environmental services | C39: =SUM(C40:C42) -> 478064864.4 | D39: 640338797 | E39: 0 | F39: 35493422.28 | G39: 79020525.65 | H39: 160084699.2 | I39: -81064173.6 | J39: -0.5063830209 | K39: =SUM(K40:K42) -> 640338797
A40: Planning and development | C40: ='C2C'!C198 -> 97777604.41 | D40: ='C2C'!D198 -> 161555852 | E40: ='C2C'!E198 -> 0 | F40: ='C2C'!F198 -> 7609996.16 | G40: ='C2C'!G198 -> 21572787.05 | H40: ='C2C'!H198 -> 40388963 | I40: -18816175.95 | J40: -0.4658742031 | K40: ='C2C'!K198 -> 161555852
A41: Road transport | C41: ='C2C'!C209 -> 354436930.9 | D41: ='C2C'!D209 -> 449621964 | E41: ='C2C'!E209 -> 0 | F41: ='C2C'!F209 -> 25313299.8 | G41: ='C2C'!G209 -> 50639269.05 | H41: ='C2C'!H209 -> 112405491 | I41: -61766221.95 | J41: -0.5494947035 | K41: ='C2C'!K209 -> 449621964
A42: Environmental protection | C42: ='C2C'!C214 -> 25850329.03 | D42: ='C2C'!D214 -> 29160981 | E42: ='C2C'!E214 -> 0 | F42: ='C2C'!F214 -> 2570126.32 | G42: ='C2C'!G214 -> 6808469.55 | H42: ='C2C'!H214 -> 7290245.25 | I42: -481775.7 | J42: -0.06608497842 | K42: ='C2C'!K214 -> 29160981
A43: Trading services | C43: =SUM(C44:C47) -> 5510614660 | D43: =SUM(D44:D47) -> 5278293781 | E43: 0 | F43: 586950549.2 | G43: 1617394514 | H43: 1319573445 | I43: 297821068.9 | J43: 0.2256949547 | K43: =SUM(K44:K47) -> 5278293781
A44: Energy sources | C44: ='C2C'!C222 -> 3380460362 | D44: ='C2C'!D222 -> 3749118944 | E44: ='C2C'!E222 -> 0 | F44: ='C2C'!F222 -> 360649244.4 | G44: ='C2C'!G222 -> 1227315612 | H44: ='C2C'!H222 -> 937279736 | I44: 290035875.8 | J44: 0.3094443043 | K44: ='C2C'!K222 -> 3749118944
A45: Water management | C45: ='C2C'!C226 -> 1504796140 | D45: ='C2C'!D226 -> 1010944858 | E45: ='C2C'!E226 -> 0 | F45: ='C2C'!F226 -> 189039295.8 | G45: ='C2C'!G226 -> 285123168.9 | H45: ='C2C'!H226 -> 252736214.5 | I45: 32386954.43 | J45: 0.1281452858 | K45: ='C2C'!K226 -> 1010944858
A46: Waste water management | C46: ='C2C'!C230 -> 434826346.1 | D46: ='C2C'!D230 -> 369521337 | E46: ='C2C'!E230 -> 0 | F46: ='C2C'!F230 -> 27313632.59 | G46: ='C2C'!G230 -> 78207219.7 | H46: ='C2C'!H230 -> 92380334.25 | I46: -14173114.55 | J46: -0.1534213387 | K46: ='C2C'!K230 -> 369521337
A47: Waste management | C47: ='C2C'!C235 -> 190531811.7 | D47: ='C2C'!D235 -> 148708642 | E47: ='C2C'!E235 -> 0 | F47: ='C2C'!F235 -> 9948376.4 | G47: ='C2C'!G235 -> 26748513.67 | H47: ='C2C'!H235 -> 37177160.5 | I47: -10428646.83 | J47: -0.2805121932 | K47: ='C2C'!K235 -> 148708642
A48: Other | C48: ='C2C'!C240 -> 77736928.61 | D48: ='C2C'!D240 -> 95029461.57 | E48: ='C2C'!E240 -> 0 | F48: ='C2C'!F240 -> 10160200.53 | G48: ='C2C'!G240 -> 21783445.1 | H48: ='C2C'!H240 -> 23757365.39 | I48: -1973920.293 | J48: -0.08308666639 | K48: ='C2C'!K240 -> 95029461.57
A49: Total Expenditure - Functional | B49: 3 | C49: =C29+C33+C39+C43+C48 -> 8100773433 | D49: =D29+D33+D39+D43+D48 -> 8380269902 | E49: 0 | F49: 770605142.1 | G49: 2083302273 | H49: 2095067476 | I49: -11765202.43 | J49: -0.005615667548 | K49: =K29+K33+K39+K43+K48 -> 8380269902
A50: Surplus/ (Deficit) for the year | C50: =C26-C49 -> -1106333708 | D50: 1040608212 | E50: 0 | F50: -140736693 | G50: 250710374.6 | H50: 260152053 | I50: =I26-I49 -> -9441678.419 | J50: =IF(I50=0,"",I50/H50) -> -0.03629292297 | K50: =K26-K49 -> 1040608212
A51: =head27a -> References
A52: 1. Government Finance Statistics Functions and Sub-functions are standardised to assist the compilation of national and international accounts for comparison purposes
A53: 2. Total Revenue by functional classification must reconcile to Total Operating Revenue shown in the Financial Performance Statement
A54: 3. Total Expenditure by functional classification must reconcile to total operating expenditure shown in 'Financial Performance Statement'
A55: 4. All amounts must be classified under a functional classification (modified GFS). The GFS function 'Other' is only for Abbatoirs, Air Transport, Licensing and Regulation, Markets and Tourism - and if used must be supported by footnotes. Nothing else may be placed under 'Other'. Assign associate share to relevant classification

Sheet C2C
A1: =muni& " - "&S71A& " - "&date -> KZN225 Msunduzi - Table C2 Monthly Budget Statement - Financial Performance (functional classification) - Q1 First Quarter
A2: =desc -> Description | B2: =head27 -> Ref | C2: =Head1 -> 2023/24 | D2: =Head2 -> Budget Year 2024/25
C3: =Head5 -> Audited Outcome | D3: =Head6 -> Original Budget | E3: =Head7 -> Adjusted Budget | F3: =Head38 -> Monthly actual | G3: =Head39 -> YearTD actual | H3: =Head40 -> YearTD budget | I3: =Head41 -> YTD variance | J3: =Head41 -> YTD variance | K3: =Head8 -> Full Year Forecast
A4: R thousands | B4: 1 | J4: %
A5: Revenue - Functional
A6: Municipal governance and administration | C6: =C7+C10+C24 -> 2042707568 | D6: 2688150807 | E6: 0 | F6: 176683356.7 | G6: 695336547.6 | H6: 672037701.8 | I6: =G6-H6 -> 23298845.88 | J6: =IF(I6=0,"",I6/H6) -> 0.03466895655 | K6: =K7+K10+K24 -> 2688150807
A7: Executive and council | C7: =SUM(C8:C9) -> 4700996.67 | D7: =SUM(D8:D9) -> 0 | E7: 0 | F7: 509569.4 | G7: 521466.97 | H7: 0 | I7: =G7-H7 -> 521466.97 | J7: =IF(I7=0,"",I7/H7) ->  | K7: 0
A8: Mayor and Council | G8: 0 | H8: =D8/12*3 -> 0 | I8: 0
A9: Municipal Manager, Town Secretary and Chief Executive | C9: 4700996.67 | F9: 509569.4 | G9: 521466.97 | H9: =D9/12*3 -> 0 | I9: 521466.97
A10: Finance and administration | C10: =SUM(C11:C23) -> 2038006572 | D10: 2688150807 | E10: 0 | F10: 176173787.3 | G10: 694815080.7 | H10: 672037701.8 | I10: 22777378.91 | J10: 0.03389300757 | K10: =SUM(K11:K23) -> 2688150807
A11: Administrative and Corporate Support | C11: 0 | D11: 0 | I11: 0
A12: Asset Management | C12: 28685.93 | I12: 0
A13: Finance | C13: 2004771659 | D13: 2633346699 | F13: 165097030.6 | G13: 678984338.5 | H13: =D13/12*3 -> 658336674.8 | I13: 20647663.63 | J13: 0.0313633805 | K13: =D13 -> 2633346699
A14: Fleet Management | C14: 0 | D14: 0 | F14: 0 | G14: 0 | I14: 0
A15: Human Resources | C15: 9435294.78 | D15: 12101098.95 | F15: 997414.94 | G15: 2561316.52 | H15: =D15/12*3 -> 3025274.737 | I15: -463958.2175 | J15: -0.1533606888 | K15: =D15 -> 12101098.95
A16: Information Technology | C16: 417.36 | I16: 0
A17: Legal Services | C17: 428337.14 | I17: 0
A18: Marketing, Customer Relations, Publicity and Media Co-ordination | C18: 0 | D18: 0 | I18: 0
A19: Property Services | C19: 23300467.27 | D19: 42351757.85 | F19: 10019768.11 | G19: 13172472.6 | H19: =D19/12*3 -> 10587939.46 | I19: 2584533.138 | J19: 0.2441016164 | K19: =D19 -> 42351757.85
A20: Risk Management | C20: 0 | D20: 0 | I20: 0
A21: Security Services | C21: 0 | D21: 0 | I21: 0
A22: Supply Chain Management | C22: 41710.24 | D22: 351250.83 | F22: 59573.66 | G22: 96953.07 | H22: =D22/12*3 -> 87812.7075 | I22: 9140.3625 | J22: 0.1040892914 | K22: =D22 -> 351250.83
A23: Valuation Service | C23: 0 | D23: 0 | F23: 0 | G23: 0 | I23: 0
A24: Internal audit | C24: =SUM(C25:C25) -> 0 | D24: 0 | E24: 0 | F24: 0 | G24: 0 | H24: 0 | I24: 0 | K24: =SUM(K25:K25) -> 0
A25: Governance Function | I25: 0
A26: Community and public safety | C26: =C27+C49+C55+C64+C67 -> 225251514.1 | D26: 525429105.8 | E26: 0 | F26: 1607635.76 | G26: 22437621.36 | H26: 131357276.5 | I26: -108919655.1 | J26: -0.829186308 | K26: =K27+K49+K55+K64+K67 -> 525429105.8
A27: Community and social services | C27: =SUM(C28:C48) -> 63388777.86 | D27: 307323184.7 | E27: 0 | F27: -6474512.75 | G27: 3407369.63 | H27: 76830796.18 | I27: -73423426.55 | J27: -0.9556509915 | K27: =SUM(K28:K48) -> 307323184.7
A28: Aged Care | C28: 0 | I28: 0
A29: Agricultural | C29: 0 | I29: 0
A30: Animal Care and Diseases | C30: 0 | I30: 0
A31: Cemeteries, Funeral Parlours and Crematoriums | C31: 25298089.01 | D31: 26986487.05 | F31: -7455015.72 | G31: 829582.97 | H31: =D31/12*3 -> 6746621.763 | I31: -5917038.793 | J31: -0.8770372789 | K31: =D31 -> 26986487.05
A32: Child Care Facilities | C32: 0 | D32: 0 | I32: 0
A33: Community Halls and Facilities | C33: 16336046.61 | D33: 263647697.7 | F33: 61306.01 | G33: 283497.92 | H33: =D33/12*3 -> 65911924.42 | I33: -65628426.5 | J33: -0.9956988372 | K33: =D33 -> 263647697.7
A34: Consumer Protection | C34: 0 | I34: 0
A35: Cultural Matters | C35: 0 | I35: 0
A36: Disaster Management | C36: 0 | I36: 0
A37: Education | C37: 0 | I37: 0
A38: Indigenous and Customary Law | C38: 0 | I38: 0
A39: Industrial Promotion | C39: 0 | I39: 0
A40: Language Policy | C40: 0 | I40: 0
A41: Libraries and Archives | C41: 21379515.78 | D41: 16093000 | F41: 919196.96 | G41: 2294288.74 | H41: =D41/12*3 -> 4023250 | I41: -1728961.26 | J41: -0.4297424371 | K41: =D41 -> 16093000
A42: Literacy Programmes | C42: 0 | I42: 0
A43: Media Services | C43: 0 | I43: 0
A44: Museums and Art Galleries | C44: 375126.46 | D44: 596000 | H44: =D44/12*3 -> 149000 | I44: -149000 | J44: -1 | K44: =D44 -> 596000
A45: Population Development | C45: 0 | I45: 0
A46: Provincial Cultural Matters | C46: 0 | I46: 0
A47: Theatres | C47: 0 | I47: 0
A48: Zoo's | C48: 0 | I48: 0
A49: Sport and recreation | C49: =SUM(C50:C54) -> 4912299.59 | D49: =SUM(D50:D54) -> 23526793.18 | E49: 0 | F49: 189794.59 | G49: 2713047.91 | H49: 5881698.296 | I49: -3168650.386 | J49: -0.5387305208 | K49: 23526793.18
A50: Beaches and Jetties | C50: 0 | I50: 0
A51: Casinos, Racing, Gambling, Wagering | C51: 0 | I51: 0
A52: Community Parks (including Nurseries) | C52: 0 | I52: 0
A53: Recreational Facilities | C53: 581092.93 | D53: 23526793.18 | F53: 56604.38 | G53: 139931.99 | H53: =D53/12*3 -> 5881698.296 | I53: -5741766.306 | J53: -0.976208914 | K53: =D53 -> 23526793.18
A54: Sports Grounds and Stadiums | C54: 4331206.66 | F54: 133190.21 | G54: 2573115.92 | I54: 2573115.92
A55: Public safety | C55: =SUM(C56:C63) -> 25017311.62 | D55: =SUM(D56:D63) -> 9172795.913 | E55: 0 | F55: 1395500.44 | G55: 938291.79 | H55: 2293198.978 | I55: -1354907.188 | J55: -0.5908371673 | K55: 9172795.913
A56: Civil Defence | C56: 0 | I56: 0
A57: Cleansing | C57: 0 | I57: 0
A58: Control of Public Nuisances | C58: 0 | I58: =G58-H58 -> 0 | J58: =IF(I58=0,"",I58/H58) -> 
A59: Fencing and Fences | C59: 0 | I59: 0
A60: Fire Fighting and Protection | C60: 1765193.93 | D60: 424885.1016 | F60: 468202.79 | G60: -1063636.57 | H60: =D60/12*3 -> 106221.2754 | I60: -1169857.845 | J60: -11.01340425 | K60: =D60 -> 424885.1016
A61: Licensing and Control of Animals | C61: 0 | D61: 0 | H61: =D61/12*2 -> 0 | I61: =G61-H61 -> 0 | J61: =IF(I61=0,"",I61/H61) -> 
A62: Police Forces, Traffic and Street Parking Control | C62: 23252117.69 | D62: 8747910.811 | F62: 927297.65 | G62: 2001928.36 | H62: =D62/12*3 -> 2186977.703 | I62: =G62-H62 -> -185049.3429 | J62: =IF(I62=0,"",I62/H62) -> -0.08461418817 | K62: =D62 -> 8747910.811
A63: Pounds | C63: 0 | I63: 0
A64: Housing | C64: =SUM(C65:C66) -> 131933125 | D64: 185406332 | E64: 0 | F64: 6496853.48 | G64: 15378912.03 | H64: 46351583 | I64: =G64-H64 -> -30972670.97 | J64: =IF(I64=0,"",I64/H64) -> -0.6682117193 | K64: =SUM(K65:K66) -> 185406332
A65: Housing | C65: 131933125 | D65: 185406332 | F65: 6496853.48 | G65: 15378912.03 | H65: =D65/12*3 -> 46351583 | I65: =G65-H65 -> -30972670.97 | J65: =IF(I65=0,"",I65/H65) -> -0.6682117193 | K65: =D65 -> 185406332
A66: Informal Settlements | C66: 0 | I66: =G66-H66 -> 0 | J66: =IF(I66=0,"",I66/H66) -> 
A67: Health | C67: =SUM(C68:C74) -> 0 | D67: 0 | E67: 0 | F67: 0 | G67: 0 | H67: 0 | I67: 0 | K67: =SUM(K68:K74) -> 0
A68: Ambulance | I68: 0
A69: Health Services | I69: 0
A70: Laboratory Services | I70: =G70-H70 -> 0 | J70: =IF(I70=0,"",I70/H70) -> 
A71: Food Control | I71: =G71-H71 -> 0 | J71: =IF(I71=0,"",I71/H71) -> 
A72: Health Surveillance and Prevention of Communicable Diseases including immunizations | I72: 0
A73: Vector Control | I73: 0
A74: Chemical Safety | I74: 0
A75: Economic and environmental services | C75: =C76+C87+C92 -> 167411962.7 | D75: 86691641.99 | E75: 0 | F75: 2175578.32 | G75: 14975081.93 | H75: 21672910.5 | I75: -6697828.568 | J75: -0.3090414907 | K75: =K76+K87+K92 -> 86691641.99
A76: Planning and development | C76: =SUM(C77:C86) -> 118230028 | D76: 31697207.13 | E76: 0 | F76: 1257043.74 | G76: 5462111.44 | H76: 7924301.783 | I76: -2462190.343 | J76: -0.3107138534 | K76: =SUM(K77:K86) -> 31697207.13
A77: Billboards | I77: =G77-H77 -> 0 | J77: =IF(I77=0,"",I77/H77) -> 
A78: Corporate Wide Strategic Planning (IDPs, LEDs) | I78: 0
A79: Central City Improvement District | I79: 0
A80: Development Facilitation | I80: =G80-H80 -> 0 | J80: =IF(I80=0,"",I80/H80) -> 
A81: Economic Development/Planning | C81: 18902493.21 | D81: 1000000 | F81: 315239.13 | G81: 2649248.41 | H81: =D81/12*3 -> 250000 | I81: =G81-H81 -> 2399248.41 | J81: =IF(I81=0,"",I81/H81) -> 9.59699364 | K81: =D81 -> 1000000
A82: Regional Planning and Development | C82: 0 | H82: =D82/12*2 -> 0 | I82: =G82-H82 -> 0 | J82: =IF(I82=0,"",I82/H82) -> 
A83: Town Planning, Building Regulations and Enforcement, and City Engineer | C83: 99327534.81 | D83: 30697207.13 | F83: 941804.61 | G83: 2812863.03 | H83: =D83/12*3 -> 7674301.783 | I83: =G83-H83 -> -4861438.753 | J83: =IF(I83=0,"",I83/H83) -> -0.6334698439 | K83: =D83 -> 30697207.13
A84: Project Management Unit | I84: 0
A85: Provincial Planning | I85: 0
A86: Support to Local Municipalities | I86: 0
A87: Road transport | C87: =SUM(C88:C91) -> 48423465.64 | D87: 50000000 | E87: 0 | F87: 900450 | G87: 9426075.3 | H87: 12500000 | I87: -3073924.7 | J87: -0.245913976 | K87: =SUM(K88:K91) -> 50000000
A88: Public Transport | C88: 0 | H88: =D88/12*2 -> 0 | I88: 0
A89: Road and Traffic Regulation | C89: 0 | H89: =D89/12*2 -> 0 | I89: 0
A90: Roads | C90: 48423465.64 | D90: 50000000 | F90: 900450 | G90: 9426075.3 | H90: =D90/12*3 -> 12500000 | I90: -3073924.7 | J90: -0.245913976 | K90: =D90 -> 50000000
A91: Taxi Ranks | C91: 0 | H91: =D91/12*2 -> 0 | I91: 0
A92: Environmental protection | C92: =SUM(C93:C98) -> 758469.01 | D92: =SUM(D93:D98) -> 4994434.861 | E92: 0 | F92: 18084.58 | G92: 86895.19 | H92: 1248608.715 | I92: -1161713.525 | J92: -0.9304063884 | K92: 4994434.861
A93: Biodiversity and Landscape | C93: 0 | I93: 0
A94: Coastal Protection | C94: 0 | I94: 0
A95: Indigenous Forests | C95: 0 | I95: =G95-H95 -> 0 | J95: =IF(I95=0,"",I95/H95) -> 
A96: Nature Conservation | C96: 0 | I96: =G96-H96 -> 0 | J96: =IF(I96=0,"",I96/H96) -> 
A97: Pollution Control | C97: 758469.01 | D97: 4994434.861 | F97: 18084.58 | G97: 86895.19 | H97: =D97/12*3 -> 1248608.715 | I97: -1161713.525 | J97: -0.9304063884 | K97: =D97 -> 4994434.861
A98: Soil Conservation | C98: 0 | I98: 0
A99: Trading services | C99: =C100+C104+C108+C113 -> 4506712075 | D99: 5997733918 | E99: 0 | F99: 445801534.8 | G99: 1590234538 | H99: 1499433479 | I99: 90801058.21 | J99: 0.06055690997 | K99: =K100+K104+K108+K113 -> 5997733918
A100: Energy sources | C100: =SUM(C101:C103) -> 2671690063 | D100: =SUM(D101:D103) -> 4347604455 | E100: 0 | F100: 282277256.2 | G100: 950002350.8 | H100: 1086901114 | I100: -136898762.9 | J100: -0.1259532824 | K100: 4347604455
A101: Electricity | C101: 2671690063 | D101: 4347604455 | F101: 282277256.2 | G101: 950002350.8 | H101: =D101/12*3 -> 1086901114 | I101: -136898762.9 | J101: -0.1259532824 | K101: =D101 -> 4347604455
A102: Street Lighting and Signal Systems | C102: 0 | I102: =G102-H102 -> 0 | J102: =IF(I102=0,"",I102/H102) -> 
A103: Nonelectric Energy | C103: 0 | I103: 0
A104: Water management | C104: =SUM(C105:C107) -> 1308245353 | D104: =SUM(D105:D107) -> 1219122118 | E104: 0 | F104: 120475879.2 | G104: 484088776.9 | H104: 304780529.5 | I104: 179308247.5 | J104: 0.5883192335 | K104: 1219122118
A105: Water Treatment | C105: 0 | I105: 0
A106: Water Distribution | C106: 1308245353 | D106: 1219122118 | F106: 120475879.2 | G106: 484088776.9 | H106: =D106/12*3 -> 304780529.5 | I106: =G106-H106 -> 179308247.5 | J106: =IF(I106=0,"",I106/H106) -> 0.5883192335 | K106: =D106 -> 1219122118
A107: Water Storage | C107: 0 | I107: 0
A108: Waste water management | C108: =SUM(C109:C112) -> 332249573 | D108: =SUM(D109:D112) -> 262027256.3 | E108: 0 | F108: 29606775.37 | G108: 105628118.9 | H108: 65506814.07 | I108: 40121304.83 | J108: 0.6124752881 | K108: 262027256.3
A109: Public Toilets | C109: 0 | I109: 0
A110: Sewerage | C110: 332249573 | D110: 262027256.3 | F110: 29606775.37 | G110: 105628118.9 | H110: =D110/12*3 -> 65506814.07 | I110: 40121304.83 | J110: 0.6124752881 | K110: =D110 -> 262027256.3
A111: Storm Water Management | C111: 0 | I111: =G111-H111 -> 0 | J111: =IF(I111=0,"",I111/H111) -> 
A112: Waste Water Treatment | C112: 0 | I112: 0
A113: Waste management | C113: =SUM(C114:C117) -> 194527085.9 | D113: 168980088.6 | E113: 0 | F113: 13441624.05 | G113: 50515290.98 | H113: 42245022.14 | I113: 8270268.836 | J113: 0.1957690733 | K113: =SUM(K114:K117) -> 168980088.6
A114: Recycling | C114: 0 | I114: =G114-H114 -> 0 | J114: =IF(I114=0,"",I114/H114) -> 
A115: Solid Waste Disposal (Landfill Sites) | C115: 56945113.39 | F115: 75605.11 | G115: 12413689.55 | H115: =D115/12*2 -> 0 | I115: =G115-H115 -> 12413689.55 | J115: =IF(I115=0,"",I115/H115) -> 
A116: Solid Waste Removal | C116: 137581972.5 | D116: 168980088.6 | F116: 13366018.94 | G116: 38101601.43 | H116: =D116/12*3 -> 42245022.14 | I116: -4143420.714 | J116: -0.09808068511 | K116: =D116 -> 168980088.6
A117: Street Cleaning | C117: 0 | I117: =G117-H117 -> 0 | J117: =IF(I117=0,"",I117/H117) -> 
A118: Other | C118: =SUM(C119:C124) -> 52356604.63 | D118: =SUM(D119:D124) -> 122872641.8 | E118: 0 | F118: 3600343.62 | G118: 11028859.16 | H118: 30718160.44 | I118: -19689301.28 | J118: -0.6409661581 | K118: 122872641.8
A119: Abattoirs | C119: 0 | I119: 0
A120: Air Transport | C120: 16241393.37 | D120: 46806432.43 | F120: 1449294.4 | G120: 4322425.56 | H120: =D120/12*3 -> 11701608.11 | I120: -7379182.548 | J120: -0.6306126884 | K120: =D120 -> 46806432.43
A121: Forestry | C121: 11198051 | D121: 10143141.02 | H121: 2535785.255 | I121: =G121-H121 -> -2535785.255 | J121: =IF(I121=0,"",I121/H121) -> -1 | K121: =D121 -> 10143141.02
A122: Licensing and Regulation | C122: 1068070.77 | D122: 2280701.495 | F122: 47137.32 | G122: 146747.73 | H122: 570175.3738 | I122: -423427.6438 | J122: -0.7426270289 | K122: =D122 -> 2280701.495
A123: Markets | C123: 23849089.49 | D123: 63642366.81 | F123: 2103911.9 | G123: 6559685.87 | H123: 15910591.7 | I123: -9350905.833 | J123: -0.5877157813 | K123: =D123 -> 63642366.81
A124: Tourism | C124: 0 | I124: =G124-H124 -> 0 | J124: =IF(I124=0,"",I124/H124) -> 
A125: ="Total "&A5 -> Total Revenue - Functional | B125: 2 | C125: =C6+C26+C75+C99+C118 -> 6994439725 | D125: 9420878114 | E125: 0 | F125: 629868449.2 | G125: 2334012648 | H125: 2355219529 | I125: =G125-H125 -> -21206880.85 | J125: =IF(I125=0,"",I125/H125) -> -0.009004205594 | K125: =K6+K26+K75+K99+K118 -> 9420878114
A127: Expenditure - Functional
A128: =A6 -> Municipal governance and administration | C128: =C129+C132+C146 -> 1394784170 | D128: 1659708472 | E128: 0 | F128: 91624261.26 | G128: 226092026.7 | H128: 414927118 | I128: =G128-H128 -> -188835091.3 | J128: =IF(I128=0,"",I128/H128) -> -0.4551042415 | K128: =K129+K132+K146 -> 1659708472
A129: Executive and council | C129: =SUM(C130:C131) -> 154335868.4 | D129: 165980670 | E129: 0 | F129: 11819677.31 | G129: 32429212.31 | H129: 41495167.5 | I129: -9065955.19 | J129: -0.2184821929 | K129: 165980670
A130: Mayor and Council | C130: 107155562.9 | D130: 116197489.4 | F130: 7679683.91 | G130: 22030319.98 | H130: =D130/12*3 -> 29049372.35 | I130: -7019052.374 | J130: -0.2416249235 | K130: =D130 -> 116197489.4
A131: Municipal Manager, Town Secretary and Chief Executive | C131: 47180305.52 | D131: 49783180.58 | F131: 4139993.4 | G131: 10398892.33 | H131: 12445795.15 | I131: -2046902.816 | J131: -0.1644654112 | K131: =D131 -> 49783180.58
A132: Finance and administration | C132: =SUM(C133:C145) -> 1215285473 | D132: 1465568308 | E132: 0 | F132: 75830987.93 | G132: 186448377.2 | H132: 366392077 | I132: -179943699.8 | J132: -0.4911233377 | K132: =SUM(K133:K145) -> 1465568308
A133: Administrative and Corporate Support | C133: 66222510.83 | D133: 72746147.21 | F133: 6188970.16 | G133: 16613507.21 | H133: =D133/12*3 -> 18186536.8 | I133: -1573029.594 | J133: -0.08649418031 | K133: =D133 -> 72746147.21
A134: Asset Management | C134: 69010901.16 | D134: 87624872.56 | F134: 6017716.32 | G134: 15714211.16 | H134: 21906218.14 | I134: -6192006.981 | J134: -0.2826597882 | K134: 87624872.56
A135: Finance | C135: 537091546.9 | D135: 824792219.1 | F135: 24144115.77 | G135: 52245101.07 | H135: 206198054.8 | I135: -153952953.7 | J135: -0.7466266055 | K135: 824792219.1
A136: Fleet Management | C136: 0 | D136: 0 | F136: 0 | G136: 0 | H136: 0 | I136: 0 | K136: 0
A137: Human Resources | C137: 109903385.8 | D137: 108309536.8 | F137: 6245796.66 | G137: 15260844.84 | H137: 27077384.21 | I137: -11816539.37 | J137: -0.4363988514 | K137: 108309536.8
A138: Information Technology | C138: 51376169.99 | D138: 52316392.7 | F138: 4264557.46 | G138: 11189646.95 | H138: 13079098.17 | I138: -1889451.225 | J138: -0.1444634179 | K138: 52316392.7
A139: Legal Services | C139: 17490759.58 | D139: 19907466.71 | F139: 1018590.71 | G139: 2667581.05 | H139: 4976866.678 | I139: =G139-H139 -> -2309285.628 | J139: -0.464003916 | K139: 19907466.71
A140: Marketing, Customer Relations, Publicity and Media Co-ordination | C140: 15076788.12 | D140: 24326241.85 | F140: 208697.76 | G140: 1130037.06 | H140: 6081560.462 | I140: -4951523.402 | J140: -0.8141863314 | K140: 24326241.85
A141: Property Services | C141: 73541433.94 | D141: 57624600.3 | F141: 5108834.61 | G141: 14147719.57 | H141: 14406150.07 | I141: -258430.5041 | J141: -0.01793890129 | K141: 57624600.3
A142: Risk Management | C142: 0 | D142: 0 | F142: 0 | G142: 0 | H142: 0 | I142: 0 | K142: 0
A143: Security Services | C143: 170590722.5 | D143: 119509375.2 | F143: 16545223.21 | G143: 39434363.73 | H143: 29877343.8 | I143: 9557019.933 | J143: 0.3198751535 | K143: 119509375.2
A144: Supply Chain Management | C144: 104981254 | D144: 98411455.53 | F144: 6088485.27 | G144: 18045364.6 | H144: 24602863.88 | I144: -6557499.282 | J144: -0.2665339821 | K144: 98411455.53
A145: Valuation Service | C145: 0 | D145: 0 | F145: 0 | G145: 0 | H145: 0 | I145: 0 | K145: 0
A146: Internal audit | C146: =SUM(C147:C147) -> 25162828.92 | D146: 28159494 | E146: 0 | F146: 3973596.02 | G146: 7214437.14 | H146: 7039873.5 | I146: 174563.64 | J146: 0.02479641715 | K146: =SUM(K147:K147) -> 28159494
A147: Governance Function | C147: 25162828.92 | D147: 28159494 | F147: 3973596.02 | G147: 7214437.14 | H147: =D147/12*3 -> 7039873.5 | I147: 174563.64 | J147: 0.02479641715 | K147: =D147 -> 28159494
A148: Community and public safety | C148: =C149+C171+C177+C186+C189 -> 639572810.1 | D148: 706899390.8 | E148: 0 | F148: 46376708.9 | G148: 139011761.6 | H148: 176724847.7 | I148: -37713086.12 | J148: -0.2134000205 | K148: =K149+K171+K177+K186+K189 -> 706899390.8
A149: Community and social services | C149: =SUM(C150:C170) -> 154233095.9 | D149: 250699021 | E149: 0 | F149: 14281822.06 | G149: 37136676.25 | H149: 62674755.25 | I149: -25538079 | J149: -0.4074699438 | K149: =SUM(K150:K170) -> 250699021
A150: Aged Care | C150: 587.64 | D150: 369799.8832 | F150: 42.37 | G150: 129.6 | H150: =D150/12*3 -> 92449.9708 | I150: -92320.3708 | J150: -0.9985981607 | K150: =D150 -> 369799.8832
A151: Agricultural | C151: 0 | H151: 0 | I151: 0
A152: Animal Care and Diseases | C152: 0 | D152: 1105000 | H152: 276250 | I152: -276250 | J152: -1 | K152: =D152 -> 1105000
A153: Cemeteries, Funeral Parlours and Crematoriums | C153: 34687926.82 | D153: 116355684.8 | F153: 2831952.35 | G153: 8305953.1 | H153: 29088921.21 | I153: -20782968.11 | J153: -0.7144633505 | K153: =D153 -> 116355684.8
A154: Child Care Facilities | C154: 0 | F154: 0 | G154: 0 | H154: 0 | I154: 0
A155: Community Halls and Facilities | C155: 33478569.49 | D155: 30571400.49 | F155: 4863730.9 | G155: 10245608.2 | H155: 7642850.122 | I155: 2602758.078 | J155: 0.3405480987 | K155: =D155 -> 30571400.49
A156: Consumer Protection | C156: 0 | I156: 0
A157: Cultural Matters | C157: 0 | I157: =G157-H157 -> 0 | J157: =IF(I157=0,"",I157/H157) -> 
A158: Disaster Management | C158: 0 | I158: =G158-H158 -> 0 | J158: =IF(I158=0,"",I158/H158) -> 
A159: Education | C159: 0 | I159: =G159-H159 -> 0 | J159: =IF(I159=0,"",I159/H159) -> 
A160: Indigenous and Customary Law | C160: 0 | I160: 0
A161: Industrial Promotion | C161: 0 | I161: 0
A162: Language Policy | C162: 0 | I162: 0
A163: Libraries and Archives | C163: 72240734.47 | D163: 86969348.33 | F163: 5559759.72 | G163: 15562694.7 | H163: =D163/12*3 -> 21742337.08 | I163: -6179642.382 | J163: -0.2842216252 | K163: =D163 -> 86969348.33
A164: Literacy Programmes | C164: 0 | I164: 0
A165: Media Services | C165: 0 | I165: 0
A166: Museums and Art Galleries | C166: 9294084.55 | D166: 7329991.936 | F166: 560822.7 | G166: 1669418.11 | H166: =D166/12*3 -> 1832497.984 | I166: -163079.874 | J166: -0.08899320788 | K166: =D166 -> 7329991.936
A167: Population Development | C167: 4524745.08 | D167: 7997795.53 | F167: 464976.7 | G167: 1351260.58 | H167: 1999448.882 | I167: -648188.3024 | J167: -0.3241834828 | K167: =D167 -> 7997795.53
A168: Provincial Cultural Matters | C168: 0 | I168: 0
A169: Theatres | C169: 6447.84 | F169: 537.32 | G169: 1611.96 | I169: 1611.96
A170: Zoo's | C170: 0 | I170: 0
A171: Sport and recreation | C171: =SUM(C172:C176) -> 152619425.4 | D171: 121147022.5 | E171: 0 | F171: 10421211.08 | G171: 28945076.63 | H171: 30286755.62 | I171: -1341678.991 | J171: -0.04429919822 | K171: 121147022.5
A172: Beaches and Jetties | C172: 0 | I172: 0
A173: Casinos, Racing, Gambling, Wagering | C173: 0 | I173: 0
A174: Community Parks (including Nurseries) | C174: 50027871.41 | D174: 48065311.45 | F174: 3940710.94 | G174: 11994898.87 | H174: =D174/12*3 -> 12016327.86 | I174: -21428.9935 | J174: -0.00178332297 | K174: =D174 -> 48065311.45
A175: Recreational Facilities | C175: 102187935 | D175: 72550461.03 | F175: 6480500.14 | G175: 16950177.76 | H175: 18137615.26 | I175: -1187437.497 | J175: -0.06546822613 | K175: =D175 -> 72550461.03
A176: Sports Grounds and Stadiums | C176: 403618.99 | D176: 531250 | H176: 132812.5 | I176: -132812.5 | J176: -1 | K176: =D176 -> 531250
A177: Public safety | C177: =SUM(C178:C185) -> 221231115.3 | D177: 244183097.4 | E177: 0 | F177: 15733488.61 | G177: 54758833.65 | H177: 61045774.34 | I177: -6286940.691 | J177: -0.1029873199 | K177: 244183097.4
A178: Civil Defence | C178: 17433722.9 | D178: 19656120.22 | F178: 631115.84 | G178: 5818083.99 | H178: =D178/12*3 -> 4914030.054 | I178: 904053.9357 | J178: 0.1839740347 | K178: =D178 -> 19656120.22
A179: Cleansing | C179: 0 | I179: 0
A180: Control of Public Nuisances | C180: 0 | I180: =G180-H180 -> 0 | J180: =IF(I180=0,"",I180/H180) -> 
A181: Fencing and Fences | C181: 0 | I181: 0
A182: Fire Fighting and Protection | C182: 106502949.2 | D182: 149561867.6 | F182: 8298488.79 | G182: 28827575.16 | H182: =D182/12*3 -> 37390466.91 | I182: -8562891.75 | J182: -0.2290126992 | K182: =D182 -> 149561867.6
A183: Licensing and Control of Animals | C183: 0 | I183: =G183-H183 -> 0 | J183: =IF(I183=0,"",I183/H183) -> 
A184: Police Forces, Traffic and Street Parking Control | C184: 97294443.17 | D184: 74965109.51 | F184: 6803883.98 | G184: 20113174.5 | H184: =D184/12*3 -> 18741277.38 | I184: =G184-H184 -> 1371897.123 | J184: =IF(I184=0,"",I184/H184) -> 0.07320190058 | K184: =D184 -> 74965109.51
A185: Pounds | C185: 0 | F185: 0 | G185: 0 | I185: 0
A186: Housing | C186: =SUM(C187:C188) -> 101531000 | D186: 81136670.54 | E186: 0 | F186: 5268332.16 | G186: 16060222.62 | H186: 20284167.63 | I186: =G186-H186 -> -4223945.015 | J186: =IF(I186=0,"",I186/H186) -> -0.2082385184 | K186: =SUM(K187:K188) -> 81136670.54
A187: Housing | C187: 101531000 | D187: 81136670.54 | F187: 5268332.16 | G187: 16060222.62 | H187: =D187/12*3 -> 20284167.63 | I187: =G187-H187 -> -4223945.015 | J187: =IF(I187=0,"",I187/H187) -> -0.2082385184 | K187: =D187 -> 81136670.54
A188: Informal Settlements | C188: 0 | F188: 0 | G188: 0 | I188: =G188-H188 -> 0 | J188: =IF(I188=0,"",I188/H188) -> 
A189: Health | C189: =SUM(C190:C196) -> 9958173.58 | D189: 9733579.461 | E189: 0 | F189: 671854.99 | G189: 2110952.44 | H189: 2433394.865 | I189: -322442.4253 | J189: -0.132507235 | K189: 9733579.461
A190: Ambulance | C190: 0 | I190: 0
A191: Health Services | C191: 9958173.58 | D191: 9733579.461 | F191: 671854.99 | G191: 2110952.44 | H191: =D191/12*3 -> 2433394.865 | I191: -322442.4253 | J191: -0.132507235 | K191: =D191 -> 9733579.461
A192: =A70 -> Laboratory Services | C192: 0 | I192: 0
A193: Food Control | C193: 0 | I193: =G193-H193 -> 0 | J193: =IF(I193=0,"",I193/H193) -> 
A194: Health Surveillance and Prevention of Communicable Diseases including immunizations | C194: 0 | I194: =G194-H194 -> 0 | J194: =IF(I194=0,"",I194/H194) -> 
A195: Vector Control | C195: 0 | I195: 0
A196: Chemical Safety | C196: 0 | I196: 0
A197: Economic and environmental services | C197: =C198+C209+C214 -> 478064864.4 | D197: 640338797 | E197: 0 | F197: 35493422.28 | G197: 79020525.65 | H197: 160084699.2 | I197: -81064173.6 | J197: -0.5063830209 | K197: =K198+K209+K214 -> 640338797
A198: Planning and development | C198: =SUM(C199:C208) -> 97777604.41 | D198: 161555852 | E198: 0 | F198: 7609996.16 | G198: 21572787.05 | H198: 40388963 | I198: -18816175.95 | J198: -0.4658742031 | K198: 161555852
A199: Billboards | C199: 0 | I199: 0
A200: Corporate Wide Strategic Planning (IDPs, LEDs) | C200: 13973736.43 | D200: 9524886.968 | F200: 550728.62 | G200: 1700594.22 | H200: =D200/12*3 -> 2381221.742 | I200: -680627.522 | J200: -0.2858312227 | K200: =D200 -> 9524886.968
A201: Central City Improvement District | C201: 0 | D201: 60057505.09 | H201: 15014376.27 | I201: -15014376.27 | J201: -1 | K201: =D201 -> 60057505.09
... 54 more rows

Sheet C3-FinPerf V
A1: =muni& " - "&S71C& " - "&date -> KZN225 Msunduzi - Table C3 Monthly Budget Statement - Financial Performance (revenue and expenditure by municipal vote) - Q1 First Quarter
A2: =Vdesc -> Vote Description | B2: =head27 -> Ref | C2: =Head1 -> 2023/24 | D2: =Head2 -> Budget Year 2024/25
C3: =Head5 -> Audited Outcome | D3: =Head6 -> Original Budget | E3: =Head7 -> Adjusted Budget | F3: =Head38 -> Monthly actual | G3: =Head39 -> YearTD actual | H3: =Head40 -> YearTD budget | I3: =Head41 -> YTD variance | J3: =Head41 -> YTD variance | K3: =Head8 -> Full Year Forecast
A4: R thousands | J4: %
A5: Revenue by Vote | B5: 1
A6: ='Org structure'!A2 -> Vote 1 - City Manager | C6: ='C3C'!C6 -> 0 | D6: ='C3C'!D6 -> 0 | E6: ='C3C'!E6 -> 0 | F6: ='C3C'!F6 -> 0 | G6: ='C3C'!G6 -> 0 | H6: ='C3C'!H6 -> 0 | I6: =G6-H6 -> 0 | J6: =IF(I6=0,"",I6/H6) ->  | K6: ='C3C'!K6 -> 0
A7: ='Org structure'!A3 -> Vote 2 - City Finance | C7: ='C3C'!C17 -> 2025042284 | D7: ='C3C'!D17 -> 2675602753 | E7: ='C3C'!E17 -> 0 | F7: ='C3C'!F17 -> 172855615.6 | G7: ='C3C'!G17 -> 689914232.8 | H7: ='C3C'!H17 -> 668900688.4 | I7: =G7-H7 -> 21013544.49 | J7: =IF(I7=0,"",I7/H7) -> 0.0314150439 | K7: ='C3C'!K17 -> 2675602753
A8: ='Org structure'!A4 -> Vote 3 - Corporate Services | C8: ='C3C'!C28 -> 2109770.08 | D8: ='C3C'!D28 -> 3166283.914 | E8: ='C3C'!E28 -> 0 | F8: ='C3C'!F28 -> 102270 | G8: ='C3C'!G28 -> 102270 | H8: ='C3C'!H28 -> 791570.9785 | I8: -689300.9785 | J8: -0.8708012259 | K8: ='C3C'!K28 -> 3166283.914
A9: ='Org structure'!A5 -> Vote 4 - Community Services and Social Equity | C9: ='C3C'!C39 -> 292947034.4 | D9: ='C3C'!D39 -> 492477956.1 | E9: ='C3C'!E39 -> 0 | F9: ='C3C'!F39 -> 9104235.11 | G9: ='C3C'!G39 -> 58139135.08 | H9: ='C3C'!H39 -> 123119489 | I9: -64980353.95 | J9: -0.527782843 | K9: ='C3C'!K39 -> 492477956.1
A10: ='Org structure'!A6 -> Vote 5 - Infrastructure Services | C10: ='C3C'!C50 -> 1696701357 | D10: ='C3C'!D50 -> 1540531143 | E10: ='C3C'!E50 -> 0 | F10: ='C3C'!F50 -> 151878249.5 | G10: ='C3C'!G50 -> 601602017.7 | H10: ='C3C'!H50 -> 385132785.9 | I10: 216469231.8 | J10: 0.5620638901 | K10: ='C3C'!K50 -> 1540531143
A11: ='Org structure'!A7 -> Vote 6 - Sustainable Development and City Enterprises | C11: ='C3C'!C61 -> 304119010.1 | D11: ='C3C'!D61 -> 366567368.2 | E11: ='C3C'!E61 -> 0 | F11: ='C3C'!F61 -> 11372325.42 | G11: ='C3C'!G61 -> 31956777.82 | H11: ='C3C'!H61 -> 91641842.04 | I11: -59685064.22 | J11: -0.651286169 | K11: ='C3C'!K61 -> 366567368.2
A12: ='Org structure'!A8 -> Vote 7 - Electricity | C12: ='C3C'!C72 -> 2673985927 | D12: ='C3C'!D72 -> 4342532610 | E12: ='C3C'!E72 -> 0 | F12: ='C3C'!F72 -> 284555753.5 | G12: ='C3C'!G72 -> 952298214.3 | H12: ='C3C'!H72 -> 1085633152 | I12: -133334938.2 | J12: -0.1228176736 | K12: ='C3C'!K72 -> 4342532610
A13: ='Org structure'!A9 -> Vote 8 - [NAME OF VOTE 8] | C13: ='C3C'!C83 -> 0 | D13: ='C3C'!D83 -> 0 | E13: ='C3C'!E83 -> 0 | F13: ='C3C'!F83 -> 0 | G13: ='C3C'!G83 -> 0 | H13: ='C3C'!H83 -> 0 | I13: 0 | K13: ='C3C'!K83 -> 0
A14: ='Org structure'!A10 -> Vote 9 - [NAME OF VOTE 9] | C14: ='C3C'!C94 -> 0 | D14: ='C3C'!D94 -> 0 | E14: ='C3C'!E94 -> 0 | F14: ='C3C'!F94 -> 0 | G14: ='C3C'!G94 -> 0 | H14: ='C3C'!H94 -> 0 | I14: 0 | K14: ='C3C'!K94 -> 0
A15: ='Org structure'!A11 -> Vote 10 - [NAME OF VOTE 10] | C15: ='C3C'!C105 -> 0 | D15: ='C3C'!D105 -> 0 | E15: ='C3C'!E105 -> 0 | F15: ='C3C'!F105 -> 0 | G15: ='C3C'!G105 -> 0 | H15: ='C3C'!H105 -> 0 | I15: 0 | K15: ='C3C'!K105 -> 0
A16: ='Org structure'!A12 -> Vote 11 - [NAME OF VOTE 11] | C16: ='C3C'!C116 -> 0 | D16: ='C3C'!D116 -> 0 | E16: ='C3C'!E116 -> 0 | F16: ='C3C'!F116 -> 0 | G16: ='C3C'!G116 -> 0 | H16: ='C3C'!H116 -> 0 | I16: 0 | K16: ='C3C'!K116 -> 0
A17: ='Org structure'!A13 -> Vote 12 - [NAME OF VOTE 12] | C17: ='C3C'!C127 -> 0 | D17: ='C3C'!D127 -> 0 | E17: ='C3C'!E127 -> 0 | F17: ='C3C'!F127 -> 0 | G17: ='C3C'!G127 -> 0 | H17: ='C3C'!H127 -> 0 | I17: 0 | K17: ='C3C'!K127 -> 0
A18: ='Org structure'!A14 -> Vote 13 - [NAME OF VOTE 13] | C18: ='C3C'!C138 -> 0 | D18: ='C3C'!D138 -> 0 | E18: ='C3C'!E138 -> 0 | F18: ='C3C'!F138 -> 0 | G18: ='C3C'!G138 -> 0 | H18: ='C3C'!H138 -> 0 | I18: 0 | K18: ='C3C'!K138 -> 0
A19: ='Org structure'!A15 -> Vote 14 - [NAME OF VOTE 14] | C19: ='C3C'!C149 -> 0 | D19: ='C3C'!D149 -> 0 | E19: ='C3C'!E149 -> 0 | F19: ='C3C'!F149 -> 0 | G19: ='C3C'!G149 -> 0 | H19: ='C3C'!H149 -> 0 | I19: 0 | K19: ='C3C'!K149 -> 0
A20: ='Org structure'!A16 -> Vote 15 - [NAME OF VOTE 15] | C20: ='C3C'!C160 -> 0 | D20: ='C3C'!D160 -> 0 | E20: ='C3C'!E160 -> 0 | F20: ='C3C'!F160 -> 0 | G20: ='C3C'!G160 -> 0 | H20: ='C3C'!H160 -> 0 | I20: 0 | K20: ='C3C'!K160 -> 0
A21: Total Revenue by Vote | B21: 2 | C21: =SUM(C6:C20) -> 6994905382 | D21: =SUM(D6:D20) -> 9420878115 | E21: 0 | F21: 629868449.2 | G21: 2334012648 | H21: 2355219529 | I21: -21206881.04 | J21: -0.009004205671 | K21: =SUM(K6:K20) -> 9420878115
A23: Expenditure by Vote | B23: 1
A24: ='Org structure'!A2 -> Vote 1 - City Manager | C24: ='C3C'!C174 -> 195836186.1 | D24: ='C3C'!D174 -> 191819668.5 | E24: ='C3C'!E174 -> 0 | F24: ='C3C'!F174 -> 15919550.94 | G24: ='C3C'!G174 -> 42190953.9 | H24: ='C3C'!H174 -> 47954917.12 | I24: =G24-H24 -> -5763963.216 | J24: =IF(I24=0,"",I24/H24) -> -0.1201954578 | K24: ='C3C'!K174 -> 191819668.5
A25: ='Org structure'!A3 -> Vote 2 - City Finance | C25: ='C3C'!C185 -> 722564027.8 | D25: ='C3C'!D185 -> 1166932156 | E25: ='C3C'!E185 -> 0 | F25: ='C3C'!F185 -> 36445043 | G25: ='C3C'!G185 -> 86562324.72 | H25: ='C3C'!H185 -> 291733038.9 | I25: -205170714.2 | J25: -0.7032824083 | K25: ='C3C'!K185 -> 1166932156
A26: ='Org structure'!A4 -> Vote 3 - Corporate Services | C26: ='C3C'!C196 -> 201260716.8 | D26: ='C3C'!D196 -> 198303820.6 | E26: ='C3C'!E196 -> 0 | F26: ='C3C'!F196 -> 12605221.3 | G26: ='C3C'!G196 -> 31371597.58 | H26: ='C3C'!H196 -> 49575955.16 | I26: -18204357.58 | J26: -0.3672013483 | K26: ='C3C'!K196 -> 198303820.6
A27: ='Org structure'!A5 -> Vote 4 - Community Services and Social Equity | C27: ='C3C'!C207 -> 970678396.3 | D27: ='C3C'!D207 -> 859070363.6 | E27: ='C3C'!E207 -> 0 | F27: ='C3C'!F207 -> 76333481.81 | G27: ='C3C'!G207 -> 208022956.4 | H27: ='C3C'!H207 -> 214767590.9 | I27: -6744634.543 | J27: -0.03140434045 | K27: ='C3C'!K207 -> 859070363.6
A28: ='Org structure'!A6 -> Vote 5 - Infrastructure Services | C28: ='C3C'!C218 -> 2321845046 | D28: ='C3C'!D218 -> 1881446739 | E28: ='C3C'!E218 -> 0 | F28: ='C3C'!F218 -> 243926621.3 | G28: ='C3C'!G218 -> 420250845.7 | H28: ='C3C'!H218 -> 470361684.8 | I28: -50110839.18 | J28: -0.1065368222 | K28: ='C3C'!K218 -> 1881446739
A29: ='Org structure'!A7 -> Vote 6 - Sustainable Development and City Enterprises | C29: ='C3C'!C229 -> 308983019.4 | D29: ='C3C'!D229 -> 331868753.4 | E29: ='C3C'!E229 -> 0 | F29: ='C3C'!F229 -> 24758359.67 | G29: ='C3C'!G229 -> 67685162.32 | H29: ='C3C'!H229 -> 82967188.35 | I29: -15282026.03 | J29: -0.1841936112 | K29: ='C3C'!K229 -> 331868753.4
A30: ='Org structure'!A8 -> Vote 7 - Electricity | C30: ='C3C'!C240 -> 3380071703 | D30: ='C3C'!D240 -> 3750828378 | E30: ='C3C'!E240 -> 0 | F30: ='C3C'!F240 -> 360616864.1 | G30: ='C3C'!G240 -> 1227218433 | H30: ='C3C'!H240 -> 937707094.5 | I30: 289511338.2 | J30: 0.3087438923 | K30: ='C3C'!K240 -> 3750828378
A31: ='Org structure'!A9 -> Vote 8 - [NAME OF VOTE 8] | C31: ='C3C'!C251 -> 0 | D31: ='C3C'!D251 -> 0 | E31: ='C3C'!E251 -> 0 | F31: ='C3C'!F251 -> 0 | G31: ='C3C'!G251 -> 0 | H31: ='C3C'!H251 -> 0 | I31: 0 | K31: ='C3C'!K251 -> 0
A32: ='Org structure'!A10 -> Vote 9 - [NAME OF VOTE 9] | C32: ='C3C'!C262 -> 0 | D32: ='C3C'!D262 -> 0 | E32: ='C3C'!E262 -> 0 | F32: ='C3C'!F262 -> 0 | G32: ='C3C'!G262 -> 0 | H32: ='C3C'!H262 -> 0 | I32: 0 | K32: ='C3C'!K262 -> 0
A33: ='Org structure'!A11 -> Vote 10 - [NAME OF VOTE 10] | C33: ='C3C'!C273 -> 0 | D33: ='C3C'!D273 -> 0 | E33: ='C3C'!E273 -> 0 | F33: ='C3C'!F273 -> 0 | G33: ='C3C'!G273 -> 0 | H33: ='C3C'!H273 -> 0 | I33: 0 | J33: =IF(I33=0,"",I33/H33) ->  | K33: ='C3C'!K273 -> 0
A34: ='Org structure'!A12 -> Vote 11 - [NAME OF VOTE 11] | C34: ='C3C'!C284 -> 0 | D34: ='C3C'!D284 -> 0 | E34: ='C3C'!E284 -> 0 | F34: ='C3C'!F284 -> 0 | G34: ='C3C'!G284 -> 0 | H34: ='C3C'!H284 -> 0 | I34: 0 | J34: =IF(I34=0,"",I34/H34) ->  | K34: ='C3C'!K284 -> 0
A35: ='Org structure'!A13 -> Vote 12 - [NAME OF VOTE 12] | C35: ='C3C'!C295 -> 0 | D35: ='C3C'!D295 -> 0 | E35: ='C3C'!E295 -> 0 | F35: ='C3C'!F295 -> 0 | G35: ='C3C'!G295 -> 0 | H35: ='C3C'!H295 -> 0 | I35: 0 | J35: =IF(I35=0,"",I35/H35) ->  | K35: ='C3C'!K295 -> 0
A36: ='Org structure'!A14 -> Vote 13 - [NAME OF VOTE 13] | C36: ='C3C'!C306 -> 0 | D36: ='C3C'!D306 -> 0 | E36: ='C3C'!E306 -> 0 | F36: ='C3C'!F306 -> 0 | G36: ='C3C'!G306 -> 0 | H36: ='C3C'!H306 -> 0 | I36: 0 | J36: =IF(I36=0,"",I36/H36) ->  | K36: ='C3C'!K306 -> 0
A37: ='Org structure'!A15 -> Vote 14 - [NAME OF VOTE 14] | C37: ='C3C'!C317 -> 0 | D37: ='C3C'!D317 -> 0 | E37: ='C3C'!E317 -> 0 | F37: ='C3C'!F317 -> 0 | G37: ='C3C'!G317 -> 0 | H37: ='C3C'!H317 -> 0 | I37: 0 | J37: =IF(I37=0,"",I37/H37) ->  | K37: ='C3C'!K317 -> 0
A38: ='Org structure'!A16 -> Vote 15 - [NAME OF VOTE 15] | C38: ='C3C'!C328 -> 0 | D38: ='C3C'!D328 -> 0 | E38: ='C3C'!E328 -> 0 | F38: ='C3C'!F328 -> 0 | G38: ='C3C'!G328 -> 0 | H38: ='C3C'!H328 -> 0 | I38: 0 | K38: ='C3C'!K328 -> 0
A39: Total Expenditure by Vote | B39: 2 | C39: =SUM(C24:C38) -> 8101239095 | D39: =SUM(D24:D38) -> 8380269879 | E39: 0 | F39: 770605142.1 | G39: 2083302273 | H39: 2095067470 | I39: -11765196.54 | J39: =IF(I39=0,"",I39/H39) -> -0.005615664749 | K39: =SUM(K24:K38) -> 8380269879
A40: =result -> Surplus/ (Deficit) for the year | B40: 2 | C40: =C21-C39 -> -1106333713 | D40: 1040608236 | E40: 0 | F40: -140736693 | G40: 250710374.6 | H40: 260152059 | I40: =I21-I39 -> -9441684.499 | J40: =IF(I40=0,"",I40/H40) -> -0.03629294549 | K40: =K21-K39 -> 1040608236
A41: =head27a -> References
A42: 1. Insert 'Vote'; e.g. Department, if different to standard classification structure
A43: 2. Must reconcile to Monthly Budget Statement - Financial Performance Statement (standard classification)

Sheet C3C
A1: =muni& " - "&S71C& " - "&"A"& " - "&date -> KZN225 Msunduzi - Table C3 Monthly Budget Statement - Financial Performance (revenue and expenditure by municipal vote) - A - Q1 First Quarter
A2: =Vdesc -> Vote Description | B2: =head27 -> Ref | C2: =Head1 -> 2023/24 | D2: =Head2 -> Budget Year 2024/25 | L2: =Head4 -> 
A3: R thousand | C3: =Head5 -> Audited Outcome | D3: =Head6 -> Original Budget | E3: =Head7 -> Adjusted Budget | F3: =Head38 -> Monthly actual | G3: =Head39 -> YearTD actual | H3: =Head40 -> YearTD budget | I3: =Head41 -> YTD variance | J3: =Head41 -> YTD variance | K3: =Head8 -> Full Year Forecast | L3: =Head12 -> Forecast 2010/11 | M3: =Head13 -> Forecast 2011/12 | N3: =Head14 -> Forecast 2012/13 | O3: =Head15 -> Forecast 2013/14 | P3: =Head16 -> Forecast 2014/15 | Q3: =Head17 -> Forecast 2015/16 | R3: =Head18 -> Forecast 2016/17 | S3: =Head19 -> Forecast 2017/18 | T3: =Head20 -> Forecast 2018/19 | U3: =Head21 -> Forecast 2019/20 | V3: =Head22 -> Forecast 2020/21 | W3: =Head23 -> Forecast 2021/22
J4: %
A5: Revenue by Vote | B5: 1
A6: ='Org structure'!A2 -> Vote 1 - City Manager | C6: =SUM(C7:C16) -> 0 | D6: =SUM(D7:D16) -> 0 | E6: 0 | F6: 0 | G6: 0 | H6: 0 | I6: =G6-H6 -> 0 | J6: =IF(I6=0,"",I6/H6) ->  | K6: 0
A7: ='Org structure'!E3 -> 1.1 - Internal Audit and Compliance | I7: 0
A8: ='Org structure'!E4 -> 1.2 - Office of the City Manager | I8: 0
A9: ='Org structure'!E5 -> 1.3 - Political Support | I9: 0
A10: ='Org structure'!E6 -> 1.4 - Strategic Planning | I10: 0
A11: ='Org structure'!E7 -> 0 | I11: 0
A12: ='Org structure'!E8 -> 0 | I12: 0
A13: ='Org structure'!E9 -> 0 | I13: 0
A14: ='Org structure'!E10 -> 0 | I14: 0
A15: ='Org structure'!E11 -> 0 | I15: 0
A16: ='Org structure'!E12 -> 0 | I16: 0
A17: ='Org structure'!A3 -> Vote 2 - City Finance | C17: =SUM(C18:C27) -> 2025042284 | D17: =SUM(D18:D27) -> 2675602753 | E17: 0 | F17: 172855615.6 | G17: 689914232.8 | H17: 668900688.4 | I17: 21013544.49 | J17: 0.0314150439 | K17: 2675602753
A18: ='Org structure'!E14 -> 2.1 - Asset Management | C18: 35009793.83 | D18: 20116081.74 | F18: 10029954.28 | G18: 13289757.48 | H18: =D18/12*3 -> 5029020.436 | I18: 8260737.044 | J18: 1.642613537 | K18: =D18 -> 20116081.74
A19: ='Org structure'!E15 -> 2.2 - Budget and Treasury Management | C19: 463281190.1 | D19: 843107146.8 | F19: 2278590.42 | G19: 196728765.9 | H19: =D19/12*3 -> 210776786.7 | I19: -14048020.76 | J19: -0.06664880407 | K19: =D19 -> 843107146.8
A20: ='Org structure'!E16 -> 2.3 - Expenditure Management | C20: 0 | D20: 433874.6686 | F20: 0 | G20: 0 | H20: 108468.6671 | I20: -108468.6671 | J20: -1 | K20: =D20 -> 433874.6686
A21: ='Org structure'!E17 -> 2.4 - Revenue Management | C21: 1526709590 | D21: 1811594399 | F21: 160487497.3 | G21: 479798756.4 | H21: 452898599.9 | I21: 26900156.51 | J21: 0.05939553913 | K21: =D21 -> 1811594399
A22: ='Org structure'!E18 -> 2.5 - Supply Chain Management | C22: 41710.24 | D22: 351250.8349 | F22: 59573.66 | G22: 96953.07 | H22: 87812.70873 | I22: 9140.361275 | J22: 0.104089276 | K22: =D22 -> 351250.8349
A23: ='Org structure'!E19 -> 0 | I23: 0
A24: ='Org structure'!E20 -> 0 | I24: 0
A25: ='Org structure'!E21 -> 0 | I25: 0
A26: ='Org structure'!E22 -> 0 | I26: 0
A27: ='Org structure'!E23 -> 0 | I27: 0
A28: ='Org structure'!A4 -> Vote 3 - Corporate Services | C28: =SUM(C29:C38) -> 2109770.08 | D28: 3166283.914 | E28: 0 | F28: 102270 | G28: 102270 | H28: 791570.9785 | I28: -689300.9785 | J28: -0.8708012259 | K28: 3166283.914
A29: ='Org structure'!E25 -> 3.1 - Human Resources Management | C29: 1681015.58 | D29: 2831018.945 | F29: 102270 | G29: 102270 | H29: =D29/12*3 -> 707754.7364 | I29: -605484.7364 | J29: -0.8555007904 | K29: =D29 -> 2831018.945
A30: ='Org structure'!E26 -> 3.2 - Information Technology | C30: 417.36 | D30: 2608.41365 | H30: 652.1034125 | I30: -652.1034125 | J30: -1 | K30: =D30 -> 2608.41365
A31: ='Org structure'!E27 -> 3.3 - Legal Services | C31: 428337.14 | D31: 332656.5549 | H31: 83164.13871 | I31: -83164.13871 | J31: -1 | K31: =D31 -> 332656.5549
A32: ='Org structure'!E28 -> 3.4 - Secretariat and Auxiliary Services | C32: 0 | H32: 0 | I32: 0 | K32: =D32 -> 0
A33: ='Org structure'!E29 -> 3.5 - General Manager: Corporate Service | C33: 0 | H33: 0 | I33: 0 | K33: =D33 -> 0
A34: ='Org structure'!E30 -> 0 | I34: 0
A35: ='Org structure'!E31 -> 0 | I35: 0
A36: ='Org structure'!E32 -> 0 | I36: 0
A37: ='Org structure'!E33 -> 0 | I37: 0
A38: ='Org structure'!E34 -> 0 | I38: 0
A39: ='Org structure'!A5 -> Vote 4 - Community Services and Social Equity | C39: =SUM(C40:C49) -> 292947034.4 | D39: 492477956.1 | E39: 0 | F39: 9104235.11 | G39: 58139135.08 | H39: 123119489 | I39: -64980353.95 | J39: -0.527782843 | K39: 492477956.1
A40: ='Org structure'!E36 -> 4.1 - Area Based Management | C40: 575519.96 | D40: 10962668.29 | F40: 48586.82 | G40: 145405.15 | H40: =D40/12*3 -> 2740667.073 | I40: -2595261.923 | J40: -0.9469453436 | K40: =D40 -> 10962668.29
A41: ='Org structure'!E37 -> 4.2 - Public Safety, Emergency Services and Enforcement | C41: 25017311.62 | D41: 9172795.913 | F41: 1395500.44 | G41: 938291.79 | H41: 2293198.978 | I41: -1354907.188 | J41: -0.5908371673 | K41: =D41 -> 9172795.913
A42: ='Org structure'!E38 -> 4.3 - Recreation and Facilities | C42: 68126120.3 | D42: 301270403.3 | F42: -6291045.6 | G42: 6018680.19 | H42: 75317600.83 | I42: -69298920.64 | J42: -0.9200893268 | K42: =D42 -> 301270403.3
A43: ='Org structure'!E39 -> 4.4 - Waste Management | C43: 194527085.9 | D43: 168980088.6 | F43: 13441624.05 | G43: 50515290.98 | H43: 42245022.14 | I43: 8270268.836 | J43: 0.1957690733 | K43: =D43 -> 168980088.6
A44: ='Org structure'!E40 -> 4.5 - General Manager: Community Services | C44: 4700996.67 | D44: 2092000 | F44: 509569.4 | G44: 521466.97 | H44: 523000 | I44: -1533.03 | J44: -0.002931223709 | K44: =D44 -> 2092000
A45: ='Org structure'!E41 -> 0 | I45: 0
A46: ='Org structure'!E42 -> 0 | I46: 0
A47: ='Org structure'!E43 -> 0 | I47: 0
A48: ='Org structure'!E44 -> 0 | I48: 0
A49: ='Org structure'!E45 -> 0 | I49: 0
A50: ='Org structure'!A6 -> Vote 5 - Infrastructure Services | C50: =SUM(C51:C60) -> 1696701357 | D50: =SUM(D51:D60) -> 1540531143 | E50: 0 | F50: 151878249.5 | G50: 601602017.7 | H50: 385132785.9 | I50: 216469231.8 | J50: 0.5620638901 | K50: 1540531143
A51: ='Org structure'!E47 -> 5.1 - Project Management Office | C51: 7754279.2 | D51: 9120080 | F51: 895144.94 | G51: 2459046.52 | H51: =D51/12*3 -> 2280020 | I51: 179026.52 | J51: 0.07851971474 | K51: =D51 -> 9120080
A52: ='Org structure'!E48 -> 5.2 - Roads and Transportation | C52: 48452151.57 | D52: 50261689.3 | F52: 900450 | G52: 9426075.3 | H52: 12565422.33 | I52: -3139347.026 | J52: -0.2498401521 | K52: =D52 -> 50261689.3
A53: ='Org structure'!E49 -> 5.3 - Water and Sanitation | C53: 1640494926 | D53: 1481149374 | F53: 150082654.5 | G53: 589716895.9 | H53: 370287343.5 | I53: 219429552.3 | J53: 0.5925926342 | K53: =D53 -> 1481149374
A54: ='Org structure'!E50 -> 5.4 - General Manager: Infrastructure | C54: 0 | F54: 0 | G54: 0 | H54: 0 | I54: 0
A55: ='Org structure'!E51 -> 0 | I55: 0
A56: ='Org structure'!E52 -> 0 | I56: 0
A57: ='Org structure'!E53 -> 0 | I57: 0
A58: ='Org structure'!E54 -> 0 | I58: 0
A59: ='Org structure'!E55 -> 0 | I59: 0
A60: ='Org structure'!E56 -> 0 | I60: 0
A61: ='Org structure'!A7 -> Vote 6 - Sustainable Development and City Enterprises | C61: =SUM(C62:C71) -> 304119010.1 | D61: =SUM(D62:D71) -> 366567368.2 | E61: 0 | F61: 11372325.42 | G61: 31956777.82 | H61: 91641842.04 | I61: -59685064.22 | J61: -0.651286169 | K61: 366567368.2
A62: ='Org structure'!E58 -> 6.1 - City Entities | C62: 52129317.35 | D62: 137116847.2 | F62: 3553206.3 | G62: 10882111.43 | H62: =D62/12*3 -> 34279211.8 | I62: -23397100.37 | J62: -0.6825448761 | K62: =D62 -> 137116847.2
A63: ='Org structure'!E59 -> 6.2 - Development Services | C63: 19970563.98 | D63: 3280701.495 | F63: 362376.45 | G63: 2795996.14 | H63: 820175.3738 | I63: 1975820.766 | J63: 2.409022301 | K63: =D63 -> 3280701.495
A64: ='Org structure'!E60 -> 6.3 - Human Settlement Development | C64: 131933125 | D64: 190478177.4 | F64: 6496853.48 | G64: 15378912.03 | H64: 47619544.36 | I64: -32240632.33 | J64: -0.6770462163 | K64: =D64 -> 190478177.4
A65: ='Org structure'!E61 -> 6.4 - Town Planning | C65: 100086003.8 | D65: 35691641.99 | F65: 959889.19 | G65: 2899758.22 | H65: 8922910.498 | I65: -6023152.278 | J65: -0.6750210348 | K65: =D65 -> 35691641.99
A66: ='Org structure'!E62 -> 6.5 - General Manager: Sustainable Development and City Enterprises | C66: 0 | F66: 0 | G66: 0 | H66: =D66/12*2 -> 0 | I66: 0
A67: ='Org structure'!E63 -> 0 | I67: 0
A68: ='Org structure'!E64 -> 0 | I68: 0
A69: ='Org structure'!E65 -> 0 | I69: 0
A70: ='Org structure'!E66 -> 0 | I70: =G70-H70 -> 0 | J70: =IF(I70=0,"",I70/H70) -> 
A71: ='Org structure'!E67 -> 0 | I71: 0
A72: ='Org structure'!A8 -> Vote 7 - Electricity | C72: =SUM(C73:C82) -> 2673985927 | D72: 4342532610 | E72: 0 | F72: 284555753.5 | G72: 952298214.3 | H72: 1085633152 | I72: -133334938.2 | J72: -0.1228176736 | K72: 4342532610
A73: ='Org structure'!E69 -> 7.1 Electricity planning | C73: 27269329.25 | D73: 20892768.47 | F73: 777486.83 | G73: 814206.42 | H73: =D73/12*3 -> 5223192.118 | I73: -4408985.698 | J73: -0.8441170836 | K73: =D73 -> 20892768.47
A74: ='Org structure'!E70 -> 7.2 Methods and Standards | C74: 0 | F74: 0 | G74: 0 | H74: 0 | I74: 0
A75: ='Org structure'!E71 -> 7.3 Operations and Maintenance | C75: 0 | F75: 0 | G75: 0 | H75: 0 | I75: 0
A76: ='Org structure'!E72 -> 7.4 Revenue Management | C76: 2646253700 | D76: 4295540347 | F76: 283783586.7 | G76: 951489327.9 | H76: 1073885087 | I76: -122395759 | J76: -0.1139747264 | K76: =D76 -> 4295540347
A77: ='Org structure'!E73 -> 7.5 General Manager Electricity | C77: 462897.31 | D77: 26099494.06 | F77: -5320 | G77: -5320 | H77: 6524873.515 | I77: -6530193.515 | J77: -1.000815341 | K77: =D77 -> 26099494.06
A78: ='Org structure'!E74 -> 0 | I78: 0
A79: ='Org structure'!E75 -> 0 | I79: 0
A80: ='Org structure'!E76 -> 0 | I80: 0
A81: ='Org structure'!E77 -> 0 | I81: 0
A82: ='Org structure'!E78 -> 0 | I82: 0
A83: ='Org structure'!A9 -> Vote 8 - [NAME OF VOTE 8] | C83: =SUM(C84:C93) -> 0 | D83: =SUM(D84:D93) -> 0 | E83: 0 | F83: 0 | G83: 0 | H83: 0 | I83: 0 | K83: 0
A84: ='Org structure'!E80 -> 8.1 - [Name of sub-vote] | I84: 0
A85: ='Org structure'!E81 -> 0 | I85: 0
A86: ='Org structure'!E82 -> 0 | I86: 0
A87: ='Org structure'!E83 -> 0 | I87: 0
A88: ='Org structure'!E84 -> 0 | I88: 0
A89: ='Org structure'!E85 -> 0 | I89: 0
A90: ='Org structure'!E86 -> 0 | I90: 0
A91: ='Org structure'!E87 -> 0 | I91: 0
A92: ='Org structure'!E88 -> 0 | I92: 0
A93: ='Org structure'!E89 -> 0 | I93: 0
A94: ='Org structure'!A10 -> Vote 9 - [NAME OF VOTE 9] | C94: =SUM(C95:C104) -> 0 | D94: =SUM(D95:D104) -> 0 | E94: 0 | F94: 0 | G94: 0 | H94: 0 | I94: 0 | K94: 0
A95: ='Org structure'!E91 -> 9.1 - [Name of sub-vote] | I95: 0
A96: ='Org structure'!E92 -> 0 | I96: 0
A97: ='Org structure'!E93 -> 0 | I97: 0
A98: ='Org structure'!E94 -> 0 | I98: 0
A99: ='Org structure'!E95 -> 0 | I99: 0
A100: ='Org structure'!E96 -> 0 | I100: 0
A101: ='Org structure'!E97 -> 0 | I101: 0
A102: ='Org structure'!E98 -> 0 | I102: 0
A103: ='Org structure'!E99 -> 0 | I103: 0
A104: ='Org structure'!E100 -> 0 | I104: 0
A105: ='Org structure'!A11 -> Vote 10 - [NAME OF VOTE 10] | C105: =SUM(C106:C115) -> 0 | D105: =SUM(D106:D115) -> 0 | E105: 0 | F105: 0 | G105: 0 | H105: 0 | I105: 0 | K105: 0
A106: ='Org structure'!E102 -> 10.1 - [Name of sub-vote] | I106: 0
A107: ='Org structure'!E103 -> 0 | I107: 0
A108: ='Org structure'!E104 -> 0 | I108: 0
A109: ='Org structure'!E105 -> 0 | I109: 0
A110: ='Org structure'!E106 -> 0 | I110: 0
A111: ='Org structure'!E107 -> 0 | I111: 0
A112: ='Org structure'!E108 -> 0 | I112: 0
A113: ='Org structure'!E109 -> 0 | I113: 0
A114: ='Org structure'!E110 -> 0 | I114: 0
A115: ='Org structure'!E111 -> 0 | I115: 0
A116: ='Org structure'!A12 -> Vote 11 - [NAME OF VOTE 11] | C116: =SUM(C117:C126) -> 0 | D116: =SUM(D117:D126) -> 0 | E116: 0 | F116: 0 | G116: 0 | H116: 0 | I116: 0 | K116: 0
A117: ='Org structure'!E113 -> 11.1 - [Name of sub-vote] | I117: 0
A118: ='Org structure'!E114 -> 0 | I118: 0
A119: ='Org structure'!E115 -> 0 | I119: 0
A120: ='Org structure'!E116 -> 0 | I120: 0
A121: ='Org structure'!E117 -> 0 | I121: 0
A122: ='Org structure'!E118 -> 0 | I122: 0
A123: ='Org structure'!E119 -> 0 | I123: 0
A124: ='Org structure'!E120 -> 0 | I124: 0
A125: ='Org structure'!E121 -> 0 | I125: 0
A126: ='Org structure'!E122 -> 0 | I126: 0
A127: ='Org structure'!A13 -> Vote 12 - [NAME OF VOTE 12] | C127: =SUM(C128:C137) -> 0 | D127: =SUM(D128:D137) -> 0 | E127: 0 | F127: 0 | G127: 0 | H127: 0 | I127: 0 | K127: 0
A128: ='Org structure'!E124 -> 12.1 - [Name of sub-vote] | I128: 0
A129: ='Org structure'!E125 -> 0 | I129: 0
A130: ='Org structure'!E126 -> 0 | I130: 0
A131: ='Org structure'!E127 -> 0 | I131: 0
A132: ='Org structure'!E128 -> 0 | I132: 0
A133: ='Org structure'!E129 -> 0 | I133: 0
A134: ='Org structure'!E130 -> 0 | I134: =G134-H134 -> 0 | J134: =IF(I134=0,"",I134/H134) -> 
A135: ='Org structure'!E131 -> 0 | I135: 0
A136: ='Org structure'!E132 -> 0 | I136: 0
A137: ='Org structure'!E133 -> 0 | I137: 0
A138: ='Org structure'!A14 -> Vote 13 - [NAME OF VOTE 13] | C138: =SUM(C139:C148) -> 0 | D138: =SUM(D139:D148) -> 0 | E138: 0 | F138: 0 | G138: 0 | H138: 0 | I138: 0 | K138: 0
A139: ='Org structure'!E135 -> 13.1 - [Name of sub-vote] | I139: 0
A140: ='Org structure'!E136 -> 0 | I140: 0
A141: ='Org structure'!E137 -> 0 | I141: 0
A142: ='Org structure'!E138 -> 0 | I142: 0
A143: ='Org structure'!E139 -> 0 | I143: 0
A144: ='Org structure'!E140 -> 0 | I144: 0
A145: ='Org structure'!E141 -> 0 | I145: 0
A146: ='Org structure'!E142 -> 0 | I146: 0
A147: ='Org structure'!E143 -> 0 | I147: 0
A148: ='Org structure'!E144 -> 0 | I148: 0
A149: ='Org structure'!A15 -> Vote 14 - [NAME OF VOTE 14] | C149: =SUM(C150:C159) -> 0 | D149: =SUM(D150:D159) -> 0 | E149: 0 | F149: 0 | G149: 0 | H149: 0 | I149: 0 | K149: 0
A150: ='Org structure'!E146 -> 14.1 - [Name of sub-vote] | I150: 0
A151: ='Org structure'!E147 -> 0 | I151: 0
A152: ='Org structure'!E148 -> 0 | I152: 0
A153: ='Org structure'!E149 -> 0 | I153: 0
A154: ='Org structure'!E150 -> 0 | I154: 0
A155: ='Org structure'!E151 -> 0 | I155: 0
A156: ='Org structure'!E152 -> 0 | I156: 0
A157: ='Org structure'!E153 -> 0 | I157: 0
A158: ='Org structure'!E154 -> 0 | I158: 0
A159: ='Org structure'!E155 -> 0 | I159: 0
A160: ='Org structure'!A16 -> Vote 15 - [NAME OF VOTE 15] | C160: =SUM(C161:C170) -> 0 | D160: =SUM(D161:D170) -> 0 | E160: 0 | F160: 0 | G160: 0 | H160: 0 | I160: 0 | K160: 0
A161: ='Org structure'!E157 -> 15.1 - [Name of sub-vote] | I161: 0
A162: ='Org structure'!E158 -> 0 | I162: 0
A163: ='Org structure'!E159 -> 0 | I163: 0
A164: ='Org structure'!E160 -> 0 | I164: 0
A165: ='Org structure'!E161 -> 0 | I165: 0
A166: ='Org structure'!E162 -> 0 | I166: 0
A167: ='Org structure'!E163 -> 0 | I167: 0
A168: ='Org structure'!E164 -> 0 | I168: 0
A169: ='Org structure'!E165 -> 0 | I169: 0
A170: ='Org structure'!E166 -> 0 | I170: 0 | L170: =SUM(L78:L81) -> 0 | M170: 0 | N170: 0 | O170: 0 | P170: 0 | Q170: 0 | R170: 0 | S170: 0 | T170: 0 | U170: 0 | V170: 0 | W170: 0
A171: Total Revenue by Vote | B171: 2 | C171: =C6+C17+C28+C39+C50+C61+C72+C83+C94+C105+C116+C127+C138+C149+C160 -> 6994905382 | D171: =D6+D17+D28+D39+D50+D61+D72+D83+D94+D105+D116+D127+D138+D149+D160 -> 9420878115 | E171: 0 | F171: 629868449.2 | G171: 2334012648 | H171: 2355219529 | I171: -21206881.04 | J171: -0.009004205671 | K171: 9420878115
I172: 0
A173: Expenditure by Vote | B173: 1 | I173: 0
A174: ='Org structure'!A2 -> Vote 1 - City Manager | C174: =SUM(C175:C184) -> 195836186.1 | D174: 191819668.5 | E174: 0 | F174: 15919550.94 | G174: 42190953.9 | H174: 47954917.12 | I174: -5763963.216 | J174: -0.1201954578 | K174: 191819668.5
A175: ='Org structure'!E3 -> 1.1 - Internal Audit and Compliance | C175: 25162828.92 | D175: 28259494.71 | F175: 3973596.02 | G175: 7214437.14 | H175: =D175/12*3 -> 7064873.677 | I175: 149563.4634 | J175: 0.02117001241 | K175: =D175 -> 28259494.71
A176: ='Org structure'!E4 -> 1.2 - Office of the City Manager | C176: 36709790.28 | D176: 45827363.93 | F176: 3169917.35 | G176: 9405622.56 | H176: 11456840.98 | I176: -2051218.422 | J176: -0.1790387442 | K176: =D176 -> 45827363.93
A177: ='Org structure'!E5 -> 1.3 - Political Support | C177: 119989830.5 | D177: 108207922.9 | F177: 8225308.95 | G177: 23870299.98 | H177: 27051980.72 | I177: -3181680.736 | J177: -0.1176135962 | K177: =D177 -> 108207922.9
A178: ='Org structure'!E6 -> 1.4 - Strategic Planning | C178: 13973736.43 | D178: 9524886.968 | F178: 550728.62 | G178: 1700594.22 | H178: 2381221.742 | I178: -680627.522 | J178: -0.2858312227 | K178: =D178 -> 9524886.968
A179: ='Org structure'!E7 -> 0 | I179: 0
A180: ='Org structure'!E8 -> 0 | I180: 0
A181: ='Org structure'!E9 -> 0 | I181: 0
A182: ='Org structure'!E10 -> 0 | I182: 0
A183: ='Org structure'!E11 -> 0 | I183: 0
A184: ='Org structure'!E12 -> 0 | I184: 0
A185: ='Org structure'!A3 -> Vote 2 - City Finance | C185: =SUM(C186:C195) -> 722564027.8 | D185: =SUM(D186:D195) -> 1166932156 | E185: =SUM(E186:E195) -> 0 | F185: 36445043 | G185: 86562324.72 | H185: 291733038.9 | I185: -205170714.2 | J185: -0.7032824083 | K185: 1166932156
A186: ='Org structure'!E14 -> 2.1 - Asset Management | C186: 80850184.77 | D186: 95532173.96 | F186: 5556842.48 | G186: 14294608.14 | H186: =D186/12*3 -> 23883043.49 | I186: -9588435.35 | J186: -0.4014746008 | K186: =D186 -> 95532173.96
A187: ='Org structure'!E15 -> 2.2 - Budget and Treasury Management | C187: 122860002.4 | D187: 134603926.3 | F187: 9222684.49 | G187: 21831397.81 | H187: 33650981.58 | I187: -11819583.77 | J187: -0.3512403863 | K187: =D187 -> 134603926.3
A188: ='Org structure'!E16 -> 2.3 - Expenditure Management | C188: 60887981.6 | D188: 42985050.17 | F188: 3682933.26 | G188: 8522117.83 | H188: 10746262.54 | I188: -2224144.713 | J188: -0.2069691397 | K188: =D188 -> 42985050.17
A189: ='Org structure'!E17 -> 2.4 - Revenue Management | C189: 352984605 | D189: 795399549.5 | F189: 11894097.5 | G189: 23868836.34 | H189: 198849887.4 | I189: -174981051 | J189: -0.8799655526 | K189: =D189 -> 795399549.5
A190: ='Org structure'!E18 -> 2.5 - Supply Chain Management | C190: 104981254 | D190: 98411455.53 | F190: 6088485.27 | G190: 18045364.6 | H190: 24602863.88 | I190: -6557499.282 | J190: -0.2665339821 | K190: =D190 -> 98411455.53
A191: ='Org structure'!E19 -> 0 | I191: 0
A192: ='Org structure'!E20 -> 0 | I192: 0
A193: ='Org structure'!E21 -> 0 | I193: 0
A194: ='Org structure'!E22 -> 0 | I194: 0
A195: ='Org structure'!E23 -> 0 | I195: 0
A196: ='Org structure'!A4 -> Vote 3 - Corporate Services | C196: =SUM(C197:C206) -> 201260716.8 | D196: 198303820.6 | E196: 0 | F196: 12605221.3 | G196: 31371597.58 | H196: 49575955.16 | I196: -18204357.58 | J196: -0.3672013483 | K196: 198303820.6
A197: ='Org structure'!E25 -> 3.1 - Human Resources Management | C197: 106690313.1 | D197: 93075683.15 | F197: 5835805.42 | G197: 14116859.86 | H197: =D197/12*3 -> 23268920.79 | I197: -9152060.927 | J197: -0.3933169488 | K197: =D197 -> 93075683.15
A198: ='Org structure'!E26 -> 3.2 - Information Technology | C198: 48178368.64 | D198: 50169008.88 | F198: 3063496.4 | G198: 7679774.73 | H198: 12542252.22 | I198: =G198-H198 -> -4862477.489 | J198: =IF(I198=0,"",I198/H198) -> -0.3876877457 | K198: =D198 -> 50169008.88
A199: ='Org structure'!E27 -> 3.3 - Legal Services | C199: 17490759.58 | D199: 19907466.71 | F199: 1018590.71 | G199: 2667581.05 | H199: 4976866.678 | I199: -2309285.628 | J199: -0.464003916 | K199: =D199 -> 19907466.71
A200: ='Org structure'!E28 -> 3.4 - Secretariat and Auxiliary Services | C200: 28901275.56 | D200: 35151661.89 | F200: 2687328.77 | G200: 6907381.94 | H200: 8787915.472 | I200: -1880533.532 | J200: -0.2139908535 | K200: =D200 -> 35151661.89
... 147 more rows

Sheet C4-FinPerf RE
A1: =muni& " - "&S71B& " - "&date -> KZN225 Msunduzi - Table C4 Monthly Budget Statement - Financial Performance (revenue and expenditure) - Q1 First Quarter
A2: =desc -> Description | B2: =head27 -> Ref | C2: =Head1 -> 2023/24 | D2: =Head2 -> Budget Year 2024/25
C3: =Head5 -> Audited Outcome | D3: =Head6 -> Original Budget | E3: =Head7 -> Adjusted Budget | F3: =Head38 -> Monthly actual | G3: =Head39 -> YearTD actual | H3: =Head40 -> YearTD budget | I3: =Head41 -> YTD variance | J3: =Head41 -> YTD variance | K3: =Head8 -> Full Year Forecast
A4: R thousands | J4: %
A5: Revenue
A6: Exchange Revenue
A7: Service charges - Electricity | C7: 2630640541 | D7: 4297825065 | F7: 277787595.9 | G7: 926873225.5 | H7: =D7/12*3 -> 1074456266 | I7: =G7-H7 -> -147583040.8 | J7: =IF(I7=0,"",I7/H7) -> -0.1373560241 | K7: =D7 -> 4297825065
A8: Service charges - Water | C8: 740741111 | D8: 1009760082 | F8: 95882908.93 | G8: 308057634.2 | H8: =D8/12*3 -> 252440020.5 | I8: 55617613.71 | J8: 0.2203201125 | K8: =D8 -> 1009760082
A9: Service charges - Waste Water Management | C9: 198015165 | D9: 220724860.4 | F9: 26323228.26 | G9: 74235127.28 | H9: 55181215.1 | I9: 19053912.18 | J9: 0.3452970751 | K9: 220724860.4
A10: Service charges - Waste management | C10: 126703639 | D10: 155390776.9 | F10: 12349959.47 | G10: 36491098.49 | H10: 38847694.23 | I10: -2356595.744 | J10: -0.06066243544 | K10: 155390776.9
A11: Sale of Goods and Rendering of Services | C11: 14947022 | D11: 42042838 | F11: 0 | G11: 0 | H11: 10510709.5 | I11: -10510709.5 | J11: -1 | K11: 42042838
A12: Agency services | C12: 2666696 | D12: 764825.6424 | F12: 633136 | G12: 968270 | H12: 191206.4106 | I12: 777063.5894 | J12: 4.064003853 | K12: 764825.6424
A13: Interest | C13: 0 | F13: 0 | G13: 0 | H13: 0 | I13: 0 | K13: 0
A14: Interest earned from Receivables | C14: 325984045 | D14: 230681790 | F14: 44405057.02 | G14: 94213848.04 | H14: 57670447.5 | I14: 36543400.54 | J14: 0.6336590424 | K14: 230681790
A15: Interest from Current and Non Current Assets | C15: 106873226 | D15: 59562303 | F15: 0 | G15: 0 | H15: 14890575.75 | I15: -14890575.75 | J15: -1 | K15: 59562303
A16: Dividends | C16: 0 | F16: 0 | G16: 0 | H16: 0 | I16: 0
A17: Rent on Land | C17: 0 | F17: 0 | G17: 0 | H17: 0 | I17: 0
A18: Rental from Fixed Assets | C18: 33590328.34 | D18: 113961628.7 | F18: 2416157.56 | G18: 7472340.73 | H18: 28490407.18 | I18: -21018066.45 | J18: -0.7377243266 | K18: =D18 -> 113961628.7
A19: Licence and permits | C19: 2021123.4 | D19: 2546799 | F19: 136196.19 | G19: 508231.51 | H19: 636699.75 | I19: -128468.24 | J19: -0.2017720912 | K19: =D19 -> 2546799
A20: Operational Revenue | C20: 53620000 | D20: 204124220 | F20: 15505583.85 | G20: 26763767.84 | H20: 51031055 | I20: -24267287.16 | J20: -0.4755395937 | K20: =D20 -> 204124220
A21: Non-Exchange Revenue | C21: 0 | F21: 0 | G21: 0 | H21: 0 | I21: 0
A22: Property rates | C22: 1359086727 | D22: 1649352521 | F22: 148736968 | G22: 448767870.7 | H22: 412338130.2 | I22: 36429740.53 | J22: 0.08834919176 | K22: =D22 -> 1649352521
A23: Surcharges and Taxes | C23: 0 | F23: 0 | G23: 0 | H23: 0 | I23: 0
A24: Fines, penalties and forfeits | C24: 34277863 | D24: 11687216.86 | F24: 790679.03 | G24: 3732945.88 | H24: 2921804.216 | I24: 811141.6642 | J24: 0.2776167067 | K24: =D24 -> 11687216.86
A25: Licence and permits | C25: 0 | F25: 0 | G25: 0 | H25: 0 | I25: 0 | K25: =D25 -> 0
A26: Transfers and subsidies - Operational | C26: 824535909 | D26: 946343150 | F26: 3672702.96 | G26: 350420663.8 | H26: 236585787.5 | I26: 113834876.3 | J26: 0.481156867 | K26: =D26 -> 946343150
A27: Interest | C27: 44117780.54 | D27: 19135146.8 | F27: 2638306.77 | G27: 8195010.69 | H27: 4783786.699 | I27: 3411223.991 | J27: 0.7130802867 | K27: =D27 -> 19135146.8
A28: Fuel Levy | C28: 0 | F28: 0 | G28: 0 | H28: 0 | I28: 0
A29: Operational Revenue | C29: 0 | F29: 0 | G29: 0 | H29: 0 | I29: 0
A30: Gains on disposal of Assets | C30: 0 | F30: 0 | G30: 0 | H30: 0 | I30: 0
A31: Other Gains | C31: 68513555 | F31: 334759.54 | G31: 675106.07 | H31: 0 | I31: 675106.07
A32: Discontinued Operations | C32: 0 | F32: 0 | G32: 0 | H32: 0 | I32: 0
A33: Total Revenue (excluding capital transfers and contributions) | C33: =SUM(C7:C20)+SUM(C22:C32) -> 6566334731 | D33: 8963903223 | E33: 0 | F33: 631613239.4 | G33: 2287375141 | H33: 2240975806 | I33: =G33-H33 -> 46399334.88 | J33: 0.02070496913 | K33: =SUM(K7:K20)+SUM(K22:K32) -> 8963903223
A34: Expenditure By Type
A35: Employee related costs | C35: 1612918315 | D35: 1847015838 | F35: 134281261 | G35: 383823929 | H35: =D35/12*3 -> 461753959.4 | I35: =G35-H35 -> -77930030.41 | J35: =IF(I35=0,"",I35/H35) -> -0.1687695987 | K35: =D35 -> 1847015838
A36: Remuneration of councillors | C36: 63542011.59 | D36: 66461931.11 | F36: 4745184.95 | G36: 14263115.17 | H36: 16615482.78 | I36: -2352367.608 | J36: -0.1415768437 | K36: 66461931.11
A37: Bulk purchases - electricity | C37: 2714396462 | D37: 3145118900 | F37: 334496956.9 | G37: 1134907895 | H37: 786279725 | I37: 348628169.6 | J37: 0.4433894942 | K37: 3145118900
A38: Inventory consumed | C38: 877661985.2 | D38: 993409214.4 | F38: 183714744.4 | G38: 278453147.4 | H38: 248352303.6 | I38: 30100843.8 | J38: 0.1212021929 | K38: 993409214.4
A39: Debt impairment | C39: 1143097916 | D39: 636000000 | F39: 131968.76 | G39: 4524678.41 | H39: 159000000 | I39: -154475321.6 | J39: -0.9715429031 | K39: 636000000
A40: Depreciation and amortisation | C40: 361847777 | D40: 362178747.5 | F40: 31913804.13 | G40: 97824108.19 | H40: 90544686.87 | I40: 7279421.325 | J40: 0.08039589707 | K40: 362178747.5
A41: Interest | C41: 84787241 | D41: 42824930.71 | F41: 1661779.84 | G41: 5183948.36 | H41: 10706232.68 | I41: -5522284.318 | J41: -0.5158008876 | K41: 42824930.71
A42: Contracted services | C42: 918493426 | D42: 1023282031 | F42: 56802250.56 | G42: 100325262.9 | H42: 255820507.7 | I42: -155495244.8 | J42: -0.6078294745 | K42: 1023282031
A43: Transfers and subsidies | C43: 28449502.91 | D43: 69670130.46 | F43: 3011425.23 | G43: 13000150.15 | H43: 17417532.61 | I43: -4417382.464 | J43: -0.2536170055 | K43: 69670130.46
A44: Irrecoverable debts written off | C44: 22523583 | F44: 0 | G44: 0 | H44: 0 | I44: 0 | K44: 0
A45: Operational costs | C45: 229248830 | D45: 194308180 | F45: 19845766.48 | G45: 50996039.04 | H45: 48577045 | I45: 2418994.04 | J45: 0.04979706032 | K45: =D45 -> 194308180
A46: Losses on Disposal of Assets | C46: 14049185 | F46: 0 | G46: 0 | H46: 0 | I46: 0
A47: Other Losses | C47: 29757198 | F47: 0 | G47: 0 | H47: 0 | I47: 0
A48: Total Expenditure | C48: =SUM(C35:C47) -> 8100773433 | D48: 8380269902 | E48: 0 | F48: 770605142.2 | G48: 2083302273 | H48: 2095067476 | I48: =G48-H48 -> -11765202.43 | J48: -0.005615667548 | K48: =SUM(K35:K47) -> 8380269902
A49: Surplus/(Deficit) | C49: =C33-C48 -> -1534438702 | D49: 583633320.9 | E49: 0 | F49: -138991902.7 | G49: 204072867.5 | H49: 145908330.2 | I49: 58164537.31 | J49: 0.3986375365 | K49: =K33-K48 -> 583633320.9
A50: Transfers and subsidies - capital (monetary allocations) | C50: 428104994 | D50: 456974891 | F50: -1744790.23 | G50: 46637507.02 | H50: =D50/12*3 -> 114243722.8 | I50: =G50-H50 -> -67606215.73 | J50: -0.59177182 | K50: =D50 -> 456974891
A51: Transfers and subsidies - capital (in-kind) | C51: 0 | F51: 0 | G51: 0 | H51: =D51/12*2 -> 0 | I51: =G51-H51 -> 0
A52: Surplus/(Deficit) after capital transfers & contributions | C52: =C49+SUM(C50:C51) -> -1106333708 | D52: 1040608212 | E52: 0 | F52: -140736693 | G52: 250710374.6 | H52: 260152053 | I52: =G52-H52 -> -9441678.419 | J52: -0.03629292297 | K52: =K49+SUM(K50:K51) -> 1040608212
A53: Income Tax | I53: =G53-H53 -> 0
A54: Surplus/(Deficit) after income tax | C54: =C52-C53 -> -1106333708 | D54: 1040608212 | E54: 0 | F54: -140736693 | G54: 250710374.6 | H54: 260152053 | I54: -9441678.419 | J54: -0.03629292297 | K54: =K52-K53 -> 1040608212
A55: Share of Surplus/Deficit attributable to Joint Venture | I55: 0
A56: Share of Surplus/Deficit attributable to Minorities | I56: 0
A57: Surplus/(Deficit) attributable to municipality | C57: =SUM(C54:C56) -> -1106333708 | D57: 1040608212 | E57: 0 | F57: -140736693 | G57: 250710374.6 | H57: 260152053 | I57: -9441678.419 | J57: -0.03629292297 | K57: =SUM(K54:K56) -> 1040608212
A58: Share of Surplus/Deficit attributable to Associate | I58: 0
A59: Intercompany/Parent subsidiary transactions | I59: 0
A60: Surplus/ (Deficit) for the year | C60: =SUM(C57:C59) -> -1106333708 | D60: 1040608212 | E60: 0 | F60: -140736693 | G60: 250710374.6 | H60: 260152053 | I60: -9441678.419 | J60: -0.03629292297 | K60: =SUM(K57:K59) -> 1040608212
A61: =head27a -> References
A62: 1. Material variances to be explained on Table SC1
A65: =A33&" including capital transfers/contributions etc" -> Total Revenue (excluding capital transfers and contributions) including capital transfers/contributions etc | C65: =C33+SUM(C50:C51) -> 6994439725 | D65: 9420878114 | E65: 0 | F65: 629868449.2 | G65: 2334012648 | H65: 2355219529 | I65: -21206880.85 | K65: =K33+SUM(K50:K51) -> 9420878114

Sheet C5-Capex
A1: =muni& " - "&S71D& " - "&date -> KZN225 Msunduzi - Table C5 Monthly Budget Statement - Capital Expenditure (municipal vote, functional classification and funding) - Q1 First Quarter
A2: =Vdesc -> Vote Description | B2: =head27 -> Ref | C2: =Head1 -> 2023/24 | D2: =Head2 -> Budget Year 2024/25
C3: =Head5 -> Audited Outcome | D3: =Head6 -> Original Budget | E3: =Head7 -> Adjusted Budget | F3: =Head38 -> Monthly actual | G3: =Head39 -> YearTD actual | H3: =Head40 -> YearTD budget | I3: =Head41 -> YTD variance | J3: =Head41 -> YTD variance | K3: =Head8 -> Full Year Forecast
A4: R thousands | B4: 1 | J4: %
A5: Multi-Year expenditure appropriation | B5: 2
A6: ='Org structure'!A2 -> Vote 1 - City Manager | C6: ='C5C'!C7 -> 0 | D6: ='C5C'!D7 -> 37445000.58 | E6: ='C5C'!E7 -> 0 | F6: ='C5C'!F7 -> 0 | G6: ='C5C'!G7 -> 0 | H6: ='C5C'!H7 -> 9361250.145 | I6: =G6-H6 -> -9361250.145 | J6: =IF(I6=0,"",I6/H6) -> -1 | K6: ='C5C'!K7 -> 37445000.58
A7: ='Org structure'!A3 -> Vote 2 - City Finance | C7: ='C5C'!C18 -> 10485090.65 | D7: ='C5C'!D18 -> 25000000 | E7: ='C5C'!E18 -> 0 | F7: ='C5C'!F18 -> 635613 | G7: ='C5C'!G18 -> 635613 | H7: ='C5C'!H18 -> 6250000 | I7: =G7-H7 -> -5614387 | J7: =IF(I7=0,"",I7/H7) -> -0.89830192 | K7: ='C5C'!K18 -> 25000000
A8: ='Org structure'!A4 -> Vote 3 - Corporate Services | C8: ='C5C'!C29 -> 5071794.14 | D8: ='C5C'!D29 -> 6575000 | E8: ='C5C'!E29 -> 0 | F8: ='C5C'!F29 -> 0 | G8: ='C5C'!G29 -> 0 | H8: ='C5C'!H29 -> 1643750 | I8: =G8-H8 -> -1643750 | J8: =IF(I8=0,"",I8/H8) -> -1 | K8: ='C5C'!K29 -> 6575000
A9: ='Org structure'!A5 -> Vote 4 - Community Services and Social Equity | C9: ='C5C'!C40 -> 70000485.02 | D9: ='C5C'!D40 -> 42152711.2 | E9: ='C5C'!E40 -> 0 | F9: ='C5C'!F40 -> -5123571.62 | G9: ='C5C'!G40 -> 4797802.84 | H9: ='C5C'!H40 -> 10538177.8 | I9: -5740374.96 | J9: -0.5447217791 | K9: ='C5C'!K40 -> 42152711.2
A10: ='Org structure'!A6 -> Vote 5 - Infrastructure Services | C10: ='C5C'!C51 -> 291473827.5 | D10: ='C5C'!D51 -> 284463597.6 | E10: ='C5C'!E51 -> 0 | F10: ='C5C'!F51 -> 19666090.06 | G10: ='C5C'!G51 -> 60207461.18 | H10: ='C5C'!H51 -> 71115899.39 | I10: -10908438.21 | J10: -0.1533895838 | K10: ='C5C'!K51 -> 284463597.6
A11: ='Org structure'!A7 -> Vote 6 - Sustainable Development and City Enterprises | C11: ='C5C'!C62 -> 168625429.7 | D11: ='C5C'!D62 -> 153598529.7 | E11: ='C5C'!E62 -> 0 | F11: ='C5C'!F62 -> 5136189.15 | G11: ='C5C'!G62 -> 11948863.8 | H11: ='C5C'!H62 -> 38399632.41 | I11: -26450768.61 | J11: -0.6888286932 | K11: ='C5C'!K62 -> 153598529.7
A12: ='Org structure'!A8 -> Vote 7 - Electricity | C12: ='C5C'!C73 -> 116839301.6 | D12: ='C5C'!D73 -> 237331051.4 | E12: ='C5C'!E73 -> 0 | F12: ='C5C'!F73 -> 15219241.12 | G12: ='C5C'!G73 -> 14851940.72 | H12: ='C5C'!H73 -> 59332762.86 | I12: -44480822.14 | J12: -0.7496839856 | K12: ='C5C'!K73 -> 237331051.4
A13: ='Org structure'!A9 -> Vote 8 - [NAME OF VOTE 8] | C13: ='C5C'!C84 -> 0 | D13: ='C5C'!D84 -> 0 | E13: ='C5C'!E84 -> 0 | F13: ='C5C'!F84 -> 0 | G13: ='C5C'!G84 -> 0 | H13: ='C5C'!H84 -> 0 | I13: 0 | K13: ='C5C'!K84 -> 0
A14: ='Org structure'!A10 -> Vote 9 - [NAME OF VOTE 9] | C14: ='C5C'!C95 -> 0 | D14: ='C5C'!D95 -> 0 | E14: ='C5C'!E95 -> 0 | F14: ='C5C'!F95 -> 0 | G14: ='C5C'!G95 -> 0 | H14: ='C5C'!H95 -> 0 | I14: 0 | K14: ='C5C'!K95 -> 0
A15: ='Org structure'!A11 -> Vote 10 - [NAME OF VOTE 10] | C15: ='C5C'!C106 -> 0 | D15: ='C5C'!D106 -> 0 | E15: ='C5C'!E106 -> 0 | F15: ='C5C'!F106 -> 0 | G15: ='C5C'!G106 -> 0 | H15: ='C5C'!H106 -> 0 | I15: 0 | K15: ='C5C'!K106 -> 0
A16: ='Org structure'!A12 -> Vote 11 - [NAME OF VOTE 11] | C16: ='C5C'!C117 -> 0 | D16: ='C5C'!D117 -> 0 | E16: ='C5C'!E117 -> 0 | F16: ='C5C'!F117 -> 0 | G16: ='C5C'!G117 -> 0 | H16: ='C5C'!H117 -> 0 | I16: 0 | K16: ='C5C'!K117 -> 0
A17: ='Org structure'!A13 -> Vote 12 - [NAME OF VOTE 12] | C17: ='C5C'!C128 -> 0 | D17: ='C5C'!D128 -> 0 | E17: ='C5C'!E128 -> 0 | F17: ='C5C'!F128 -> 0 | G17: ='C5C'!G128 -> 0 | H17: ='C5C'!H128 -> 0 | I17: 0 | K17: ='C5C'!K128 -> 0
A18: ='Org structure'!A14 -> Vote 13 - [NAME OF VOTE 13] | C18: ='C5C'!C139 -> 0 | D18: ='C5C'!D139 -> 0 | E18: ='C5C'!E139 -> 0 | F18: ='C5C'!F139 -> 0 | G18: ='C5C'!G139 -> 0 | H18: ='C5C'!H139 -> 0 | I18: =G18-H18 -> 0 | J18: =IF(I18=0,"",I18/H18) ->  | K18: ='C5C'!K139 -> 0
A19: ='Org structure'!A15 -> Vote 14 - [NAME OF VOTE 14] | C19: ='C5C'!C150 -> 0 | D19: ='C5C'!D150 -> 0 | E19: ='C5C'!E150 -> 0 | F19: ='C5C'!F150 -> 0 | G19: ='C5C'!G150 -> 0 | H19: ='C5C'!H150 -> 0 | I19: =G19-H19 -> 0 | J19: =IF(I19=0,"",I19/H19) ->  | K19: ='C5C'!K150 -> 0
A20: ='Org structure'!A16 -> Vote 15 - [NAME OF VOTE 15] | C20: ='C5C'!C161 -> 0 | D20: ='C5C'!D161 -> 0 | E20: ='C5C'!E161 -> 0 | F20: ='C5C'!F161 -> 0 | G20: ='C5C'!G161 -> 0 | H20: ='C5C'!H161 -> 0 | I20: =G20-H20 -> 0 | J20: =IF(I20=0,"",I20/H20) ->  | K20: ='C5C'!K161 -> 0
A21: Total Capital Multi-year expenditure | B21: 4,7 | C21: =SUM(C6:C20) -> 662495928.6 | D21: =SUM(D6:D20) -> 786565890.4 | E21: 0 | F21: 35533561.71 | G21: 92441681.54 | H21: 196641472.6 | I21: -104199791.1 | J21: =IF(I21=0,"",I21/H21) -> -0.5298973288 | K21: =SUM(K6:K20) -> 786565890.4
A23: Single Year expenditure appropriation | B23: 2
A24: ='Org structure'!A2 -> Vote 1 - City Manager | C24: ='C5C'!C176 -> 6002904.91 | D24: ='C5C'!D176 -> 5000000 | E24: ='C5C'!E176 -> 0 | F24: ='C5C'!F176 -> 0 | G24: ='C5C'!G176 -> 0 | H24: ='C5C'!H176 -> 1250000 | I24: ='C5C'!I176 -> -1250000 | J24: =IF(I24=0,"",I24/H24) -> -1 | K24: ='C5C'!K176 -> 5000000
A25: ='Org structure'!A3 -> Vote 2 - City Finance | C25: ='C5C'!C187 -> 5570959.24 | D25: ='C5C'!D187 -> 0 | E25: ='C5C'!E187 -> 0 | F25: ='C5C'!F187 -> 0 | G25: ='C5C'!G187 -> 0 | H25: ='C5C'!H187 -> 0 | I25: ='C5C'!I187 -> 0 | J25: =IF(I25=0,"",I25/H25) ->  | K25: ='C5C'!K187 -> 0
A26: ='Org structure'!A4 -> Vote 3 - Corporate Services | C26: ='C5C'!C198 -> 15256416.64 | D26: ='C5C'!D198 -> 7525000 | E26: ='C5C'!E198 -> 0 | F26: ='C5C'!F198 -> 0 | G26: ='C5C'!G198 -> 0 | H26: ='C5C'!H198 -> 1881250 | I26: ='C5C'!I198 -> -1881250 | J26: -1 | K26: ='C5C'!K198 -> 7525000
A27: ='Org structure'!A5 -> Vote 4 - Community Services and Social Equity | C27: ='C5C'!C209 -> 8052360.27 | D27: ='C5C'!D209 -> 8780000 | E27: ='C5C'!E209 -> 0 | F27: ='C5C'!F209 -> 0 | G27: ='C5C'!G209 -> 0 | H27: ='C5C'!H209 -> 2195000 | I27: ='C5C'!I209 -> -2195000 | J27: -1 | K27: ='C5C'!K209 -> 8780000
A28: ='Org structure'!A6 -> Vote 5 - Infrastructure Services | C28: ='C5C'!C220 -> 15179175.83 | D28: ='C5C'!D220 -> 10000000 | E28: ='C5C'!E220 -> 0 | F28: ='C5C'!F220 -> 0 | G28: ='C5C'!G220 -> 0 | H28: ='C5C'!H220 -> 2500000 | I28: ='C5C'!I220 -> -2500000 | J28: -1 | K28: ='C5C'!K220 -> 10000000
A29: ='Org structure'!A7 -> Vote 6 - Sustainable Development and City Enterprises | C29: ='C5C'!C231 -> 842627.38 | D29: ='C5C'!D231 -> 2140000 | E29: ='C5C'!E231 -> 0 | F29: ='C5C'!F231 -> 0 | G29: ='C5C'!G231 -> 0 | H29: ='C5C'!H231 -> 535000 | I29: ='C5C'!I231 -> -535000 | J29: -1 | K29: ='C5C'!K231 -> 2140000
A30: ='Org structure'!A8 -> Vote 7 - Electricity | C30: ='C5C'!C242 -> 12909352.94 | D30: ='C5C'!D242 -> 4000000 | E30: ='C5C'!E242 -> 0 | F30: ='C5C'!F242 -> 0 | G30: ='C5C'!G242 -> 0 | H30: ='C5C'!H242 -> 1000000 | I30: ='C5C'!I242 -> -1000000 | J30: -1 | K30: ='C5C'!K242 -> 4000000
A31: ='Org structure'!A9 -> Vote 8 - [NAME OF VOTE 8] | C31: ='C5C'!C253 -> 0 | D31: ='C5C'!D253 -> 0 | E31: ='C5C'!E253 -> 0 | F31: ='C5C'!F253 -> 0 | G31: ='C5C'!G253 -> 0 | H31: ='C5C'!H253 -> 0 | I31: ='C5C'!I253 -> 0 | K31: ='C5C'!K253 -> 0
A32: ='Org structure'!A10 -> Vote 9 - [NAME OF VOTE 9] | C32: ='C5C'!C264 -> 0 | D32: ='C5C'!D264 -> 0 | E32: ='C5C'!E264 -> 0 | F32: ='C5C'!F264 -> 0 | G32: ='C5C'!G264 -> 0 | H32: ='C5C'!H264 -> 0 | I32: ='C5C'!I264 -> 0 | K32: ='C5C'!K264 -> 0
A33: ='Org structure'!A11 -> Vote 10 - [NAME OF VOTE 10] | C33: ='C5C'!C275 -> 0 | D33: ='C5C'!D275 -> 0 | E33: ='C5C'!E275 -> 0 | F33: ='C5C'!F275 -> 0 | G33: ='C5C'!G275 -> 0 | H33: ='C5C'!H275 -> 0 | I33: ='C5C'!I275 -> 0 | K33: ='C5C'!K275 -> 0
A34: ='Org structure'!A12 -> Vote 11 - [NAME OF VOTE 11] | C34: ='C5C'!C286 -> 0 | D34: ='C5C'!D286 -> 0 | E34: ='C5C'!E286 -> 0 | F34: ='C5C'!F286 -> 0 | G34: ='C5C'!G286 -> 0 | H34: ='C5C'!H286 -> 0 | I34: ='C5C'!I286 -> 0 | K34: ='C5C'!K286 -> 0
A35: ='Org structure'!A13 -> Vote 12 - [NAME OF VOTE 12] | C35: ='C5C'!C297 -> 0 | D35: ='C5C'!D297 -> 0 | E35: ='C5C'!E297 -> 0 | F35: ='C5C'!F297 -> 0 | G35: ='C5C'!G297 -> 0 | H35: ='C5C'!H297 -> 0 | I35: ='C5C'!I297 -> 0 | K35: ='C5C'!K297 -> 0
A36: ='Org structure'!A14 -> Vote 13 - [NAME OF VOTE 13] | C36: ='C5C'!C308 -> 0 | D36: ='C5C'!D308 -> 0 | E36: ='C5C'!E308 -> 0 | F36: ='C5C'!F308 -> 0 | G36: ='C5C'!G308 -> 0 | H36: ='C5C'!H308 -> 0 | I36: ='C5C'!I308 -> 0 | K36: ='C5C'!K308 -> 0
A37: ='Org structure'!A15 -> Vote 14 - [NAME OF VOTE 14] | C37: ='C5C'!C319 -> 0 | D37: ='C5C'!D319 -> 0 | E37: ='C5C'!E319 -> 0 | F37: ='C5C'!F319 -> 0 | G37: ='C5C'!G319 -> 0 | H37: ='C5C'!H319 -> 0 | I37: ='C5C'!I319 -> 0 | K37: ='C5C'!K319 -> 0
A38: ='Org structure'!A16 -> Vote 15 - [NAME OF VOTE 15] | C38: ='C5C'!C330 -> 0 | D38: ='C5C'!D330 -> 0 | E38: ='C5C'!E330 -> 0 | F38: ='C5C'!F330 -> 0 | G38: ='C5C'!G330 -> 0 | H38: ='C5C'!H330 -> 0 | I38: ='C5C'!I330 -> 0 | K38: ='C5C'!K330 -> 0
A39: Total Capital single-year expenditure | B39: 4 | C39: =SUM(C24:C38) -> 63813797.21 | D39: 37445000 | E39: 0 | F39: 0 | G39: 0 | H39: 9361250 | I39: -9361250 | J39: -1 | K39: =SUM(K24:K38) -> 37445000
A40: Total Capital Expenditure | C40: =C39+C21 -> 726309725.8 | D40: 824010890.4 | E40: 0 | F40: 35533561.71 | G40: 92441681.54 | H40: 206002722.6 | I40: -113561041.1 | J40: =IF(I40=0,"",I40/H40) -> -0.5512599039 | K40: =K39+K21 -> 824010890.4
A42: Capital Expenditure - Functional Classification
A43: Governance and administration | C43: =SUM(C44:C46) -> 43055333.52 | D43: 45300000 | E43: 0 | F43: 635613 | G43: 635613 | H43: 11325000 | I43: =G43-H43 -> -10689387 | J43: =IF(I43=0,"",I43/H43) -> -0.9438752318 | K43: =SUM(K44:K46) -> 45300000
A44: Executive and council | C44: 6002904.91 | D44: 5100000 | H44: =D44/12*3 -> 1275000 | I44: -1275000 | J44: =IF(I44=0,"",I44/H44) -> -1 | K44: =D44 -> 5100000
A45: Finance and administration | C45: 37052428.61 | D45: 40200000 | F45: 635613 | G45: 635613 | H45: =D45/12*3 -> 10050000 | I45: -9414387 | J45: -0.9367549254 | K45: =D45 -> 40200000
A46: Internal audit | C46: 0 | D46: 0 | H46: =D46/12*3 -> 0 | I46: 0
A47: Community and public safety | C47: =SUM(C48:C52) -> 117915786.8 | D47: 168351240.9 | E47: 0 | F47: -2792065.41 | G47: 11912410.42 | H47: 42087810.21 | I47: -30175399.79 | J47: -0.7169629316 | K47: =SUM(K48:K52) -> 168351240.9
A48: Community and social services | C48: 39759722.49 | D48: 24745151.2 | F48: -7613015.43 | G48: 70863.41 | H48: =D48/12*3 -> 6186287.8 | I48: -6115424.39 | J48: -0.9885450835 | K48: =D48 -> 24745151.2
A49: Sport and recreation | C49: 5255736.33 | D49: 11932560 | G49: 2237495.63 | H49: =D49/12*3 -> 2983140 | I49: -745644.37 | J49: -0.2499528584 | K49: =D49 -> 11932560
A50: Public safety | C50: 724230.91 | D50: 2100000 | G50: 0 | H50: =D50/12*3 -> 525000 | I50: -525000 | J50: -1 | K50: =D50 -> 2100000
A51: Housing | C51: 72176097.07 | D51: 129573529.7 | F51: 4820950.02 | G51: 9604051.38 | H51: =D51/12*3 -> 32393382.41 | I51: -22789331.03 | J51: -0.7035181057 | K51: =D51 -> 129573529.7
A52: Health | C52: 0 | D52: 0 | H52: =D52/12*3 -> 0 | I52: 0
A53: Economic and environmental services | C53: =SUM(C54:C56) -> 247499942.5 | D53: 139974463.2 | E53: 0 | F53: 19655995.86 | G53: 39651276.31 | H53: 34993615.79 | I53: 4657660.52 | J53: 0.1331002931 | K53: =SUM(K54:K56) -> 139974463.2
A54: Planning and development | C54: 92995620.52 | D54: 23150000 | F54: 315239.13 | G54: 2344812.42 | H54: =D54/12*3 -> 5787500 | I54: -3442687.58 | J54: -0.5948488259 | K54: =D54 -> 23150000
A55: Road transport | C55: 154504322 | D55: 116824463.2 | F55: 19340756.73 | G55: 37306463.89 | H55: =D55/12*3 -> 29206115.79 | I55: 8100348.1 | J55: 0.2773510917 | K55: =D55 -> 116824463.2
A56: Environmental protection | C56: 0 | D56: 0 | F56: 0 | G56: 0 | H56: =D56/12*3 -> 0 | I56: 0
A57: Trading services | C57: =SUM(C58:C61) -> 314321104.9 | D57: 467535186.4 | E57: 0 | F57: 18034018.26 | G57: 40242381.81 | H57: 116883796.6 | I57: -76641414.79 | J57: -0.6557060689 | K57: =SUM(K58:K61) -> 467535186.4
A58: Energy sources | C58: 129748654.5 | D58: 260053551.7 | F58: 15219241.12 | G58: 14851940.72 | H58: =D58/12*3 -> 65013387.93 | I58: -50161447.21 | J58: -0.7715556566 | K58: =D58 -> 260053551.7
A59: Water management | C59: 78803164.29 | D59: 100375000 | F59: 1115280.15 | G59: 14178316.12 | H59: =D59/12*3 -> 25093750 | I59: -10915433.88 | J59: -0.4349861571 | K59: =D59 -> 100375000
A60: Waste water management | C60: 78087787.55 | D60: 97046634.7 | F60: -789946.82 | G60: 8722681.17 | H60: =D60/12*3 -> 24261658.68 | I60: -15538977.51 | J60: -0.6404746565 | K60: =D60 -> 97046634.7
A61: Waste management | C61: 27681498.49 | D61: 10060000 | F61: 2489443.81 | G61: 2489443.8 | H61: =D61/12*3 -> 2515000 | I61: -25556.2 | J61: -0.01016151093 | K61: =D61 -> 10060000
A62: Other | C62: 3517558.08 | D62: 2850000 | F62: 0 | G62: 0 | H62: =D62/12*3 -> 712500 | I62: -712500 | J62: -1 | K62: =D62 -> 2850000
A63: Total Capital Expenditure - Functional Classification | B63: 3 | C63: =C43+C47+C53+C57+C62 -> 726309725.8 | D63: =D43+D47+D53+D57+D62 -> 824010890.4 | E63: 0 | F63: 35533561.71 | G63: 92441681.54 | H63: 206002722.6 | I63: -113561041.1 | J63: -0.5512599039 | K63: =K43+K47+K53+K57+K62 -> 824010890.4
A65: Funded by:
A66: National Government | C66: 302791114.5 | D66: 325816919.9 | F66: -2030602.89 | G66: 42695384.73 | H66: =D66/12*3 -> 81454229.97 | I66: =G66-H66 -> -38758845.24 | J66: =IF(I66=0,"",I66/H66) -> -0.4758358805 | K66: =D66 -> 325816919.9
A67: Provincial Government | C67: 92791145.97 | D67: 131157970.6 | H67: =D67/12*3 -> 32789492.66 | I67: -32789492.66 | J67: -1 | K67: =D67 -> 131157970.6
A68: District Municipality | H68: =D68/12*2 -> 0 | I68: 0
A69: Transfers and subsidies - capital (monetary allocations) (Nat / Prov Departm Agencies, Households, Non-profit Institutions, Private Enterprises, Public Corporatons, Higher Educ Institutions) | H69: =D69/12*1 -> 0 | I69: 0
A70: Transfers recognised - capital | C70: =SUM(C66:C69) -> 395582260.5 | D70: 456974890.5 | E70: 0 | F70: -2030602.89 | G70: 42695384.73 | H70: 114243722.6 | I70: -71548337.9 | J70: -0.6262780681 | K70: =SUM(K66:K69) -> 456974890.5
A72: Borrowing | B72: 6 | C72: 72309925.81 | D72: 234315856 | F72: 13995725.56 | G72: 14172352.93 | H72: =D72/12*3 -> 58578964 | I72: -44406611.07 | J72: -0.7580641247 | K72: =D72 -> 234315856
A73: Internally generated funds | C73: 258417539.5 | D73: 132720143.9 | F73: 23568439.04 | G73: 35573943.88 | H73: =D73/12*3 -> 33180035.98 | I73: 2393907.902 | J73: 0.07214904481 | K73: =D73 -> 132720143.9
A74: Total Capital Funding | C74: =+C70+C72+C73 -> 726309725.8 | D74: 824010890.4 | E74: 0 | F74: 35533561.71 | G74: 92441681.54 | H74: 206002722.6 | I74: -113561041.1 | J74: -0.5512599039 | K74: =+K70+K72+K73 -> 824010890.4
A75: =head27a -> References
A76: 1. Municipalities may choose to appropriate for capital expenditure for three years or for one year (if one year appropriation projected expenditure required for yr2 and yr3).
A77: 2. Include capital component of PPP unitary payment
A78: 3. Capital expenditure by functional classification must reconcile to the total of multi-year and single year appropriations
A79: 4. Include expenditure on investment property, intangible and biological assets
A81: 6. Include finance leases and PPP capital funding component of unitary payment - total borrowing/repayments to reconcile to changes in Table SA17
A82: 7. Total Capital Funding must balance with Total Capital Expenditure
A86: check balance | C86: =C40-C74 -> 0 | D86: =D40-D74 -> 0 | E86: 0 | F86: 0 | G86: 0 | H86: 0 | K86: 0

Sheet C5C
A1: =muni& " - "&S71D& " - "&"A"& " - "&date -> KZN225 Msunduzi - Table C5 Monthly Budget Statement - Capital Expenditure (municipal vote, functional classification and funding) - A - Q1 First Quarter
A2: =Vdesc -> Vote Description | B2: =head27 -> Ref | C2: =Head1 -> 2023/24 | D2: =Head2 -> Budget Year 2024/25 | L2: =Head4 -> 
A3: R thousand | C3: =Head5 -> Audited Outcome | D3: =Head6 -> Original Budget | E3: =Head7 -> Adjusted Budget | F3: =Head38 -> Monthly actual | G3: =Head39 -> YearTD actual | H3: =Head40 -> YearTD budget | I3: =Head41 -> YTD variance | J3: =Head41 -> YTD variance | K3: =Head8 -> Full Year Forecast | L3: =Head12 -> Forecast 2010/11 | M3: =Head13 -> Forecast 2011/12 | N3: =Head14 -> Forecast 2012/13 | O3: =Head15 -> Forecast 2013/14 | P3: =Head16 -> Forecast 2014/15 | Q3: =Head17 -> Forecast 2015/16 | R3: =Head18 -> Forecast 2016/17 | S3: =Head19 -> Forecast 2017/18 | T3: =Head20 -> Forecast 2018/19 | U3: =Head21 -> Forecast 2019/20 | V3: =Head22 -> Forecast 2020/21 | W3: =Head23 -> Forecast 2021/22
J4: %
A5: Capital expenditure - Municipal Vote
A6: Expenditure of multi-year capital appropriation | B6: 1
A7: ='Org structure'!A2 -> Vote 1 - City Manager | C7: =SUM(C8:C17) -> 0 | D7: =SUM(D8:D17) -> 37445000.58 | E7: 0 | F7: 0 | G7: 0 | H7: 9361250.145 | I7: =G7-H7 -> -9361250.145 | J7: =IF(I7=0,"",I7/H7) -> -1 | K7: 37445000.58
A8: ='Org structure'!E3 -> 1.1 - Internal Audit and Compliance | D8: 37445000.58 | H8: =D8/12*3 -> 9361250.145 | I8: -9361250.145 | J8: -1 | K8: =D8 -> 37445000.58
A9: ='Org structure'!E4 -> 1.2 - Office of the City Manager | I9: 0
A10: ='Org structure'!E5 -> 1.3 - Political Support | I10: 0
A11: ='Org structure'!E6 -> 1.4 - Strategic Planning | I11: 0
A12: ='Org structure'!E7 -> 0 | I12: 0
A13: ='Org structure'!E8 -> 0 | I13: 0
A14: ='Org structure'!E9 -> 0 | I14: 0
A15: ='Org structure'!E10 -> 0 | I15: 0
A16: ='Org structure'!E11 -> 0 | I16: 0
A17: ='Org structure'!E12 -> 0 | I17: 0
A18: ='Org structure'!A3 -> Vote 2 - City Finance | C18: =SUM(C19:C28) -> 10485090.65 | D18: =SUM(D19:D28) -> 25000000 | E18: 0 | F18: 635613 | G18: 635613 | H18: 6250000 | I18: -5614387 | J18: -0.89830192 | K18: 25000000
A19: ='Org structure'!E14 -> 2.1 - Asset Management | C19: 4366889.48 | I19: 0
A20: ='Org structure'!E15 -> 2.2 - Budget and Treasury Management | C20: 6118201.17 | D20: 25000000 | F20: 635613 | G20: 635613 | H20: =D20/12*3 -> 6250000 | I20: -5614387 | J20: -0.89830192 | K20: =D20 -> 25000000
A21: ='Org structure'!E16 -> 2.3 - Expenditure Management | I21: 0
A22: ='Org structure'!E17 -> 2.4 - Revenue Management | I22: 0
A23: ='Org structure'!E18 -> 2.5 - Supply Chain Management | I23: 0
A24: ='Org structure'!E19 -> 0 | I24: 0
A25: ='Org structure'!E20 -> 0 | I25: 0
A26: ='Org structure'!E21 -> 0 | I26: 0
A27: ='Org structure'!E22 -> 0 | I27: 0
A28: ='Org structure'!E23 -> 0 | I28: 0
A29: ='Org structure'!A4 -> Vote 3 - Corporate Services | C29: =SUM(C30:C39) -> 5071794.14 | D29: 6575000 | E29: 0 | F29: 0 | G29: 0 | H29: 1643750 | I29: -1643750 | J29: -1 | K29: 6575000
A30: ='Org structure'!E25 -> 3.1 - Human Resources Management | D30: 50000 | H30: =D30/12*3 -> 12500 | I30: -12500 | J30: -1 | K30: =D30 -> 50000
A31: ='Org structure'!E26 -> 3.2 - Information Technology | C31: 5071794.14 | D31: 6125000 | H31: =D31/12*3 -> 1531250 | I31: -1531250 | J31: -1 | K31: =D31 -> 6125000
A32: ='Org structure'!E27 -> 3.3 - Legal Services | H32: =D32/12*3 -> 0 | I32: 0 | K32: =D32 -> 0
A33: ='Org structure'!E28 -> 3.4 - Secretariat and Auxiliary Services | D33: 400000 | H33: =D33/12*3 -> 100000 | I33: -100000 | J33: -1 | K33: =D33 -> 400000
A34: ='Org structure'!E29 -> 3.5 - General Manager: Corporate Service | H34: =D34/12*3 -> 0 | I34: 0 | K34: =D34 -> 0
A35: ='Org structure'!E30 -> 0 | I35: 0
A36: ='Org structure'!E31 -> 0 | I36: 0
A37: ='Org structure'!E32 -> 0 | I37: 0
A38: ='Org structure'!E33 -> 0 | I38: 0
A39: ='Org structure'!E34 -> 0 | I39: 0
A40: ='Org structure'!A5 -> Vote 4 - Community Services and Social Equity | C40: =SUM(C41:C50) -> 70000485.02 | D40: 42152711.2 | E40: 0 | F40: -5123571.62 | G40: 4797802.84 | H40: 10538177.8 | I40: -5740374.96 | J40: -0.5447217791 | K40: 42152711.2
A41: ='Org structure'!E36 -> 4.1 - Area Based Management | C41: 25704 | D41: 100000 | F41: 0 | G41: 0 | H41: =D41/12*3 -> 25000 | I41: -25000 | J41: -1 | K41: =D41 -> 100000
A42: ='Org structure'!E37 -> 4.2 - Public Safety, Emergency Services and Enforcement | C42: 962574.91 | D42: 1810000 | F42: 0 | G42: 0 | H42: =D42/12*3 -> 452500 | I42: -452500 | J42: -1 | K42: =D42 -> 1810000
A43: ='Org structure'!E38 -> 4.3 - Recreation and Facilities | C43: 43896257.07 | D43: 30232711.2 | F43: -7613015.43 | G43: 2308359.04 | H43: =D43/12*3 -> 7558177.8 | I43: -5249818.76 | J43: -0.6945878886 | K43: =D43 -> 30232711.2
A44: ='Org structure'!E39 -> 4.4 - Waste Management | C44: 25115949.04 | D44: 10000000 | F44: 2489443.81 | G44: 2489443.8 | H44: =D44/12*3 -> 2500000 | I44: -10556.2 | J44: -0.00422248 | K44: =D44 -> 10000000
A45: ='Org structure'!E40 -> 4.5 - General Manager: Community Services | C45: 0 | D45: 10000 | F45: 0 | G45: 0 | H45: =D45/12*3 -> 2500 | I45: -2500 | J45: -1 | K45: =D45 -> 10000
A46: ='Org structure'!E41 -> 0 | I46: 0
A47: ='Org structure'!E42 -> 0 | I47: 0
A48: ='Org structure'!E43 -> 0 | I48: 0
A49: ='Org structure'!E44 -> 0 | I49: 0
A50: ='Org structure'!E45 -> 0 | I50: 0
A51: ='Org structure'!A6 -> Vote 5 - Infrastructure Services | C51: =SUM(C52:C61) -> 291473827.5 | D51: =SUM(D52:D61) -> 284463597.6 | E51: 0 | F51: 19666090.06 | G51: 60207461.18 | H51: 71115899.39 | I51: -10908438.21 | J51: -0.1533895838 | K51: 284463597.6
A52: ='Org structure'!E47 -> 5.1 - Project Management Office | C52: 120220.32 | D52: 100000 | F52: 0 | G52: 0 | H52: =D52/12*3 -> 25000 | I52: -25000 | J52: -1 | K52: =D52 -> 100000
A53: ='Org structure'!E48 -> 5.2 - Roads and Transportation | C53: 146322567.6 | D53: 110664463.2 | F53: 19340756.73 | G53: 37306463.89 | H53: =D53/12*3 -> 27666115.79 | I53: 9640348.1 | J53: 0.348453255 | K53: =D53 -> 110664463.2
A54: ='Org structure'!E49 -> 5.3 - Water and Sanitation | C54: 145031039.6 | D54: 173699134.4 | F54: 325333.33 | G54: 22900997.29 | H54: =D54/12*3 -> 43424783.6 | I54: -20523786.31 | J54: -0.4726284073 | K54: =D54 -> 173699134.4
A55: ='Org structure'!E50 -> 5.4 - General Manager: Infrastructure | C55: 0 | F55: 0 | G55: 0 | I55: 0
A56: ='Org structure'!E51 -> 0 | I56: 0
A57: ='Org structure'!E52 -> 0 | I57: 0
A58: ='Org structure'!E53 -> 0 | I58: 0
A59: ='Org structure'!E54 -> 0 | I59: 0
A60: ='Org structure'!E55 -> 0 | I60: 0
A61: ='Org structure'!E56 -> 0 | I61: 0
A62: ='Org structure'!A7 -> Vote 6 - Sustainable Development and City Enterprises | C62: =SUM(C63:C72) -> 168625429.7 | D62: =SUM(D63:D72) -> 153598529.7 | E62: 0 | F62: 5136189.15 | G62: 11948863.8 | H62: 38399632.41 | I62: -26450768.61 | J62: -0.6888286932 | K62: 153598529.7
A63: ='Org structure'!E58 -> 6.1 - City Entities | C63: 4097364.47 | D63: 2685000 | F63: 0 | G63: 0 | H63: =D63/12*3 -> 671250 | I63: -671250 | J63: -1 | K63: =D63 -> 2685000
A64: ='Org structure'!E59 -> 6.2 - Development Services | C64: 14390745.96 | D64: 22090000 | F64: 315239.13 | G64: 2344812.42 | H64: =D64/12*3 -> 5522500 | I64: -3177687.58 | J64: -0.5754074387 | K64: =D64 -> 22090000
A65: ='Org structure'!E60 -> 6.3 - Human Settlement Development | C65: 71825343.19 | D65: 128823529.7 | F65: 4820950.02 | G65: 9604051.38 | H65: =D65/12*3 -> 32205882.41 | I65: -22601831.03 | J65: -0.7017920125 | K65: =D65 -> 128823529.7
A66: ='Org structure'!E61 -> 6.4 - Town Planning | C66: 78311976.06 | F66: 0 | G66: 0 | H66: =D66/12*2 -> 0 | I66: 0 | K66: =D66 -> 0
A67: ='Org structure'!E62 -> 6.5 - General Manager: Sustainable Development and City Enterprises | C67: 0 | F67: 0 | G67: 0 | I67: 0
A68: ='Org structure'!E63 -> 0 | I68: 0
A69: ='Org structure'!E64 -> 0 | I69: 0
A70: ='Org structure'!E65 -> 0 | I70: 0
A71: ='Org structure'!E66 -> 0 | I71: =G71-H71 -> 0 | J71: =IF(I71=0,"",I71/H71) -> 
A72: ='Org structure'!E67 -> 0 | I72: 0
A73: ='Org structure'!A8 -> Vote 7 - Electricity | C73: =SUM(C74:C83) -> 116839301.6 | D73: 237331051.4 | E73: 0 | F73: 15219241.12 | G73: 14851940.72 | H73: 59332762.86 | I73: -44480822.14 | J73: -0.7496839856 | K73: 237331051.4
A74: ='Org structure'!E69 -> 7.1 Electricity planning | C74: 116432403.6 | D74: 229331051.4 | F74: 15197516.46 | G74: 14830216.06 | H74: =D74/12*3 -> 57332762.86 | I74: -42502546.8 | J74: -0.741330867 | K74: =D74 -> 229331051.4
A75: ='Org structure'!E70 -> 7.2 Methods and Standards | C75: 0 | F75: 0 | G75: 0 | H75: =D75/12*3 -> 0 | I75: 0
A76: ='Org structure'!E71 -> 7.3 Operations and Maintenance | C76: 0 | F76: 0 | G76: 0 | H76: =D76/12*3 -> 0 | I76: 0
A77: ='Org structure'!E72 -> 7.4 Revenue Management | C77: 406898.05 | D77: 8000000 | F77: 21724.66 | G77: 21724.66 | H77: =D77/12*3 -> 2000000 | I77: -1978275.34 | J77: -0.98913767 | K77: =D77 -> 8000000
A78: ='Org structure'!E73 -> 7.5 General Manager Electricity | C78: 0 | H78: =D78/12*3 -> 0 | I78: 0
A79: ='Org structure'!E74 -> 0 | I79: 0
A80: ='Org structure'!E75 -> 0 | I80: 0
A81: ='Org structure'!E76 -> 0 | I81: 0
A82: ='Org structure'!E77 -> 0 | I82: 0
A83: ='Org structure'!E78 -> 0 | I83: 0
A84: ='Org structure'!A9 -> Vote 8 - [NAME OF VOTE 8] | C84: =SUM(C85:C94) -> 0 | D84: =SUM(D85:D94) -> 0 | E84: 0 | F84: 0 | G84: 0 | H84: 0 | I84: 0 | K84: 0
A85: ='Org structure'!E80 -> 8.1 - [Name of sub-vote] | I85: 0
A86: ='Org structure'!E81 -> 0 | I86: 0
A87: ='Org structure'!E82 -> 0 | I87: 0
A88: ='Org structure'!E83 -> 0 | I88: 0
A89: ='Org structure'!E84 -> 0 | I89: 0
A90: ='Org structure'!E85 -> 0 | I90: 0
A91: ='Org structure'!E86 -> 0 | I91: 0
A92: ='Org structure'!E87 -> 0 | I92: 0
A93: ='Org structure'!E88 -> 0 | I93: 0
A94: ='Org structure'!E89 -> 0 | I94: 0
A95: ='Org structure'!A10 -> Vote 9 - [NAME OF VOTE 9] | C95: =SUM(C96:C105) -> 0 | D95: =SUM(D96:D105) -> 0 | E95: 0 | F95: 0 | G95: 0 | H95: 0 | I95: 0 | K95: 0
A96: ='Org structure'!E91 -> 9.1 - [Name of sub-vote] | I96: 0
A97: ='Org structure'!E92 -> 0 | I97: 0
A98: ='Org structure'!E93 -> 0 | I98: 0
A99: ='Org structure'!E94 -> 0 | I99: 0
A100: ='Org structure'!E95 -> 0 | I100: 0
A101: ='Org structure'!E96 -> 0 | I101: 0
A102: ='Org structure'!E97 -> 0 | I102: 0
A103: ='Org structure'!E98 -> 0 | I103: 0
A104: ='Org structure'!E99 -> 0 | I104: 0
A105: ='Org structure'!E100 -> 0 | I105: 0
A106: ='Org structure'!A11 -> Vote 10 - [NAME OF VOTE 10] | C106: =SUM(C107:C116) -> 0 | D106: =SUM(D107:D116) -> 0 | E106: 0 | F106: 0 | G106: 0 | H106: 0 | I106: 0 | K106: 0
A107: ='Org structure'!E102 -> 10.1 - [Name of sub-vote] | I107: 0
A108: ='Org structure'!E103 -> 0 | I108: 0
A109: ='Org structure'!E104 -> 0 | I109: 0
A110: ='Org structure'!E105 -> 0 | I110: 0
A111: ='Org structure'!E106 -> 0 | I111: 0
A112: ='Org structure'!E107 -> 0 | I112: 0
A113: ='Org structure'!E108 -> 0 | I113: 0
A114: ='Org structure'!E109 -> 0 | I114: 0
A115: ='Org structure'!E110 -> 0 | I115: 0
A116: ='Org structure'!E111 -> 0 | I116: 0
A117: ='Org structure'!A12 -> Vote 11 - [NAME OF VOTE 11] | C117: =SUM(C118:C127) -> 0 | D117: =SUM(D118:D127) -> 0 | E117: 0 | F117: 0 | G117: 0 | H117: 0 | I117: 0 | K117: 0
A118: ='Org structure'!E113 -> 11.1 - [Name of sub-vote] | I118: 0
A119: ='Org structure'!E114 -> 0 | I119: 0
A120: ='Org structure'!E115 -> 0 | I120: 0
A121: ='Org structure'!E116 -> 0 | I121: 0
A122: ='Org structure'!E117 -> 0 | I122: 0
A123: ='Org structure'!E118 -> 0 | I123: 0
A124: ='Org structure'!E119 -> 0 | I124: 0
A125: ='Org structure'!E120 -> 0 | I125: 0
A126: ='Org structure'!E121 -> 0 | I126: 0
A127: ='Org structure'!E122 -> 0 | I127: 0
A128: ='Org structure'!A13 -> Vote 12 - [NAME OF VOTE 12] | C128: =SUM(C129:C138) -> 0 | D128: =SUM(D129:D138) -> 0 | E128: 0 | F128: 0 | G128: 0 | H128: 0 | I128: 0 | K128: 0
A129: ='Org structure'!E124 -> 12.1 - [Name of sub-vote] | I129: 0
A130: ='Org structure'!E125 -> 0 | I130: 0
A131: ='Org structure'!E126 -> 0 | I131: 0
A132: ='Org structure'!E127 -> 0 | I132: 0
A133: ='Org structure'!E128 -> 0 | I133: 0
A134: ='Org structure'!E129 -> 0 | I134: 0
A135: ='Org structure'!E130 -> 0 | I135: =G135-H135 -> 0 | J135: =IF(I135=0,"",I135/H135) -> 
A136: ='Org structure'!E131 -> 0 | I136: 0
A137: ='Org structure'!E132 -> 0 | I137: 0
A138: ='Org structure'!E133 -> 0 | I138: 0
A139: ='Org structure'!A14 -> Vote 13 - [NAME OF VOTE 13] | C139: =SUM(C140:C149) -> 0 | D139: =SUM(D140:D149) -> 0 | E139: 0 | F139: 0 | G139: 0 | H139: 0 | I139: 0 | K139: 0
A140: ='Org structure'!E135 -> 13.1 - [Name of sub-vote] | I140: 0
A141: ='Org structure'!E136 -> 0 | I141: 0
A142: ='Org structure'!E137 -> 0 | I142: 0
A143: ='Org structure'!E138 -> 0 | I143: 0
A144: ='Org structure'!E139 -> 0 | I144: 0
A145: ='Org structure'!E140 -> 0 | I145: 0
A146: ='Org structure'!E141 -> 0 | I146: 0
A147: ='Org structure'!E142 -> 0 | I147: 0
A148: ='Org structure'!E143 -> 0 | I148: 0
A149: ='Org structure'!E144 -> 0 | I149: 0
A150: ='Org structure'!A15 -> Vote 14 - [NAME OF VOTE 14] | C150: =SUM(C151:C160) -> 0 | D150: =SUM(D151:D160) -> 0 | E150: 0 | F150: 0 | G150: 0 | H150: 0 | I150: 0 | K150: 0
A151: ='Org structure'!E146 -> 14.1 - [Name of sub-vote] | I151: 0
A152: ='Org structure'!E147 -> 0 | I152: 0
A153: ='Org structure'!E148 -> 0 | I153: 0
A154: ='Org structure'!E149 -> 0 | I154: 0
A155: ='Org structure'!E150 -> 0 | I155: 0
A156: ='Org structure'!E151 -> 0 | I156: 0
A157: ='Org structure'!E152 -> 0 | I157: 0
A158: ='Org structure'!E153 -> 0 | I158: 0
A159: ='Org structure'!E154 -> 0 | I159: 0
A160: ='Org structure'!E155 -> 0 | I160: 0
A161: ='Org structure'!A16 -> Vote 15 - [NAME OF VOTE 15] | C161: =SUM(C162:C171) -> 0 | D161: =SUM(D162:D171) -> 0 | E161: 0 | F161: 0 | G161: 0 | H161: 0 | I161: 0 | K161: 0
A162: ='Org structure'!E157 -> 15.1 - [Name of sub-vote] | I162: 0
A163: ='Org structure'!E158 -> 0 | I163: 0
A164: ='Org structure'!E159 -> 0 | I164: 0
A165: ='Org structure'!E160 -> 0 | I165: 0
A166: ='Org structure'!E161 -> 0 | I166: 0
A167: ='Org structure'!E162 -> 0 | I167: 0
A168: ='Org structure'!E163 -> 0 | I168: 0
A169: ='Org structure'!E164 -> 0 | I169: 0
A170: ='Org structure'!E165 -> 0 | I170: 0
A171: ='Org structure'!E166 -> 0 | I171: 0 | L171: =SUM(L79:L82) -> 0 | M171: 0 | N171: 0 | O171: 0 | P171: 0 | Q171: 0 | R171: 0 | S171: 0 | T171: 0 | U171: 0 | V171: 0 | W171: 0
A172: Total multi-year capital expenditure | C172: =C7+C18+C29+C40+C51+C62+C73+C84+C95+C106+C117+C128+C139+C150+C161 -> 662495928.6 | D172: =D7+D18+D29+D40+D51+D62+D73+D84+D95+D106+D117+D128+D139+D150+D161 -> 786565890.4 | E172: 0 | F172: 35533561.71 | G172: 92441681.54 | H172: 196641472.6 | I172: -104199791.1 | J172: -0.5298973288 | K172: 786565890.4
I173: 0
A174: Capital expenditure - Municipal Vote
A175: Expenditue of single-year capital appropriation | B175: 1
A176: ='Org structure'!A2 -> Vote 1 - City Manager | C176: =SUM(C177:C186) -> 6002904.91 | D176: 5000000 | E176: 0 | F176: 0 | G176: 0 | H176: 1250000 | I176: -1250000 | J176: -1 | K176: 5000000
A177: ='Org structure'!E3 -> 1.1 - Internal Audit and Compliance | C177: 0 | I177: 0
A178: ='Org structure'!E4 -> 1.2 - Office of the City Manager | C178: 2847260.22 | D178: 5000000 | H178: =D178/12*3 -> 1250000 | I178: -1250000 | J178: -1 | K178: =D178 -> 5000000
A179: ='Org structure'!E5 -> 1.3 - Political Support | C179: 3155644.69 | I179: 0
A180: ='Org structure'!E6 -> 1.4 - Strategic Planning | C180: 0 | I180: 0
A181: ='Org structure'!E7 -> 0 | I181: 0
A182: ='Org structure'!E8 -> 0 | I182: 0
A183: ='Org structure'!E9 -> 0 | I183: 0
A184: ='Org structure'!E10 -> 0 | I184: 0
A185: ='Org structure'!E11 -> 0 | I185: 0
A186: ='Org structure'!E12 -> 0 | I186: 0
A187: ='Org structure'!A3 -> Vote 2 - City Finance | C187: =SUM(C188:C197) -> 5570959.24 | D187: =SUM(D188:D197) -> 0 | E187: =SUM(E188:E197) -> 0 | F187: 0 | G187: 0 | H187: 0 | I187: 0 | K187: 0
A188: ='Org structure'!E14 -> 2.1 - Asset Management | I188: 0
A189: ='Org structure'!E15 -> 2.2 - Budget and Treasury Management | I189: 0
A190: ='Org structure'!E16 -> 2.3 - Expenditure Management | I190: 0
A191: ='Org structure'!E17 -> 2.4 - Revenue Management | C191: 97500 | I191: 0
A192: ='Org structure'!E18 -> 2.5 - Supply Chain Management | C192: 5473459.24 | I192: 0
A193: ='Org structure'!E19 -> 0 | I193: 0
A194: ='Org structure'!E20 -> 0 | I194: 0
A195: ='Org structure'!E21 -> 0 | I195: 0
A196: ='Org structure'!E22 -> 0 | I196: 0
A197: ='Org structure'!E23 -> 0 | I197: 0
A198: ='Org structure'!A4 -> Vote 3 - Corporate Services | C198: =SUM(C199:C208) -> 15256416.64 | D198: 7525000 | E198: 0 | F198: 0 | G198: 0 | H198: 1881250 | I198: -1881250 | J198: -1 | K198: 7525000
A199: ='Org structure'!E25 -> 3.1 - Human Resources Management | D199: 60000 | H199: =D199/12*3 -> 15000 | I199: -15000 | J199: -1 | K199: =D199 -> 60000
A200: ='Org structure'!E26 -> 3.2 - Information Technology | C200: 15256416.64 | D200: 7425000 | H200: =D200/12*3 -> 1856250 | I200: =G200-H200 -> -1856250 | J200: =IF(I200=0,"",I200/H200) -> -1 | K200: =D200 -> 7425000
... 145 more rows

Sheet C6-FinPos
A1: =muni& " - "&S71E& " - "&date -> KZN225 Msunduzi - Table C6 Monthly Budget Statement - Financial Position - Q1 First Quarter
A2: =desc -> Description | B2: =head27 -> Ref | C2: =Head1 -> 2023/24 | D2: =Head2 -> Budget Year 2024/25
C3: =Head5 -> Audited Outcome | D3: =Head6 -> Original Budget | E3: =Head7 -> Adjusted Budget | F3: =Head39 -> YearTD actual | G3: =Head8 -> Full Year Forecast
A4: R thousands | B4: 1
A5: ASSETS
A6: Current assets
A7: Cash and cash equivalents | C7: 490954799 | D7: 211783355 | F7: -13397394.45 | G7: =D7 -> 211783355
A8: Trade and other receivables from exchange transactions | C8: 728825462 | D8: 2649261960 | F8: 1433366865 | G8: =D8 -> 2649261960
A9: Receivables from non-exchange transactions | D9: 811010113 | F9: 0 | G9: 811010113
A10: Current portion of non-current receivables | D10: 0 | F10: 0 | G10: 0
A11: Inventory | C11: 498280564 | D11: 442453028 | F11: 504639691.2 | G11: 442453028
A12: VAT | D12: 0 | F12: 0 | G12: 0
A13: Other current assets | C13: 322850549 | D13: 0 | F13: 304301533.1 | G13: 0
A14: Total current assets | C14: =SUM(C7:C13) -> 2040911374 | D14: =SUM(D7:D13) -> 4114508456 | E14: =SUM(E7:E13) -> 0 | F14: =SUM(F7:F13) -> 2228910695 | G14: =SUM(G7:G13) -> 4114508456
A15: Non current assets
A16: Investments | D16: 0 | F16: 0 | G16: =D16 -> 0
A17: Investment property | C17: 922391726 | D17: 974255981 | F17: 922391726 | G17: 974255981
A18: Property, plant and equipment | C18: 7250531076 | D18: 8754769738 | F18: 7571844193 | G18: 8754769738
A19: Biological assets | D19: 80958443 | F19: 521976.98 | G19: 80958443
A20: Living and non-living resources | C20: 534407 | D20: 0 | F20: 0 | G20: 0
A21: Heritage assets | C21: 323519929 | D21: 291269523 | F21: 0 | G21: 291269523
A22: Intangible assets | C22: 24753127 | D22: 25766052 | F22: 23120499.79 | G22: 25766052
A23: Trade and other receivables from exchange transactions | D23: 0 | F23: 0 | G23: 0
A24: Non-current receivables from non-exchange transactions | D24: 0 | F24: 0 | G24: 0
A25: Other non-current assets | C25: 82700000 | D25: 0 | F25: 355173.48 | G25: 0
A26: Total non current assets | C26: =SUM(C16:C25) -> 8604430265 | D26: =SUM(D16:D25) -> 10127019737 | E26: =SUM(E16:E25) -> 0 | F26: =SUM(F16:F25) -> 8518233570 | G26: =SUM(G16:G25) -> 10127019737
A27: TOTAL ASSETS | C27: =C14+C26 -> 10645341639 | D27: =D14+D26 -> 14241528193 | E27: =E14+E26 -> 0 | F27: =F14+F26 -> 1.074714426e+10 | G27: =G14+G26 -> 14241528193
A28: LIABILITIES
A29: Current liabilities
A30: Bank overdraft | D30: 0 | F30: 0 | G30: =D30 -> 0
A31: Financial liabilities | C31: 50311361 | D31: -11272788 | F31: 36967790.84 | G31: -11272788
A32: Consumer deposits | C32: 152248286 | D32: 150719178 | F32: 155181027 | G32: 150719178
A33: Trade and other payables from exchange transactions | C33: 3221548003 | D33: 1713733896 | F33: 3602735785 | G33: 1713733896
A34: Trade and other payables from non-exchange transactions | C34: 12566995 | D34: 0 | F34: 0 | G34: 0
A35: Provision | C35: 6108374 | D35: 61739437 | F35: 53143374.76 | G35: 61739437
A36: VAT | C36: 174004603 | D36: 457746833 | F36: 0 | G36: 457746833
A37: Other current liabilities | C37: 236566604 | D37: 0 | F37: 0 | G37: 0
A38: Total current liabilities | C38: =SUM(C30:C37) -> 3853354226 | D38: =SUM(D30:D37) -> 2372666556 | E38: =SUM(E30:E37) -> 0 | F38: =SUM(F30:F37) -> 3848027977 | G38: =SUM(G30:G37) -> 2372666556
A39: Non current liabilities
A40: Financial liabilities | C40: 116274950 | D40: 559919194.3 | F40: 0 | G40: =D40 -> 559919194.3
A41: Provision | C41: 44650093 | D41: 80110830.3 | F41: 0 | G41: =D41 -> 80110830.3
A42: Long term portion of trade payables | D42: 0 | F42: 116274950 | G42: =D42 -> 0
A43: Other non-current liabilities | C43: 572205000 | D43: 583456000 | F43: 553476192.2 | G43: =D43 -> 583456000
A44: Total non current liabilities | C44: =SUM(C40:C43) -> 733130043 | D44: =SUM(D40:D43) -> 1223486025 | E44: =SUM(E40:E43) -> 0 | F44: =SUM(F40:F43) -> 669751142.2 | G44: =SUM(G40:G43) -> 1223486025
A45: TOTAL LIABILITIES | C45: =C38+C44 -> 4586484269 | D45: =D38+D44 -> 3596152581 | E45: =E38+E44 -> 0 | F45: =F38+F44 -> 4517779119 | G45: =G38+G44 -> 3596152581
A46: NET ASSETS | B46: 2 | C46: =C27-C45 -> 6058857370 | D46: =D27-D45 -> 1.064537561e+10 | E46: =E27-E45 -> 0 | F46: =F27-F45 -> 6229365145 | G46: =G27-G45 -> 1.064537561e+10
A47: COMMUNITY WEALTH/EQUITY
A48: Accumulated surplus/(deficit) | C48: 5833208819 | D48: 1.064537561e+10 | F48: 6003086055 | G48: =D48 -> 1.064537561e+10
A49: Reserves and funds | C49: 104698949 | F49: 226279089.4 | G49: =D49 -> 0
A50: Other | C50: 120949602 | F50: 0 | G50: =D50 -> 0
A51: TOTAL COMMUNITY WEALTH/EQUITY | B51: 2 | C51: =SUM(C48:C50) -> 6058857370 | D51: =SUM(D48:D50) -> 1.064537561e+10 | E51: =SUM(E48:E50) -> 0 | F51: =SUM(F48:F50) -> 6229365145 | G51: =SUM(G48:G50) -> 1.064537561e+10
A52: =head27a -> References
A53: 1. Material variances to be explained in Table SC1
A54: 2. Net assets must balance with Total Community Wealth/Equity
A57: check balance | C57: =C46-C51 -> 0 | D57: =D46-D51 -> 0 | E57: =E46-E51 -> 0 | F57: =F46-F51 -> 0 | G57: =G46-G51 -> 0

Sheet C7-CFlow
A1: =muni& " - "&S71F& " - "&date -> KZN225 Msunduzi - Table C7 Monthly Budget Statement - Cash Flow - Q1 First Quarter
A2: =desc -> Description | B2: =head27 -> Ref | C2: =Head1 -> 2023/24 | D2: =Head2 -> Budget Year 2024/25
C3: =Head5 -> Audited Outcome | D3: =Head6 -> Original Budget | E3: =Head7 -> Adjusted Budget | F3: =Head38 -> Monthly actual | G3: =Head39 -> YearTD actual | H3: =Head40 -> YearTD budget | I3: =Head41 -> YTD variance | J3: =Head41 -> YTD variance | K3: =Head8 -> Full Year Forecast
A4: R thousands | B4: 1 | J4: %
A5: CASH FLOW FROM OPERATING ACTIVITIES
A6: Receipts
A7: Property rates | C7: 1351613165 | D7: 1484417269 | H7: =D7/12*3 -> 371104317.1 | I7: =G7-H7 -> -371104317.1 | J7: =IF(I7=0,"",I7/H7) -> -1 | K7: =D7 -> 1484417269
A8: Service charges | C8: 3770000596 | D8: 4717471651 | H8: =D8/12*3 -> 1179367913 | I8: -1179367913 | J8: =IF(I8=0,"",I8/H8) -> -1 | K8: 4717471651
A9: Other revenue | D9: 765832296.5 | H9: 191458074.1 | I9: -191458074.1 | J9: =IF(I9=0,"",I9/H9) -> -1 | K9: 765832296.5
A10: Transfers and Subsidies - Operational | C10: 819354854 | D10: 956879939.3 | H10: 239219984.8 | I10: -239219984.8 | J10: =IF(I10=0,"",I10/H10) -> -1 | K10: 956879939.3
A11: Transfers and Subsidies - Capital | C11: 443822774 | D11: 456974890.5 | H11: 114243722.6 | I11: -114243722.6 | J11: =IF(I11=0,"",I11/H11) -> -1 | K11: 456974890.5
A12: Interest | C12: 64297443 | D12: 19135146.8 | H12: 4783786.699 | I12: -4783786.699 | J12: -1 | K12: 19135146.8
A13: Dividends | D13: 0 | H13: 0 | I13: 0
A14: Payments
A15: Suppliers and employees | C15: -5820498486 | D15: -7692706211 | H15: =D15/12*3 -> -1923176553 | I15: =H15-G15 -> -1923176553 | J15: 1 | K15: =D15 -> -7692706211
A16: Interest | C16: -16638315 | D16: -42824930.71 | H16: -10706232.68 | I16: =H16-G16 -> -10706232.68 | J16: 1 | K16: =D16 -> -42824930.71
A17: Transfers and Subsidies | D17: -69670130.46 | H17: -17417532.61 | I17: =H17-G17 -> -17417532.61 | J17: 1 | K17: =D17 -> -69670130.46
A18: NET CASH FROM/(USED) OPERATING ACTIVITIES | C18: =SUM(C7:C13)+SUM(C15:C17) -> 611952031 | D18: 595509921.2 | E18: 0 | F18: 0 | G18: 0 | H18: 148877480.3 | I18: =H18-G18 -> 148877480.3 | J18: 1 | K18: =SUM(K7:K13)+SUM(K15:K17) -> 595509921.2
A20: CASH FLOWS FROM INVESTING ACTIVITIES
A21: Receipts
A22: Proceeds on disposal of PPE | C22: 556000 | I22: =G22-H22 -> 0 | J22: =IF(I22=0,"",I22/H22) -> 
A24: Decrease (increase) in non-current receivables | C24: -6206410 | I24: =G24-H24 -> 0
A25: Decrease (increase) in non-current investments | C25: -329809 | I25: =G25-H25 -> 0
A26: Payments
A27: Capital assets | C27: -668423722 | D27: -824010890.4 | H27: =D27/12*3 -> -206002722.6 | I27: =H27-G27 -> -206002722.6 | J27: 1 | K27: =D27 -> -824010890.4
A28: NET CASH FROM/(USED) INVESTING ACTIVITIES | C28: =SUM(C22:C25)+C27 -> -674403941 | D28: =SUM(D22:D25)+D27 -> -824010890.4 | E28: 0 | F28: 0 | G28: 0 | H28: -206002722.6 | I28: =H28-G28 -> -206002722.6 | J28: 1 | K28: =SUM(K22:K25)+K27 -> -824010890.4
A30: CASH FLOWS FROM FINANCING ACTIVITIES
A31: Receipts
A32: Short term loans | C32: 116274950 | I32: =G32-H32 -> 0 | J32: =IF(I32=0,"",I32/H32) -> 
A33: Borrowing long term/refinancing | D33: 234315856 | H33: =D33/12*3 -> 58578964 | I33: =G33-H33 -> -58578964 | J33: -1 | K33: =D33 -> 234315856
A34: Increase (decrease) in consumer deposits | I34: =G34-H34 -> 0
A35: Payments
A36: Repayment of borrowing | C36: -74270250 | D36: -90000000 | H36: =D36/12*3 -> -22500000 | I36: =H36-G36 -> -22500000 | J36: 1 | K36: =D36 -> -90000000
A37: NET CASH FROM/(USED) FINANCING ACTIVITIES | C37: =SUM(C32:C34)+C36 -> 42004700 | D37: 144315856 | E37: 0 | F37: 0 | G37: 0 | H37: 36078964 | I37: =H37-G37 -> 36078964 | J37: 1 | K37: =SUM(K32:K34)+K36 -> 144315856
A39: NET INCREASE/ (DECREASE) IN CASH HELD | C39: =C18+C28+C37 -> -20447210 | D39: -84185113.26 | E39: 0 | F39: 0 | G39: 0 | H39: -21046278.32 | K39: =K18+K28+K37 -> -84185113.26
A40: Cash/cash equivalents at beginning: | C40: 511402009 | D40: 543528000 | H40: =IF(E40=0, D40, E40) -> 543528000 | K40: =D40 -> 543528000
A41: Cash/cash equivalents at month/year end: | C41: =C39+C40 -> 490954799 | D41: 459342886.7 | E41: 0 | F41: 0 | G41: 0 | H41: 522481721.7 | K41: =K39+K40 -> 459342886.7
A42: References
A43: 1. Material variances to be explained in Table SC1

Sheet SC1
A1: =muni& " - "&S71G& " - "&date -> KZN225 Msunduzi - Supporting Table SC1 Material variance explanations - Q1 First Quarter
A2: =head27 -> Ref | B2: =desc -> Description
C3: Variance | D3: Reasons for material deviations | E3: Remedial or corrective steps/remarks
B4: R thousands
A5: 1 | B5: ='[2]C4-FinPerf RE'!A5 -> Revenue
B6: Agency services | C6: 4.064003853 | D6: Actual higher than the projected revenue | E6: No remedial action is required
B7: Interest earned from Receivables | C7: 0.6336590424 | D7: Actual higher than the projected revenue | E7: No remedial action is required
B8: Rental from Fixed Assets | C8: -0.7377243266 | D8: Projections higher than the actual revenue | E8: No remedial action is required
B9: Operational Revenue | C9: -0.4755395937 | D9: Projections higher than the actual revenue | E9: No remedial action is required
B10: Transfers and subsidies - Operational | C10: 0.481156867 | D10: Actual higher than the projected revenue | E10: This will self correct during the year
A13: 2 | B13: ='[2]C4-FinPerf RE'!A34 -> Expenditure By Type
B14: Employee related costs | C14: -0.1687695987 | D14: This is due to the Vacancies that are yet to be filled | E14: Posts need to be filled
B15: Remuneration of councillors | C15: -0.1415768437 | D15: Projections higher than the actual revenue | E15: This will self correct during the year
B16: Bulk purchases - electricity | C16: 0.4433894942 | D16: Actual higher than the projected revenue | E16: This will self correct during the year
B17: Debt impairment | C17: -0.9715429031 | D17: Projections higher than the actual revenue | E17: This will self correct during the year
B18: Interest | C18: -0.5158008876 | D18: Projections higher than the actual revenue | E18: This will self correct during the year
B19: Contracted services | C19: -0.6078294745 | D19: Projections higher than the actual revenue | E19: This will self correct during the year
B20: Transfers and subsidies | C20: -0.2536170055 | D20: Projections higher than the actual revenue | E20: This will self correct during the year
A26: 3 | B26: =RIGHT('C5-Capex'!A40,19) -> Capital Expenditure
B27: Total Capital Expenditure | C27: -0.5512599039 | D27: Projections higher than the actual revenue | E27: This will self correct during the year
A31: 4 | B31: Financial Position
A36: 5 | B36: Cash Flow
A41: 6 | B41: Measureable performance
A46: 7 | B46: Municipal Entities
A52: =head27a -> References
A53: 1. Revenue for each source, vote and standard classification
A54: 2. Expenditure for each type, vote and standard classification
A55: 3. Capital expenditure for each vote and standard classification
A56: 4. Explain any material variances between the annual budget and the expected financial position based on current trends
A57: 5. Cash receipts by source and cash payments by type where not explained under revenue and expenditure
A58: 6. For Sept, Dec, Mar and Jun statements explain any material variances in achievement of measurable performance objectives

Sheet SC2
A1: =muni& " - "&S71H& " - "&Head57 -> KZN225 Msunduzi - Supporting Table SC2 Monthly Budget Statement - performance indicators - Q1 First Quarter
A2: Description of financial indicator | B2: Basis of calculation | C2: =head27 -> Ref | D2: =Head1 -> 2023/24 | E2: =Head2 -> Budget Year 2024/25
D3: =Head5 -> Audited Outcome | E3: =Head6 -> Original Budget | F3: =Head7 -> Adjusted Budget | G3: =Head39 -> YearTD actual | H3: =Head8 -> Full Year Forecast
A5: Borrowing Management
A7: Capital Charges to Operating Expenditure | B7: Interest & principal paid/Operating Expenditure | D7: =IF(ISERROR((D42-D43)/D45),0,((D42-D43)/D45)) -> 0.001298269985 | E7: =IF(ISERROR((E42+E44)/E45),0,((E42+E44)/E45)) -> 0.04832823798 | F7: =IF(ISERROR((F42+F44)/F45),0,((F42+F44)/F45)) -> 0 | G7: =IF(ISERROR((G42+G44)/G45),0,((G42+G44)/G45)) -> 0.01780718668 | H7: =IF(ISERROR((H42+H44)/H45),0,((H42+H44)/H45)) -> 0.0130409716
A8: Borrowed funding of 'own' capital expenditure | B8: Borrowings/Capital expenditure excl. transfers and grants | D8: =IF(ISERROR(D47/D46),0,(D47/D46)) -> 0.09955797539 | E8: =IF(ISERROR(E47/E46),0,(E47/E46)) -> 0.2843601447 | F8: =IF(ISERROR(F47/F46),0,(F47/F46)) -> 0 | G8: =IF(ISERROR(G47/G46),0,(G47/G46)) -> 0.3988441419 | H8: =IF(ISERROR(H47/H46),0,(H47/H46)) -> 2.534742468
A9: Safety of Capital
A10: Debt to Equity | B10: Loans, Accounts Payable, Overdraft & Tax Provision/ Funds & Reserves | D10: =IF(ISERROR(D48/D49),0,(D48/D49)) -> 0.6557187381 | E10: =IF(ISERROR(E48/E49),0,(E48/E49)) -> 0.2673307552 | F10: =IF(ISERROR(F48/F49),0,(F48/F49)) -> 0 | G10: =IF(ISERROR(G48/G49),0,(G48/G49)) -> 0.6731311571 | H10: =IF(ISERROR(H48/H49),0,(H48/H49)) -> 0.2673307552
A11: Gearing | B11: Long Term Borrowing/ Funds & Reserves | D11: =IF(ISERROR(D51/D50),0,(D51/D50)) -> 0.9613504144 | E11: =IF(ISERROR(E51/E50),0,(E51/E50)) -> 0 | F11: =IF(ISERROR(F51/F50),0,(F51/F50)) -> 0 | G11: =IF(ISERROR(G51/G50),0,(G51/G50)) -> 0 | H11: =IF(ISERROR(H51/H50),0,(H51/H50)) -> 0
A12: Liquidity
A13: Current Ratio | B13: Current assets/current liabilities | C13: 1 | D13: =IF(ISERROR(D52/D53),0,(D52/D53)) -> 0.5296454087 | E13: =IF(ISERROR(E52/E53),0,(E52/E53)) -> 1.734128399 | F13: =IF(ISERROR(F52/F53),0,(F52/F53)) -> 0 | G13: =IF(ISERROR(G52/G53),0,(G52/G53)) -> 0.5792345346 | H13: =IF(ISERROR(H52/H53),0,(H52/H53)) -> 1.734128399
A14: Liquidity Ratio | B14: Monetary Assets/Current Liabilities | D14: =IF(ISERROR(D54/D53),0,(D54/D53)) -> 0.1274097242 | E14: =IF(ISERROR(E54/E53),0,(E54/E53)) -> 0.08925963678 | F14: =IF(ISERROR(F54/F53),0,(F54/F53)) -> 0 | G14: =IF(ISERROR(G54/G53),0,(G54/G53)) -> -0.003481626051 | H14: =IF(ISERROR(H54/H53),0,(H54/H53)) -> 0.08925963678
A15: Revenue Management
A16: Annual Debtors Collection Rate (Payment Level %) | B16: Last 12 Mths Receipts/ Last 12 Mths Billing
A17: Outstanding Debtors to Revenue | B17: Total Outstanding Debtors to Annual Revenue | D17: =IF(ISERROR(D59/D55),0,(D59/D55)) -> 0.1601618032 | E17: =IF(ISERROR(E59/E55),0,(E59/E55)) -> 0.3860229173 | F17: =IF(ISERROR(F59/F55),0,(F59/F55)) -> 0 | G17: =IF(ISERROR(G59/G55),0,(G59/G55)) -> 0.7596779238 | H17: =IF(ISERROR(H59/H55),0,(H59/H55)) -> 0.3860229173
A18: Longstanding Debtors Recovered | B18: Debtors > 12 Mths Recovered/Total Debtors > 12 Months Old | D18: =IF(ISERROR(D64/D63),0,(D64/D63)) -> 0 | E18: =IF(ISERROR(E64/E63),0,(E64/E63)) -> 0 | F18: =IF(ISERROR(F64/F63),0,(F64/F63)) -> 0 | G18: =IF(ISERROR(G64/G63),0,(G64/G63)) -> 0 | H18: =IF(ISERROR(H64/H63),0,(H64/H63)) -> 0
A19: Creditors Management
A20: Creditors System Efficiency | B20: % of Creditors Paid Within Terms (within MFMA s 65(e))
A21: Funding of Provisions
A22: Percentage Of Provisions Not Funded | B22: Unfunded Provisions/Total Provisions
A23: Other Indicators
A24: Electricity Distribution Losses | B24: % Volume (units purchased and generated less units sold)/units purchased and generated | C24: 2
A25: Water Distribution Losses | B25: % Volume (units purchased and own source less units sold)/Total units purchased and own source | C25: 2
A26: Employee costs | B26: Employee costs/Total Revenue - capital revenue | D26: =IF(ISERROR(D40/D55),0,(D40/D55)) -> 0.2456344949 | E26: =IF(ISERROR(E40/E55),0,(E40/E55)) -> 0.2060503992 | F26: =IF(ISERROR(F40/F55),0,(F40/F55)) -> 0 | G26: =IF(ISERROR(G40/G55),0,(G40/G55)) -> 0.1678010407 | H26: =IF(ISERROR(H40/H55),0,(H40/H55)) -> 0.2060503992
A27: Repairs & Maintenance | B27: R&M/Total Revenue - capital revenue | D27: =IF(ISERROR(D41/D55),0,(D41/D55)) -> 0.06489146166 | E27: =IF(ISERROR(E41/E55),0,(E41/E55)) -> 0.05817737771 | F27: =IF(ISERROR(F41/F55),0,(F41/F55)) -> 0 | G27: =IF(ISERROR(G41/G55),0,(G41/G55)) -> 0.0109956158 | H27: =IF(ISERROR(H41/H55),0,(H41/H55)) -> 0.05817737771
A28: Interest & Depreciation | B28: I&D/Total Revenue - capital revenue | D28: =IF(ISERROR((D42+D44)/D55),0,((D42+D44)/D55)) -> 0.06801892323 | E28: =IF(ISERROR((E42+E44)/E55),0,((E42+E44)/E55)) -> 0.04518162101 | F28: =IF(ISERROR((F42+F44)/F55),0,((F42+F44)/F55)) -> 0 | G28: =IF(ISERROR((G42+G44)/G55),0,((G42+G44)/G55)) -> 0.01621848198 | H28: =IF(ISERROR((H42+H44)/H55),0,((H42+H44)/H55)) -> 0.01219188328
A29: IDP regulation financial viability indicators
A30: i. Debt coverage | B30: (Total Operating Revenue - Operating Grants)/Debt service payments due within financial year)
A31: ii. O/S Service Debtors to Revenue | B31: Total outstanding service debtors/annual revenue received for services
A32: iii. Cost coverage | B32: (Available cash + Investments)/monthly fixed operational expenditure
A33: References
A34: 1. Consumer debtors > 12 months old are excluded from current assets.
A35: 2. Material variances to be explained.
A37: Calculations
A38: ='C6-FinPos'!A40 -> Financial liabilities | D38: ='C6-FinPos'!C40 -> 116274950 | E38: ='C6-FinPos'!D40 -> 559919194.3 | F38: ='C6-FinPos'!E40 -> 0 | G38: ='C6-FinPos'!F40 -> 0 | H38: ='C6-FinPos'!G40 -> 559919194.3
A39: Total Assets | D39: ='C6-FinPos'!C27 -> 10645341639 | E39: ='C6-FinPos'!D27 -> 14241528193 | F39: ='C6-FinPos'!E27 -> 0 | G39: ='C6-FinPos'!F27 -> 1.074714426e+10 | H39: ='C6-FinPos'!G27 -> 14241528193
A40: ='[2]C4-FinPerf RE'!A35 -> Employee related costs | D40: ='C4-FinPerf RE'!C35 -> 1612918315 | E40: ='C4-FinPerf RE'!D35 -> 1847015838 | F40: ='C4-FinPerf RE'!E35 -> 0 | G40: ='C4-FinPerf RE'!G35 -> 383823929 | H40: ='C4-FinPerf RE'!K35 -> 1847015838
A41: =A27 -> Repairs & Maintenance | D41: =+SC13c!C173 -> 426099058.5 | E41: =+SC13c!D173 -> 521496383.6 | F41: =+SC13c!E173 -> 0 | G41: =+SC13c!G173 -> 25151098.24 | H41: =+SC13c!K173 -> 521496383.6
A42: Interest (finance charges) | D42: ='C4-FinPerf RE'!C41 -> 84787241 | E42: ='C4-FinPerf RE'!D41 -> 42824930.71 | F42: ='C4-FinPerf RE'!E41 -> 0 | G42: ='C4-FinPerf RE'!G41 -> 5183948.36 | H42: ='C4-FinPerf RE'!K41 -> 42824930.71
A43: Principal paid | D43: =-'C7-CFlow'!C36 -> 74270250 | E43: =-'C7-CFlow'!D36 -> 90000000 | F43: =-'C7-CFlow'!E36 -> 0 | G43: =-'C7-CFlow'!G36 -> 0 | H43: =-'C7-CFlow'!K36 -> 90000000
A44: Depreciation | D44: ='C4-FinPerf RE'!C40 -> 361847777 | E44: ='C4-FinPerf RE'!D40 -> 362178747.5 | F44: ='C4-FinPerf RE'!E40 -> 0 | G44: ='C4-FinPerf RE'!F40 -> 31913804.13 | H44: ='C4-FinPerf RE'!K36 -> 66461931.11
A45: Operating expenditure | D45: ='C4-FinPerf RE'!C48 -> 8100773433 | E45: ='C4-FinPerf RE'!D48 -> 8380269902 | F45: ='C4-FinPerf RE'!E48 -> 0 | G45: ='C4-FinPerf RE'!G48 -> 2083302273 | H45: ='C4-FinPerf RE'!K48 -> 8380269902
A46: ='C5-Capex'!A40 -> Total Capital Expenditure | D46: ='C5-Capex'!C63 -> 726309725.8 | E46: ='C5-Capex'!D63 -> 824010890.4 | F46: ='C5-Capex'!E63 -> 0 | G46: ='C5-Capex'!F63 -> 35533561.71 | H46: ='C5-Capex'!G63 -> 92441681.54
A47: Borrowed funding for capital | D47: ='C5-Capex'!C72 -> 72309925.81 | E47: ='C5-Capex'!D72 -> 234315856 | F47: ='C5-Capex'!E72 -> 0 | G47: ='C5-Capex'!G72 -> 14172352.93 | H47: ='C5-Capex'!K72 -> 234315856
A48: Debt | D48: ='C6-FinPos'!C30+'C6-FinPos'!C31+'C6-FinPos'!C33+'C6-FinPos'!C34+'C6-FinPos'!C40+'C6-FinPos'!C43 -> 3972906309 | E48: ='C6-FinPos'!D30+'C6-FinPos'!D31+'C6-FinPos'!D33+'C6-FinPos'!D34+'C6-FinPos'!D40+'C6-FinPos'!D43 -> 2845836302 | F48: ='C6-FinPos'!E30+'C6-FinPos'!E31+'C6-FinPos'!E33+'C6-FinPos'!E34+'C6-FinPos'!E40+'C6-FinPos'!E43 -> 0 | G48: ='C6-FinPos'!F30+'C6-FinPos'!F31+'C6-FinPos'!F33+'C6-FinPos'!F34+'C6-FinPos'!F40+'C6-FinPos'!F43 -> 4193179768 | H48: ='C6-FinPos'!G30+'C6-FinPos'!G31+'C6-FinPos'!G33+'C6-FinPos'!G34+'C6-FinPos'!G40+'C6-FinPos'!G43 -> 2845836302
A49: Equity | D49: ='C6-FinPos'!C51 -> 6058857370 | E49: ='C6-FinPos'!D51 -> 1.064537561e+10 | F49: ='C6-FinPos'!E51 -> 0 | G49: ='C6-FinPos'!F51 -> 6229365145 | H49: ='C6-FinPos'!G51 -> 1.064537561e+10
A50: ='C6-FinPos'!A49 -> Reserves and funds | D50: ='C6-FinPos'!C50 -> 120949602 | E50: ='C6-FinPos'!D50 -> 0 | F50: ='C6-FinPos'!E50 -> 0 | G50: ='C6-FinPos'!F50 -> 0 | H50: ='C6-FinPos'!G50 -> 0
A51: Borrowing | D51: ='C6-FinPos'!C40 -> 116274950 | E51: ='C6-FinPos'!D40 -> 559919194.3 | F51: ='C6-FinPos'!E40 -> 0 | G51: ='C6-FinPos'!F40 -> 0 | H51: ='C6-FinPos'!G40 -> 559919194.3
A52: ='C6-FinPos'!A6 -> Current assets | D52: ='C6-FinPos'!C14 -> 2040911374 | E52: ='C6-FinPos'!D14 -> 4114508456 | F52: ='C6-FinPos'!E14 -> 0 | G52: ='C6-FinPos'!F14 -> 2228910695 | H52: ='C6-FinPos'!G14 -> 4114508456
A53: ='C6-FinPos'!A29 -> Current liabilities | D53: ='C6-FinPos'!C38 -> 3853354226 | E53: ='C6-FinPos'!D38 -> 2372666556 | F53: ='C6-FinPos'!E38 -> 0 | G53: ='C6-FinPos'!F38 -> 3848027977 | H53: ='C6-FinPos'!G38 -> 2372666556
A54: Monetary assets | D54: ='C6-FinPos'!C7 -> 490954799 | E54: ='C6-FinPos'!D7 -> 211783355 | F54: ='C6-FinPos'!E7 -> 0 | G54: ='C6-FinPos'!F7 -> -13397394.45 | H54: ='C6-FinPos'!G7 -> 211783355
A55: ='[2]C4-FinPerf RE'!A33 -> Total Revenue (excluding capital transfers and contributions) | D55: ='C4-FinPerf RE'!C33 -> 6566334731 | E55: ='C4-FinPerf RE'!D33 -> 8963903223 | F55: ='C4-FinPerf RE'!E33 -> 0 | G55: ='C4-FinPerf RE'!G33 -> 2287375141 | H55: ='C4-FinPerf RE'!K33 -> 8963903223
A56: ='[2]C4-FinPerf RE'!A26 -> Transfers and subsidies - Operational | D56: ='C4-FinPerf RE'!C26 -> 824535909 | E56: ='C4-FinPerf RE'!D28 -> 0 | F56: ='C4-FinPerf RE'!E28 -> 0 | G56: ='C4-FinPerf RE'!G28 -> 0 | H56: ='C4-FinPerf RE'!K28 -> 0
A57: ='[2]C4-FinPerf RE'!A50 -> Transfers and subsidies - capital (monetary allocations) | D57: ='C4-FinPerf RE'!C50 -> 428104994 | E57: ='C4-FinPerf RE'!D50 -> 456974891 | F57: ='C4-FinPerf RE'!E50 -> 0 | G57: ='C4-FinPerf RE'!G50 -> 46637507.02 | H57: ='C4-FinPerf RE'!K50 -> 456974891
A58: Debt service payments | D58: ='C7-CFlow'!C12+'C7-CFlow'!C36 -> -9972807 | E58: ='C7-CFlow'!D12+'C7-CFlow'!D36 -> -70864853.2 | F58: ='C7-CFlow'!E12+'C7-CFlow'!E36 -> 0 | G58: ='C7-CFlow'!F12+'C7-CFlow'!F36 -> 0 | H58: ='C7-CFlow'!G12+'C7-CFlow'!G36 -> 0
A59: Outstanding debtors (receivables) | D59: ='C6-FinPos'!C8+'C6-FinPos'!C9+'C6-FinPos'!C10+'C6-FinPos'!C13+'C6-FinPos'!C23+'C6-FinPos'!C24 -> 1051676011 | E59: ='C6-FinPos'!D8+'C6-FinPos'!D9+'C6-FinPos'!D10+'C6-FinPos'!D13+'C6-FinPos'!D23+'C6-FinPos'!D24 -> 3460272073 | F59: ='C6-FinPos'!E8+'C6-FinPos'!E9+'C6-FinPos'!E10+'C6-FinPos'!E13+'C6-FinPos'!E23+'C6-FinPos'!E24 -> 0 | G59: ='C6-FinPos'!F8+'C6-FinPos'!F9+'C6-FinPos'!F10+'C6-FinPos'!F13+'C6-FinPos'!F23+'C6-FinPos'!F24 -> 1737668398 | H59: ='C6-FinPos'!G8+'C6-FinPos'!G9+'C6-FinPos'!G10+'C6-FinPos'!G13+'C6-FinPos'!G23+'C6-FinPos'!G24 -> 3460272073
A60: Annual services revenue | D60: ='C4-FinPerf RE'!C7+'C4-FinPerf RE'!C8+'C4-FinPerf RE'!C9+'C4-FinPerf RE'!C10+'C4-FinPerf RE'!C22 -> 5055187183 | E60: ='C4-FinPerf RE'!D7+'C4-FinPerf RE'!D8+'C4-FinPerf RE'!D9+'C4-FinPerf RE'!D10+'C4-FinPerf RE'!D22 -> 7333053305 | F60: ='C4-FinPerf RE'!E7+'C4-FinPerf RE'!E8+'C4-FinPerf RE'!E9+'C4-FinPerf RE'!E10+'C4-FinPerf RE'!E22 -> 0 | G60: ='C4-FinPerf RE'!F7+'C4-FinPerf RE'!F8+'C4-FinPerf RE'!F9+'C4-FinPerf RE'!F10+'C4-FinPerf RE'!F22 -> 561080660.5 | H60: ='C4-FinPerf RE'!G7+'C4-FinPerf RE'!G8+'C4-FinPerf RE'!G9+'C4-FinPerf RE'!G10+'C4-FinPerf RE'!G22 -> 1794424956
A61: Cash + investments | B61: Including LT investments | D61: ='C6-FinPos'!C7+'C6-FinPos'!C16-'C6-FinPos'!C30 -> 490954799 | E61: ='C6-FinPos'!D7+'C6-FinPos'!D16-'C6-FinPos'!D30 -> 211783355 | F61: ='C6-FinPos'!E7+'C6-FinPos'!E16-'C6-FinPos'!E30 -> 0 | G61: ='C6-FinPos'!F7+'C6-FinPos'!F16-'C6-FinPos'!F30 -> -13397394.45 | H61: ='C6-FinPos'!G7+'C6-FinPos'!G16-'C6-FinPos'!G30 -> 211783355
A62: Fixed operational expend. (monthly)
A63: Longstanding debtors outstanding | D63: ='C6-FinPos'!C23+'C6-FinPos'!C24 -> 0 | E63: ='C6-FinPos'!D23+'C6-FinPos'!D24 -> 0 | F63: ='C6-FinPos'!E23+'C6-FinPos'!E24 -> 0 | G63: ='C6-FinPos'!F23+'C6-FinPos'!F24 -> 0 | H63: ='C6-FinPos'!G23+'C6-FinPos'!G24 -> 0
A64: Longstanding debtors recovered
A65: Attorney collections

Sheet SC3
A1: =muni& " - "&S71I& " - "&Head57 -> KZN225 Msunduzi - Supporting Table SC3 Monthly Budget Statement - aged debtors - Q1 First Quarter
A2: =desc -> Description | C2: =Head2 -> Budget Year 2024/25
A3: R thousands | B3: NT Code | C3: 0-30 Days | D3: 31-60 Days | E3: 61-90 Days | F3: 91-120 Days | G3: 121-150 Dys | H3: 151-180 Dys | I3: 181 Dys-1 Yr | J3: Over 1Yr | K3: Total | L3: Total over 90 days | M3: Actual Bad Debts Written Off against Debtors | N3: Impairment - Bad Debts i.t.o Council Policy
A4: Debtors Age Analysis By Income Source
A5: Trade and Other Receivables from Exchange Transactions - Water | B5: 1200 | C5: 219099126.9 | D5: 6728462.82 | E5: 51816280.49 | F5: 42407420.69 | G5: 40316818.56 | H5: 38525468.16 | I5: 242554197.8 | J5: 2358082552 | K5: =SUM(C5:J5) -> 2999530327 | L5: =SUM(F5:J5) -> 2721886457 | N5: 1906430749
A6: Trade and Other Receivables from Exchange Transactions - Electricity | B6: 1300 | C6: 421015585.6 | D6: -3934415.85 | E6: 16232939.56 | F6: 16062398.75 | G6: 13051245.01 | H6: 15549551.12 | I6: 95086126.09 | J6: 255555640.9 | K6: =SUM(C6:J6) -> 828619071.2 | L6: =SUM(F6:J6) -> 395304961.9 | N6: 126684082.2
A7: Receivables from Non-exchange Transactions - Property Rates | B7: 1400 | C7: 224866406.8 | D7: 5377920.25 | E7: 32355613.51 | F7: 22581268.46 | G7: 22169413.15 | H7: 20625913.84 | I7: 121561915.5 | J7: 882066949.3 | K7: =SUM(C7:J7) -> 1331605401 | L7: 1069005460 | N7: 674200813.5
A8: Receivables from Exchange Transactions - Waste Water Management | B8: 1500 | C8: 47666643 | D8: 1162442.42 | E8: 6954130.59 | F8: 6685609.46 | G8: 6529476.2 | H8: 6412550.23 | I8: 38600047.5 | J8: 335543718.2 | K8: 449554617.6 | L8: 393771401.6 | N8: 274120256.6
A9: Receivables from Exchange Transactions - Waste Management | B9: 1600 | C9: 21733319.53 | D9: 897206.64 | E9: 3923591.36 | F9: 3676592.39 | G9: 3385865.18 | H9: 3315188.79 | I9: 18741917.8 | J9: 181494177.1 | K9: 237167858.8 | L9: =SUM(F9:J9) -> 210613741.3 | N9: 150625344.4
A10: Receivables from Exchange Transactions - Property Rental Debtors | B10: 1700 | C10: 3559974.82 | D10: 1828230.91 | E10: 804147.08 | F10: 907922.55 | G10: 910015.81 | H10: 819855.73 | I10: 4558254.22 | J10: 51983051.83 | K10: 65371452.95 | L10: =SUM(F10:J10) -> 59179100.14 | N10: 44056171.83
A11: Interest on Arrear Debtor Accounts | B11: 1810 | C11: 128324134.7 | D11: 0 | E11: 51159135.78 | F11: 37343432.79 | G11: 39052002.07 | H11: 34206322.57 | I11: 215193573.3 | J11: 1119574002 | K11: 1624852603 | L11: 1445369333 | N11: 853675561.6
A12: Recoverable unauthorised, irregular, fruitless and wasteful expenditure | B12: 1820 | K12: 0 | L12: 0
A13: Other | B13: 1900 | C13: 1117192.79 | D13: 209093.45 | E13: 26361.67 | F13: 140431.21 | G13: 140659 | H13: 207559.32 | I13: 776281.43 | J13: 163201693.7 | K13: 165819272.6 | L13: =SUM(F13:J13) -> 164466624.7 | N13: 162001445.1
A14: Total By Income Source | B14: 2000 | C14: =SUM(C5:C13) -> 1067382384 | D14: 12268940.64 | E14: 163272200 | F14: 129805076.3 | G14: 125555495 | H14: 119662409.8 | I14: 737072313.8 | J14: 5347501785 | K14: 7702520604 | L14: =SUM(L5:L13) -> 6459597080 | M14: 0 | N14: 4191794425
A15: =Head1&" - totals only" -> 2023/24 - totals only | C15: 249422430.3 | D15: 162839700.6 | E15: 111627162.3 | F15: 114846093 | G15: 130503288 | H15: 103669212.4 | I15: 636662406.5 | J15: 4524736623 | K15: =SUM(C15:J15) -> 6034306916 | L15: =SUM(F15:J15) -> 5510417623 | N15: 3519100127
A16: Debtors Age Analysis By Customer Group
A17: Organs of State | B17: 2200 | C17: 112483731.3 | D17: -6521230.39 | E17: 11387415.56 | F17: 5604008.05 | G17: 5415853.55 | H17: 4613681.49 | I17: 21461371.4 | J17: 83845613.64 | K17: =SUM(C17:J17) -> 238290444.6 | L17: =SUM(F17:J17) -> 120940528.1 | N17: 60784956.27
A18: Commercial | B18: 2300 | C18: 446240695.4 | D18: 3306201.43 | E18: 34976147.77 | F18: 24165249.75 | G18: 23601279.39 | H18: 23059747.62 | I18: 137120899 | J18: 678473907.4 | K18: =SUM(C18:J18) -> 1370944128 | L18: =SUM(F18:J18) -> 886421083.1 | N18: 490246298.7
A19: Households | B19: 2400 | C19: 508657957.4 | D19: 15483969.6 | E19: 116908636.7 | F19: 100035818.5 | G19: 96538362.04 | H19: 91988980.65 | I19: 578490043.4 | J19: 4585182264 | K19: =SUM(C19:J19) -> 6093286032 | L19: =SUM(F19:J19) -> 5452235468 | N19: 3640763170
A20: Other | B20: 2500 | K20: =SUM(C20:J20) -> 0 | L20: =SUM(F20:J20) -> 0
A21: Total By Customer Group | B21: 2600 | C21: =SUM(C17:C20) -> 1067382384 | D21: 12268940.64 | E21: 163272200 | F21: 129805076.3 | G21: 125555495 | H21: 119662409.8 | I21: 737072313.8 | J21: =SUM(J17:J20) -> 5347501785 | K21: =SUM(K17:K20) -> 7702520604 | L21: =SUM(L17:L20) -> 6459597080 | M21: =SUM(M17:M20) -> 0 | N21: =SUM(N17:N20) -> 4191794425
A22: Notes
A23: Material increases in value of debtors' categories compared to previous month to be explained
A24: Bad debts = amounts actually written off in the month
A25: Total by Income Source must reconcile with Total by Customer Group
C26: =C14-C21 -> 0 | D26: =D14-D21 -> 0 | E26: =E14-E21 -> 0 | F26: 0 | G26: 0 | H26: 0 | I26: 0 | J26: =J14-J21 -> 0 | K26: 0
C27: =IF(C26=0,"","MUST AGREE") ->  | D27: =IF(D26=0,"","MUST AGREE") -> 

Sheet SC4
A1: =muni& " - "&S71J& " - "&Head57 -> KZN225 Msunduzi - Supporting Table SC4 Monthly Budget Statement - aged creditors - Q1 First Quarter
A2: =desc -> Description | B2: NT Code | C2: =Head2 -> Budget Year 2024/25 | L2: Prior year totals for chart (same period)
C3: 0 - 30 Days | D3: 31 - 60 Days | E3: 61 - 90 Days | F3: 91 - 120 Days | G3: 121 - 150 Days | H3: 151 - 180 Days | I3: 181 Days - 1 Year | J3: Over 1 Year | K3: Total
A4: R thousands
A5: Creditors Age Analysis By Customer Type
A6: Bulk Electricity | B6: 0100 | C6: 825251408.3 | D6: 99870709.14 | E6: -3979380.71 | F6: 0 | G6: 781686593.6 | K6: =SUM(C6:J6) -> 1702829330 | L6: 1181621150
A7: Bulk Water | B7: 0200 | C7: 256073670.2 | D7: 83593002.17 | E7: 26328944.86 | F7: 23651170.36 | G7: 391826209.1 | K7: =SUM(C7:J7) -> 781472996.6 | L7: 538827513.3
A8: PAYE deductions | B8: 0300 | K8: 0 | L8: 0
A9: VAT (output less input) | B9: 0400 | K9: 0 | L9: 0
A10: Pensions / Retirement deductions | B10: 0500 | K10: 0 | L10: 0
A11: Loan repayments | B11: 0600 | K11: 0 | L11: 0
A12: Trade Creditors | B12: 0700 | K12: 0 | L12: 0
A13: Auditor General | B13: 0800 | K13: 0 | L13: 0
A14: Other | B14: 0900 | C14: 27861167.36 | D14: 17919217.07 | E14: 17706527.41 | F14: 79483409.53 | G14: 26969967.78 | K14: =SUM(C14:J14) -> 169940289.2 | L14: 131147674.8
A15: Medical Aid deductions | K15: =SUM(C15:J15) -> 0
A16: Total By Customer Type | B16: 1000 | C16: =SUM(C6:C15) -> 1109186246 | D16: =SUM(D6:D15) -> 201382928.4 | E16: 40056091.56 | F16: 103134579.9 | G16: 1200482770 | H16: 0 | I16: 0 | J16: 0 | K16: 2654242616 | L16: 1851596338
A17: Notes
A18: Material increases in value of creditors' categories compared to previous month to be explained

Sheet SC5
A1: =muni& " - "&S71K& " - "&Head57 -> KZN225 Msunduzi - Supporting Table SC5 Monthly Budget Statement - investment portfolio - Q1 First Quarter
A2: Investments by maturity Name of institution & investment ID | B2: Ref | C2: Period of Investment | D2: Type of Investment | E2: Capital Guarantee (Yes/ No) | F2: Variable or Fixed interest rate | G2: Interest Rate ᶟ | H2: Commission Paid (Rands) | I2: Commission Recipient | J2: Expiry date of investment | K2: Opening balance | L2: Interest to be realised | M2: Partial / Premature Withdrawal (4) | N2: Investment Top Up | O2: Closing Balance
A3: R thousands | C3: Yrs/Months
A4: Municipality
A5: Municipal Infrastructure Grant | K5: 81816302.32 | M5: -86223245.33 | N5: 84600000 | O5: =SUM(K5:N5) -> 80193056.99
A6: Unspent Conditional Grant | K6: 209899012.6 | L6: 129922.93 | M6: -219407448.3 | N6: 54410141.43 | O6: =SUM(K6:N6) -> 45031628.73
A7: Housing Accreditation | K7: 11095324.87 | L7: 71108.02 | M7: -544500.17 | O7: 10621932.72
A8: Municipal Housing Account | K8: 50426966.17 | L8: 402799.84 | O8: 50829766.01
A9: Housing Projects: Principal-Agent | K9: 12632306.72 | L9: 31567.67 | O9: 12663874.39
A10: Compensation Fund (COID)1131010020 | K10: 40874344.68 | L10: 32385.25 | M10: -40000000 | O10: 906729.93
A11: Compensation Fund (COID) | K11: 23584673 | O11: 23584673
A12: Airport Development Fund | K12: 28803.16 | L12: 189.59 | O12: 28992.75
A13: Insurance Fund | K13: 7967793.8 | L13: 52445.55 | O13: 8020239.35
A14: Vat Recovery on Prov. Grants | K14: 1038539.06 | L14: 6835.87 | O14: 1045374.93
A15: Vat Refunds | K15: 5086726.34 | L15: 33481.81 | O15: 5120208.15
A16: Call - General Reserves | K16: 31244494.94 | M16: -97244494.94 | N16: 81543156.41 | O16: 15543156.41
A17: 7 Day Notice - General Reserves | K17: 7955666.9 | L17: 52616.38 | O17: 8008283.28
A18: 1 Day Notice - General Reserves | K18: 122246.45 | L18: 835.03 | O18: 123081.48
A19: Call Account-Loan | K19: 34134046.59 | L19: 229291.98 | N19: -14919274.6 | O19: 19444063.97
O20: 0
O21: 0
A22: Municipality sub-total | K22: =SUM(K5:K21) -> 517907247.6 | L22: =SUM(L5:L21) -> 1043479.92 | M22: =SUM(M5:M21) -> -443419688.7 | N22: =SUM(N5:N21) -> 205634023.2 | O22: =SUM(O5:O21) -> 281165062.1
A24: Entities
O25: =SUM(K25:N25) -> 0
O26: 0
O27: 0
O28: 0
O29: 0
O30: 0
O31: 0
A32: Entities sub-total | K32: =SUM(K25:K31) -> 0 | L32: =SUM(L25:L31) -> 0 | M32: =SUM(M25:M31) -> 0 | N32: =SUM(N25:N31) -> 0 | O32: =SUM(O25:O31) -> 0
A34: TOTAL INVESTMENTS AND INTEREST | B34: 2 | K34: =K22+K32 -> 517907247.6 | L34: =L22+L32 -> 1043479.92 | M34: =M22+M32 -> -443419688.7 | N34: =N22+N32 -> 205634023.2 | O34: =O22+O32 -> 281165062.1
A35: =head27a -> References
A36: 2. List investments in expiry date order
A37: 3. If 'variable' is selected in column F, input interest rate range
A38: 4. Withdrawals to be entered as negative

Sheet SC6
A1: =muni& " - "&S71L& " - "&Head57 -> KZN225 Msunduzi - Supporting Table SC6 Monthly Budget Statement - transfers and grant receipts - Q1 First Quarter
A2: =desc -> Description | B2: =head27 -> Ref | C2: =Head1 -> 2023/24 | D2: =Head2 -> Budget Year 2024/25
C3: =Head5 -> Audited Outcome | D3: =Head6 -> Original Budget | E3: =Head7 -> Adjusted Budget | F3: =Head38 -> Monthly actual | G3: =Head39 -> YearTD actual | H3: =Head40 -> YearTD budget | I3: =Head41 -> YTD variance | J3: =Head41 -> YTD variance | K3: =Head8 -> Full Year Forecast
A4: R thousands | J4: %
A5: RECEIPTS: | B5: 1,2
A7: Operating Transfers and Grants
A8: National Government: | C8: =SUM(C9:C28) -> 795277217.8 | D8: 895184080 | E8: 0 | F8: 0 | G8: 371551258 | H8: 223796020 | I8: 147755238 | J8: =IF(I8=0,"",I8/H8) -> 0.6602228136 | K8: =SUM(K9:K28) -> 895184080
A9: Local Government Equitable Share | C9: 767222000 | D9: 822072000 | G9: 342530000 | H9: =D9/12*3 -> 205518000 | I9: =G9-H9 -> 137012000 | J9: =IF(I9=0,"",I9/H9) -> 0.6666666667 | K9: =D9 -> 822072000
A10: Finance Management | C10: 1807398.14 | D10: 1900000 | G10: 1900000 | H10: =D10/12*3 -> 475000 | I10: =G10-H10 -> 1425000 | J10: =IF(I10=0,"",I10/H10) -> 3 | K10: =D10 -> 1900000
A11: Municipal Systems Improvement Operating | C11: 0 | D11: 0 | H11: 0 | I11: 0 | K11: 0
A12: EPWP Incentive | C12: 4700996.67 | D12: 2092000 | G12: 522000 | H12: 523000 | I12: -1000 | J12: -0.001912045889 | K12: 2092000
A13: Water Services Infrastructure Grant (WSIG)-OPERATING | C13: 13948235 | D13: 30000000 | G13: 11500000 | H13: 7500000 | I13: 4000000 | J13: 0.5333333333 | K13: 30000000
A14: Public Transport Infrastracture | C14: 0 | D14: 30000000 | G14: 12000000 | H14: 7500000 | I14: 4500000 | J14: 0.6 | K14: 30000000
A15: Energy Efficiency and Demand Management | C15: 0 | G15: 50000 | H15: 0 | I15: 50000 | K15: 0
A16: Operating costs-MIG | C16: 7598588 | D16: 9120080 | G16: 3049258 | H16: 2280020 | I16: 769238 | J16: 0.3373821282 | K16: 9120080
I17: 0
I18: 0
I19: =G19-H19 -> 0 | J19: =IF(I19=0,"",I19/H19) -> 
I20: 0
I21: 0
I22: 0
B23: 3 | I23: 0
I24: 0
I25: 0
I26: 0
I27: 0
A28: Other transfers and grants [insert description] | I28: 0
A29: Provincial Government: | C29: =SUM(C30:C60) -> 29258690.9 | D29: 61695859.29 | E29: 0 | F29: 19367141.43 | G29: 25165821.15 | H29: 15423964.82 | I29: 9741856.328 | J29: 0.6316051962 | K29: =SUM(K30:K60) -> 61695859.29
A30: Provincial Government: | C30: 0 | I30: 0
A31: Expanded Public Works Grant | C31: 0 | I31: =G31-H31 -> 0 | J31: =IF(I31=0,"",I31/H31) -> 
A32: Human Settlements - Housing Development | C32: 0 | I32: 0
A33: Human Settlements - Title Deeds Restoration | C33: 0 | I33: 0
A34: Housing Accreditation-OPERATING | C34: 6417979.74 | D34: 8000000 | G34: 5416397.99 | H34: =D34/12*3 -> 2000000 | I34: 3416397.99 | J34: 1.708198995 | K34: =D34 -> 8000000
A35: Human Settlements - Accredited Municipal RO | C35: 0 | D35: 0 | I35: 0
A36: Housing Projects -OPERATING | C36: 1181354 | D36: 38535953.82 | H36: =D36/12*3 -> 9633988.455 | I36: -9633988.455 | J36: -1 | K36: =D36 -> 38535953.82
A37: Arts and Culture- Community Library Services | C37: 0 | I37: 0
A38: Community Library Service and Provincialsation Library-OPERATING | C38: 14820971.71 | I38: =G38-H38 -> 0 | J38: =IF(I38=0,"",I38/H38) -> 
A39: Arts and Culture-Museum Subsidies | I39: 0
A40: Tatham Art Gallery-OPERATING | C40: 204595.07 | D40: 14659905.47 | H40: =D40/12*3 -> 3664976.367 | I40: -3664976.367 | J40: -1 | K40: =D40 -> 14659905.47
A41: Greater Edendale Development Iniatative-OPERATING | C41: 2081077.58 | D41: 500000 | H41: =D41/12*3 -> 125000 | I41: -125000 | J41: -1 | K41: =D41 -> 500000
A42: Operation Dlulisumlando-OPERATING | C42: 0 | I42: 0
A43: SETA- Bursaries for Non Employees- OPERATING | C43: 1662711.78 | F43: 44000 | G43: 426281.73 | I43: 426281.73
A44: Arts and Culture-Museum Subsidies - Tatham Art Gallery | C44: 0 | I44: 0
A45: Municipal Employment Initiative - OPERATING | C45: 2890001.02 | I45: 0
A46: Regional Bulk Infrastructure Grant/BFI- OPERATING | F46: 19323141.43 | G46: 19323141.43 | I46: =G46-H46 -> 19323141.43 | J46: =IF(I46=0,"",I46/H46) -> 
A47: COGTA | I47: 0
I48: =G48-H48 -> 0 | J48: =IF(I48=0,"",I48/H48) -> 
I49: 0
I50: 0
I51: 0
I52: 0
I53: 0
I54: 0
I55: 0
I56: =G56-H56 -> 0
I57: 0
B58: 4 | I58: 0
I59: 0
A60: Other transfers and grants [insert description] | I60: 0
A61: District Municipality: | C61: =SUM(C62:C63) -> 0 | D61: 0 | E61: 0 | F61: 0 | G61: 0 | H61: 0 | I61: 0 | K61: =SUM(K62:K63) -> 0
A62: [insert description] | I62: 0
I63: 0
A64: Other grant providers: | C64: =SUM(C65:C71) -> 0 | D64: 0 | E64: 0 | F64: 0 | G64: 0 | H64: 0 | I64: 0 | K64: =SUM(K65:K71) -> 0
A65: [insert description] | I65: 0
I66: 0 | J66: =IF(I66=0,"",I66/H66) -> 
I67: 0
I68: 0
I69: 0
I70: 0
I71: 0
A72: Total Operating Transfers and Grants | B72: 5 | C72: =C8+C29+C61+C64 -> 824535908.7 | D72: 956879939.3 | E72: 0 | F72: 19367141.43 | G72: 396717079.1 | H72: 239219984.8 | I72: 157497094.3 | J72: =IF(I72=0,"",I72/H72) -> 0.6583776621 | K72: =K8+K29+K61+K64 -> 956879939.3
A74: Capital Transfers and Grants
A75: =A8 -> National Government: | C75: =SUM(C76:C91) -> 259763434.8 | D75: 312602919.9 | E75: 0 | F75: 0 | G75: 110887742 | H75: 78150729.97 | I75: 32737012.03 | J75: =IF(I75=0,"",I75/H75) -> 0.4188957934 | K75: 312602919.9
A76: Municipal Infrastructure Grant (MIG) | C76: 204367192.7 | D76: 222681919.9 | G76: 84437742 | H76: =D76/12*3 -> 55670479.97 | I76: =G76-H76 -> 28767262.03 | J76: 0.5167417642 | K76: =D76 -> 222681919.9
A77: Public Transport Infrastracture | C77: 0 | D77: 20000000 | G77: 5000000 | H77: 5000000 | I77: 0 | K77: 20000000
A78: Neighbourhood Development Partnership | C78: 12973387.74 | D78: 20000000 | G78: 5000000 | H78: 5000000 | I78: =G78-H78 -> 0 | K78: 20000000
A79: Dept of Mineral/Electricty | C79: 0 | D79: 0 | H79: 0 | I79: 0 | K79: 0
A80: Intergrated National Electrification Porgramme | C80: 12218873.34 | D80: 4971000 | G80: 2000000 | H80: 1242750 | I80: 757250 | J80: 0.609334138 | K80: 4971000
A81: Municipal Systems Improvement Capital | C81: 0 | H81: 0 | I81: 0 | K81: 0
A82: Water Services Infrastructure Grant (WSIG)-CAPITAL | C82: 25203981.06 | D82: 40000000 | G82: 13500000 | H82: 10000000 | I82: 3500000 | J82: 0.35 | K82: 40000000
A83: Energy Efficiency and Demand Manaagement | C83: 5000000 | D83: 4950000 | G83: 950000 | H83: 1237500 | I83: -287500 | J83: -0.2323232323 | K83: 4950000
I84: 0
I85: 0
I86: 0
I87: 0
I88: =G88-H88 -> 0
I89: 0
I90: 0
A91: Other capital transfers [insert description] | I91: 0
A92: =A29 -> Provincial Government: | C92: =SUM(C93:C123) -> 168341559 | D92: 133835182.1 | E92: 0 | F92: 0 | G92: 2643000 | H92: 33458795.52 | I92: -30815795.52 | J92: -0.9210073178 | K92: =SUM(K93:K123) -> 120621182.1
A93: Airport Development Project | I93: 0 | J93: =IF(I93=0,"",I93/H93) -> 
A94: Sport and Recreation | C94: 0 | I94: 0
A95: KZNPA | C95: 0 | I95: 0
A96: KZN-Military Veterans | C96: 0 | I96: 0
A97: PMB Airport- CAPITAL | C97: 3201175.34 | I97: 0
A98: Arts and Culture-Museum Subsidies | C98: 0 | I98: =G98-H98 -> 0 | J98: =IF(I98=0,"",I98/H98) -> 
A99: COGTA | C99: 3039104.45 | I99: 0
A100: Manaye Area Precinct Upgrade-CAPITAL | C100: 0 | I100: 0
A101: Human Settlement - Housing Accreditation | C101: 0 | I101: 0
A102: Housing Accreditation-CAPITAL | C102: 733560.62 | D102: 700000 | H102: =D102/12*3 -> 175000 | I102: -175000 | J102: -1 | K102: =D102 -> 700000
A103: Capital Provincial KZN Treausry | C103: 0 | I103: 0
A104: Economic development tourism | I104: 0
A105: Eastwood Primary Substation-CAPITAL | C105: 378947.47 | I105: 0
A106: Jika Joe Community Residential Units-CAPITAL | I106: 0
A107: Greater Edendale Development Iniatative-CAPITAL | C107: 77553221.89 | I107: 0
A108: Youth Enterprise Park-CAPITAL | C108: 0 | I108: 0
A109: Informal Economy Instructure Development-CAPITAL | C109: 0 | D109: 1000000 | H109: =D109/12*3 -> 250000 | I109: -250000 | J109: -1 | K109: =D109 -> 1000000
A110: Corridor Development- CAPITAL | I110: 0
A111: Municipal Disaster Relief Grant-CAPITAL | C111: 8203392.36 | D111: 13214000 | G111: 2643000 | H111: =D111/12*3 -> 3303500 | I111: -660500 | J111: -0.1999394582
A112: Community Library Service and Provincialsation Library-CAPITAL | C112: 6376709.59 | I112: 0
A113: Provincial Government: | I113: 0
A114: Arts and Culture-Museum Subsidies - Tatham Art Gallery | C114: 170531.39 | D114: 1865000 | H114: =D114/12*3 -> 466250 | I114: -466250 | J114: -1 | K114: =D114 -> 1865000
A115: Operation Dlulisumlando-Capital | C115: 0 | I115: 0 | K115: =D115 -> 0
A116: KZN-Military Veterans | I116: 0
A117: Housing Projects -CAPITAL | C117: 68684915.87 | D117: 117056182.1 | H117: =D117/12*3 -> 29264045.52 | I117: -29264045.52 | J117: -1 | K117: =D117 -> 117056182.1
I118: 0
I119: =G119-H119 -> 0 | J119: =IF(I119=0,"",I119/H119) -> 
I120: =G120-H120 -> 0
I121: =G121-H121 -> 0
I122: =G122-H122 -> 0
I123: =G123-H123 -> 0
A124: =A61 -> District Municipality: | C124: =SUM(C125:C126) -> 0 | D124: 0 | E124: 0 | F124: 0 | G124: 0 | H124: 0 | I124: 0 | K124: =SUM(K125:K126) -> 0
A125: [insert description] | I125: 0
I126: 0
A127: =A64 -> Other grant providers: | C127: =SUM(C128:C133) -> 0 | D127: 0 | E127: 0 | F127: 0 | G127: 0 | H127: 0 | I127: 0 | K127: =SUM(K128:K133) -> 0
A128: [insert description] | I128: =G128-H128 -> 0
I129: 0
I130: 0
I131: 0
I132: 0
I133: 0
A134: Total Capital Transfers and Grants | B134: 5 | C134: =C75+C92+C124+C127 -> 428104993.8 | D134: =D75+D92+D124+D127 -> 446438101.9 | E134: 0 | F134: 0 | G134: 113530742 | H134: 111609525.5 | I134: 1921216.517 | J134: 0.01721373251 | K134: 433224101.9
A136: TOTAL RECEIPTS OF TRANSFERS & GRANTS | B136: 5 | C136: =C72+C134 -> 1252640903 | D136: 1403318041 | E136: 0 | F136: 19367141.43 | G136: 510247821.1 | H136: 350829510.3 | I136: 159418310.8 | J136: =IF(I136=0,"",I136/H136) -> 0.4544039374 | K136: 1390104041
A137: =head27a -> References
A138: 1. Each grant is listed by name as gazetted together with the name of the transferring department or municipality, donor or other organisation
A139: 2. Grant expenditure must be separately listed for each grant received
A140: 3. Replacement of RSC levies
A141: 4. Housing subsidies for housing where ownership transferred
A142: 5. Total recurrent/capital grants and subsidies must reconcile to the 'Financial Performance' Statement

Sheet SC8
A1: =muni& " - "&S71N& " - "&Head57 -> KZN225 Msunduzi - Supporting Table SC8 Monthly Budget Statement - councillor and staff benefits - Q1 First Quarter
A2: Summary of Employee and Councillor remuneration | B2: =head27 -> Ref | C2: =Head1 -> 2023/24 | D2: =Head2 -> Budget Year 2024/25
C3: =Head5 -> Audited Outcome | D3: =Head6 -> Original Budget | E3: =Head7 -> Adjusted Budget | F3: =Head38 -> Monthly actual | G3: =Head39 -> YearTD actual | H3: =Head40 -> YearTD budget | I3: =Head41 -> YTD variance | J3: =Head41 -> YTD variance | K3: =Head8 -> Full Year Forecast
A4: R thousands | J4: %
B5: 1 | C5: A | D5: B | E5: C | K5: D
A6: Councillors (Political Office Bearers plus Other)
A7: Basic Salaries and Wages | C7: 50824106.18 | D7: 3834643.672 | F7: 3723632.56 | G7: 11213276.68 | H7: =D7/12*3 -> 958660.918 | I7: =G7-H7 -> 10254615.76 | J7: =IF(I7=0,"",I7/H7) -> 10.69681216 | K7: =D7 -> 3834643.672
A8: Pension and UIF Contributions | C8: 3374216.72 | D8: 3492915.085 | F8: 259290.52 | G8: 781705.93 | H8: =D8/12*3 -> 873228.7712 | I8: -91522.84115 | J8: -0.104809695 | K8: =D8 -> 3492915.085
A9: Medical Aid Contributions | C9: 2085751.87 | D9: 8480746.452 | F9: 181481.56 | G9: 540308.61 | H9: 2120186.613 | I9: -1579878.003 | J9: -0.7451598804 | K9: 8480746.452
A10: Motor Vehicle Allowance | C10: 2871924.22 | D10: 41629029.95 | F10: 235405.43 | G10: 706216.29 | H10: 10407257.49 | I10: -9701041.196 | J10: -0.9321419412 | K10: 41629029.95
A11: Cellphone Allowance | C11: 4239621 | D11: 791610.0564 | F11: 309443 | G11: 932246 | H11: 197902.5141 | I11: 734343.4859 | J11: 3.710632425 | K11: 791610.0564
A12: Housing Allowances | C12: 98173.45 | D12: 8232985.9 | F12: 17449.54 | G12: 42348.62 | H12: 2058246.475 | I12: -2015897.855 | J12: -0.9794249034 | K12: 8232985.9
A13: Other benefits and allowances | C13: 48218.15 | D13: 0 | F13: 1614.38 | G13: 4843.14 | H13: 0 | I13: 4843.14 | K13: 0
A14: Sub Total - Councillors | C14: =SUM(C7:C13) -> 63542011.59 | D14: 66461931.11 | E14: 0 | F14: 4728316.99 | G14: 14220945.27 | H14: 16615482.78 | I14: -2394537.508 | J14: -0.1441148319 | K14: =SUM(K7:K13) -> 66461931.11
A15: % increase | B15: 4 | D15: =IF(D14=0,"",(D14/C14)-1) -> 0.04595258236 | E15: =IF(E14=0,"",(E14/C14)-1) ->  | K15: =IF(K14=0,"",(K14/C14)-1) -> 0.04595258236
A17: Senior Managers of the Municipality | B17: 3
A18: Basic Salaries and Wages | C18: 6464516.71 | D18: 12200409.4 | F18: 524105.68 | G18: 1543100.82 | H18: =D18/12*3 -> 3050102.35 | I18: =G18-H18 -> -1507001.53 | J18: =IF(I18=0,"",I18/H18) -> -0.4940822822 | K18: =D18 -> 12200409.4
A19: Pension and UIF Contributions | C19: 1021148.04 | D19: 917910.074 | F19: 84380.99 | G19: 247831.05 | H19: 229477.5185 | I19: 18353.5315 | J19: 0.07997964951 | K19: =D19 -> 917910.074
A20: Medical Aid Contributions | C20: 170379.04 | D20: 271689.2042 | F20: 15636.02 | G20: 44778.78 | H20: 67922.30105 | I20: -23143.52105 | J20: -0.3407352326 | K20: =D20 -> 271689.2042
A21: Overtime | C21: 0 | D21: 0 | F21: 0 | G21: 0 | I21: 0
A22: Performance Bonus | C22: 511203.32 | F22: 0 | G22: 0 | H22: =D22/12*3 -> 0 | I22: 0
A23: Motor Vehicle Allowance | C23: 893455.84 | D23: 1031943.199 | F23: 69515.92 | G23: 208547.76 | H23: 257985.7998 | I23: -49438.0398 | J23: -0.1916308566 | K23: =D23 -> 1031943.199
A24: Cellphone Allowance | C24: 108880.41 | D24: 123953.22 | F24: 7950 | G24: 23850 | H24: 30988.305 | I24: -7138.305 | J24: -0.2303548064 | K24: =D24 -> 123953.22
A25: Housing Allowances | C25: 206833.92 | D25: 216908.2452 | F25: 17380.13 | G25: 51852.45 | H25: 54227.0613 | I25: -2374.6113 | J25: -0.0437901528 | K25: =D25 -> 216908.2452
A26: Other benefits and allowances | C26: 135832.14 | F26: 0 | G26: 60529.4 | H26: 0 | I26: 60529.4
A27: Payments in lieu of leave | I27: 0
A28: Long service awards | I28: 0
A29: Post-retirement benefit obligations | B29: 2 | I29: 0
A30: Entertainment | I30: =G30-H30 -> 0 | J30: =IF(I30=0,"",I30/H30) -> 
A31: Scarcity | I31: =G31-H31 -> 0 | J31: =IF(I31=0,"",I31/H31) -> 
A32: Acting and post related allowance | I32: =G32-H32 -> 0 | J32: =IF(I32=0,"",I32/H32) -> 
A33: In kind benefits | I33: =G33-H33 -> 0 | J33: =IF(I33=0,"",I33/H33) -> 
A34: Sub Total - Senior Managers of Municipality | C34: =SUM(C18:C33) -> 9512249.42 | D34: 14762813.34 | E34: 0 | F34: 718968.74 | G34: 2180490.26 | H34: 3690703.336 | I34: =G34-H34 -> -1510213.076 | J34: =IF(I34=0,"",I34/H34) -> -0.4091938415 | K34: =SUM(K18:K33) -> 14762813.34
A35: % increase | B35: 4 | D35: =IF(D34=0,"",(D34/C34)-1) -> 0.5519792104 | E35: =IF(E34=0,"",(E34/C34)-1) ->  | K35: =IF(K34=0,"",(K34/C34)-1) -> 0.5519792104
A37: Other Municipal Staff
A38: Basic Salaries and Wages | C38: 980231364 | D38: 1376357329 | F38: 90345774.49 | G38: 256443637 | H38: =D38/12*3 -> 344089332.2 | I38: =G38-H38 -> -87645695.23 | J38: =IF(I38=0,"",I38/H38) -> -0.2547178509 | K38: =D38 -> 1376357329
A39: Pension and UIF Contributions | C39: 187272638.3 | D39: 144585879.9 | F39: 17320224.68 | G39: 48140496.59 | H39: 36146469.98 | I39: 11994026.61 | J39: 0.3318173703 | K39: 144585879.9
A40: Medical Aid Contributions | C40: 137670446.4 | D40: 122981485 | F40: 6898807.75 | G40: 20461586.63 | H40: 30745371.26 | I40: -10283784.63 | J40: -0.3344823695 | K40: 122981485
A41: Overtime | C41: 123315223.6 | D41: 107181183.4 | F41: 11744063.13 | G41: 33674855.28 | H41: 26795295.86 | I41: 6879559.42 | J41: 0.2567450442 | K41: 107181183.4
A42: Performance Bonus | C42: 73993284.41 | F42: 241734.4 | G42: 625966.74 | H42: 0 | I42: 625966.74 | K42: 0
A43: Motor Vehicle Allowance | C43: 32027620.75 | D43: 44228443.29 | F43: 2677099.86 | G43: 8110951.61 | H43: 11057110.82 | I43: -2946159.213 | J43: -0.2664492795 | K43: 44228443.29
A44: Cellphone Allowance | C44: 5414743.6 | D44: 6355087.419 | F44: 470670.41 | G44: 1408661.23 | H44: 1588771.855 | I44: -180110.6248 | J44: -0.1133646875 | K44: 6355087.419
A45: Housing Allowances | C45: 4715419.95 | D45: 7305739.399 | F45: 430298.03 | G45: 1187230.55 | H45: 1826434.85 | I45: -639204.2997 | J45: -0.3499737753 | K45: 7305739.399
A46: Other benefits and allowances | C46: 31490909.12 | D46: 8423209.652 | F46: 1812067.33 | G46: 5770611.2 | H46: 2105802.413 | I46: 3664808.787 | J46: 1.740338393 | K46: 8423209.652
A47: Payments in lieu of leave | C47: 0 | D47: 0 | F47: 0 | G47: 0 | H47: 0 | I47: 0 | K47: 0
A48: Long service awards | C48: 27274415.16 | D48: 14834667.21 | F48: 1621552.15 | G48: 5819441.91 | H48: 3708666.804 | I48: 2110775.106 | J48: 0.5691466013 | K48: 14834667.21
A49: Post-retirement benefit obligations | B49: 2 | C49: 0 | F49: 0 | G49: 0 | I49: 0
A50: Entertainment | I50: 0
A51: Scarcity | I51: 0
A52: Acting and post related allowance | I52: 0
A53: In kind benefits | I53: 0
A54: Sub Total - Other Municipal Staff | C54: =SUM(C38:C53) -> 1603406065 | D54: 1832253024 | E54: 0 | F54: 133562292.2 | G54: 381643438.7 | H54: 458063256 | I54: -76419817.34 | J54: -0.1668324545 | K54: =SUM(K38:K53) -> 1832253024
A55: % increase | B55: 4 | D55: =IF(D54=0,"",(D54/C54)-1) -> 0.1427255165 | E55: =IF(E54=0,"",(E54/C54)-1) ->  | K55: =IF(K54=0,"",(K54/C54)-1) -> 0.1427255165
A56: Total Parent Municipality | C56: =C14+C34+C54 -> 1676460326 | D56: 1913477769 | E56: 0 | F56: 139009578 | G56: 398044874.2 | H56: 478369442.2 | I56: =G56-H56 -> -80324567.92 | J56: =IF(I56=0,"",I56/H56) -> -0.1679132504 | K56: =K14+K34+K54 -> 1913477769
D57: =IF(D56=0,"",(D56/C56)-1) -> 0.1413796906 | E57: =IF(E56=0,"",(E56/C56)-1) ->  | K57: =IF(K56=0,"",(K56/C56)-1) -> 0.1413796906
A58: Unpaid salary, allowances & benefits in arrears:
A60: Board Members of Entities
A61: Basic Salaries and Wages | I61: =G61-H61 -> 0 | J61: =IF(I61=0,"",I61/H61) -> 
A62: Pension and UIF Contributions | I62: 0
A63: Medical Aid Contributions | I63: 0
A64: Overtime | I64: 0
A65: Performance Bonus | I65: 0
A66: Motor Vehicle Allowance | I66: 0
A67: Cellphone Allowance | I67: 0
A68: Housing Allowances | I68: 0
A69: Other benefits and allowances | I69: 0
A70: Board Fees | B70: 5 | I70: 0
A71: Payments in lieu of leave | I71: 0
A72: Long service awards | I72: 0
A73: Post-retirement benefit obligations | I73: 0
A74: Entertainment | I74: =G74-H74 -> 0 | J74: =IF(I74=0,"",I74/H74) -> 
A75: Scarcity | I75: =G75-H75 -> 0 | J75: =IF(I75=0,"",I75/H75) -> 
A76: Acting and post related allowance | I76: =G76-H76 -> 0 | J76: =IF(I76=0,"",I76/H76) -> 
A77: In kind benefits | I77: =G77-H77 -> 0 | J77: =IF(I77=0,"",I77/H77) -> 
A78: Sub Total - Executive members Board | B78: 2 | C78: =SUM(C61:C77) -> 0 | D78: 0 | E78: 0 | F78: 0 | G78: 0 | H78: 0 | I78: =G78-H78 -> 0 | J78: =IF(I78=0,"",I78/H78) ->  | K78: =SUM(K61:K77) -> 0
A79: % increase | B79: 4 | D79: =IF(D78=0,"",(D78/C78)-1) ->  | E79: =IF(E78=0,"",(E78/C78)-1) ->  | K79: =IF(K78=0,"",(K78/C78)-1) -> 
A81: Senior Managers of Entities
A82: Basic Salaries and Wages | I82: =G82-H82 -> 0 | J82: =IF(I82=0,"",I82/H82) -> 
A83: Pension and UIF Contributions | I83: 0
A84: Medical Aid Contributions | I84: 0
A85: Overtime | I85: 0
A86: Performance Bonus | I86: 0
A87: Motor Vehicle Allowance | I87: 0
A88: Cellphone Allowance | I88: 0
A89: Housing Allowances | I89: 0
A90: Other benefits and allowances | I90: 0
A91: Payments in lieu of leave | I91: 0
A92: Long service awards | I92: 0
A93: Post-retirement benefit obligations | B93: 2 | I93: 0
A94: Entertainment | I94: =G94-H94 -> 0 | J94: =IF(I94=0,"",I94/H94) -> 
A95: Scarcity | I95: =G95-H95 -> 0 | J95: =IF(I95=0,"",I95/H95) -> 
A96: Acting and post related allowance | I96: =G96-H96 -> 0 | J96: =IF(I96=0,"",I96/H96) -> 
A97: In kind benefits | I97: =G97-H97 -> 0 | J97: =IF(I97=0,"",I97/H97) -> 
A98: Sub Total - Senior Managers of Entities | C98: =SUM(C82:C97) -> 0 | D98: 0 | E98: 0 | F98: 0 | G98: 0 | H98: 0 | I98: =G98-H98 -> 0 | J98: =IF(I98=0,"",I98/H98) ->  | K98: =SUM(K82:K97) -> 0
A99: % increase | B99: 4 | D99: =IF(D98=0,"",(D98/C98)-1) ->  | E99: =IF(E98=0,"",(E98/C98)-1) ->  | K99: =IF(K98=0,"",(K98/C98)-1) -> 
A101: Other Staff of Entities
A102: Basic Salaries and Wages | I102: =G102-H102 -> 0 | J102: =IF(I102=0,"",I102/H102) -> 
A103: Pension and UIF Contributions | I103: 0
A104: Medical Aid Contributions | I104: 0
A105: Overtime | I105: 0
A106: Performance Bonus | I106: 0
A107: Motor Vehicle Allowance | I107: 0
A108: Cellphone Allowance | I108: 0
A109: Housing Allowances | I109: 0
A110: Other benefits and allowances | I110: 0
A111: Payments in lieu of leave | I111: 0
A112: Long service awards | I112: 0
A113: Post-retirement benefit obligations | I113: 0
A114: Entertainment | I114: 0
A115: Scarcity | I115: 0
A116: Acting and post related allowance | I116: 0
A117: In kind benefits | I117: 0
A118: Sub Total - Other Staff of Entities | C118: =SUM(C102:C117) -> 0 | D118: 0 | E118: 0 | F118: 0 | G118: 0 | H118: 0 | I118: =G118-H118 -> 0 | J118: =IF(I118=0,"",I118/H118) ->  | K118: =SUM(K102:K117) -> 0
A119: % increase | B119: 4 | D119: =IF(D118=0,"",(D118/C118)-1) ->  | E119: =IF(E118=0,"",(E118/C118)-1) ->  | K119: =IF(K118=0,"",(K118/C118)-1) -> 
A120: Total Municipal Entities | C120: =C78+C98+C118 -> 0 | D120: 0 | E120: 0 | F120: 0 | G120: 0 | H120: 0 | I120: =G120-H120 -> 0 | J120: =IF(I120=0,"",I120/H120) ->  | K120: =K78+K98+K118 -> 0
A121: TOTAL SALARY, ALLOWANCES & BENEFITS | C121: =C56+C120 -> 1676460326 | D121: 1913477769 | E121: 0 | F121: 139009578 | G121: 398044874.2 | H121: 478369442.2 | I121: =G121-H121 -> -80324567.92 | J121: =IF(I121=0,"",I121/H121) -> -0.1679132504 | K121: =K56+K120 -> 1913477769
A122: % increase | B122: 4 | D122: =IF(D121=0,"",(D121/C121)-1) -> 0.1413796906 | E122: =IF(E121=0,"",(E121/C121)-1) ->  | K122: =IF(K121=0,"",(K121/C121)-1) -> 0.1413796906
A123: TOTAL MANAGERS AND STAFF | C123: =C34+C54+C98+C118 -> 1612918315 | D123: 1847015838 | E123: 0 | F123: 134281261 | G123: 383823929 | H123: 461753959.4 | I123: -77930030.41 | J123: =IF(I123=0,"",I123/H123) -> -0.1687695987 | K123: =K34+K54+K98+K118 -> 1847015838
A124: =head27a -> References
A125: 1. Include 'Loans and advances' where applicable if any reportable amounts until phased compliance with s164 of MFMA achieved
A126: 2. If benefits in kind are provided (e.g. provision of living quarters) the full market value must be shown as the cost to the municipality
A127: 3. s57 of the Systems Act
A128: 4. B/A, C/A, D/A
A129: 5. Included in Contracted services
A130: Column Definitions:
A131: A. Audited actual 2022/23 (audited financial statements). If audited amounts unavailable, unaudited amounts must be provided with a note stating these are unaudited
A132: B. The original budget approved by council for the 2023/24 budget year.
A133: C. The budget for 2023/24 budget year as adjusted by council resolution in terms of section 28 of the MFMA.
A134: D. An estimate of final actual amounts (pre audit - 2006/07 budget year) at the time of preparing the budget for the 2007/08 budget year. This may differ from C.

Sheet SC7
A1: =muni& " - "&S71M& " - "&Head57 -> KZN225 Msunduzi - Supporting Table SC7(1) Monthly Budget Statement - transfers and grant expenditure - Q1 First Quarter
A2: =desc -> Description | B2: =head27 -> Ref | C2: =Head1 -> 2023/24 | D2: =Head2 -> Budget Year 2024/25
C3: =Head5 -> Audited Outcome | D3: =Head6 -> Original Budget | E3: =Head7 -> Adjusted Budget | F3: =Head38 -> Monthly actual | G3: =Head39 -> YearTD actual | H3: =Head40 -> YearTD budget | I3: =Head41 -> YTD variance | J3: =Head41 -> YTD variance | K3: =Head8 -> Full Year Forecast
A4: R thousands | J4: %
A5: EXPENDITURE
A7: Operating expenditure of Transfers and Grants
A8: ='SC6'!A8 -> National Government: | C8: =SUM(C9:C20) -> 795277217.8 | D8: 895184080 | E8: 0 | F8: 2400693.38 | G8: 346688439.2 | H8: 223796020 | I8: 122892419.2 | J8: =IF(I8=0,"",I8/H8) -> 0.54912692 | K8: =SUM(K9:K20) -> 895184080
A9: Local Government Equitable Share | C9: 767222000 | D9: 822072000 | F9: 0 | G9: 342530000 | H9: =D9/12*3 -> 205518000 | I9: =G9-H9 -> 137012000 | J9: =IF(I9=0,"",I9/H9) -> 0.6666666667 | K9: =D9 -> 822072000
A10: Finance Management | C10: 1807398.14 | D10: 1900000 | F10: 95529.04 | G10: 263862.12 | H10: =D10/12*3 -> 475000 | I10: =G10-H10 -> -211137.88 | J10: =IF(I10=0,"",I10/H10) -> -0.4445008 | K10: =D10 -> 1900000
A11: Municipal Systems Improvement Operating | C11: 0 | D11: 0 | F11: 0 | G11: 0 | H11: 0 | I11: 0
A12: EPWP Incentive | C12: 4700996.67 | D12: 2092000 | F12: 509569.4 | G12: 521466.97 | H12: 523000 | I12: -1533.03 | J12: -0.002931223709 | K12: =D12 -> 2092000
A13: Municipal Water Infrastructure Grant | C13: 13948235 | D13: 30000000 | F13: 0 | G13: 0 | H13: 7500000 | I13: -7500000 | J13: -1 | K13: =D13 -> 30000000
A14: Public Transport Infrastracture | C14: 0 | D14: 30000000 | F14: 900450 | G14: 900450 | H14: 7500000 | I14: -6599550 | J14: -0.87994 | K14: =D14 -> 30000000
A15: Energy Efficiency and Demand Management | C15: 0 | F15: 0 | G15: 13613.55 | H15: 0 | I15: 13613.55
A16: Operating costs-MIG | C16: 7598588 | D16: 9120080 | F16: 895144.94 | G16: 2459046.52 | H16: 2280020 | I16: 179026.52 | J16: 0.07851971474 | K16: =D16 -> 9120080
A17: ='SC6'!A17 -> 0 | I17: 0
A18: ='SC6'!A18 -> 0 | I18: 0
A19: ='SC6'!A19 -> 0 | I19: 0
A20: ='SC6'!A20 -> 0 | I20: 0
A21: ='SC6'!A29 -> Provincial Government: | C21: =SUM(C22:C42) -> 29258690.9 | D21: 61695859.29 | E21: 0 | F21: 1272009.58 | G21: 3732224.62 | H21: 15423964.82 | I21: -11691740.2 | J21: =IF(I21=0,"",I21/H21) -> -0.7580243042 | K21: =SUM(K22:K42) -> 47035953.82
A22: ='SC6'!A30 -> Provincial Government: | C22: 0 | I22: =G22-H22 -> 0 | J22: =IF(I22=0,"",I22/H22) -> 
A23: ='SC6'!A31 -> Expanded Public Works Grant | C23: 0 | I23: =G23-H23 -> 0 | J23: =IF(I23=0,"",I23/H23) -> 
A24: ='SC6'!A32 -> Human Settlements - Housing Development | C24: 0 | I24: 0
A25: ='SC6'!A33 -> Human Settlements - Title Deeds Restoration | C25: 0 | I25: 0
A26: ='SC6'!A34 -> Housing Accreditation-OPERATING | C26: 6417979.74 | D26: 8000000 | F26: 250542.62 | G26: 1335665.88 | H26: =D26/12*3 -> 2000000 | I26: -664334.12 | J26: -0.33216706 | K26: =D26 -> 8000000
A27: ='SC6'!A35 -> Human Settlements - Accredited Municipal RO | C27: 0 | D27: 0 | H27: =D27/12*3 -> 0 | I27: 0
A28: ='SC6'!A36 -> Housing Projects -OPERATING | C28: 1181354 | D28: 38535953.82 | H28: =D28/12*3 -> 9633988.455 | I28: -9633988.455 | J28: -1 | K28: =D28 -> 38535953.82
A29: ='SC6'!A37 -> Arts and Culture- Community Library Services | C29: 0 | I29: 0
A30: ='SC6'!A38 -> Community Library Service and Provincialsation Library-OPERATING | C30: 14820971.71 | D30: 14659905.47 | F30: 919196.96 | G30: 2294288.74 | H30: =D30/12*3 -> 3664976.367 | I30: =G30-H30 -> -1370687.627 | J30: -0.3739963072
A31: ='SC6'!A39 -> Arts and Culture-Museum Subsidies | I31: 0
A32: ='SC6'!A40 -> Tatham Art Gallery-OPERATING | C32: 204595.07 | I32: =G32-H32 -> 0 | K32: =D32 -> 0
A33: ='SC6'!A41 -> Greater Edendale Development Iniatative-OPERATING | C33: 2081077.58 | D33: 500000 | H33: =D33/12*3 -> 125000 | I33: -125000 | J33: -1 | K33: =D33 -> 500000
A34: ='SC6'!A42 -> Operation Dlulisumlando-OPERATING | C34: 0 | I34: 0
A35: ='SC6'!A43 -> SETA- Bursaries for Non Employees- OPERATING | C35: 1662711.78 | F35: 102270 | G35: 102270 | I35: 102270
A36: ='SC6'!A44 -> Arts and Culture-Museum Subsidies - Tatham Art Gallery | C36: 0 | I36: 0
A37: Regional Bulk Infrastructure Grant/BFI- OPERATING | I37: =G37-H37 -> 0 | J37: =IF(I37=0,"",I37/H37) -> 
A38: ='SC6'!A45 -> Municipal Employment Initiative - OPERATING | C38: 2890001.02 | I38: 0
A39: ='SC6'!A57 -> 0 | I39: =G39-H39 -> 0 | J39: =IF(I39=0,"",I39/H39) -> 
A40: ='SC6'!A58 -> 0 | I40: 0
A41: ='SC6'!A59 -> 0 | I41: 0
A42: ='SC6'!A60 -> Other transfers and grants [insert description] | I42: 0
A43: ='SC6'!A61 -> District Municipality: | C43: =SUM(C44:C45) -> 0 | D43: 0 | E43: =SUM(E44:E45) -> 0 | F43: 0 | G43: 0 | H43: 0 | I43: 0 | K43: =SUM(K44:K45) -> 0
I44: 0
A45: ='SC6'!A62 -> [insert description] | I45: 0
A46: ='SC6'!A64 -> Other grant providers: | C46: =SUM(C47:C48) -> 0 | D46: 0 | E46: 0 | F46: 0 | G46: 0 | H46: 0 | I46: 0 | K46: =SUM(K47:K48) -> 0
I47: 0
A48: ='SC6'!A65 -> [insert description] | I48: 0
A49: Total operating expenditure of Transfers and Grants: | C49: =C8+C21+C43+C46 -> 824535908.7 | D49: 956879939.3 | E49: 0 | F49: 3672702.96 | G49: 350420663.8 | H49: 239219984.8 | I49: 111200679 | J49: 0.4648469443 | K49: =K8+K21+K43+K46 -> 942220033.8
A51: Capital expenditure of Transfers and Grants
A52: ='SC6'!A75 -> National Government: | C52: =SUM(C53:C66) -> 259763434.8 | D52: 312602919.9 | E52: 0 | F52: -6565740.25 | G52: 31118682.93 | H52: 78150729.97 | I52: -47032047.04 | J52: =IF(I52=0,"",I52/H52) -> -0.6018119992 | K52: 312602919.9
A53: ='SC6'!A76 -> Municipal Infrastructure Grant (MIG) | C53: 204367192.7 | D53: 222681919.9 | F53: -7667651.68 | G53: 24197126.4 | H53: =D53/12*3 -> 55670479.97 | I53: =G53-H53 -> -31473353.57 | J53: =IF(I53=0,"",I53/H53) -> -0.5653508571 | K53: =D53 -> 222681919.9
A54: ='SC6'!A77 -> Public Transport Infrastracture | C54: 0 | D54: 20000000 | F54: 0 | G54: 0 | H54: 5000000 | I54: -5000000 | J54: -1 | K54: 20000000
A55: ='SC6'!A78 -> Neighbourhood Development Partnership | C55: 12973387.74 | D55: 20000000 | F55: 315239.13 | G55: 2649248.41 | H55: 5000000 | I55: -2350751.59 | J55: -0.470150318 | K55: 20000000
A56: ='SC6'!A79 -> Dept of Mineral/Electricty | C56: 0 | D56: 0 | F56: 0 | G56: 0 | H56: 0 | I56: 0 | K56: 0
A57: ='SC6'!A80 -> Intergrated National Electrification Porgramme | C57: 12218873.34 | D57: 4971000 | F57: 777486.83 | G57: 800592.87 | H57: 1242750 | I57: -442157.13 | J57: -0.3557892818 | K57: 4971000
A58: ='SC6'!A81 -> Municipal Systems Improvement Capital | C58: 0 | F58: 0 | G58: 0 | H58: 0 | I58: 0 | K58: 0
A59: ='SC6'!A82 -> Water Services Infrastructure Grant (WSIG)-CAPITAL | C59: 25203981.06 | D59: 40000000 | F59: 9185.47 | G59: 3471715.25 | H59: 10000000 | I59: -6528284.75 | J59: -0.652828475 | K59: 40000000
A60: ='SC6'!A83 -> Energy Efficiency and Demand Manaagement | C60: 5000000 | D60: 4950000 | F60: 0 | G60: 0 | H60: 1237500 | I60: -1237500 | J60: -1 | K60: 4950000
A61: ='SC6'!A84 -> 0
A62: ='SC6'!A87 -> 0 | I62: =G62-H62 -> 0 | J62: =IF(I62=0,"",I62/H62) -> 
A63: ='SC6'!A88 -> 0 | I63: 0
A64: ='SC6'!A89 -> 0 | I64: 0
A65: ='SC6'!A90 -> 0 | I65: 0
A66: ='SC6'!A91 -> Other capital transfers [insert description] | I66: 0
A67: ='SC6'!A92 -> Provincial Government: | C67: =SUM(C68:C97) -> 168341559 | D67: 133835182.1 | E67: 0 | F67: 4820950.02 | G67: 15518824.09 | H67: 33458795.52 | I67: -17939971.43 | J67: -0.5361810295 | K67: =SUM(K68:K97) -> 133835182.1
A68: Capital Provincial KZN Treausry | I68: 0
A69: Sport and Recreation | C69: 0 | I69: =G69-H69 -> 0 | J69: =IF(I69=0,"",I69/H69) -> 
A70: KZNPA | C70: 0 | I70: 0
A71: Housing-Military Veterans | C71: 0 | I71: 0
A72: PMB Airport- CAPITAL | C72: 3201175.34 | I72: 0
A73: Arts and Culture-Museum Subsidies | C73: 0 | I73: 0
A74: COGTA | C74: 3039104.45 | I74: 0
A75: Manaye Area Precinct Upgrade-CAPITAL | C75: 0 | I75: =G75-H75 -> 0 | J75: =IF(I75=0,"",I75/H75) -> 
A76: Human Settlement | C76: 0 | I76: 0
A77: Housing Accreditation-CAPITAL | C77: 733560.62 | D77: 700000 | H77: =D77/12*3 -> 175000 | I77: -175000 | J77: -1 | K77: =D77 -> 700000
A78: Capital Provincial KZN Treausry | C78: 0 | I78: 0
A79: Economic development tourism | I79: 0
A80: Eastwood Primary Substation-CAPITAL | C80: 378947.47 | I80: 0
A81: Jika Joe Community Residential Units-CAPITAL | I81: 0
A82: Greater Edendale Development Iniatative-CAPITAL | C82: 77553221.89 | I82: 0
A83: Youth Enterprise Park-CAPITAL | C83: 0 | I83: 0
A84: Informal Economy Instructure Development-CAPITAL | C84: 0 | D84: 1000000 | H84: =D84/12*3 -> 250000 | I84: -250000 | J84: -1 | K84: =D84 -> 1000000
A85: Corridor Development- CAPITAL | I85: 0
A86: Municipal Disaster Relief Grant-CAPITAL | C86: 8203392.36 | D86: 13214000 | G86: 6704719.53 | H86: =D86/12*3 -> 3303500 | I86: 3401219.53 | J86: 1.029580605 | K86: =D86 -> 13214000
A87: Community Library Service and Provincialsation Library-CAPITAL | C87: 6376709.59 | I87: 0
A88: Provincial Government: | I88: 0
A89: Arts and Culture-Museum Subsidies - Tatham Art Gallery | C89: 170531.39 | D89: 1865000 | H89: =D89/12*3 -> 466250 | I89: -466250 | J89: -1 | K89: =D89 -> 1865000
A90: Operation Dlulisumlando-Capital | C90: 0 | H90: =D90/12*2 -> 0 | I90: 0
A91: KZN-Military Veterans | I91: 0
A92: Housing Projects -CAPITAL | C92: 68684915.87 | D92: 117056182.1 | F92: 4820950.02 | G92: 8814104.56 | H92: =D92/12*3 -> 29264045.52 | I92: -20449940.96 | J92: -0.698807721 | K92: =D92 -> 117056182.1
I93: 0
I94: 0
I95: 0
I96: 0
A97: ='SC6'!A123 -> 0 | I97: =G97-H97 -> 0 | J97: =IF(I97=0,"",I97/H97) -> 
A98: ='SC6'!A124 -> District Municipality: | C98: =SUM(C99:C100) -> 0 | D98: 0 | E98: 0 | F98: 0 | G98: 0 | H98: 0 | I98: 0 | K98: =SUM(K99:K100) -> 0
I99: 0
A100: ='SC6'!A126 -> 0 | I100: 0
A101: ='SC6'!A127 -> Other grant providers: | C101: =SUM(C102:C103) -> 0 | D101: 0 | E101: 0 | F101: 0 | G101: 0 | H101: 0 | I101: 0 | K101: =SUM(K102:K103) -> 0
I102: 0
A103: ='SC6'!A133 -> 0 | I103: 0
A104: Total capital expenditure of Transfers and Grants | C104: =C52+C67+C98+C101 -> 428104993.8 | D104: =D52+D67+D98+D101 -> 446438101.9 | E104: 0 | F104: -1744790.23 | G104: 46637507.02 | H104: 111609525.5 | I104: -64972018.46 | J104: -0.5821368578 | K104: 446438101.9
A106: TOTAL EXPENDITURE OF TRANSFERS AND GRANTS | C106: =C49+C104 -> 1252640903 | D106: 1403318041 | E106: 0 | F106: 1927912.73 | G106: 397058170.8 | H106: 350829510.3 | I106: 46228660.5 | J106: =IF(I106=0,"",I106/H106) -> 0.1317695893 | K106: 1388658136
A107: =head27a -> References

Sheet SC9
A1: =muni& " - "&S71O& " - "&Head57 -> KZN225 Msunduzi - Supporting Table SC9 Monthly Budget Statement - actuals and revised targets for cash receipts - Q1 First Quarter
A2: =desc -> Description | B2: =head27 -> Ref | C2: =Head2 -> Budget Year 2024/25 | O2: ='Template names'!B5 -> 2024/25 Medium Term Revenue & Expenditure Framework
C3: July | D3: August | E3: Sept | F3: October | G3: Nov | H3: Dec | I3: January | J3: Feb | K3: March | L3: April | M3: May | N3: June | O3: =Head9 -> Budget Year 2024/25 | P3: =Head10 -> Budget Year +1 2025/26 | Q3: =Head11 -> Budget Year +2 2026/27
A4: R thousands | B4: 1 | C4: Outcome | D4: Outcome | E4: Outcome | F4: Outcome | G4: Outcome | H4: Outcome | I4: Budget | J4: Budget | K4: Budget | L4: Budget | M4: Budget | N4: Budget
A5: Cash Receipts By Source
A6: Property rates | N6: =O6-SUM(C6:M6) -> 0
A7: Service charges - Electricity revenue | N7: 0
A8: Service charges - Water revenue | N8: 0
A9: Service charges - Waste Water Management | N9: 0
A10: Service charges - Waste Mangement | N10: 0
N11: 0
A12: Rental of facilities and equipment | N12: 0
A13: Interest earned - external investments | N13: 0
A14: Interest earned - outstanding debtors | N14: 0
A15: Dividends received | N15: 0
A16: Fines, penalties and forfeits | N16: 0
A17: Licences and permits | N17: 0
A18: Agency services | N18: 0
A19: Transfers and Subsidies - Operational | N19: 0
A20: Other revenue | N20: 0
A21: Cash Receipts by Source | C21: =SUM(C6:C20) -> 0 | D21: =SUM(D6:D20) -> 0 | E21: 0 | F21: 0 | G21: 0 | H21: 0 | I21: 0 | J21: 0 | K21: 0 | L21: 0 | M21: 0 | N21: 0 | O21: 0 | P21: 0 | Q21: 0
A22: Other Cash Flows by Source | N22: =O22-SUM(C22:M22) -> 0
A23: Transfers and subsidies - capital (monetary allocations) (National / Provincial and District) | N23: 0
A24: Transfers and subsidies - capital (monetary allocations) (Nat / Prov Departm Agencies, Households, Non-profit Institutions, Private Enterprises, Public Corporatons, Higher Educ Institutions) | N24: 0
A25: Proceeds on Disposal of Fixed and Intangible Assets | N25: 0
A26: Short term loans | N26: 0
A27: Borrowing long term/refinancing | N27: 0
A28: Increase (decrease) in consumer deposits | N28: 0
A29: VAT Control (receipts) | N29: 0
A30: Decrease (increase) in non-current receivables | N30: 0
A31: Decrease (increase) in non-current investments | N31: 0
A32: Total Cash Receipts by Source | C32: =SUM(C21:C31) -> 0 | D32: =SUM(D21:D31) -> 0 | E32: 0 | F32: 0 | G32: 0 | H32: 0 | I32: 0 | J32: 0 | K32: 0 | L32: 0 | M32: 0 | N32: 0 | O32: 0 | P32: 0 | Q32: 0
A33: Cash Payments by Type | N33: =O33-SUM(C33:M33) -> 0
A34: Employee related costs | N34: 0
A35: Remuneration of councillors | N35: 0
A36: Interest | N36: 0
A37: Bulk purchases - Electricity | N37: 0
A38: Acquisitions - water & other inventory | N38: 0
A40: Contracted services | N40: 0
A41: Transfers and subsidies - other municipalities | N41: 0
A42: Transfers and subsidies - other | N42: 0
A43: Other expenditure | N43: 0
A44: Cash Payments by Type | B44: =SUM(B34:B43) -> 0 | C44: =SUM(C34:C43) -> 0 | D44: =SUM(D34:D43) -> 0 | E44: 0 | F44: 0 | G44: 0 | H44: 0 | I44: 0 | J44: 0 | K44: 0 | L44: 0 | M44: 0 | N44: 0 | O44: 0 | P44: 0 | Q44: 0
A45: Other Cash Flows/Payments by Type
A46: Capital assets | N46: =O46-SUM(C46:M46) -> 0
A47: Repayment of borrowing | N47: =O47-SUM(C47:M47) -> 0
A48: Other Cash Flows/Payments | N48: =O48-SUM(C48:M48) -> 0
A49: Total Cash Payments by Type | B49: =SUM(B44:B48) -> 0 | C49: 0 | D49: 0 | E49: 0 | F49: 0 | G49: 0 | H49: 0 | I49: 0 | J49: 0 | K49: 0 | L49: 0 | M49: 0 | N49: 0 | O49: 0 | P49: 0 | Q49: 0
A50: NET INCREASE/(DECREASE) IN CASH HELD | B50: =B32-B49 -> 0 | C50: 0 | D50: 0 | E50: 0 | F50: 0 | G50: 0 | H50: 0 | I50: 0 | J50: 0 | K50: 0 | L50: 0 | M50: 0 | N50: 0 | O50: 0 | P50: 0 | Q50: 0
A51: Cash/cash equivalents at the month/year beginning: | D51: =C52 -> 0 | E51: =D52 -> 0 | F51: 0 | G51: 0 | H51: 0 | I51: 0 | J51: 0 | K51: 0 | L51: 0 | M51: 0 | N51: 0 | O51: =C51 -> 0 | P51: =O52 -> 0 | Q51: =P52 -> 0
A52: Cash/cash equivalents at the month/year end: | C52: =C50+C51 -> 0 | D52: =D50+D51 -> 0 | E52: =E50+E51 -> 0 | F52: 0 | G52: 0 | H52: 0 | I52: 0 | J52: 0 | K52: 0 | L52: 0 | M52: 0 | N52: 0 | O52: =O50+O51 -> 0 | P52: =P50+P51 -> 0 | Q52: =Q50+Q51 -> 0
A53: =head27a -> References
A54: 1. Replace 'budget' heading with adjusted budget, or 'outcome' only for month/s complete
A55: 2. Total of monthly amounts must always agree to the approved or adjusted budget
A56: 3. Amend 'cash-at-beginning' when prior year actual known (as part of the adjustments budget)
E61: =E44+E60 -> 0 | F61: 0 | G61: 0 | H61: 0 | I61: 0 | J61: 0 | K61: 0 | L61: 0 | N61: =N44+N60 -> 0 | O61: =O44+O60 -> 0 | P61: =P44+P60 -> 0
E62: =E50-E60 -> 0 | F62: 0 | G62: 0 | H62: 0 | I62: 0 | J62: 0 | K62: 0 | L62: 0 | M62: =M50-M60 -> 0 | N62: =N50-N60 -> 0 | O62: 0 | P62: 0

Sheet SC10
A1: =muni& " - "&S71P& " - "&Head57 -> KZN225 Msunduzi - NOT REQUIRED - municipality does not have entities or this is the parent municipality's budget - Q1 First Quarter
A2: =desc -> Description | B2: =head27 -> Ref | C2: =Head1 -> 2023/24 | D2: =Head2 -> Budget Year 2024/25
C3: =Head5 -> Audited Outcome | D3: =Head6 -> Original Budget | E3: =Head7 -> Adjusted Budget | F3: =Head38 -> Monthly actual | G3: =Head39 -> YearTD actual | H3: =Head40 -> YearTD budget | I3: =Head41 -> YTD variance | J3: =Head41 -> YTD variance | K3: =Head8 -> Full Year Forecast
A4: R thousands | B4: 1 | J4: %
A5: ='[2]C4-FinPerf RE'!A5 -> Revenue
A6: Exchange Revenue
A7: Service charges - Electricity | C7: 2630640541 | D7: 4297825065 | F7: 277787595.9 | G7: 926873225.5 | H7: =D7/12*3 -> 1074456266 | I7: =G7-H7 -> -147583040.8 | J7: =IF(I7=0,"",I7/H7) -> -0.1373560241 | K7: =D7 -> 4297825065
A8: Service charges - Water | C8: 740741111.2 | D8: 1009760082 | F8: 95882908.93 | G8: 308057634.2 | H8: =D8/12*3 -> 252440020.5 | I8: 55617613.71 | J8: 0.2203201125 | K8: =D8 -> 1009760082
A9: Service charges - Waste Water Management | C9: 198015164.6 | D9: 220724860.4 | F9: 26323228.26 | G9: 74235127.28 | H9: 55181215.1 | I9: 19053912.18 | J9: 0.3452970751 | K9: 220724860.4
A10: Service charges - Waste management | C10: 126703639.3 | D10: 155390776.9 | F10: 12349959.47 | G10: 36491098.49 | H10: 38847694.23 | I10: -2356595.744 | J10: -0.06066243544 | K10: 155390776.9
A11: Sale of Goods and Rendering of Services | C11: 0 | D11: 42042838 | F11: 0 | G11: 0 | H11: 10510709.5 | I11: =G11-H11 -> -10510709.5 | J11: =IF(I11=0,"",I11/H11) -> -1 | K11: 42042838
A12: Agency services | C12: 2666696 | D12: 764825.6424 | F12: 633136 | G12: 968270 | H12: 191206.4106 | I12: 777063.5894 | J12: 4.064003853 | K12: 764825.6424
A13: Interest | C13: 0 | D13: 19135146.8 | F13: 0 | G13: 0 | H13: 4783786.699 | I13: -4783786.699 | J13: -1 | K13: 19135146.8
A14: Interest earned from Receivables | C14: 432712908.6 | D14: 230681790 | F14: 44405057.02 | G14: 94213848.04 | H14: 57670447.5 | I14: 36543400.54 | J14: 0.6336590424 | K14: 230681790
A15: Interest earned from Current and Non Current Assets | C15: 0 | D15: 59562303 | F15: 0 | G15: 0 | H15: 14890575.75 | K15: 59562303
A16: Dividends | C16: 0 | F16: 0 | G16: 0 | H16: 0 | I16: 0
A17: Rent on Land | C17: 0 | F17: 0 | G17: 0 | H17: 0 | I17: 0
A18: Rental from Fixed Assets | C18: 33590328.34 | D18: 113961628.7 | F18: 2416157.56 | G18: 7472340.73 | H18: 28490407.18 | I18: -21018066.45 | J18: -0.7377243266 | K18: =D18 -> 113961628.7
A19: Licence and permits | C19: 2021123.4 | F19: 136196.19 | G19: 508231.51 | H19: 0 | I19: 508231.51
A20: Operational Revenue | C20: 68742095.34 | D20: 204124220 | F20: 15505583.85 | G20: 26763767.84 | H20: 51031055 | I20: -24267287.16 | J20: -0.4755395937 | K20: =D20 -> 204124220
A21: Non-Exchange Revenue | C21: 0 | F21: 0 | G21: 0 | H21: 0 | I21: 0
A22: Property rates | C22: 1359086727 | D22: 1649352521 | F22: 148736968 | G22: 448767870.7 | H22: 412338130.2 | K22: =D22 -> 1649352521
A23: Surcharges and Taxes | C23: 0 | F23: 0 | G23: 0 | H23: 0
A24: Fines, penalties and forfeits | C24: 34247150.94 | D24: 11687216.86 | F24: 790679.03 | G24: 3732945.88 | H24: 2921804.216 | I24: 811141.6642 | J24: 0.2776167067 | K24: =D24 -> 11687216.86
A25: Licences or permits | C25: 0 | D25: 2546799 | F25: 0 | G25: 0 | H25: 636699.75 | K25: =D25 -> 2546799
A26: Transfer and subsidies - Operational | C26: 824535908.7 | D26: 946343150 | F26: 3672702.96 | G26: 350420663.8 | H26: 236585787.5 | K26: =D26 -> 946343150
A27: Interest | C27: 44117780.54 | F27: 2638306.77 | G27: 8195010.69 | H27: =D27/12*2 -> 0
A28: Fuel Levy | C28: 0 | F28: 0 | G28: 0
A29: Operational Revenue | C29: 0 | F29: 0 | G29: 0
A30: Gains on disposal of Assets | C30: 0 | F30: 0 | G30: 0
A31: Other Gains | C31: 68979213.68 | F31: 334759.54 | G31: 675106.07 | H31: =D31/12*2 -> 0
A32: Discontinued Operations | C32: 0 | F32: 0 | G32: 0
A33: Total Revenue (excluding capital transfers and contributions) | C33: =SUM(C7:C20)+SUM(C22:C32) -> 6566800388 | D33: 8963903223 | E33: 0 | F33: 631613239.4 | G33: 2287375141 | H33: 2240975806 | I33: =G33-H33 -> 46399334.88 | J33: 0.02070496913 | K33: =SUM(K7:K20)+SUM(K22:K32) -> 8963903223
A34: Expenditure By Type
A35: Employee related costs | C35: 1612918315 | D35: 1847015838 | F35: 134281261 | G35: 383823929 | H35: =D35/12*3 -> 461753959.4 | I35: =G35-H35 -> -77930030.41 | J35: =IF(I35=0,"",I35/H35) -> -0.1687695987 | K35: =D35 -> 1847015838
A36: Remuneration of councillors | C36: 63542011.59 | D36: 66461931.11 | F36: 4745184.95 | G36: 14263115.17 | H36: 16615482.78 | I36: -2352367.608 | J36: -0.1415768437 | K36: 66461931.11
A37: Bulk purchases - electricity | C37: 2714396462 | D37: 3145118900 | F37: 334496956.9 | G37: 1134907895 | H37: 786279725 | I37: 348628169.6 | J37: 0.4433894942 | K37: 3145118900
A38: Inventory consumed | C38: 877661985.2 | D38: 993409214.4 | F38: 183714744.4 | G38: 278453147.4 | H38: 248352303.6 | I38: 30100843.8 | J38: 0.1212021929 | K38: 993409214.4
A39: Debt impairment | C39: 1165621498 | D39: 636000000 | F39: 131968.76 | G39: 4524678.41 | H39: 159000000 | I39: -154475321.6 | J39: -0.9715429031 | K39: 636000000
A40: Depreciation and amortisation | C40: 361847777 | D40: 362178747.5 | F40: 31913804.13 | G40: 97824108.19 | H40: 90544686.87 | I40: 7279421.325 | J40: 0.08039589707 | K40: 362178747.5
A41: Interest | C41: 93766992.16 | D41: 42824930.71 | F41: 1661779.84 | G41: 5183948.36 | H41: 10706232.68 | I41: -5522284.318 | J41: -0.5158008876 | K41: 42824930.71
A42: Contracted services | C42: 918169101.6 | D42: 1023282031 | F42: 56802250.56 | G42: 100325262.9 | H42: 255820507.7 | I42: -155495244.8 | J42: -0.6078294745 | K42: 1023282031
A43: Transfers and subsidies | C43: 28449502.91 | D43: 69670130.46 | F43: 3011425.23 | G43: 13000150.15 | H43: 17417532.61 | I43: -4417382.464 | J43: -0.2536170055 | K43: 69670130.46
A44: Irrecoverable debts written off | C44: 0 | F44: 0 | G44: 0 | H44: 0 | I44: 0
A45: Operational costs | C45: 220593407.6 | D45: 194308180 | F45: 19845766.48 | G45: 50996039.04 | H45: 48577045 | I45: 2418994.04 | J45: 0.04979706032 | K45: =D45 -> 194308180
A46: Losses on disposal of Assets | C46: 0 | F46: 0 | G46: 0
A47: Other Losses | C47: 44272041.42 | F47: 0 | G47: 0
A48: Total Expenditure | C48: =SUM(C35:C47) -> 8101239095 | D48: 8380269902 | E48: 0 | F48: 770605142.2 | G48: 2083302273 | H48: 2095067476 | I48: -11765202.43 | J48: -0.005615667548 | K48: =SUM(K35:K47) -> 8380269902
A49: ='[2]C4-FinPerf RE'!A49 -> Surplus/(Deficit) | C49: =C33-C48 -> -1534438706 | D49: 583633320.9 | E49: 0 | F49: -138991902.7 | G49: 204072867.5 | H49: 145908330.2 | I49: 58164537.31 | J49: 0.3986375365 | K49: =K33-K48 -> 583633320.9
A50: ='[2]C4-FinPerf RE'!A50 -> Transfers and subsidies - capital (monetary allocations) | C50: 428104993.8 | D50: 456974891 | F50: -1744790.23 | G50: 46637507.02 | H50: =D50/12*3 -> 114243722.8 | I50: -67606215.73 | J50: -0.59177182 | K50: =D50 -> 456974891
A51: ='[2]C4-FinPerf RE'!A51 -> Transfers and subsidies - capital (in-kind) | F51: 0 | G51: 0 | I51: 0
A52: ='[2]C4-FinPerf RE'!A52 -> Surplus/(Deficit) after capital transfers & contributions | C52: =C49+SUM(C50:C51) -> -1106333713 | D52: 1040608212 | E52: 0 | F52: -140736693 | G52: 250710374.6 | H52: 260152053 | I52: -9441678.419 | J52: -0.03629292297 | K52: =K49+SUM(K50:K51) -> 1040608212
A53: ='[2]C4-FinPerf RE'!A53 -> Income Tax | I53: 0
A54: ='[2]C4-FinPerf RE'!A54 -> Surplus/(Deficit) after income tax | C54: =C52-C53 -> -1106333713 | D54: 1040608212 | E54: 0 | F54: -140736693 | G54: 250710374.6 | H54: 260152053 | I54: -9441678.419 | J54: -0.03629292297 | K54: =K52-K53 -> 1040608212
A55: =head27a -> References
A56: 1. Votes (consolidated) are revenue sources and expenditure type

Sheet SC11
A1: =muni& " - "&S71Q& " - "&Head57 -> KZN225 Msunduzi - NOT REQUIRED - municipality does not have entities or this is the parent municipality's budget - Q1 First Quarter
A2: =desc -> Description | B2: =head27 -> Ref | C2: =Head1 -> 2023/24 | D2: =Head2 -> Budget Year 2024/25
C3: =Head5 -> Audited Outcome | D3: =Head6 -> Original Budget | E3: =Head7 -> Adjusted Budget | F3: =Head38 -> Monthly actual | G3: =Head39 -> YearTD actual | H3: =Head40 -> YearTD budget | I3: =Head41 -> YTD variance | J3: =Head41 -> YTD variance | K3: =Head8 -> Full Year Forecast
A4: R thousands | J4: %
A5: Revenue By Municipal Entity
A6: Insert name of municipal entity | I6: =G6-H6 -> 0 | J6: =IF(I6=0,"",I6/H6) -> 
I7: 0 | J7: =IF(I7=0,"",I7/H7) -> 
I8: 0
I9: 0
I10: 0
I11: 0
I12: 0
I13: 0
I14: 0
I15: 0
A16: Total Operating Revenue | B16: 1 | C16: =SUM(C6:C15) -> 0 | D16: 0 | E16: 0 | F16: 0 | G16: 0 | H16: 0 | I16: 0 | K16: =SUM(K6:K15) -> 0
A18: Expenditure By Municipal Entity
A19: =A6 -> Insert name of municipal entity | I19: 0 | J19: =IF(I19=0,"",I19/H19) -> 
A20: =IF(A7="","",A7) ->  | I20: 0
A21: =IF(A8="","",A8) ->  | I21: 0
I22: 0
I23: 0
I24: 0
I25: 0
I26: 0
I27: 0
I28: 0
A29: Total Operating Expenditure | B29: 2 | C29: =SUM(C19:C28) -> 0 | D29: 0 | E29: 0 | F29: 0 | G29: 0 | H29: 0 | I29: 0 | K29: =SUM(K19:K28) -> 0
A31: =Head42 -> Surplus/ (Deficit) for the yr/period | C31: =C16-C29 -> 0 | D31: =D16-D29 -> 0 | E31: 0 | F31: 0 | G31: 0 | H31: 0 | I31: =I16+I29 -> 0 | K31: 0
A32: Capital Expenditure By Municipal Entity
A33: =$A$6 -> Insert name of municipal entity | I33: 0
A34: =IF(A7="","",A7) ->  | I34: 0
A35: =IF(A8="","",A8) ->  | I35: 0
I36: 0
I37: 0
I38: 0
I39: 0
I40: 0
I41: 0
A43: Total Capital Expenditure | B43: 3 | C43: =SUM(C32:C42) -> 0 | D43: =SUM(D32:D42) -> 0 | E43: 0 | F43: 0 | G43: 0 | H43: =SUM(H32:H42) -> 0 | I43: =G43-H43 -> 0 | K43: 0
A44: =head27a -> References
A45: 1. Must reconcile to the sum of all municipal entity monthly revenue reports
A46: 2. Must reconcile to the sum of all municipal entity monthly expenditure reports
A47: 3. YTD = Year to date; FAV - favourable variance or unfavourable variance
A48: 4. Material variances to be explained
A49: 5. Insert additional 'Adjustment' Budget column for each Adjustment made by an entity

Sheet SC12
A1: =muni& " - "&S71R& " - "&Head57 -> KZN225 Msunduzi - Supporting Table SC12 Monthly Budget Statement - capital expenditure trend - Q1 First Quarter
A2: Month | B2: =Head1 -> 2023/24 | C2: =Head2 -> Budget Year 2024/25
B3: =Head5 -> Audited Outcome | C3: =Head6 -> Original Budget | D3: =Head7 -> Adjusted Budget | E3: =Head38 -> Monthly actual | F3: =Head39 -> YearTD actual | G3: =Head40 -> YearTD budget | H3: =Head41 -> YTD variance | I3: =Head41 -> YTD variance | J3: % spend of Original Budget
A4: R thousands | I4: %
A5: Monthly expenditure performance trend
A6: July | B6: 60525810.48 | C6: 68667574.2 | E6: 5549084.69 | F6: =IF(E6>0,E6,"") -> 5549084.69 | G6: =IF(D6>0,D6,C6) -> 68667574.2 | H6: =IF(F6="",0,G6-F6) -> 63118489.51 | I6: =IF(F6="","",IF(H6=0,"",H6/G6)) -> 0.9191891551 | J6: =IF(F6="","",F6/$C$18) -> 0.006734237077
A7: August | B7: 60525810.48 | C7: 68667574.2 | E7: 51359035.14 | F7: =IF(E7>0,E7+F6,"") -> 56908119.83 | G7: =IF(D7>0,D7+D6,C7+C6) -> 137335148.4 | H7: 80427028.57 | I7: 0.5856259633 | J7: 0.06906233946
A8: September | B8: 60525810.48 | C8: 68667574.2 | E8: 35533561.71 | F8: =IF(E8>0,E8+F7,"") -> 92441681.54 | G8: =IF(D8>0,D8+G7,C8+G7) -> 206002722.6 | H8: 113561041.1 | I8: 0.5512599039 | J8: 0.112185024
A9: October | B9: 60525810.48 | C9: 68667574.2 | G9: =IF(D9>0,D9+G8,C9+G8) -> 274670296.8 | H9: 0
A10: November | B10: 60525810.48 | C10: 68667574.2 | G10: 343337871 | H10: 0
A11: December | B11: 60525810.48 | C11: 68667574.2 | G11: 412005445.2 | H11: 0
A12: January | B12: 60525810.48 | C12: 68667574.2 | G12: 480673019.4 | H12: 0
A13: February | B13: 60525810.48 | C13: 68667574.2 | G13: 549340593.6 | H13: 0
A14: March | B14: 60525810.48 | C14: 68667574.2 | G14: 618008167.8 | H14: 0
A15: April | B15: 60525810.48 | C15: 68667574.2 | G15: 686675742 | H15: 0
A16: May | B16: 60525810.48 | C16: 68667574.2 | G16: 755343316.2 | H16: 0
A17: June | B17: 60525810.48 | C17: 68667574.2 | G17: 824010890.4 | H17: =IF(F17="",0,G17-F17) -> 0 | I17: =IF(F17="","",IF(H17=0,"",H17/G17)) ->  | J17: =IF(F17="","",F17/$C$18) -> 
A18: Total Capital expenditure | B18: =SUM(B6:B17) -> 726309725.8 | C18: =SUM(C6:C17) -> 824010890.4 | D18: =SUM(D6:D17) -> 0 | E18: =SUM(E6:E17) -> 92441681.54

Sheet SC13a
A1: =muni& " - "&S71Sa& " - "&Head57 -> KZN225 Msunduzi - Supporting Table SC13a Monthly Budget Statement - capital expenditure on new assets by asset class - Q1 First Quarter
A2: =desc -> Description | B2: =head27 -> Ref | C2: =Head1 -> 2023/24 | D2: =Head2 -> Budget Year 2024/25
C3: =Head5 -> Audited Outcome | D3: =Head6 -> Original Budget | E3: =Head7 -> Adjusted Budget | F3: =Head38 -> Monthly actual | G3: =Head39 -> YearTD actual | H3: =Head40 -> YearTD budget | I3: =Head41 -> YTD variance | J3: =Head41 -> YTD variance | K3: =Head8 -> Full Year Forecast
A4: R thousands | B4: 1 | J4: %
A5: Capital expenditure on new assets by Asset Class/Sub-class
A7: Infrastructure | C7: =C8+C13+C17+C27+C38+C45+C53+C63+C69 -> 105400767.6 | D7: 321996662.3 | E7: 0 | F7: 777804.06 | G7: 7369071.82 | H7: 80499165.58 | I7: =H7-G7 -> 73130093.76 | J7: =IF(I7=0,"",I7/H7) -> 0.9084577863 | K7: =K8+K13+K17+K27+K38+K45+K53+K63+K69 -> 321996662.3
A8: Roads Infrastructure | C8: =SUM(C9:C12) -> 747805.68 | D8: 35420143.91 | E8: 0 | F8: 0 | G8: 0 | H8: 8855035.977 | I8: 8855035.977 | J8: 1 | K8: =SUM(K9:K12) -> 35420143.91
A9: Roads | C9: 747805.68 | D9: 35420143.91 | H9: =D9/12*3 -> 8855035.977 | I9: 8855035.977 | J9: 1 | K9: =D9 -> 35420143.91
A10: Road Structures | I10: 0
A11: Road Furniture | I11: 0
A12: Capital Spares | I12: 0
A13: Storm water Infrastructure | C13: =SUM(C14:C16) -> 0 | D13: 0 | E13: 0 | F13: 0 | G13: 0 | H13: 0 | I13: 0 | K13: =SUM(K14:K16) -> 0
A14: Drainage Collection | I14: 0
A15: Storm water Conveyance | I15: 0
A16: Attenuation | I16: 0
A17: Electrical Infrastructure | C17: =SUM(C18:C26) -> 62042024.37 | D17: 203032551.7 | E17: 0 | F17: 1044167.96 | G17: 1220795.33 | H17: 50758137.93 | I17: 49537342.6 | J17: 0.9759487763 | K17: =SUM(K18:K26) -> 203032551.7
A18: Power Plants | C18: 62042024.37 | D18: 203032551.7 | F18: 1044167.96 | G18: 1220795.33 | H18: =D18/12*3 -> 50758137.93 | I18: 49537342.6 | J18: 0.9759487763 | K18: =D18 -> 203032551.7
A19: HV Substations | I19: 0
A20: HV Switching Station | I20: 0
A21: HV Transmission Conductors | I21: 0
A22: MV Substations | I22: 0
A23: MV Switching Stations | I23: 0
A24: MV Networks | I24: 0
A25: LV Networks | I25: 0
A26: Capital Spares | I26: 0
A27: Water Supply Infrastructure | C27: =SUM(C28:C37) -> 16016642.97 | D27: 5320000 | E27: 0 | F27: 523582.92 | G27: 5418313.37 | H27: 1330000 | I27: -4088313.37 | J27: -3.073919827 | K27: =SUM(K28:K37) -> 5320000
A28: Dams and Weirs | I28: 0
A29: Boreholes | I29: 0 | K29: =D29 -> 0
A30: Reservoirs | C30: 16016642.97 | D30: 5320000 | F30: 523582.92 | G30: 5418313.37 | H30: =D30/12*3 -> 1330000 | I30: -4088313.37 | J30: -3.073919827 | K30: =D30 -> 5320000
A31: Pump Stations | I31: 0
A32: Water Treatment Works | I32: 0
A33: Bulk Mains | I33: 0
A34: Distribution | I34: 0
A35: Distribution Points | I35: 0
A36: PRV Stations | I36: 0
A37: Capital Spares | I37: 0
A38: Sanitation Infrastructure | C38: =SUM(C39:C44) -> 26594294.6 | D38: 78223966.7 | E38: 0 | F38: -789946.82 | G38: 729963.12 | H38: 19555991.68 | I38: 18826028.55 | J38: 0.9626731729 | K38: =SUM(K39:K44) -> 78223966.7
A39: Pump Station | I39: 0
A40: Reticulation | C40: 26594294.6 | D40: 78223966.7 | F40: -789946.82 | G40: 729963.12 | H40: =D40/12*3 -> 19555991.68 | I40: =H40-G40 -> 18826028.55 | J40: =IF(I40=0,"",I40/H40) -> 0.9626731729 | K40: =D40 -> 78223966.7
A41: Waste Water Treatment Works | I41: =H41-G41 -> 0 | J41: =IF(I41=0,"",I41/H41) -> 
A42: Outfall Sewers | I42: =H42-G42 -> 0 | J42: =IF(I42=0,"",I42/H42) -> 
A43: Toilet Facilities | I43: 0
A44: Capital Spares | I44: 0
A45: Solid Waste Infrastructure | C45: =SUM(C46:C52) -> 0 | D45: 0 | E45: 0 | F45: 0 | G45: 0 | H45: 0 | I45: 0 | K45: =SUM(K46:K52) -> 0
A46: Landfill Sites | I46: 0
A47: Waste Transfer Stations | I47: 0
A48: Waste Processing Facilities | I48: =H48-G48 -> 0 | J48: =IF(I48=0,"",I48/H48) -> 
A49: Waste Drop-off Points | I49: 0
A50: Waste Separation Facilities | I50: 0
A51: Electricity Generation Facilities | I51: 0
A52: Capital Spares | I52: 0
A53: Rail Infrastructure | C53: =SUM(C54:C62) -> 0 | D53: 0 | E53: 0 | F53: 0 | G53: 0 | H53: 0 | I53: 0 | K53: =SUM(K54:K62) -> 0
A54: Rail Lines | I54: 0
A55: Rail Structures | I55: 0
A56: Rail Furniture | I56: 0
A57: Drainage Collection | I57: 0
A58: Storm water Conveyance | I58: 0
A59: Attenuation | I59: 0
A60: MV Substations | I60: 0
A61: LV Networks | I61: 0
A62: Capital Spares | I62: 0
A63: Coastal Infrastructure | C63: =SUM(C64:C68) -> 0 | D63: 0 | E63: 0 | F63: 0 | G63: 0 | H63: 0 | I63: 0 | K63: =SUM(K64:K68) -> 0
A64: Sand Pumps | I64: 0
A65: Piers | I65: 0
A66: Revetments | I66: 0
A67: Promenades | I67: 0
A68: Capital Spares | I68: 0
A69: Information and Communication Infrastructure | C69: =SUM(C70:C73) -> 0 | D69: 0 | E69: 0 | F69: 0 | G69: 0 | H69: 0 | I69: =H69-G69 -> 0 | K69: =SUM(K70:K73) -> 0
A70: Data Centres | I70: =H70-G70 -> 0
A71: Core Layers | I71: =H71-G71 -> 0 | J71: =IF(I71=0,"",I71/H71) -> 
A72: Distribution Layers | I72: =H72-G72 -> 0
A73: Capital Spares | I73: =H73-G73 -> 0
A75: Community Assets | C75: =+C76+C99 -> 14775708.37 | D75: 17641943.08 | E75: 0 | F75: 0 | G75: 70863.41 | H75: 4410485.77 | I75: =H75-G75 -> 4339622.36 | J75: 0.9839329694 | K75: =+K76+K99 -> 17641943.08
A76: Community Facilities | C76: =SUM(C77:C98) -> 14775708.37 | D76: 17641943.08 | E76: 0 | F76: 0 | G76: 70863.41 | H76: 4410485.77 | I76: =H76-G76 -> 4339622.36 | J76: 0.9839329694 | K76: =SUM(K77:K98) -> 17641943.08
A77: Halls | C77: 13711490.32 | D77: 17641943.08 | G77: 70863.41 | H77: =D77/12*3 -> 4410485.77 | I77: 4339622.36 | J77: 0.9839329694 | K77: =D77 -> 17641943.08
A78: Centres | I78: 0
A79: Crèches | I79: 0
A80: Clinics/Care Centres | I80: 0
A81: Fire/Ambulance Stations | I81: 0
A82: Testing Stations | I82: 0
A83: Museums | I83: 0
A84: Galleries | I84: 0
A85: Theatres | I85: 0
A86: Libraries | I86: 0
A87: Cemeteries/Crematoria | I87: 0
A88: Police | C88: 1064218.05 | I88: 0
A89: Purls | I89: 0
A90: Public Open Space | I90: 0
A91: Nature Reserves | I91: 0
A92: Public Ablution Facilities | I92: 0
A93: Markets | I93: 0
A94: Stalls | I94: 0
A95: Abattoirs | I95: 0
A96: Airports | I96: 0
A97: Taxi Ranks/Bus Terminals | I97: 0
A98: Capital Spares | I98: 0
A99: Sport and Recreation Facilities | C99: =SUM(C100:C102) -> 0 | D99: 0 | E99: 0 | F99: 0 | G99: 0 | H99: 0 | I99: 0 | K99: =SUM(K100:K102) -> 0
A100: Indoor Facilities | I100: 0
A101: Outdoor Facilities | I101: 0
A102: Capital Spares | I102: 0
A103: Heritage assets | C103: =SUM(C104:C108) -> 0 | D103: 0 | E103: 0 | F103: 0 | G103: 0 | H103: 0 | I103: 0 | K103: =SUM(K104:K108) -> 0
A104: Monuments | I104: 0
A105: Historic Buildings | I105: 0
A106: Works of Art | I106: 0
A107: Conservation Areas | I107: 0
A108: Other Heritage | I108: 0
I109: 0
A110: Investment properties | C110: =+C111+C114 -> 0 | D110: 0 | E110: 0 | F110: 0 | G110: 0 | H110: 0 | I110: 0 | K110: =+K111+K114 -> 0
A111: Revenue Generating | C111: =SUM(C112:C113) -> 0 | D111: 0 | E111: 0 | F111: 0 | G111: 0 | H111: 0 | I111: 0 | K111: =SUM(K112:K113) -> 0
A112: Improved Property | I112: 0
A113: Unimproved Property | I113: 0
A114: Non-revenue Generating | C114: =SUM(C115:C116) -> 0 | D114: 0 | E114: 0 | F114: 0 | G114: 0 | H114: 0 | I114: 0 | K114: =SUM(K115:K116) -> 0
A115: Improved Property | I115: 0
A116: Unimproved Property | I116: 0
A117: Other assets | C117: =+C118+C130 -> 72439697.62 | D117: 69017472.58 | E117: 0 | F117: 4820950.02 | G117: 9604051.38 | H117: 17254368.14 | I117: 7650316.765 | J117: 0.4433843477 | K117: =+K118+K130 -> 69017472.58
A118: Operational Buildings | C118: =SUM(C119:C129) -> 20692920.9 | D118: 4499000 | E118: 0 | F118: 3255416.54 | G118: 7248571.08 | H118: 1124750 | I118: -6123821.08 | J118: -5.444606428 | K118: =SUM(K119:K129) -> 4499000
A119: Municipal Offices | C119: 20692920.9 | D119: 4499000 | F119: 3255416.54 | G119: 7248571.08 | H119: =D119/12*3 -> 1124750 | I119: -6123821.08 | J119: -5.444606428 | K119: =D119 -> 4499000
A120: Pay/Enquiry Points | I120: 0
A121: Building Plan Offices | I121: 0
A122: Workshops | I122: 0
A123: Yards | I123: 0
A124: Stores | I124: 0
A125: Laboratories | I125: 0
A126: Training Centres | I126: 0
A127: Manufacturing Plant | I127: 0
A128: Depots | I128: 0
A129: Capital Spares | I129: 0
A130: Housing | C130: =SUM(C131:C133) -> 51746776.72 | D130: 64518472.58 | E130: 0 | F130: 1565533.48 | G130: 2355480.3 | H130: 16129618.14 | I130: 13774137.84 | J130: 0.8539655261 | K130: =SUM(K131:K133) -> 64518472.58
A131: Staff Housing | I131: 0
A132: Social Housing | C132: 51746776.72 | D132: 64518472.58 | F132: 1565533.48 | G132: 2355480.3 | H132: =D132/12*3 -> 16129618.14 | I132: 13774137.84 | J132: 0.8539655261 | K132: =D132 -> 64518472.58
A133: Capital Spares | I133: 0
A135: Biological or Cultivated Assets | C135: =SUM(C136:C136) -> 0 | D135: 0 | E135: 0 | F135: 0 | G135: 0 | H135: 0 | I135: =H135-G135 -> 0 | J135: =IF(I135=0,"",I135/H135) ->  | K135: =SUM(K136) -> 0
A136: Biological or Cultivated Assets | I136: =H136-G136 -> 0
A138: Intangible Assets | C138: =SUM(C139:C140) -> 5919964.93 | D138: 25900000 | E138: 0 | F138: 635613 | G138: 635613 | H138: 6475000 | I138: =H138-G138 -> 5839387 | J138: 0.9018358301 | K138: =SUM(K139:K140) -> 25900000
A139: Servitudes | C139: 5919964.93 | D139: 25000000 | F139: 635613 | G139: 635613 | H139: =D139/12*3 -> 6250000 | I139: 5614387 | J139: 0.89830192 | K139: =D139 -> 25000000
A140: Licences and Rights | C140: =SUM(C141:C146) -> 0 | D140: 900000 | E140: 0 | F140: 0 | G140: 0 | H140: 225000 | I140: 225000 | J140: 1 | K140: =SUM(K141:K146) -> 900000
A141: Water Rights | I141: 0
A142: Effluent Licenses | I142: 0
A143: Solid Waste Licenses | I143: 0
A144: Computer Software and Applications | D144: 900000 | H144: =D144/12*3 -> 225000 | I144: 225000 | J144: 1 | K144: =D144 -> 900000
A145: Load Settlement Software Applications | I145: 0
A146: Unspecified | I146: 0
A148: Computer Equipment | C148: =SUM(C149:C149) -> 0 | D148: 0 | E148: 0 | F148: 0 | G148: 0 | H148: 0 | I148: =H148-G148 -> 0 | J148: =IF(I148=0,"",I148/H148) ->  | K148: =SUM(K149) -> 0
A149: Computer Equipment | I149: =H149-G149 -> 0 | J149: =IF(I149=0,"",I149/H149) -> 
A151: Furniture and Office Equipment | C151: =SUM(C152:C152) -> 21418725.02 | D151: 77515559.01 | E151: 0 | F151: 0 | G151: 0 | H151: 19378889.75 | I151: =H151-G151 -> 19378889.75 | J151: =IF(I151=0,"",I151/H151) -> 1 | K151: =SUM(K152) -> 77515559.01
A152: Furniture and Office Equipment | C152: 21418725.02 | D152: 77515559.01 | H152: =D152/12*3 -> 19378889.75 | I152: =H152-G152 -> 19378889.75 | J152: =IF(I152=0,"",I152/H152) -> 1 | K152: =D152 -> 77515559.01
J153: =IF(I153=0,"",I153/H153) -> 
A154: Machinery and Equipment | C154: =SUM(C155:C155) -> 46679332.63 | D154: 41470000 | E154: 0 | F154: 12973282.26 | G154: 12973282.26 | H154: 10367500 | I154: =H154-G154 -> -2605782.26 | J154: =IF(I154=0,"",I154/H154) -> -0.2513414285 | K154: =SUM(K155) -> 41470000
A155: Machinery and Equipment | C155: 46679332.63 | D155: 41470000 | F155: 12973282.26 | G155: 12973282.26 | H155: =D155/12*3 -> 10367500 | I155: =H155-G155 -> -2605782.26 | J155: =IF(I155=0,"",I155/H155) -> -0.2513414285 | K155: =D155 -> 41470000
A157: Transport Assets | C157: =SUM(C158:C158) -> 39607816.57 | D157: 18800000 | E157: 0 | F157: 0 | G157: 0 | H157: 4700000 | I157: =H157-G157 -> 4700000 | J157: =IF(I157=0,"",I157/H157) -> 1 | K157: =SUM(K158) -> 18800000
A158: Transport Assets | C158: 39607816.57 | D158: 18800000 | H158: =D158/12*3 -> 4700000 | I158: =H158-G158 -> 4700000 | J158: =IF(I158=0,"",I158/H158) -> 1 | K158: =D158 -> 18800000
A160: Land | C160: =SUM(C161:C161) -> 0 | D160: 0 | E160: 0 | F160: 0 | G160: 0 | H160: 0 | I160: =H160-G160 -> 0 | J160: =IF(I160=0,"",I160/H160) ->  | K160: =SUM(K161) -> 0
A161: Land | I161: =H161-G161 -> 0 | J161: =IF(I161=0,"",I161/H161) -> 
A163: Zoo's, Marine and Non-biological Animals | C163: =SUM(C164:C164) -> 0 | D163: 0 | E163: 0 | F163: 0 | G163: 0 | H163: 0 | I163: =H163-G163 -> 0 | J163: =IF(I163=0,"",I163/H163) ->  | K163: =SUM(K164) -> 0
A164: Zoo's, Marine and Non-biological Animals | I164: =H164-G164 -> 0 | J164: =IF(I164=0,"",I164/H164) -> 
A166: Living resources | C166: =+C167+C170 -> 0 | D166: 0 | E166: 0 | F166: 0 | G166: 0 | H166: 0 | I166: =H166-G166 -> 0 | J166: =IF(I166=0,"",I166/H166) ->  | K166: 0
A167: Mature | C167: =+C168+C169 -> 0 | D167: 0 | E167: 0 | F167: 0 | G167: 0 | H167: 0 | I167: 0 | K167: 0
A168: Policing and Protection | I168: 0
A169: Zoological plants and animals | I169: 0
A170: Immature | C170: =+C171+C172 -> 0 | D170: 0 | E170: 0 | F170: 0 | G170: 0 | H170: 0 | I170: 0 | K170: =+K171+K172 -> 0
A171: Policing and Protection | I171: 0
A172: Zoological plants and animals | I172: 0
A173: Total Capital Expenditure on new assets | B173: 1 | C173: =C7+C75+C103+C110+C117+C135+C138+C148+C151+C154+C157+C160+C163+C166 -> 306242012.8 | D173: 572341637 | E173: 0 | F173: 19207649.34 | G173: 30652881.87 | H173: 143085409.2 | I173: =H173-G173 -> 112432527.4 | J173: =IF(I173=0,"",I173/H173) -> 0.7857721341 | K173: =K7+K75+K103+K110+K117+K135+K138+K148+K151+K154+K157+K160+K163+K166 -> 572341637
A175: =head27a -> References
A176: 1. Total Capital Expenditure on new assets (SC13a) plus Total Capital Expenditure on renewal of existing assets (SC13b) plus Total Capital Expenditure on upgrading of existing assets (SC13e) must reconcile to total capital expenditure in Table C5
A178: check balance | C178: =C173+SC13b!C173+SC13e!C173-'C5-Capex'!C40 -> 0 | D178: =D173+SC13b!D173+SC13e!D173-'C5-Capex'!D40 -> 0 | E178: =E173+SC13b!E173+SC13e!E173-'C5-Capex'!E40 -> 0 | F178: =F173+SC13b!F173+SC13e!F173-'C5-Capex'!F40 -> 0 | G178: =G173+SC13b!G173+SC13e!G173-'C5-Capex'!G40 -> 0 | H178: =H173+SC13b!H173+SC13e!H173-'C5-Capex'!H40 -> 0 | K178: =K173+SC13b!K173+SC13e!K173-'C5-Capex'!K40 -> 0

Sheet SC13b
A1: =muni& " - "&S71Sb& " - "&Head57 -> KZN225 Msunduzi - Supporting Table SC13b Monthly Budget Statement - capital expenditure on renewal of existing assets by asset class - Q1 First Quarter
A2: =desc -> Description | B2: =head27 -> Ref | C2: =Head1 -> 2023/24 | D2: =Head2 -> Budget Year 2024/25
C3: =Head5 -> Audited Outcome | D3: =Head6 -> Original Budget | E3: =Head7 -> Adjusted Budget | F3: =Head38 -> Monthly actual | G3: =Head39 -> YearTD actual | H3: =Head40 -> YearTD budget | I3: =Head41 -> YTD variance | J3: =Head41 -> YTD variance | K3: =Head8 -> Full Year Forecast
A4: R thousands | B4: 1 | J4: %
A5: Capital expenditure on renewal of existing assets by Asset Class/Sub-class
A7: Infrastructure | C7: =C8+C13+C17+C27+C38+C45+C53+C63+C69 -> 107513491.7 | D7: 34231493 | E7: 0 | F7: 19904712.66 | G7: 39230532.34 | H7: 8557873.25 | I7: =H7-G7 -> -30672659.09 | J7: =IF(I7=0,"",I7/H7) -> -3.584145055 | K7: =K8+K13+K17+K27+K38+K45+K53+K63+K69 -> 34231493
A8: Roads Infrastructure | C8: =SUM(C9:C12) -> 102700749 | D8: 29231493 | E8: 0 | F8: 19313015.43 | G8: 35743887.76 | H8: 7307873.25 | I8: -28436014.51 | J8: -3.891147744 | K8: =SUM(K9:K12) -> 29231493
A9: Roads | C9: 102700749 | D9: 29231493 | F9: 19313015.43 | G9: 35743887.76 | H9: =D9/12*3 -> 7307873.25 | I9: -28436014.51 | J9: -3.891147744 | K9: =D9 -> 29231493
A10: Road Structures | I10: 0
A11: Road Furniture | I11: 0
A12: Capital Spares | I12: 0
A13: Storm water Infrastructure | C13: =SUM(C14:C16) -> 0 | D13: 0 | E13: 0 | F13: 0 | G13: 0 | H13: 0 | I13: 0 | K13: =SUM(K14:K16) -> 0
A14: Drainage Collection | I14: 0
A15: Storm water Conveyance | I15: 0
A16: Attenuation | I16: 0
A17: Electrical Infrastructure | C17: =SUM(C18:C26) -> 0 | D17: 0 | E17: 0 | F17: 0 | G17: 0 | H17: 0 | I17: 0 | K17: =SUM(K18:K26) -> 0
A18: Power Plants | I18: 0
A19: HV Substations | I19: 0
A20: HV Switching Station | I20: 0
A21: HV Transmission Conductors | I21: 0
A22: MV Substations | I22: 0
A23: MV Switching Stations | I23: 0
A24: MV Networks | I24: 0
A25: LV Networks | I25: 0
A26: Capital Spares | I26: 0
A27: Water Supply Infrastructure | C27: =SUM(C28:C37) -> 4812742.65 | D27: 5000000 | E27: 0 | F27: 591697.23 | G27: 3486644.58 | H27: 1250000 | I27: -2236644.58 | J27: -1.789315664 | K27: =SUM(K28:K37) -> 5000000
A28: Dams and Weirs | I28: 0
A29: Boreholes | I29: 0
A30: Reservoirs | C30: 4812742.65 | D30: 5000000 | F30: 591697.23 | G30: 3486644.58 | H30: =D30/12*3 -> 1250000 | I30: -2236644.58 | J30: -1.789315664 | K30: =D30 -> 5000000
A31: Pump Stations | I31: 0
A32: Water Treatment Works | I32: 0
A33: Bulk Mains | I33: 0
A34: Distribution | I34: 0
A35: Distribution Points | I35: 0
A36: PRV Stations | I36: 0
A37: Capital Spares | I37: 0
A38: Sanitation Infrastructure | C38: =SUM(C39:C44) -> 0 | D38: 0 | E38: 0 | F38: 0 | G38: 0 | H38: 0 | I38: 0 | K38: =SUM(K39:K44) -> 0
A39: Pump Station | I39: 0
A40: Reticulation | I40: 0
A41: Waste Water Treatment Works | I41: 0
A42: Outfall Sewers | I42: 0
A43: Toilet Facilities | I43: 0
A44: Capital Spares | I44: 0
A45: Solid Waste Infrastructure | C45: =SUM(C46:C52) -> 0 | D45: 0 | E45: 0 | F45: 0 | G45: 0 | H45: 0 | I45: 0 | K45: =SUM(K46:K52) -> 0
A46: Landfill Sites | I46: 0
A47: Waste Transfer Stations | I47: 0
A48: Waste Processing Facilities | I48: 0
A49: Waste Drop-off Points | I49: 0
A50: Waste Separation Facilities | I50: 0
A51: Electricity Generation Facilities | I51: 0
A52: Capital Spares | I52: 0
A53: Rail Infrastructure | C53: =SUM(C54:C62) -> 0 | D53: 0 | E53: 0 | F53: 0 | G53: 0 | H53: 0 | I53: 0 | K53: =SUM(K54:K62) -> 0
A54: Rail Lines | I54: 0
A55: Rail Structures | I55: 0
A56: Rail Furniture | I56: 0
A57: Drainage Collection | I57: 0
A58: Storm water Conveyance | I58: 0
A59: Attenuation | I59: 0
A60: MV Substations | I60: 0
A61: LV Networks | I61: 0
A62: Capital Spares | I62: 0
A63: Coastal Infrastructure | C63: =SUM(C64:C68) -> 0 | D63: 0 | E63: 0 | F63: 0 | G63: 0 | H63: 0 | I63: 0 | K63: =SUM(K64:K68) -> 0
A64: Sand Pumps | I64: 0
A65: Piers | I65: 0
A66: Revetments | I66: 0
A67: Promenades | I67: 0
A68: Capital Spares | I68: 0
A69: Information and Communication Infrastructure | C69: =SUM(C70:C73) -> 0 | D69: 0 | E69: 0 | F69: 0 | G69: 0 | H69: 0 | I69: 0 | K69: =SUM(K70:K73) -> 0
A70: Data Centres | I70: 0
A71: Core Layers | I71: 0
A72: Distribution Layers | I72: 0
A73: Capital Spares | I73: 0
A75: Community Assets | C75: =+C76+C99 -> 0 | D75: 0 | E75: 0 | F75: 0 | G75: 0 | H75: 0 | I75: 0 | K75: =+K76+K99 -> 0
A76: Community Facilities | C76: =SUM(C77:C98) -> 0 | D76: 0 | E76: 0 | F76: 0 | G76: 0 | H76: 0 | I76: 0 | K76: =SUM(K77:K98) -> 0
A77: Halls | I77: 0
A78: Centres | I78: 0
A79: Crèches | I79: 0
A80: Clinics/Care Centres | I80: 0
A81: Fire/Ambulance Stations | I81: 0
A82: Testing Stations | I82: 0
A83: Museums | I83: 0
A84: Galleries | I84: 0
A85: Theatres | I85: 0
A86: Libraries | I86: 0
A87: Cemeteries/Crematoria | I87: 0
A88: Police | I88: 0
A89: Purls | I89: 0
A90: Public Open Space | I90: 0
A91: Nature Reserves | I91: 0
A92: Public Ablution Facilities | I92: 0
A93: Markets | I93: 0
A94: Stalls | I94: 0
A95: Abattoirs | I95: 0
A96: Airports | I96: 0
A97: Taxi Ranks/Bus Terminals | I97: 0
A98: Capital Spares | I98: 0
A99: Sport and Recreation Facilities | C99: =SUM(C100:C102) -> 0 | D99: 0 | E99: 0 | F99: 0 | G99: 0 | H99: 0 | I99: 0 | K99: =SUM(K100:K102) -> 0
A100: Indoor Facilities | I100: 0
A101: Outdoor Facilities | I101: =H101-G101 -> 0 | J101: =IF(I101=0,"",I101/H101) -> 
A102: Capital Spares | I102: 0
A103: Heritage assets | C103: =SUM(C104:C108) -> 0 | D103: 0 | E103: 0 | F103: 0 | G103: 0 | H103: 0 | I103: 0 | K103: =SUM(K104:K108) -> 0
A104: Monuments | I104: 0
A105: Historic Buildings | I105: 0
A106: Works of Art | I106: 0
A107: Conservation Areas | I107: 0
A108: Other Heritage | I108: 0
I109: 0
A110: Investment properties | C110: =+C111+C114 -> 0 | D110: 0 | E110: 0 | F110: 0 | G110: 0 | H110: 0 | I110: 0 | K110: =+K111+K114 -> 0
A111: Revenue Generating | C111: =SUM(C112:C113) -> 0 | D111: 0 | E111: 0 | F111: 0 | G111: 0 | H111: 0 | I111: 0 | K111: =SUM(K112:K113) -> 0
A112: Improved Property | I112: 0
A113: Unimproved Property | I113: 0
A114: Non-revenue Generating | C114: =SUM(C115:C116) -> 0 | D114: 0 | E114: 0 | F114: 0 | G114: 0 | H114: 0 | I114: 0 | K114: =SUM(K115:K116) -> 0
A115: Improved Property | I115: 0
A116: Unimproved Property | I116: =H116-G116 -> 0 | J116: =IF(I116=0,"",I116/H116) -> 
A117: Other assets | C117: =+C118+C130 -> 11253470.61 | D117: 3300000 | E117: 0 | F117: 0 | G117: 0 | H117: 825000 | I117: 825000 | J117: 1 | K117: =+K118+K130 -> 3300000
A118: Operational Buildings | C118: =SUM(C119:C129) -> 11253470.61 | D118: 3300000 | E118: 0 | F118: 0 | G118: 0 | H118: 825000 | I118: 825000 | J118: 1 | K118: =SUM(K119:K129) -> 3300000
A119: Municipal Offices | C119: 11253470.61 | D119: 3300000 | H119: =D119/12*3 -> 825000 | I119: 825000 | J119: 1 | K119: =D119 -> 3300000
A120: Pay/Enquiry Points | I120: 0
A121: Building Plan Offices | I121: 0
A122: Workshops | I122: 0
A123: Yards | I123: 0
A124: Stores | I124: 0
A125: Laboratories | I125: 0
A126: Training Centres | I126: 0
A127: Manufacturing Plant | I127: 0
A128: Depots | I128: 0
A129: Capital Spares | I129: 0
A130: Housing | C130: =SUM(C131:C133) -> 0 | D130: 0 | E130: 0 | F130: 0 | G130: 0 | H130: 0 | I130: 0 | K130: =SUM(K131:K133) -> 0
A131: Staff Housing | I131: 0
A132: Social Housing | I132: 0
A133: Capital Spares | I133: 0
A135: Biological or Cultivated Assets | C135: =SUM(C136:C136) -> 0 | D135: 0 | E135: 0 | F135: 0 | G135: 0 | H135: 0 | I135: =H135-G135 -> 0 | K135: =SUM(K136) -> 0
A136: Biological or Cultivated Assets | I136: =H136-G136 -> 0
J137: =IF(I137=0,"",I137/H137) -> 
A138: Intangible Assets | C138: =SUM(C139:C140) -> 0 | D138: 0 | E138: 0 | F138: 0 | G138: 0 | H138: 0 | I138: =H138-G138 -> 0 | K138: =SUM(K139:K140) -> 0
A139: Servitudes | I139: 0
A140: Licences and Rights | C140: =SUM(C141:C146) -> 0 | D140: 0 | E140: 0 | F140: 0 | G140: 0 | H140: 0 | I140: 0 | K140: =SUM(K141:K146) -> 0
A141: Water Rights | I141: 0
A142: Effluent Licenses | I142: 0
A143: Solid Waste Licenses | I143: 0
A144: Computer Software and Applications | I144: 0
A145: Load Settlement Software Applications | I145: 0
A146: Unspecified | I146: 0
A148: Computer Equipment | C148: =SUM(C149:C149) -> 0 | D148: 0 | E148: 0 | F148: 0 | G148: 0 | H148: 0 | I148: =H148-G148 -> 0 | J148: =IF(I148=0,"",I148/H148) ->  | K148: =SUM(K149) -> 0
A149: Computer Equipment | I149: =H149-G149 -> 0 | J149: =IF(I149=0,"",I149/H149) -> 
A151: Furniture and Office Equipment | C151: =SUM(C152:C152) -> 0 | D151: 0 | E151: 0 | F151: 0 | G151: 0 | H151: 0 | I151: =H151-G151 -> 0 | J151: =IF(I151=0,"",I151/H151) ->  | K151: =SUM(K152) -> 0
A152: Furniture and Office Equipment | I152: =H152-G152 -> 0 | J152: =IF(I152=0,"",I152/H152) -> 
J153: =IF(I153=0,"",I153/H153) -> 
A154: Machinery and Equipment | C154: =SUM(C155:C155) -> 0 | D154: 0 | E154: 0 | F154: 0 | G154: 0 | H154: 0 | I154: =H154-G154 -> 0 | J154: =IF(I154=0,"",I154/H154) ->  | K154: =SUM(K155) -> 0
A155: Machinery and Equipment | I155: =H155-G155 -> 0 | J155: =IF(I155=0,"",I155/H155) -> 
A157: Transport Assets | C157: =SUM(C158:C158) -> 0 | D157: 0 | E157: 0 | F157: 0 | G157: 0 | H157: 0 | I157: =H157-G157 -> 0 | J157: =IF(I157=0,"",I157/H157) ->  | K157: =SUM(K158) -> 0
A158: Transport Assets | I158: =H158-G158 -> 0 | J158: =IF(I158=0,"",I158/H158) -> 
A160: Land | C160: =SUM(C161:C161) -> 0 | D160: 0 | E160: 0 | F160: 0 | G160: 0 | H160: 0 | I160: =H160-G160 -> 0 | J160: =IF(I160=0,"",I160/H160) ->  | K160: =SUM(K161) -> 0
A161: Land | I161: =H161-G161 -> 0 | J161: =IF(I161=0,"",I161/H161) -> 
J162: .
A163: Zoo's, Marine and Non-biological Animals | C163: =SUM(C164:C164) -> 0 | D163: 0 | E163: 0 | F163: 0 | G163: 0 | H163: 0 | I163: =H163-G163 -> 0 | J163: =IF(I163=0,"",I163/H163) ->  | K163: =SUM(K164) -> 0
A164: Zoo's, Marine and Non-biological Animals | I164: =H164-G164 -> 0 | J164: =IF(I164=0,"",I164/H164) -> 
A166: Living resources | C166: =+C167+C170 -> 0 | D166: 0 | E166: 0 | F166: 0 | G166: 0 | H166: 0 | I166: =H166-G166 -> 0 | J166: =IF(I166=0,"",I166/H166) ->  | K166: =+K167+K170 -> 0
A167: Mature | C167: =+C168+C169 -> 0 | D167: 0 | E167: 0 | F167: 0 | G167: 0 | H167: 0 | I167: 0 | K167: =+K168+K169 -> 0
A168: Policing and Protection | I168: 0
A169: Zoological plants and animals | I169: 0
A170: Immature | C170: =+C171+C172 -> 0 | D170: 0 | E170: 0 | F170: 0 | G170: 0 | H170: 0 | I170: 0 | K170: =+K171+K172 -> 0
A171: Policing and Protection | I171: 0
A172: Zoological plants and animals | I172: 0
A173: Total Capital Expenditure on renewal of existing assets | B173: 1 | C173: =C7+C75+C103+C110+C117+C135+C138+C148+C151+C154+C157+C160+C163+C166 -> 118766962.3 | D173: 37531493 | E173: 0 | F173: 19904712.66 | G173: 39230532.34 | H173: 9382873.25 | I173: =H173-G173 -> -29847659.09 | J173: =IF(I173=0,"",I173/H173) -> -3.181078791 | K173: =K7+K75+K103+K110+K117+K135+K138+K148+K151+K154+K157+K160+K163+K166 -> 37531493
A175: =head27a -> References
A176: 1. Total Capital Expenditure on new assets (SC13a) plus Total Capital Expenditure on renewal of existing assets (SC13b) plus Total Capital Expenditure on upgrading of existing assets (SC13e) must reconcile to total capital expenditure in Table C5
A178: check balance | C178: =C173+SC13a!C173+SC13e!C173-'C5-Capex'!C40 -> 0 | D178: =D173+SC13a!D173+SC13e!D173-'C5-Capex'!D40 -> 0 | E178: =E173+SC13a!E173+SC13e!E173-'C5-Capex'!E40 -> 0 | F178: =F173+SC13a!F173+SC13e!F173-'C5-Capex'!F40 -> 0 | G178: =G173+SC13a!G173+SC13e!G173-'C5-Capex'!G40 -> 0 | H178: =H173+SC13a!H173+SC13e!H173-'C5-Capex'!H40 -> 0 | K178: =K173+SC13a!K173+SC13e!K173-'C5-Capex'!K40 -> 0

Sheet SC13c
A1: =muni& " - "&S71Sc& " - "&Head57 -> KZN225 Msunduzi - Supporting Table SC13c Monthly Budget Statement - expenditure on repairs and maintenance by asset class - Q1 First Quarter
A2: =desc -> Description | B2: =head27 -> Ref | C2: =Head1 -> 2023/24 | D2: =Head2 -> Budget Year 2024/25
C3: =Head5 -> Audited Outcome | D3: =Head6 -> Original Budget | E3: =Head7 -> Adjusted Budget | F3: =Head38 -> Monthly actual | G3: =Head39 -> YearTD actual | H3: =Head40 -> YearTD budget | I3: =Head41 -> YTD variance | J3: =Head41 -> YTD variance | K3: =Head8 -> Full Year Forecast
A4: R thousands | B4: 1 | J4: %
A5: Repairs and maintenance expenditure by Asset Class/Sub-class
A7: Infrastructure | C7: =C8+C13+C17+C27+C38+C45+C53+C63+C69 -> 135529174.7 | D7: 167975000 | E7: 0 | F7: 8564991.88 | G7: 25974457.35 | H7: 41993750 | I7: =H7-G7 -> 16019292.65 | J7: =IF(I7=0,"",I7/H7) -> 0.3814684959 | K7: =K8+K13+K17+K27+K38+K45+K53+K63+K69 -> 167975000
A8: Roads Infrastructure | C8: =SUM(C9:C12) -> 0 | D8: 0 | E8: 0 | F8: 0 | G8: 0 | H8: 0 | I8: 0 | K8: =SUM(K9:K12) -> 0
A9: Roads | I9: 0
A10: Road Structures | I10: 0
A11: Road Furniture | I11: 0
A12: Capital Spares | I12: 0
A13: Storm water Infrastructure | C13: =SUM(C14:C16) -> 0 | D13: 0 | E13: 0 | F13: 0 | G13: 0 | H13: 0 | I13: 0 | K13: =SUM(K14:K16) -> 0
A14: Drainage Collection | I14: 0
A15: Storm water Conveyance | I15: 0
A16: Attenuation | I16: 0
A17: Electrical Infrastructure | C17: =SUM(C18:C26) -> 120705137 | D17: 154375000 | E17: 0 | F17: 8108756.81 | G17: 24395860.73 | H17: 38593750 | I17: 14197889.27 | J17: 0.3678805317 | K17: =SUM(K18:K26) -> 154375000
A18: Power Plants | C18: 120705137 | D18: 154375000 | F18: 8108756.81 | G18: 24395860.73 | H18: =D18/12*3 -> 38593750 | I18: 14197889.27 | J18: 0.3678805317 | K18: =D18 -> 154375000
A19: HV Substations | I19: 0
A20: HV Switching Station | I20: 0
A21: HV Transmission Conductors | I21: 0
A22: MV Substations | I22: 0
A23: MV Switching Stations | I23: 0
A24: MV Networks | I24: 0
A25: LV Networks | I25: 0
A26: Capital Spares | I26: 0
A27: Water Supply Infrastructure | C27: =SUM(C28:C37) -> 0 | D27: 0 | E27: 0 | F27: 0 | G27: 0 | H27: 0 | I27: 0 | K27: =SUM(K28:K37) -> 0
A28: Dams and Weirs | I28: 0
A29: Boreholes | I29: 0
A30: Reservoirs | I30: 0 | K30: =D30 -> 0
A31: Pump Stations | I31: 0
A32: Water Treatment Works | I32: 0
A33: Bulk Mains | I33: 0
A34: Distribution | I34: 0
A35: Distribution Points | I35: 0
A36: PRV Stations | I36: 0
A37: Capital Spares | I37: 0
A38: Sanitation Infrastructure | C38: =SUM(C39:C44) -> 14824037.7 | D38: 13600000 | E38: 0 | F38: 456235.07 | G38: 1578596.62 | H38: 3400000 | I38: 1821403.38 | J38: 0.5357068765 | K38: =SUM(K39:K44) -> 13600000
A39: Pump Station | I39: 0
A40: Reticulation | C40: 14824037.7 | D40: 13600000 | F40: 456235.07 | G40: 1578596.62 | H40: =D40/12*3 -> 3400000 | I40: 1821403.38 | J40: 0.5357068765 | K40: =D40 -> 13600000
A41: Waste Water Treatment Works | I41: 0
A42: Outfall Sewers | I42: 0
A43: Toilet Facilities | I43: 0
A44: Capital Spares | I44: 0
A45: Solid Waste Infrastructure | C45: =SUM(C46:C52) -> 0 | D45: 0 | E45: 0 | F45: 0 | G45: 0 | H45: 0 | I45: 0 | K45: =SUM(K46:K52) -> 0
A46: Landfill Sites | I46: 0
A47: Waste Transfer Stations | I47: 0
A48: Waste Processing Facilities | I48: 0
A49: Waste Drop-off Points | I49: 0
A50: Waste Separation Facilities | I50: 0
A51: Electricity Generation Facilities | I51: 0
A52: Capital Spares | I52: 0
A53: Rail Infrastructure | C53: =SUM(C54:C62) -> 0 | D53: 0 | E53: 0 | F53: 0 | G53: 0 | H53: 0 | I53: 0 | K53: =SUM(K54:K62) -> 0
A54: Rail Lines | I54: 0
A55: Rail Structures | I55: 0
A56: Rail Furniture | I56: 0
A57: Drainage Collection | I57: 0
A58: Storm water Conveyance | I58: 0
A59: Attenuation | I59: 0
A60: MV Substations | I60: 0
A61: LV Networks | I61: 0
A62: Capital Spares | I62: 0
A63: Coastal Infrastructure | C63: =SUM(C64:C68) -> 0 | D63: 0 | E63: 0 | F63: 0 | G63: 0 | H63: 0 | I63: 0 | K63: =SUM(K64:K68) -> 0
A64: Sand Pumps | I64: 0
A65: Piers | I65: 0
A66: Revetments | I66: 0
A67: Promenades | I67: 0
A68: Capital Spares | I68: 0
A69: Information and Communication Infrastructure | C69: =SUM(C70:C73) -> 0 | D69: 0 | E69: 0 | F69: 0 | G69: 0 | H69: 0 | I69: 0 | K69: =SUM(K70:K73) -> 0
A70: Data Centres | I70: 0
A71: Core Layers | I71: 0
A72: Distribution Layers | I72: 0
A73: Capital Spares | I73: 0
A75: Community Assets | C75: =+C76+C99 -> 0 | D75: 12750 | E75: 0 | F75: 0 | G75: 0 | H75: 3187.5 | I75: 3187.5 | J75: 1 | K75: =+K76+K99 -> 12750
A76: Community Facilities | C76: =SUM(C77:C98) -> 0 | D76: 12750 | E76: 0 | F76: 0 | G76: 0 | H76: 3187.5 | I76: 3187.5 | J76: 1 | K76: =SUM(K77:K98) -> 12750
A77: Halls | D77: 12750 | H77: =D77/12*3 -> 3187.5 | I77: 3187.5 | J77: 1 | K77: =D77 -> 12750
A78: Centres | I78: 0
A79: Crèches | I79: 0
A80: Clinics/Care Centres | I80: 0
A81: Fire/Ambulance Stations | I81: 0
A82: Testing Stations | I82: 0
A83: Museums | I83: 0
A84: Galleries | I84: 0
A85: Theatres | I85: 0
A86: Libraries | I86: 0
A87: Cemeteries/Crematoria | I87: 0
A88: Police | I88: 0
A89: Purls | I89: 0
A90: Public Open Space | I90: 0
A91: Nature Reserves | I91: 0
A92: Public Ablution Facilities | I92: 0
A93: Markets | I93: 0
A94: Stalls | I94: 0
A95: Abattoirs | I95: 0
A96: Airports | I96: 0
A97: Taxi Ranks/Bus Terminals | I97: 0
A98: Capital Spares | I98: 0
A99: Sport and Recreation Facilities | C99: =SUM(C100:C102) -> 0 | D99: 0 | E99: 0 | F99: 0 | G99: 0 | H99: 0 | I99: 0 | K99: =SUM(K100:K102) -> 0
A100: Indoor Facilities | I100: 0
A101: Outdoor Facilities | I101: =H101-G101 -> 0 | J101: =IF(I101=0,"",I101/H101) -> 
A102: Capital Spares | I102: 0
A103: Heritage assets | C103: =SUM(C104:C108) -> 0 | D103: 0 | E103: 0 | F103: 0 | G103: 0 | H103: 0 | I103: 0 | K103: =SUM(K104:K108) -> 0
A104: Monuments | I104: 0
A105: Historic Buildings | I105: 0
A106: Works of Art | I106: 0
A107: Conservation Areas | I107: 0
A108: Other Heritage | I108: 0
I109: 0
A110: Investment properties | C110: =+C111+C114 -> 0 | D110: 0 | E110: 0 | F110: 0 | G110: 0 | H110: 0 | I110: 0 | K110: =+K111+K114 -> 0
A111: Revenue Generating | C111: =SUM(C112:C113) -> 0 | D111: 0 | E111: 0 | F111: 0 | G111: 0 | H111: 0 | I111: 0 | K111: =SUM(K112:K113) -> 0
A112: Improved Property | I112: 0
A113: Unimproved Property | I113: 0
A114: Non-revenue Generating | C114: =SUM(C115:C116) -> 0 | D114: 0 | E114: 0 | F114: 0 | G114: 0 | H114: 0 | I114: 0 | K114: =SUM(K115:K116) -> 0
A115: Improved Property | I115: 0
A116: Unimproved Property | I116: =H116-G116 -> 0 | J116: =IF(I116=0,"",I116/H116) -> 
A117: Other assets | C117: =+C118+C130 -> 143309811.1 | D117: 180942659.5 | E117: 0 | F117: 882415.51 | G117: -2138145.09 | H117: 45235664.87 | I117: 47373809.96 | J117: 1.047266799 | K117: =+K118+K130 -> 180942659.5
A118: Operational Buildings | C118: =SUM(C119:C129) -> 143309811.1 | D118: 180942659.5 | E118: 0 | F118: 882415.51 | G118: -2138145.09 | H118: 45235664.87 | I118: 47373809.96 | J118: 1.047266799 | K118: =SUM(K119:K129) -> 180942659.5
A119: Municipal Offices | C119: 20627226.29 | D119: 47004019.68 | F119: -93308.23 | G119: -609485.08 | H119: =D119/12*3 -> 11751004.92 | I119: 12360490 | J119: 1.051866635 | K119: =D119 -> 47004019.68
A120: Pay/Enquiry Points | C120: 0 | D120: 0 | I120: 0
A121: Building Plan Offices | C121: 0 | D121: 0 | I121: 0 | K121: =D121 -> 0
A122: Workshops | C122: 122682584.8 | D122: 133938639.8 | F122: 975723.74 | G122: -1528660.01 | H122: =D122/12*3 -> 33484659.95 | I122: 35013319.96 | J122: 1.045652547 | K122: =D122 -> 133938639.8
A123: Yards | I123: 0
A124: Stores | I124: 0
A125: Laboratories | I125: 0
A126: Training Centres | I126: 0
A127: Manufacturing Plant | I127: 0
A128: Depots | I128: 0
A129: Capital Spares | I129: 0
A130: Housing | C130: =SUM(C131:C133) -> 0 | D130: 0 | E130: 0 | F130: 0 | G130: 0 | H130: 0 | I130: 0 | K130: =SUM(K131:K133) -> 0
A131: Staff Housing | I131: 0
A132: Social Housing | I132: 0
A133: Capital Spares | I133: 0
A135: Biological or Cultivated Assets | C135: =SUM(C136:C136) -> 0 | D135: 0 | E135: 0 | F135: 0 | G135: 0 | H135: 0 | I135: =H135-G135 -> 0 | K135: =SUM(K136) -> 0
A136: Biological or Cultivated Assets | I136: =H136-G136 -> 0
A138: Intangible Assets | C138: =SUM(C139:C140) -> 0 | D138: 0 | E138: 0 | F138: 0 | G138: 0 | H138: 0 | I138: =H138-G138 -> 0 | K138: =SUM(K139:K140) -> 0
A139: Servitudes | I139: 0
A140: Licences and Rights | C140: =SUM(C141:C146) -> 0 | D140: 0 | E140: 0 | F140: 0 | G140: 0 | H140: 0 | I140: 0 | K140: =SUM(K141:K146) -> 0
A141: Water Rights | I141: 0
A142: Effluent Licenses | I142: 0
A143: Solid Waste Licenses | I143: 0
A144: Computer Software and Applications | I144: 0
A145: Load Settlement Software Applications | I145: 0
A146: Unspecified | I146: 0
A148: Computer Equipment | C148: =SUM(C149:C149) -> 0 | D148: 0 | E148: 0 | F148: 0 | G148: 0 | H148: 0 | I148: =H148-G148 -> 0 | J148: =IF(I148=0,"",I148/H148) ->  | K148: =SUM(K149) -> 0
A149: Computer Equipment | I149: =H149-G149 -> 0 | J149: =IF(I149=0,"",I149/H149) -> 
A151: Furniture and Office Equipment | C151: =SUM(C152:C152) -> 0 | D151: 0 | E151: 0 | F151: 0 | G151: 0 | H151: 0 | I151: =H151-G151 -> 0 | J151: =IF(I151=0,"",I151/H151) ->  | K151: =SUM(K152) -> 0
A152: Furniture and Office Equipment | I152: =H152-G152 -> 0 | J152: =IF(I152=0,"",I152/H152) -> 
J153: =IF(I153=0,"",I153/H153) -> 
A154: Machinery and Equipment | C154: =SUM(C155:C155) -> 120677632 | D154: 142609015.1 | E154: 0 | F154: 7651063.74 | G154: -1062576.35 | H154: 35652253.77 | I154: =H154-G154 -> 36714830.12 | J154: =IF(I154=0,"",I154/H154) -> 1.029803904 | K154: =SUM(K155) -> 142609015.1
A155: Machinery and Equipment | C155: 120677632 | D155: 142609015.1 | F155: 7651063.74 | G155: -1062576.35 | H155: =D155/12*3 -> 35652253.77 | I155: =H155-G155 -> 36714830.12 | J155: =IF(I155=0,"",I155/H155) -> 1.029803904 | K155: =D155 -> 142609015.1
A157: Transport Assets | C157: =SUM(C158:C158) -> 26582440.65 | D157: 29956959.04 | E157: 0 | F157: 1476132.94 | G157: 2377362.33 | H157: 7489239.761 | I157: =H157-G157 -> 5111877.431 | J157: =IF(I157=0,"",I157/H157) -> 0.6825629295 | K157: =SUM(K158) -> 29956959.04
A158: Transport Assets | C158: 26582440.65 | D158: 29956959.04 | F158: 1476132.94 | G158: 2377362.33 | H158: =D158/12*3 -> 7489239.761 | I158: =H158-G158 -> 5111877.431 | J158: =IF(I158=0,"",I158/H158) -> 0.6825629295 | K158: =D158 -> 29956959.04
A160: Land | C160: =SUM(C161:C161) -> 0 | D160: 0 | E160: 0 | F160: 0 | G160: 0 | H160: 0 | I160: =H160-G160 -> 0 | J160: =IF(I160=0,"",I160/H160) ->  | K160: =SUM(K161) -> 0
A161: Land | I161: =H161-G161 -> 0 | J161: =IF(I161=0,"",I161/H161) -> 
A163: Zoo's, Marine and Non-biological Animals | C163: =SUM(C164:C164) -> 0 | D163: 0 | E163: 0 | F163: 0 | G163: 0 | H163: 0 | I163: =H163-G163 -> 0 | J163: =IF(I163=0,"",I163/H163) ->  | K163: =SUM(K164) -> 0
A164: Zoo's, Marine and Non-biological Animals | I164: =H164-G164 -> 0 | J164: =IF(I164=0,"",I164/H164) -> 
A166: Living resources | C166: =+C167+C170 -> 0 | D166: 0 | E166: 0 | F166: 0 | G166: 0 | H166: 0 | I166: =H166-G166 -> 0 | J166: =IF(I166=0,"",I166/H166) ->  | K166: =+K167+K170 -> 0
A167: Mature | C167: =+C168+C169 -> 0 | D167: 0 | E167: 0 | F167: 0 | G167: 0 | H167: 0 | I167: 0 | K167: =+K168+K169 -> 0
A168: Policing and Protection | I168: 0
A169: Zoological plants and animals | I169: 0
A170: Immature | C170: =+C171+C172 -> 0 | D170: 0 | E170: 0 | F170: 0 | G170: 0 | H170: 0 | I170: 0 | K170: =+K171+K172 -> 0
A171: Policing and Protection | I171: 0
A172: Zoological plants and animals | I172: 0
A173: Total Repairs and Maintenance Expenditure | B173: 1 | C173: =C7+C75+C103+C110+C117+C135+C138+C148+C151+C154+C157+C160+C163+C166 -> 426099058.5 | D173: 521496383.6 | E173: 0 | F173: 18574604.07 | G173: 25151098.24 | H173: 130374095.9 | I173: =H173-G173 -> 105222997.7 | J173: =IF(I173=0,"",I173/H173) -> 0.807085157 | K173: =K7+K75+K103+K110+K117+K135+K138+K148+K151+K154+K157+K160+K163+K166 -> 521496383.6

Sheet SC13d
A1: =muni& " - "&S71Sd& " - "&Head57 -> KZN225 Msunduzi - Supporting Table SC13d Monthly Budget Statement - depreciation by asset class - Q1 First Quarter
A2: =desc -> Description | B2: =head27 -> Ref | C2: =Head1 -> 2023/24 | D2: =Head2 -> Budget Year 2024/25
C3: =Head5 -> Audited Outcome | D3: =Head6 -> Original Budget | E3: =Head7 -> Adjusted Budget | F3: =Head38 -> Monthly actual | G3: =Head39 -> YearTD actual | H3: =Head40 -> YearTD budget | I3: =Head41 -> YTD variance | J3: =Head41 -> YTD variance | K3: =Head8 -> Full Year Forecast
A4: R thousands | B4: 1 | J4: %
A5: Depreciation by Asset Class/Sub-class
A7: Infrastructure | C7: =C8+C13+C17+C27+C38+C45+C53+C63+C69 -> 278229818 | D7: 280936359 | E7: 0 | F7: 24363449.71 | G7: 74669710.19 | H7: 70234089.75 | I7: =H7-G7 -> -4435620.443 | J7: =IF(I7=0,"",I7/H7) -> -0.06315480785 | K7: =K8+K13+K17+K27+K38+K45+K53+K63+K69 -> 280936359
A8: Roads Infrastructure | C8: =SUM(C9:C12) -> 87265862.07 | D8: 87237394.15 | E8: 0 | F8: 7553823.28 | G8: 23165056.1 | H8: 21809348.54 | I8: -1355707.563 | J8: -0.06216176335 | K8: =SUM(K9:K12) -> 87237394.15
A9: Roads | C9: 87265862.07 | D9: 87237394.15 | F9: 7553823.28 | G9: 23165056.1 | H9: =D9/12*3 -> 21809348.54 | I9: -1355707.563 | J9: -0.06216176335 | K9: =D9 -> 87237394.15
A10: Road Structures | I10: 0
A11: Road Furniture | I11: 0
A12: Capital Spares | I12: 0
A13: Storm water Infrastructure | C13: =SUM(C14:C16) -> 0 | D13: 0 | E13: 0 | F13: 0 | G13: 0 | H13: 0 | I13: 0 | K13: =SUM(K14:K16) -> 0
A14: Drainage Collection | I14: 0
A15: Storm water Conveyance | I15: 0
A16: Attenuation | I16: 0
A17: Electrical Infrastructure | C17: =SUM(C18:C26) -> 97289933.46 | D17: 96991922.84 | E17: 0 | F17: 8233368.77 | G17: 25206500.14 | H17: 24247980.71 | I17: -958519.43 | J17: -0.03952986607 | K17: =SUM(K18:K26) -> 96991922.84
A18: Power Plants | C18: 0 | I18: 0
A19: HV Substations | C19: 40327010.37 | D19: 40189885.82 | F19: 3371968.39 | G19: 10340702.25 | H19: =D19/12*3 -> 10047471.46 | I19: -293230.795 | J19: -0.02918453626 | K19: =D19 -> 40189885.82
A20: HV Switching Station | C20: 4335014.66 | D20: 4318113.66 | F20: 357493.59 | G20: 1096316.02 | H20: 1079528.415 | I20: -16787.605 | J20: -0.01555086903 | K20: =D20 -> 4318113.66
A21: HV Transmission Conductors | C21: 50798440.33 | D21: 50679408.67 | F21: 4279009.09 | G21: 13122294.23 | H21: 12669852.17 | I21: -452442.0625 | J21: -0.03571012957 | K21: =D21 -> 50679408.67
A22: MV Substations | C22: 0 | I22: 0 | K22: =D22 -> 0
A23: MV Switching Stations | C23: 0 | I23: 0
A24: MV Networks | C24: 0 | I24: 0
A25: LV Networks | C25: 1829468.1 | D25: 1804514.69 | F25: 224897.7 | G25: 647187.64 | H25: =D25/12*3 -> 451128.6725 | I25: -196058.9675 | J25: -0.4345965563 | K25: =D25 -> 1804514.69
A26: Capital Spares | C26: 0 | I26: 0
A27: Water Supply Infrastructure | C27: =SUM(C28:C37) -> 68799444.51 | D27: 71970145.1 | E27: 0 | F27: 6170483.25 | G27: 18920446.91 | H27: 17992536.27 | I27: -927910.635 | J27: -0.05157197522 | K27: =SUM(K28:K37) -> 71970145.1
A28: Dams and Weirs | I28: 0
A29: Boreholes | I29: 0
A30: Reservoirs | I30: 0
A31: Pump Stations | I31: 0
A32: Water Treatment Works | I32: 0
A33: Bulk Mains | I33: 0
A34: Distribution | C34: 68799444.51 | D34: 71970145.1 | F34: 6170483.25 | G34: 18920446.91 | H34: =D34/12*3 -> 17992536.27 | I34: -927910.635 | J34: -0.05157197522 | K34: =D34 -> 71970145.1
A35: Distribution Points | I35: 0
A36: PRV Stations | I36: 0
A37: Capital Spares | I37: 0
